Workbook

Sheet Resumo
A1: Ministério da Integração e do Desenvolvimento Regional
A2: Companhia de Desenvolvimento dos Vales do São Francisco e do Parnaíba
A4: PLANILHA RESUMO
A5: OBRA: | B5: Contratação de empresa para Serviços de fornecimento, transporte, carga, descarga, montagem e adequado funcionamento de Sistemas de Irrigação para os Estados de Minas Gerais (1ª/SR e 16ª/SR), Bahia (2ª e 6ª/SR), Alagoas (5ª/SR), Maranhão (8ª/SR), Mato Grosso (Sede) e Distrito Federal (Sede). | C5: BDI (serv.): | E5: ='[2]GOTEJAMENTO 1,0 HA'!L5 -> 0.2496
A6: LOCAL: | B6: MATO GROSSO_MT | C6: BDI (forn.): | E6: ='[2]GOTEJAMENTO 1,0 HA'!L6 -> 0.125
A7: DATA BASE: | B7: 2026-03-01
A8: PRAZO: | B8: 270 dias
A9: GRUPO 16 | B9: SISTEMAS DE IRRIGAÇÃO PARA IMPLANTAÇÃO NA ÁREA DE ATUAÇÃO DA SEDE (MATO GROSSO) (COTA ME/EPP)
A11: ITENS | B11: DESCRIÇÃO | C11: UNID. | D11: QUANT. | E11: PREÇO UNITÁRIO | F11: PREÇO TOTAL
A12: 73 | B12: GOTEJAMENTO 1,0 HA- 220V | C12: unid. | D12: 5 | E12: =TRUNC('Item 73- GOTEJAMENTO 1,0 HA'!L3,2) -> 35017.89 | F12: =E12*D12 -> 175089.45
A13: 74 | B13: MICROASPERSÃO 1,0 HA- 220V | C13: unid. | D13: 5 | E13: =TRUNC('Item 74- MICROASPERSÃO 1,0 HA'!L3,2) -> 32527.32 | F13: =E13*D13 -> 162636.6
A14: 75 | B14: MICROASPERSÃO 2,0 HA- 220V | C14: unid. | D14: 5 | E14: =TRUNC('Item 75- MICROASPERSÃO 2,0 HA'!L3,2) -> 46378.32 | F14: 231891.6
A15: 76 | B15: GOTEJAMENTO 1,0 HA- 127V | C15: unid. | D15: 5 | E15: ='Item 76- GOTEJAMENTO 1,0 HA'!L3 -> 39576.71 | F15: 197883.55
A16: 77 | B16: MICROASPERSÃO 1,0 HA- 127V | C16: unid. | D16: 5 | E16: ='Item 77- MICROASPERSÃO 1,0 HA'!L3 -> 37217.47 | F16: 186087.35
A17: 78 | B17: MICROASPERSÃO 2,0 HA- 127V | C17: unid. | D17: 5 | E17: ='Item 78- MICROASPERSÃO 2,0 HA'!L3 -> 50713.34 | F17: 253566.7
B19: PREÇO TOTAL: | F19: =SUM(F12:F17) -> 1207155.25

Sheet BDI
B2: DETALHAMENTO DO BDI- SERVIÇOS | I2: DETALHAMENTO DO BDI- FORNECIMENTO DE MATERIAIS
B3: Item | C3: Descrição | D3: Preço de Venda (%) | E3: Custo Direto (%) | I3: Item | J3: Descrição | K3: Preço de Venda (%) | L3: Custo Direto (%)
B4: 1. | C4: Administração Central (AC) | E4: 4 | F4: =E4/100 -> 0.04 | I4: 1. | J4: Administração Central (AC) | L4: 1.59 | M4: =L4/100 -> 0.0159
B5: 2. | C5: Imposto e Taxas (I) | E5: 8.7 | F5: =E5/100 -> 0.087 | I5: 2. | J5: Imposto e Taxas (I) | L5: 4.5 | M5: =L5/100 -> 0.045
B6: 2.1 | C6: ISS | D6: 3.5 | F6: 0 | I6: 2.1 | J6: ISS | K6: 0 | M6: 0
B7: 2.2 | C7: PIS | D7: 0.65 | F7: 0 | I7: 2.2 | J7: PIS | K7: 0.65 | M7: 0
B8: 2.3 | C8: COFINS | D8: 3 | F8: 0 | I8: 2.3 | J8: COFINS | K8: 3 | M8: 0
B9: 2.4 | C9: CPRB (INSS) | D9: 0 | F9: 0 | I9: 2.4 | J9: CPRB (INSS) | K9: 0 | M9: 0
B10: 3. | C10: Riscos, seguro e garantia (R) | E10: 1.62 | F10: 0.0162 | I10: 3. | J10: Riscos, seguro e garantia (R) | L10: 1.7 | M10: 0.017
B11: 3.1 | C11: Riscos | D11: 1.2 | F11: 0 | I11: 3.1 | J11: Riscos | K11: 1.15 | M11: 0
B12: 3.2 | C12: Seguro + garantia | D12: 0.42 | F12: 0 | I12: 3.2 | J12: Seguro + garantia | K12: 0.5 | M12: 0
B13: 4. | C13: Despesas Financeiras (DF) | E13: 0.95 | F13: 0.0095 | I13: 4. | J13: Despesas Financeiras (DF) | L13: 0.99 | M13: 0.0099
B14: 5. | C14: Lucro (L) | E14: 7 | F14: =E14/100 -> 0.07 | I14: 5. | J14: Lucro (L) | L14: 3 | M14: 0.03
B16: BDI* (%) | E16: =(((1+(F4+F10))*(1+F13)*(1+F14))/(1-F5)-1) -> 0.2496 | I16: BDI* (%) | L16: =(((1+(M4+M10))*(1+M13)*(1+M14))/(1-M5)-1) -> 0.125
B17: Considerações: Acórdão nº 2622/2013 - TCU/ Plenário | I17: Considerações: Acórdão nº 2622/2013 - TCU/ Plenário
B18: (*) BDI (%) = (((1+(AC+S+R+G))*(1+DF)*(1+L)/(1-l)-1)*100 | I18: (*) BDI (%) = (((1+(AC+S+R+G))*(1+DF)*(1+L)/(1-l)-1)*100

Sheet Item 73- GOTEJAMENTO 1,0 HA
K2: BASE | L2: 2026-02-01 | M2: BANCO | N2: DATA
K3: VALOR TOTAL | L3: =K131 -> 35017.89 | M3: ORSE | N3: 2025-12-01
K4: BDI SERVIÇO | L4: 0.2496 | M4: SEINFRA | N4: 27/28
K5: BDI MATERIAL | L5: 0.125 | M5: EMBASA | N5: 2025-06-01
M6: SCO | N6: 2026-01-01
B7: PLANILHA ORÇAMENTÁRIA - MATO GROSSO | K7: DESCONTO | L7: 0 | M7: SBC | N7: 2026-01-01
B8: SERVIÇO DE FORNECIMENTO, TRANSPORTE, CARGA, DESCARGA, MONTAGEM E ADEQUADO FUNCIONAMENTO DE SISTEMA DE IRRIGAÇÃO - GOTEJAMENTO - 1 ha - 220 V | M8: AGETOP CIVIL | N8: 2025-10-01
M9: AGESUL | N9: 2026-01-01
M10: IOPES | N10: 2025-12-01
B11: ITEM | C11: DESCRIÇÃO | D11: UNID. | E11: QUANT. (A) | F11: PESQUISA DE PREÇOS (SIST. REF. / COT) | G11: CÓDIGO | H11: Custo Unitário (R$) - (B) | I11: Custo Total (Com Desconto) | J11: Preço Unitário (R$) com BDI (%) | K11: Preço Total (R$) C = (AxB) | M11: SETOP | N11: 2025-10-01
B12: 1 | C12: Sistema Hidráulico | K12: =SUM(K13,K20,K23,K39,K44,K57,K62,K65,K69) -> 26991.04 | M12: CPOS | N12: 2026-01-01
B13: 1.1 | C13: Linha Lateral - Emissores | K13: =SUM(K14:K19) -> 10010.6 | M13: SEDOP | N13: 2025-10-01
B14: 1.1.1 | C14: TUBO PEBD DI 16 mm PN30 | D14: m | E14: 100 | F14: COT | G14: COT01 | H14: =TRUNC((1-$L$7)*('COT01'!$L$37),2) -> 1.32 | I14: =H14*E14 -> 132 | J14: =H14*(1+$L$5) -> 1.49 | K14: =TRUNC(E14*J14,2) -> 149 | M14: SINAPI | N14: 2026-01-01
B15: 1.1.2 | C15: TUBO GOTEJADOR DI 16 mm PAREDE 15MIL 1,85 LPH X 0,20 M | D15: m | E15: 4000 | F15: COT | G15: COT02 | H15: =TRUNC((1-$L$7)*('COT02'!$L$37),2) -> 2.11 | I15: =H15*E15 -> 8440 | J15: =H15*(1+$L$5) -> 2.37 | K15: =TRUNC(E15*J15,2) -> 9480 | M15: EMOP | N15: 2026-01-04
B16: 1.1.3 | C16: CONECTOR INICIAL 16 mm | D16: und | E16: 90 | F16: SEINFRA | G16: I9811 | H16: =TRUNC((1-$L$7)*(VLOOKUP(G16,'OUTROS BANCOS'!C:E,3,FALSE)),2) -> 0.85 | I16: 76.5 | J16: =H16*(1+$L$5) -> 0.96 | K16: 86.4
B17: 1.1.4 | C17: ANEL DE VEDAÇÃO/ CHULA 13/17 | D17: und | E17: 90 | F17: SEINFRA | G17: I9557 | H17: =TRUNC((1-$L$7)*(VLOOKUP(G17,'OUTROS BANCOS'!$C$2:$E$69,3,FALSE)),2) -> 0.87 | I17: 78.3 | J17: 0.98 | K17: 88.2
B18: 1.1.5 | C18: CONECTOR UNIÃO C/ ANEL 16 mm | D18: und | E18: 120 | F18: EMBASA | G18: M019000003 | H18: =TRUNC((1-$L$7)*(VLOOKUP(G18,'OUTROS BANCOS'!$C$2:$E$69,3,FALSE)),2) -> 0.77 | I18: 92.4 | J18: 0.87 | K18: 104.4
B19: 1.1.6 | C19: CONECTOR FINAL DE LINHA 16 mm | D19: und | E19: 90 | F19: SEINFRA | G19: I9775 | H19: =TRUNC((1-$L$7)*(VLOOKUP(G19,'OUTROS BANCOS'!$C$2:$E$69,3,FALSE)),2) -> 1.01 | I19: 90.9 | J19: 1.14 | K19: 102.6
B20: 1.2 | C20: Tubulação - PVC | K20: =SUM(K21:K22) -> 5082
B21: 1.2.1 | C21: TUBO IRRIG. PB DN50 PN40 | D21: m | E21: =6*26 -> 156 | F21: ORSE | G21: 8369 | H21: =TRUNC((1-$L$7)*(VLOOKUP(G21,'OUTROS BANCOS'!$C$2:$E$69,3,FALSE)),2) -> 13.88 | I21: 2165.28 | J21: =H21*(1+$L$5) -> 15.62 | K21: =TRUNC(E21*J21,2) -> 2436.72
B22: 1.2.2 | C22: TUBO IRRIG. PB DN75 PN40 | D22: m | E22: =24*6 -> 144 | F22: COT | G22: COT17 | H22: =TRUNC((1-$L$7)*('COT17'!L37/6),2) -> 16.33 | I22: 2351.52 | J22: =H22*(1+$L$5) -> 18.37 | K22: 2645.28
B23: 1.3 | C23: Controle de Proteção e Comando | K23: =SUM(K24:K38) -> 1998.3
B24: 1.3.1 | C24: REGISTRO ESFERA SOLD. 50 mm | D24: und | E24: 3 | F24: SINAPI | G24: 11677 | H24: =TRUNC((1-$L$7)*(VLOOKUP(G24,'INSUMO SINAPI'!$A$2:$D$4985,4,FALSE)),2) -> 44.84 | I24: 134.52 | J24: =H24*(1+$L$5) -> 50.45 | K24: =TRUNC(E24*J24,2) -> 151.35
B25: 1.3.2 | C25: VÁLVULA ANTIVÁCUO 1/2" | D25: und | E25: 3 | F25: COT | G25: COT03 | H25: =TRUNC((1-$L$7)*('COT03'!$L$37),2) -> 12.43 | I25: 37.29 | J25: 13.98 | K25: 41.94
B26: 1.3.3 | C26: VÁLVULA VENTOSA TRÍPLICE FUNÇÃO 2" | D26: und | E26: 1 | F26: COT | G26: COT04 | H26: =TRUNC((1-$L$7)*('COT04'!$L$37),2) -> 669.1 | I26: 669.1 | J26: 752.74 | K26: 752.74
B27: 1.3.4 | C27: TUBO IRRIG. PB DN50 PN80 | D27: m | E27: =6*2 -> 12 | F27: ORSE | G27: 14068 | H27: =TRUNC((1-$L$7)*(VLOOKUP(G27,'OUTROS BANCOS'!$C$2:$E$69,3,FALSE)),2) -> 9.74 | I27: 116.88 | J27: 10.96 | K27: 131.52
B28: 1.3.5 | C28: REDUÇÃO PVC PB 75 mm X 50 mm | D28: und | E28: 1 | F28: SEINFRA | G28: I3138 | H28: =TRUNC((1-$L$7)*(VLOOKUP(G28,'OUTROS BANCOS'!$C$2:$E$69,3,FALSE)),2) -> 45.38 | I28: 45.38 | J28: 51.05 | K28: 51.05
B29: 1.3.6 | C29: CURVA PVC 90° PB 50 mm | D29: und | E29: 4 | F29: SINAPI | G29: 1845 | H29: =TRUNC((1-$L$7)*(VLOOKUP(G29,'INSUMO SINAPI'!$A$2:$D$4985,4,FALSE)),2) -> 36.64 | I29: 146.56 | J29: 41.22 | K29: 164.88
B30: 1.3.7 | C30: TÊ PVC 50 mm | D30: und | E30: 3 | F30: ORSE | G30: 9504 | H30: =TRUNC((1-$L$7)*(VLOOKUP(G30,'OUTROS BANCOS'!C:E,3,FALSE)),2) -> 16.82 | I30: 50.46 | J30: 18.92 | K30: 56.76
B31: 1.3.8 | C31: ADAPTADOR BS X RM 50 X 2" | D31: und | E31: 1 | F31: ORSE | G31: 14060 | H31: =TRUNC((1-$L$7)*(VLOOKUP(G31,'OUTROS BANCOS'!$C$2:$E$69,3,FALSE)),2) -> 4.23 | I31: 4.23 | J31: 4.76 | K31: 4.76
B32: 1.3.9 | C32: LUVA PVC BR 2" | D32: und | E32: 1 | F32: ORSE | G32: 1434 | H32: =TRUNC((1-$L$7)*(VLOOKUP(G32,'OUTROS BANCOS'!C:E,3,FALSE)),2) -> 28.58 | I32: 28.58 | J32: 32.15 | K32: 32.15
B33: 1.3.10 | C33: COLAR DE TOMADA 50 X 1/2" | D33: und | E33: 3 | F33: COT | G33: COT05 | H33: =TRUNC((1-$L$7)*('COT05'!$L$37),2) -> 19.49 | I33: 58.47 | J33: 21.93 | K33: 65.79
B34: 1.3.11 | C34: REGISTRO DE GAVETA 2" | D34: und | E34: 1 | F34: COT | G34: COT23 | H34: =TRUNC((1-$L$7)*('COT23'!L37),2) -> 150.45 | I34: 150.45 | J34: 169.26 | K34: 169.26
B35: 1.3.12 | C35: MANÔMETRO DE GLICERINA DE ATÉ 6kgf/cm² ROSCA DE 1/4 " | D35: und | E35: 2 | F35: COT | G35: COT24 | H35: =TRUNC((1-$L$7)*('COT24'!L37),2) -> 121.7 | I35: 243.4 | J35: 136.91 | K35: 273.82
B36: 1.3.13 | C36: BUCHA DE REDUÇÃO DE 3/4" PARA 1/4" | D36: und | E36: 2 | F36: COT | G36: COT25 | H36: =TRUNC((1-$L$7)*('COT25'!L37),2) -> 22.59 | I36: 45.18 | J36: 25.41 | K36: 50.82
B37: 1.3.14 | C37: ADAPTADOR DE REDUÇÃO Bsa SOLD. 50 mm X 1 1/2" | D37: und | E37: 2 | F37: COT | G37: COT26 | H37: =TRUNC((1-$L$7)*('COT26'!L37),2) -> 8.36 | I37: 16.72 | J37: 9.41 | K37: 18.82
B38: 1.3.15 | C38: TE DE REDUÇÃO ROSCA 50 mm X 3/4" | D38: und | E38: 2 | F38: COT | G38: COT27 | H38: =TRUNC((1-$L$7)*('COT27'!L37),2) -> 14.51 | I38: 29.02 | J38: 16.32 | K38: 32.64
B39: 1.4 | C39: Conexões de Campo | K39: =SUM(K40:K43) -> 462.27
B40: 1.4.1 | C40: REGISTRO ESFERA PVC 50 mm | D40: und | E40: 4 | F40: SINAPI | G40: 11677 | H40: =TRUNC((1-$L$7)*(VLOOKUP(G40,'INSUMO SINAPI'!$A$2:$D$4985,4,FALSE)),2) -> 44.84 | I40: 179.36 | J40: =H40*(1+$L$5) -> 50.45 | K40: =TRUNC(E40*J40,2) -> 201.8
B41: 1.4.2 | C41: CURVA PVC 45° PB 50 mm | D41: und | E41: 4 | F41: SINAPI | G41: 1831 | H41: =TRUNC((1-$L$7)*(VLOOKUP(G41,'INSUMO SINAPI'!$A$2:$D$4985,4,FALSE)),2) -> 29.24 | I41: 116.96 | J41: =H41*(1+$L$5) -> 32.9 | K41: 131.6
B42: 1.4.3 | C42: CURVA PVC 90° PB 50 mm | D42: und | E42: 2 | F42: SINAPI | G42: 1845 | H42: =TRUNC((1-$L$7)*(VLOOKUP(G42,'INSUMO SINAPI'!$A$2:$D$4985,4,FALSE)),2) -> 36.64 | I42: 73.28 | J42: =H42*(1+$L$5) -> 41.22 | K42: 82.44
B43: 1.4.4 | C43: TÊ PVC 75 mm | D43: und | E43: 1 | F43: ORSE | G43: 9505 | H43: =TRUNC((1-$L$7)*(VLOOKUP(G43,'OUTROS BANCOS'!C:E,3,FALSE)),2) -> 41.27 | I43: 41.27 | J43: =H43*(1+$L$5) -> 46.43 | K43: 46.43
B44: 1.5 | C44: Filtragem e Ligação de Pressão | K44: =SUM(K45:K56) -> 5867.88
B45: 1.5.1 | C45: MOTOBOMBA SUBMERSA 3HP 12m³/h + 43mca | D45: und | E45: 1 | F45: COT | G45: COT06 | H45: =TRUNC((1-$L$7)*('COT06'!L37),2) -> 1714.01 | I45: 1714.01 | J45: =H45*(1+$L$5) -> 1928.26 | K45: =TRUNC(E45*J45,2) -> 1928.26
B46: 1.5.2 | C46: NIPLE PVC BR 2" | D46: und | E46: 1 | F46: SBC | G46: 5719 | H46: =TRUNC((1-$L$7)*(VLOOKUP(G46,'OUTROS BANCOS'!$C$2:$E$69,3,FALSE)),2) -> 32.23 | I46: 32.23 | J46: 36.26 | K46: 36.26
B47: 1.5.3 | C47: UNIÃO PVC BR 2" | D47: und | E47: 1 | F47: ORSE | G47: 2365 | H47: =TRUNC((1-$L$7)*(VLOOKUP(G47,'OUTROS BANCOS'!C:E,3,FALSE)),2) -> 54.89 | I47: 54.89 | J47: 61.75 | K47: 61.75
B48: 1.5.4 | C48: ADAPTADOR COMPRESSÃO X ROSCA MACHO 2" | D48: und | E48: 2 | F48: EMBASA | G48: M080800108 | H48: =TRUNC((1-$L$7)*(VLOOKUP(G48,'OUTROS BANCOS'!$C$2:$E$69,3,FALSE)),2) -> 49.34 | I48: 98.68 | J48: 55.51 | K48: 111.02
B49: 1.5.5 | C49: TUBO PEMD 2" PN60 | D49: m | E49: 15 | F49: COT | G49: COT07 | H49: =TRUNC((1-$L$7)*('COT07'!L37),2) -> 19.18 | I49: 287.7 | J49: 21.58 | K49: 323.7
B50: 1.5.6 | C50: BUCHA DE REDUÇÃO 3X2" | D50: und | E50: 1 | F50: SBC | G50: 8784 | H50: =TRUNC((1-$L$7)*(VLOOKUP(G50,'OUTROS BANCOS'!$C$2:$E$69,3,FALSE)),2) -> 94 | I50: 94 | J50: 105.75 | K50: 105.75
B51: 1.5.7 | C51: UNIÃO PVC BR 3" | D51: und | E51: 2 | F51: ORSE | G51: 2367 | H51: =TRUNC((1-$L$7)*(VLOOKUP(G51,'OUTROS BANCOS'!C:E,3,FALSE)),2) -> 283.58 | I51: 567.16 | J51: 319.03 | K51: 638.06
B52: 1.5.8 | C52: ADAPTADOR BSXRM 75X3" | D52: und | E52: 3 | F52: ORSE | G52: 14059 | H52: =TRUNC((1-$L$7)*(VLOOKUP(G52,'OUTROS BANCOS'!$C$2:$E$69,3,FALSE)),2) -> 8.5 | I52: 25.5 | J52: 9.56 | K52: 28.68
B53: 1.5.9 | C53: TUBO IRRIG. PB DN75 PN80 | D53: m | E53: =2*6 -> 12 | F53: ORSE | G53: 9502 | H53: =TRUNC((1-$L$7)*(VLOOKUP(G53,'OUTROS BANCOS'!$C$2:$E$69,3,FALSE)),2) -> 40.52 | I53: 486.24 | J53: 45.59 | K53: 547.08
B54: 1.5.10 | C54: CURVA PVC 90° PB 75 MM | D54: und | E54: 6 | F54: SINAPI | G54: 1824 | H54: =TRUNC((1-$L$7)*(VLOOKUP(G54,'INSUMO SINAPI'!$A$2:$D$4985,4,FALSE)),2) -> 86.5 | I54: 519 | J54: 97.31 | K54: 583.86
B55: 1.5.11 | C55: REGISTRO ESFERA 3" | D55: und | E55: 2 | F55: ORSE | G55: 2604 | H55: =TRUNC((1-$L$7)*(VLOOKUP(G55,'OUTROS BANCOS'!$C$2:$E$69,3,FALSE)),2) -> 109.45 | I55: 218.9 | J55: 123.13 | K55: 246.26
B56: 1.5.12 | C56: FILTRO DE DISCO 3" - 25M³/H | D56: und | E56: 1 | F56: COT | G56: COT08 | H56: =TRUNC((1-$L$7)*('COT08'!L37),2) -> 1117.51 | I56: 1117.51 | J56: 1257.2 | K56: 1257.2
B57: 1.6 | C57: Materias de Consumo | K57: =SUM(K58:K61) -> 286.43
B58: 1.6.1 | C58: ADESIVO PLÁSTICO 850G | D58: und | E58: 2 | F58: EMOP | G58: 5102 | H58: =TRUNC((1-$L$7)*(VLOOKUP(G58,'OUTROS BANCOS'!$C$2:$E$69,3,FALSE)),2) -> 54.85 | I58: 109.7 | J58: =H58*(1+$L$5) -> 61.71 | K58: =TRUNC(E58*J58,2) -> 123.42
B59: 1.6.2 | C59: FITA VEDA ROSCA 18MM X 50 M | D59: und | E59: 1 | F59: SINAPI | G59: 3148 | H59: =TRUNC((1-$L$7)*(VLOOKUP(G59,'INSUMO SINAPI'!$A$2:$D$4985,4,FALSE)),2) -> 14.56 | I59: 14.56 | J59: =H59*(1+$L$5) -> 16.38 | K59: 16.38
B60: 1.6.3 | C60: FITA ISOLANTE 18MM X 20M | D60: und | E60: 1 | F60: SBC | G60: 36795 | H60: =TRUNC((1-$L$7)*(VLOOKUP(G60,'OUTROS BANCOS'!$C$2:$E$69,3,FALSE)),2) -> 1 | I60: 1 | J60: =H60*(1+$L$5) -> 1.13 | K60: 1.13
B61: 1.6.4 | C61: FOLHA DE LIXA N100 | D61: und | E61: 50 | F61: SINAPI | G61: 38383 | H61: =TRUNC((1-$L$7)*(VLOOKUP(G61,'INSUMO SINAPI'!$A$2:$D$4985,4,FALSE)),2) -> 2.59 | I61: 129.5 | J61: =H61*(1+$L$5) -> 2.91 | K61: 145.5
B62: 1.7 | C62: Elaboração do Layout do Sistema Hidráulico | K62: =SUM(K63:K64) -> 1290.6
B63: 1.7.1 | C63: Mão-de-obra de Projetista Cadista Pleno - Projeto e Consultoria, inclusive Encargos Sociais | D63: h | E63: 4 | F63: EMOP | G63: 10984 | H63: =TRUNC((1-$L$7)*(VLOOKUP(G63,'OUTROS BANCOS'!$C$2:$E$69,3,FALSE)),2) -> 75.3 | I63: 301.2 | J63: =H63*(1+$L$4) -> 94.09 | K63: =TRUNC(E63*J63,2) -> 376.36
B64: 1.7.2 | C64: Mão-de-obra de Engenheiro Pleno, inclusive com encargos sociais | D64: h | E64: 4 | F64: EMOP | G64: 14610 | H64: =TRUNC((1-$L$7)*(VLOOKUP(G64,'OUTROS BANCOS'!$C$2:$E$69,3,FALSE)),2) -> 182.91 | I64: 731.64 | J64: =H64*(1+$L$4) -> 228.56 | K64: 914.24
B65: 1.8 | C65: Montagem do Sistema Hidráulico | K65: =SUM(K66:K67) -> 1524.48
B66: 1.8.1 | C66: Encanador ou bombeiro hidráulico com encargos complementares (01 encanador ou bombeiro hidráulico em jornada de trabalho de 8 h por dia) | D66: h | E66: 24 | F66: AGESUL | G66: 4005 | H66: =TRUNC((1-$L$7)*(VLOOKUP(G66,'OUTROS BANCOS'!$C$2:$E$69,3,FALSE)),2) -> 27.84 | I66: 668.16 | J66: =H66*(1+$L$4) -> 34.79 | K66: =TRUNC(E66*J66,2) -> 834.96
B67: 1.8.2 | C67: Auxiliar de encanador ou bombeiro hidráulico com encargos complementares (02 auxiliares de encanador ou bombeiro hidráulico em jornada de trabalho de 8 h por dia) | D67: h | E67: 24 | F67: AGESUL | G67: 4052 | H67: =TRUNC((1-$L$7)*(VLOOKUP(G67,'OUTROS BANCOS'!$C$2:$E$69,3,FALSE)),2) -> 22.99 | I67: 551.76 | J67: =H67*(1+$L$4) -> 28.73 | K67: 689.52
B68: 1.9 | C68: Preparo mecanizado de solo | K68: =K69 -> 468.48
B69: 1.9.1 | C69: ARACÃO DO SOLO A 20CM DE PROFUNDIDADE COM TRATOR DE PNEUS E ARADO DE DISCO | D69: ha | E69: 1 | F69: EMOP/COMPOSIÇÃO | G69: 22.016.0025-A | H69: =TRUNC(((1-$L$7)*374.9),2) -> 374.9 | I69: 374.9 | J69: =H69*(1+$L$4) -> 468.48 | K69: =TRUNC(E69*J69,2) -> 468.48
B70: 2 | C70: Sistema Elétrico | K70: =SUM(K71,K82,K125,K110,K118,K129) -> 8026.85
B71: 2.1 | C71: Rede de Distribuição - Fonte até o Quadro de Comando | K71: =SUM(K72:K81) -> 3129.54
B72: 2.1.1 | C72: Poste de madeira eucalipto preservado, diâmetro de 20cm, 7 metros | D72: Unidade | E72: 5 | F72: SBC | G72: 46336 | H72: =TRUNC((1-$L$7)*(VLOOKUP(G72,'OUTROS BANCOS'!C:E,3,FALSE)),2) -> 95.07 | I72: =H72*E72 -> 475.35 | J72: =H72*(1+$L$5) -> 106.95 | K72: =TRUNC(E72*J72,2) -> 534.75
B73: 2.1.2 | C73: Isolador Porcelana Tipo Roldana 80x80 mm p/ 2 cabos, marrom | D73: Unidade | E73: 5 | F73: IOPES | G73: 48342 | H73: =TRUNC((1-$L$7)*(VLOOKUP(G73,'OUTROS BANCOS'!C:E,3,FALSE)),2) -> 10.95 | I73: 54.75 | J73: =H73*(1+$L$5) -> 12.32 | K73: 61.6
B74: 2.1.3 | C74: Suporte Isolador c/ Roldana p/ aparafusar c/ chapa | D74: Unidade | E74: 5 | F74: SETOP | G74: MATED-12988 | H74: =TRUNC((1-$L$7)*(VLOOKUP(G74,'OUTROS BANCOS'!$C$2:$E$69,3,FALSE)),2) -> 18.18 | I74: 90.9 | J74: 20.45 | K74: 102.25
B75: 2.1.4 | C75: Cinta aço galvanizado para poste DT 240mm, inclui parafusos | D75: Unidade | E75: 5 | F75: ORSE | G75: 4628 | H75: =TRUNC((1-$L$7)*(VLOOKUP(G75,'OUTROS BANCOS'!C:E,3,FALSE)),2) -> 15.22 | I75: 76.1 | J75: 17.12 | K75: 85.6
B76: 2.1.5 | C76: Alça preformada para islador roldana, seção conforme condutores instalados | D76: Unidade | E76: 5 | F76: COT | G76: COT13 | H76: =TRUNC((1-$L$7)*('COT13'!L37),2) -> 14.01 | I76: 70.05 | J76: 15.76 | K76: 78.8
B77: 2.1.6 | C77: Cabo de cobre isolado HEPR (XLPE), 10mm², 1kv / 90º C (cor conforme a aplicação) apropriado para redes aéreas | D77: Metro | E77: 200 | F77: COT | G77: COT14 | H77: =TRUNC((1-$L$7)*('COT14'!L37),2) -> 9.26 | I77: 1852 | J77: 10.42 | K77: 2084
B78: 2.1.7 | C78: Cabeçote p/ Eletroduto de 1.1/4" | D78: Unidade | E78: 1 | F78: SINAPI | G78: 1099 | H78: =TRUNC((1-$L$7)*(VLOOKUP(G78,'INSUMO SINAPI'!$A$2:$D$4985,4,FALSE)),2) -> 7.95 | I78: 7.95 | J78: 8.94 | K78: 8.94
B79: 2.1.8 | C79: Eletroduto em aço galvanizado 1.1/4" | D79: Unidade | E79: 1 | F79: SCO | G79: MAT050850 | H79: =TRUNC((1-$L$7)*(VLOOKUP(G79,'OUTROS BANCOS'!$C$2:$E$69,3,FALSE)),2) -> 131.83 | I79: 131.83 | J79: 148.31 | K79: 148.31
B80: 2.1.9 | C80: Conector reto com arruela para eletroduto 1.1/4" | D80: Unidade | E80: 1 | F80: SINAPI | G80: 2526 | H80: =TRUNC((1-$L$7)*(VLOOKUP(G80,'INSUMO SINAPI'!$A$2:$D$4985,4,FALSE)),2) -> 6.29 | I80: 6.29 | J80: 7.08 | K80: 7.08
B81: 2.1.10 | C81: Curva 90º aço galvanizado 1.1/4" | D81: Unidade | E81: 1 | F81: SINAPI | G81: 2618 | H81: =TRUNC((1-$L$7)*(VLOOKUP(G81,'INSUMO SINAPI'!$A$2:$D$4985,4,FALSE)),2) -> 16.19 | I81: 16.19 | J81: 18.21 | K81: 18.21
B82: 2.2 | C82: Quadro de Comando | K82: =SUM(K83:K109) -> 1996.47
B83: 2.2.1 | C83: Quadro elétrico metálico com placa de montagem, grau de proteção mínimo IP54, dimensões mínimas 400x300x200 mm | D83: Unidade | E83: 1 | F83: SBC | G83: 53375 | H83: =TRUNC((1-$L$7)*(VLOOKUP(G83,'OUTROS BANCOS'!$C$2:$E$69,3,FALSE)),2) -> 355.25 | I83: 355.25 | J83: 399.66 | K83: =TRUNC(E83*J83,2) -> 399.66
B84: 2.2.2 | C84: Canaleta para quadro 30 x 50 mm, fabricada em PVC, tipo semi-aberta. | D84: Metro | E84: 0.4 | F84: SETOP | G84: MATED-17646 | H84: =TRUNC((1-$L$7)*(VLOOKUP(G84,'OUTROS BANCOS'!$C$2:$E$69,3,FALSE)),2) -> 15.38 | I84: 6.15 | J84: 17.3 | K84: 6.92
B85: 2.2.3 | C85: Canaleta para quadro 50 x 50 mm, fabricada em PVC, tipo semi-aberta. | D85: Metro | E85: 0.3 | F85: SETOP | G85: MATED-17647 | H85: =TRUNC((1-$L$7)*(VLOOKUP(G85,'OUTROS BANCOS'!$C$2:$E$69,3,FALSE)),2) -> 20.58 | I85: 6.17 | J85: 23.15 | K85: 6.94
B86: 2.2.4 | C86: Trilho DIN 35 mm | D86: Metro | E86: 0.4 | F86: SEINFRA | G86: I7410 | H86: =TRUNC((1-$L$7)*(VLOOKUP(G86,'OUTROS BANCOS'!$C$2:$E$69,3,FALSE)),2) -> 11.56 | I86: 4.62 | J86: 13.01 | K86: 5.2
B87: 2.2.5 | C87: Conector (terminal isolado) para barramento isolado, conexão reta ou lateral, até 25 mm² | D87: Unidade | E87: 2 | F87: COT | G87: COT19 | H87: =TRUNC((1-$L$7)*('COT19'!L37),2) -> 8.23 | I87: 16.46 | J87: 9.26 | K87: 18.52
B88: 2.2.6 | C88: Barramento monofásico isolado (barramento pente), horizontal, fabricado em cobre, até 63 A, acompanhado de tampas finais, 8 polos | D88: Unidade | E88: 1 | F88: SBC | G88: 10562 | H88: =TRUNC((1-$L$7)*(VLOOKUP(G88,'OUTROS BANCOS'!$C$2:$E$69,3,FALSE)),2) -> 22.06 | I88: 22.06 | J88: 24.82 | K88: 24.82
B89: 2.2.7 | C89: Interruptor diferencial residual bipolar de 25A, corrente residual de 30 mA, tensão de operação conforme aplicação, corrente de curto circuito de 3 kA | D89: Unidade | E89: 1 | F89: SINAPI | G89: 39445 | H89: =TRUNC((1-$L$7)*(VLOOKUP(G89,'INSUMO SINAPI'!$A$2:$D$4985,4,FALSE)),2) -> 137.19 | I89: 137.19 | J89: 154.34 | K89: 154.34
B90: 2.2.8 | C90: Dispositivo de Proteção Contra Surtos Classe II, 20 kA (Imáx), tensão de operação compatível com a aplicação, nível de proeção (Up) 1,4 kV | D90: Unidade | E90: 1 | F90: SINAPI | G90: 39469 | H90: =TRUNC((1-$L$7)*(VLOOKUP(G90,'INSUMO SINAPI'!$A$2:$D$4985,4,FALSE)),2) -> 69.47 | I90: 69.47 | J90: 78.15 | K90: 78.15
B91: 2.2.9 | C91: Disjuntor monopolar para trilho DIN (mini disjuntor) para correntes de 25A, curva C, 60 Hz, capacidade de interrupção em curto-circuito 3 kA ou superior | D91: Unidade | E91: 1 | F91: SINAPI | G91: 34653 | H91: =TRUNC((1-$L$7)*(VLOOKUP(G91,'INSUMO SINAPI'!$A$2:$D$4985,4,FALSE)),2) -> 8.91 | I91: 8.91 | J91: 10.02 | K91: 10.02
B92: 2.2.10 | C92: Disjuntor monopolar para trilho DIN (mini disjuntor) para correntes de 20A, curva C, 60 Hz, capacidade de interrupção em curto-circuito 3 kA ou superior | D92: Unidade | E92: 1 | F92: SINAPI | G92: 34653 | H92: =TRUNC((1-$L$7)*(VLOOKUP(G92,'INSUMO SINAPI'!$A$2:$D$4985,4,FALSE)),2) -> 8.91 | I92: 8.91 | J92: 10.02 | K92: 10.02
B93: 2.2.11 | C93: Disjuntor monopolar para trilho DIN (mini disjuntor) para correntes de 2A, curva C, 60 Hz, capacidade de interrupção em curto-circuito 3 kA ou superior | D93: Unidade | E93: 1 | F93: IOPES | G93: 44951 | H93: =TRUNC((1-$L$7)*(VLOOKUP(G93,'OUTROS BANCOS'!$C$2:$E$69,3,FALSE)),2) -> 31.32 | I93: 31.32 | J93: 35.24 | K93: 35.24
B94: 2.2.12 | C94: Minicontator, com capacidade de corrente até 25A (em regime AC-3), contato auxiliar integrado e bobina em corrente alternada (tensão conforme a aplicação) | D94: Unidade | E94: 1 | F94: SINAPI | G94: 1619 | H94: =TRUNC((1-$L$7)*(VLOOKUP(G94,'INSUMO SINAPI'!$A$2:$D$4985,4,FALSE)),2) -> 188.34 | I94: 188.34 | J94: 211.88 | K94: 211.88
B95: 2.2.13 | C95: Relé de sobrecarga para minicontator ajustável até 25A, conforme aplicação, com montagem direta nos contatores | D95: Unidade | E95: 1 | F95: EMBASA | G95: M103900330 | H95: =TRUNC((1-$L$7)*(VLOOKUP(G95,'OUTROS BANCOS'!$C$2:$E$69,3,FALSE)),2) -> 216.48 | I95: 216.48 | J95: 243.54 | K95: 243.54
B96: 2.2.14 | C96: Relé eletrônico/digital monitor de tensão monofásico, com funcionalidade de subtensão e sobretensão, ajustes através de trimpot no relé, LED indicativo de funcionamento, tensão conforme aplicação, 60 Hz, com 1 contato reversível | D96: Unidade | E96: 1 | F96: COT | G96: COT15 | H96: =TRUNC((1-$L$7)*('COT15'!L37),2) -> 197.31 | I96: 197.31 | J96: 221.97 | K96: 221.97
B97: 2.2.15 | C97: Relé temporizador, alimentação 220V, 1 saída a relé, com função de pulso na energização, ajustável de 1 segundo a 100 horas, ajuste por trimpots no relé | D97: Unidade | E97: 1 | F97: COT | G97: COT20 | H97: =TRUNC((1-$L$7)*('COT20'!L37),2) -> 201.71 | I97: 201.71 | J97: 226.92 | K97: 226.92
B98: 2.2.16 | C98: Barramento de neutro, na cor azul, para fixação em trilho DIN, fabricado em cobre, com furos e parafusos para fixação, ao menos um furo para o alimentador (até 25 mm²), pré isolado, 10 furos. | D98: Unidade | E98: 1 | F98: COT | G98: COT21 | H98: =TRUNC((1-$L$7)*('COT21'!L37),2) -> 53.95 | I98: 53.95 | J98: 60.69 | K98: 60.69
B99: 2.2.17 | C99: Barramento de terra, na cor verde, para fixação em trilho DIN, fabricado em cobre, com furos e parafusos para fixação, ao menos um furo para o alimentador (até 25 mm²), pré isolado, 10 furos. | D99: Unidade | E99: 1 | F99: COT | G99: COT22 | H99: =TRUNC((1-$L$7)*('COT22'!L37),2) -> 52.09 | I99: 52.09 | J99: 58.6 | K99: 58.6
B100: 2.2.18 | C100: Botão de emergência tipo cogumelo, com trava e retorno com mola, para furos 22mm, 1 NF, tensão conforme aplicação, vermelho | D100: Unidade | E100: 1 | F100: CPOS | G100: P.13.000.042461 | H100: =TRUNC((1-$L$7)*(VLOOKUP(G100,'OUTROS BANCOS'!$C$2:$E$69,3,FALSE)),2) -> 37.72 | I100: 37.72 | J100: 42.44 | K100: 42.44
B101: 2.2.19 | C101: Chave seletora de 3 posições para furos 22mm, 2 NA, completa, tensão conforme aplicação | D101: Unidade | E101: 1 | F101: SETOP | G101: MATED-19494 | H101: =TRUNC((1-$L$7)*(VLOOKUP(G101,'OUTROS BANCOS'!$C$2:$E$69,3,FALSE)),2) -> 18.4 | I101: 18.4 | J101: 20.7 | K101: 20.7
B102: 2.2.20 | C102: Sinalizador luminoso para furos de 22 mm, iluminação LED, vermelho, tensão conforme aplicação | D102: Unidade | E102: 1 | F102: ORSE | G102: 12379 | H102: =TRUNC((1-$L$7)*(VLOOKUP(G102,'OUTROS BANCOS'!$C$2:$E$69,3,FALSE)),2) -> 18.32 | I102: 18.32 | J102: 20.61 | K102: 20.61
B103: 2.2.21 | C103: Policarbonato compacto, incolor (transparente/cristal), livre de rebarbas, espessura mínima de 3 mm | D103: Metro² | E103: 0.24 | F103: SBC | G103: 28100 | H103: =TRUNC((1-$L$7)*(VLOOKUP(G103,'OUTROS BANCOS'!$C$2:$E$69,3,FALSE)),2) -> 159 | I103: 38.16 | J103: 178.88 | K103: 42.93
B104: 2.2.22 | C104: Barra roscada 1/4", acabamento zincado | D104: Metro | E104: 1 | F104: ORSE | G104: 7551 | H104: =TRUNC((1-$L$7)*(VLOOKUP(G104,'OUTROS BANCOS'!$C$2:$E$69,3,FALSE)),2) -> 4.73 | I104: 4.73 | J104: 5.32 | K104: 5.32
B105: 2.2.23 | C105: Porca sextavada zincada, 1/4" | D105: Unidade | E105: 8 | F105: SINAPI | G105: 39997 | H105: =TRUNC((1-$L$7)*(VLOOKUP(G105,'INSUMO SINAPI'!$A$2:$D$4985,4,FALSE)),2) -> 0.28 | I105: 2.24 | J105: 0.32 | K105: 2.56
B106: 2.2.24 | C106: Arruela zincada, 1/4" | D106: Unidade | E106: 8 | F106: ORSE | G106: 8347 | H106: =TRUNC((1-$L$7)*(VLOOKUP(G106,'OUTROS BANCOS'!$C$2:$E$69,3,FALSE)),2) -> 0.05 | I106: 0.4 | J106: 0.06 | K106: 0.48
B107: 2.2.25 | C107: Placa de identificação (plaqueta de identificação) fabricada em ABS ou acrílico para painéis elétricos (30 X 15 mm), fixação por adesivo, resistente ao tempo (Escrita Personalizada) | D107: Unidade | E107: 10 | F107: COT | G107: COT16 | H107: =TRUNC((1-$L$7)*('COT16'!$L$37),2) -> 7.32 | I107: 73.2 | J107: 8.24 | K107: 82.4
B108: 2.2.26 | C108: Terminal a compressão, tipo pino ou garfo, 2,5 mm³ | D108: Unidade | E108: 30 | F108: SEINFRA | G108: I10080 | H108: =TRUNC((1-$L$7)*(VLOOKUP(G108,'OUTROS BANCOS'!$C$2:$E$69,3,FALSE)),2) -> 0.14 | I108: 4.2 | J108: 0.16 | K108: 4.8
B109: 2.2.27 | C109: Abraçadeira de nylon 2,5x100 mm, para organização cabos elétricos | D109: Unidade | E109: 10 | F109: SINAPI | G109: 414 | H109: =TRUNC((1-$L$7)*(VLOOKUP(G109,'INSUMO SINAPI'!$A$2:$D$4985,4,FALSE)),2) -> 0.07 | I109: 0.7 | J109: 0.08 | K109: 0.8
B110: 2.3 | C110: Sistema de Aterramento | K110: =SUM(K111:K117) -> 1371.18
B111: 2.3.1 | C111: Cordoalha em cobre nu, 50 mm² | D111: Metro | E111: 16 | F111: SINAPI | G111: 867 | H111: =TRUNC((1-$L$7)*(VLOOKUP(G111,'INSUMO SINAPI'!$A$2:$D$4985,4,FALSE)),2) -> 63.24 | I111: 1011.84 | J111: 71.15 | K111: =TRUNC(E111*J111,2) -> 1138.4
B112: 2.3.2 | C112: Conector à compressão para aterramento (CABO-CABO) | D112: Unidade | E112: 2 | F112: SEDOP | G112: E00189 | H112: =TRUNC((1-$L$7)*(VLOOKUP(G112,'OUTROS BANCOS'!$C$2:$E$69,3,FALSE)),2) -> 62.63 | I112: 125.26 | J112: 70.46 | K112: 140.92
B113: 2.3.3 | C113: Curva longa 90º Galvanizada a fogo, 1" | D113: Unidade | E113: 1 | F113: SINAPI | G113: 2617 | H113: =TRUNC((1-$L$7)*(VLOOKUP(G113,'INSUMO SINAPI'!$A$2:$D$4985,4,FALSE)),2) -> 7.11 | I113: 7.11 | J113: 8 | K113: 8
B114: 2.3.4 | C114: Eletroduto Galvanizado a Fogo, 1" | D114: Metro | E114: 1.5 | F114: SETOP | G114: MATED-12288 | H114: =TRUNC((1-$L$7)*(VLOOKUP(G114,'OUTROS BANCOS'!$C$2:$E$69,3,FALSE)),2) -> 7.5 | I114: 11.25 | J114: 8.44 | K114: 12.66
B115: 2.3.5 | C115: Abraçadeira tipo D, 1" e cunha de fixação | D115: Unidade | E115: 1 | F115: SINAPI | G115: 393 | H115: =TRUNC((1-$L$7)*(VLOOKUP(G115,'INSUMO SINAPI'!$A$2:$D$4985,4,FALSE)),2) -> 2.46 | I115: 2.46 | J115: 2.77 | K115: 2.77
B116: 2.3.6 | C116: Conector reto com arruela para eletroduto 1" | D116: Unidade | E116: 1 | F116: SINAPI | G116: 2483 | H116: =TRUNC((1-$L$7)*(VLOOKUP(G116,'INSUMO SINAPI'!$A$2:$D$4985,4,FALSE)),2) -> 4.48 | I116: 4.48 | J116: 5.04 | K116: 5.04
B117: 2.3.7 | C117: Caixa de inspeção para ateramento | D117: Unidade | E117: 1 | F117: SINAPI | G117: 41480 | H117: =TRUNC((1-$L$7)*(VLOOKUP(G117,'INSUMO SINAPI'!$A$2:$D$4985,4,FALSE)),2) -> 56.35 | I117: 56.35 | J117: 63.39 | K117: 63.39
B118: 2.4 | C118: Alimentação do Motor | K118: =SUM(K119:K124) -> 209.17
B119: 2.4.1 | C119: Cabo de cobre flexível, classe 4 ou 5, isolação em PVC/A, antichama BWF-B, 1 condutor, 450/750V seção de 4 mm² (cor preta, azul ou verde) | D119: Metro | E119: 30 | F119: SINAPI | G119: 981 | H119: =TRUNC((1-$L$7)*(VLOOKUP(G119,'INSUMO SINAPI'!$A$2:$D$4985,4,FALSE)),2) -> 4.45 | I119: 133.5 | J119: 5.01 | K119: =TRUNC(E119*J119,2) -> 150.3
B120: 2.4.2 | C120: Terminal a compressão, tipo pino, 4 mm² | D120: Unidade | E120: 3 | F120: SINAPI | G120: 1571 | H120: =TRUNC((1-$L$7)*(VLOOKUP(G120,'INSUMO SINAPI'!$A$2:$D$4985,4,FALSE)),2) -> 1.54 | I120: 4.62 | J120: 1.73 | K120: 5.19
B121: 2.4.3 | C121: Eletroduto corrugado tipo PEAD, 3/4 | D121: Metro | E121: 10 | F121: SINAPI | G121: 39244 | H121: =TRUNC((1-$L$7)*(VLOOKUP(G121,'INSUMO SINAPI'!$A$2:$D$4985,4,FALSE)),2) -> 4.3 | I121: 43 | J121: 4.84 | K121: 48.4
B122: 2.4.4 | C122: Caixa de passagem em concreto 30X30X40 cm | D122: Unidade | E122: 1 | F122: SINAPI | G122: 43429 | H122: =TRUNC((1-$L$7)*(VLOOKUP(G122,'INSUMO SINAPI'!$A$2:$D$4985,4,FALSE)),2) -> 0 | I122: 0 | J122: 0 | K122: 0
B123: 2.4.5 | C123: Conector reto com arruela para eletroduto 3/4" | D123: Unidade | E123: 1 | F123: SINAPI | G123: 2488 | H123: =TRUNC((1-$L$7)*(VLOOKUP(G123,'INSUMO SINAPI'!$A$2:$D$4985,4,FALSE)),2) -> 2.51 | I123: 2.51 | J123: 2.82 | K123: 2.82
B124: 2.4.6 | C124: Abraçadeira tipo D, 3/4" e cunha de fixação | D124: Unidade | E124: 1 | F124: SINAPI | G124: 39128 | H124: =TRUNC((1-$L$7)*(VLOOKUP(G124,'INSUMO SINAPI'!$A$2:$D$4985,4,FALSE)),2) -> 2.19 | I124: 2.19 | J124: 2.46 | K124: 2.46
B125: 2.5 | C125: Montagem do Sistema Elétrico | K125: =SUM(K126:K128) -> 999.2
B126: 2.5.1 | C126: Eletrotécnico (horista), INCLUSIDE ENCARGOS SOCIAIS | D126: h | E126: 8 | F126: EMOP | G126: 1916 | H126: =TRUNC((1-$L$7)*(VLOOKUP(G126,'OUTROS BANCOS'!$C$2:$E$69,3,FALSE)),2) -> 34.86 | I126: 278.88 | J126: =H126*(1+$L$4) -> 43.56 | K126: =TRUNC(E126*J126,2) -> 348.48
B127: 2.5.2 | C127: Auxiliar de Eletricista com encargos complementares | D127: h | E127: 16 | F127: AGESUL | G127: 88247 | H127: =TRUNC((1-$L$7)*(VLOOKUP(G127,'OUTROS BANCOS'!$C$2:$E$69,3,FALSE)),2) -> 23.83 | I127: 381.28 | J127: =H127*(1+$L$4) -> 29.78 | K127: 476.48
B128: 2.5.3 | C128: Comissionamento - Eletrotécnico, INCLUSIVE ENCARGOS SOCIAIS | D128: h | E128: 4 | F128: EMOP | G128: 1916 | H128: =TRUNC((1-$L$7)*(VLOOKUP(G128,'OUTROS BANCOS'!$C$2:$E$69,3,FALSE)),2) -> 34.86 | I128: 139.44 | J128: =H128*(1+$L$4) -> 43.56 | K128: 174.24
B129: 2.6 | C129: Emissão de ART | K129: =K130 -> 321.29
B130: 2.6.1 | C130: Emissão de ART | D130: um | E130: 1 | F130: PRÓPRIA | G130: CPU1 | H130: =TRUNC((1-$L$7)*('CPU1'!J7),2) -> 285.59 | I130: 285.59 | J130: =H130*(1+$L$5) -> 321.29 | K130: =TRUNC(E130*J130,2) -> 321.29
B131: TOTAL | K131: =SUM(K70,K12) -> 35017.89
K133: 31106.35

Sheet Item 74- MICROASPERSÃO 1,0 HA
K2: BASE | L2: 2026-02-01 | M2: BANCO | N2: DATA
K3: VALOR TOTAL | L3: =K133 -> 32527.32 | M3: ORSE | N3: 2025-12-01
K4: BDI SERVIÇO | L4: 0.2496 | M4: SEINFRA | N4: 27/28
K5: BDI MATERIAL | L5: 0.125 | M5: EMBASA | N5: 2025-06-01
M6: SCO | N6: 2026-01-01
K7: DESCONTO | L7: 0 | M7: SBC | N7: 2026-01-01
B8: PLANILHA ORÇAMENTÁRIA - MATO GROSSO | M8: AGETOP CIVIL | N8: 2025-10-01
B9: SERVIÇO DE FORNECIMENTO, TRANSPORTE, CARGA, DESCARGA, MONTAGEM E ADEQUADO FUNCIONAMENTO DE SISTEMA DE IRRIGAÇÃO - MICROASPERSÃO - 1 ha - 220 V | M9: AGESUL | N9: 2026-01-01
M10: IOPES | N10: 2025-12-01
B11: ITEM | C11: DESCRIÇÃO | D11: UNID. | E11: QUANT. - (A) | F11: PESQUISA DE PREÇOS (SIST. REF. / COT) | G11: CÓDIGO | H11: Custo Unitário (R$) - (B) | I11: Custo Total (Com Desconto) | J11: Preço Unitário (R$) com BDI (%) | K11: Preço Total (R$) C = (AxB) | M11: SETOP | N11: 2025-10-01
B12: 1. | C12: Sistema Hidráulico | K12: =SUM(K13,K22,K25,K41,K46,K59,K64,K67,K71) -> 24500.47 | M12: CPOS | N12: 2026-01-01
B13: 1.1. | C13: Linha Lateral - Emissores | K13: =SUM(K14:K21) -> 7747 | M13: SEDOP | N13: 2025-10-01
B14: 1.1.1. | C14: TUBO PEBD DI 16 mm PN30 | D14: m | E14: 2500 | F14: COT | G14: COT01 | H14: =TRUNC((1-$L$7)*('COT01'!L37),2) -> 1.32 | I14: =H14*E14 -> 3300 | J14: =H14*(1+$L$5) -> 1.49 | K14: =TRUNC(E14*J14,2) -> 3725 | M14: SINAPI | N14: 2026-01-01
B15: 1.1.2. | C15: MICROASPERSOR 75 LPH | D15: und | E15: 500 | F15: COT | G15: COT09 | H15: =TRUNC((1-$L$7)*('COT09'!L37),2) -> 2.91 | I15: =H15*E15 -> 1455 | J15: =H15*(1+$L$5) -> 3.27 | K15: 1635 | M15: EMOP | N15: 2026-01-04
B16: 1.1.3. | C16: MICROTUBO COM CONECTOR 4/6 X 80 cm | D16: und | E16: 500 | F16: COT | G16: COT10 | H16: =TRUNC((1-$L$7)*('COT10'!L37),2) -> 2.19 | I16: 1095 | J16: 2.46 | K16: 1230
B17: 1.1.4. | C17: HASTE PLÁSTICA PARA MICROASPERSÃO - 60 cm | D17: und | E17: 500 | F17: COT | G17: COT11 | H17: =TRUNC((1-$L$7)*('COT11'!L37),2) -> 1.62 | I17: 810 | J17: 1.82 | K17: 910
B18: 1.1.5. | C18: CONECTOR INICIAL 16 mm | D18: und | E18: 50 | F18: ORSE | G18: 9550 | H18: =TRUNC((1-$L$7)*(VLOOKUP(G18,'OUTROS BANCOS'!$C$2:$E$69,3,FALSE)),2) -> 0.96 | I18: 48 | J18: 1.08 | K18: 54
B19: 1.1.6. | C19: ANEL DE VEDAÇÃO COM CHULA 13/17 | D19: und | E19: 50 | F19: SEINFRA | G19: I9557 | H19: =TRUNC((1-$L$7)*(VLOOKUP(G19,'OUTROS BANCOS'!$C$2:$E$69,3,FALSE)),2) -> 0.87 | I19: 43.5 | J19: 0.98 | K19: 49
B20: 1.1.5. | C20: CONECTOR UNIÃO COM ANEL 16 mm | D20: und | E20: 100 | F20: EMBASA | G20: M019000003 | H20: =TRUNC((1-$L$7)*(VLOOKUP(G20,'OUTROS BANCOS'!$C$2:$E$69,3,FALSE)),2) -> 0.77 | I20: 77 | J20: 0.87 | K20: 87
B21: 1.1.6. | C21: CONECTOR FINAL DE LINHA TIPO 8 16 mm | D21: und | E21: 50 | F21: SEINFRA | G21: I9775 | H21: =TRUNC((1-$L$7)*(VLOOKUP(G21,'OUTROS BANCOS'!$C$2:$E$69,3,FALSE)),2) -> 1.01 | I21: 50.5 | J21: 1.14 | K21: 57
B22: 1.2. | C22: Tubulação - PVC | K22: =SUM(K23:K24) -> 5082
B23: 1.2.1 | C23: TUBO IRRIG. PB DN50 PN40 | D23: m | E23: =26*6 -> 156 | F23: ORSE | G23: 8369 | H23: =TRUNC((1-$L$7)*(VLOOKUP(G23,'OUTROS BANCOS'!$C$2:$E$69,3,FALSE)),2) -> 13.88 | I23: 2165.28 | J23: =H23*(1+$L$5) -> 15.62 | K23: =TRUNC(E23*J23,2) -> 2436.72
B24: 1.2.2 | C24: TUBO IRRIG. PB DN75 PN40 | D24: m | E24: =24*6 -> 144 | F24: COT | G24: COT17 | H24: =TRUNC((1-$L$7)*('COT17'!$L$37/6),2) -> 16.33 | I24: 2351.52 | J24: =H24*(1+$L$5) -> 18.37 | K24: =TRUNC(E24*J24,2) -> 2645.28
B25: 1.3. | C25: Controle de Proteção e Comando | K25: =SUM(K26:K40) -> 1935.65
B26: 1.3.1. | C26: REGISTRO ESFERA SOLD. 50 mm | D26: und | E26: 3 | F26: SINAPI | G26: 11677 | H26: =TRUNC((1-$L$7)*(VLOOKUP(G26,'INSUMO SINAPI'!$A:$D,4,FALSE)),2) -> 44.84 | I26: 134.52 | J26: =H26*(1+$L$5) -> 50.45 | K26: =TRUNC(E26*J26,2) -> 151.35
B27: 1.3.2. | C27: VÁLVULA ANTIVÁCUO 1/2" | D27: und | E27: 3 | F27: COT | G27: COT03 | H27: =TRUNC((1-$L$7)*('COT03'!L37),2) -> 12.43 | I27: 37.29 | J27: =H27*(1+$L$5) -> 13.98 | K27: 41.94
B28: 1.3.3. | C28: VÁLVULA VENTOSA TRÍPLICE FUNÇÃO 2" | D28: und | E28: 1 | F28: COT | G28: COT04 | H28: =TRUNC((1-$L$7)*('COT04'!L37),2) -> 669.1 | I28: 669.1 | J28: 752.74 | K28: 752.74
B29: 1.3.4. | C29: TUBO IRRIG. PB DN50 PN80 | D29: m | E29: =2*6 -> 12 | F29: ORSE | G29: 14068 | H29: =TRUNC((1-$L$7)*(VLOOKUP(G29,'OUTROS BANCOS'!$C$2:$E$69,3,FALSE)),2) -> 9.74 | I29: 116.88 | J29: 10.96 | K29: 131.52
B30: 1.3.5. | C30: REDUÇÃO PVC PB 75 mm X 50 mm | D30: und | E30: 1 | F30: SCO | G30: MAT118400 | H30: =TRUNC((1-$L$7)*(VLOOKUP(G30,'OUTROS BANCOS'!$C$2:$E$69,3,FALSE)),2) -> 11.1 | I30: 11.1 | J30: 12.49 | K30: 12.49
B31: 1.3.6. | C31: CURVA PVC 90° PB 50 mm | D31: und | E31: 4 | F31: SINAPI | G31: 1845 | H31: =TRUNC((1-$L$7)*(VLOOKUP(G31,'INSUMO SINAPI'!$A:$D,4,FALSE)),2) -> 36.64 | I31: 146.56 | J31: 41.22 | K31: 164.88
B32: 1.3.7. | C32: TÊ PVC 50 mm | D32: und | E32: 3 | F32: ORSE | G32: 2113 | H32: =TRUNC((1-$L$7)*(VLOOKUP(G32,'OUTROS BANCOS'!$C$2:$E$69,3,FALSE)),2) -> 9.68 | I32: 29.04 | J32: 10.89 | K32: 32.67
B33: 1.3.8. | C33: ADAPTADOR BS X RM 50 X 2" | D33: und | E33: 1 | F33: ORSE | G33: 14060 | H33: =TRUNC((1-$L$7)*(VLOOKUP(G33,'OUTROS BANCOS'!$C$2:$E$69,3,FALSE)),2) -> 4.23 | I33: 4.23 | J33: 4.76 | K33: 4.76
B34: 1.3.9. | C34: LUVA PVC BR 2" | D34: und | E34: 1 | F34: ORSE | G34: 1434 | H34: =TRUNC((1-$L$7)*(VLOOKUP(G34,'OUTROS BANCOS'!$C$2:$E$77,3,FALSE)),2) -> 28.58 | I34: 28.58 | J34: 32.15 | K34: 32.15
B35: 1.3.10. | C35: COLAR DE TOMADA 50 X 1/2" | D35: und | E35: 3 | F35: COT | G35: COT05 | H35: =TRUNC((1-$L$7)*('COT05'!L37),2) -> 19.49 | I35: 58.47 | J35: 21.93 | K35: 65.79
B36: 1.3.11 | C36: REGISTRO DE GAVETA 2" | D36: und | E36: 1 | F36: COT | G36: COT23 | H36: =TRUNC((1-$L$7)*('COT23'!L37),2) -> 150.45 | I36: 150.45 | J36: 169.26 | K36: 169.26
B37: 1.3.12 | C37: MANÔMETRO DE GLICERINA DE ATÉ 6kgf/cm² ROSCA DE 1/4 " | D37: und | E37: 2 | F37: COT | G37: COT24 | H37: =TRUNC((1-$L$7)*('COT24'!L37),2) -> 121.7 | I37: 243.4 | J37: 136.91 | K37: 273.82
B38: 1.3.13 | C38: BUCHA DE REDUÇÃO DE 3/4" PARA 1/4" | D38: und | E38: 2 | F38: COT | G38: COT25 | H38: =TRUNC((1-$L$7)*('COT25'!L37),2) -> 22.59 | I38: 45.18 | J38: 25.41 | K38: 50.82
B39: 1.3.14 | C39: ADAPTADOR DE REDUÇÃO Bsa SOLD. 50 mm X 1 1/2" | D39: und | E39: 2 | F39: COT | G39: COT26 | H39: =TRUNC((1-$L$7)*('COT26'!L37),2) -> 8.36 | I39: 16.72 | J39: 9.41 | K39: 18.82
B40: 1.3.15 | C40: TE DE REDUÇÃO ROSCA 50 mm X 3/4" | D40: und | E40: 2 | F40: COT | G40: COT27 | H40: =TRUNC((1-$L$7)*('COT27'!L37),2) -> 14.51 | I40: 29.02 | J40: 16.32 | K40: 32.64
B41: 1.4. | C41: Conexões de Campo | K41: =SUM(K42:K45) -> 420.29
B42: 1.4.1. | C42: REGISTRO ESFERA PVC 50 mm | D42: und | E42: 4 | F42: SINAPI | G42: 11677 | H42: =TRUNC((1-$L$7)*(VLOOKUP(G42,'INSUMO SINAPI'!$A:$D,4,FALSE)),2) -> 44.84 | I42: 179.36 | J42: =H42*(1+$L$5) -> 50.45 | K42: =TRUNC(E42*J42,2) -> 201.8
B43: 1.4.2. | C43: CURVA PVC 45° PB 50 mm | D43: und | E43: 4 | F43: SINAPI | G43: 1831 | H43: =TRUNC((1-$L$7)*(VLOOKUP(G43,'INSUMO SINAPI'!$A:$D,4,FALSE)),2) -> 29.24 | I43: 116.96 | J43: =H43*(1+$L$5) -> 32.9 | K43: =TRUNC(E43*J43,2) -> 131.6
B44: 1.4.3. | C44: CURVA PVC 90° PB 50 mm | D44: und | E44: 2 | F44: SINAPI | G44: 1845 | H44: =TRUNC((1-$L$7)*(VLOOKUP(G43,'INSUMO SINAPI'!$A:$D,4,FALSE)),2) -> 29.24 | I44: 58.48 | J44: 32.9 | K44: =TRUNC(E44*J44,2) -> 65.8
B45: 1.4.4. | C45: TÊ PVC 75 mm | D45: und | E45: 1 | F45: ORSE | G45: 2145 | H45: =TRUNC((1-$L$7)*(VLOOKUP(G45,'OUTROS BANCOS'!$C$2:$E$69,3,FALSE)),2) -> 18.75 | I45: 18.75 | J45: 21.09 | K45: =TRUNC(E45*J45,2) -> 21.09
B46: 1.5. | C46: Filtragem e Ligação de Pressão | K46: =SUM(K47:K58) -> 5745.54
B47: 1.5.1. | C47: MOTOBOMBA SUBMERSA 3HP 12m³/h + 43mca | D47: und | E47: 1 | F47: COT | G47: COT06 | H47: =TRUNC((1-$L$7)*('COT06'!L37),2) -> 1714.01 | I47: 1714.01 | J47: =H47*(1+$L$5) -> 1928.26 | K47: =TRUNC(E47*J47,2) -> 1928.26
B48: 1.5.2. | C48: NIPLE PVC BR 2" | D48: und | E48: 1 | F48: SBC | G48: 5719 | H48: =TRUNC((1-$L$7)*(VLOOKUP(G48,'OUTROS BANCOS'!$C$2:$E$69,3,FALSE)),2) -> 32.23 | I48: 32.23 | J48: =H48*(1+$L$5) -> 36.26 | K48: 36.26
B49: 1.5.3. | C49: UNIÃO PVC BR 2" | D49: und | E49: 1 | F49: ORSE | G49: 2365 | H49: =TRUNC((1-$L$7)*(VLOOKUP(G49,'OUTROS BANCOS'!$C$2:$E$77,3,FALSE)),2) -> 54.89 | I49: 54.89 | J49: 61.75 | K49: 61.75
B50: 1.5.4. | C50: ADAPTADOR COMPRESSÃO X ROSCA MACHO 2" | D50: und | E50: 2 | F50: EMBASA | G50: M080800108 | H50: =TRUNC((1-$L$7)*(VLOOKUP(G50,'OUTROS BANCOS'!$C$2:$E$69,3,FALSE)),2) -> 49.34 | I50: 98.68 | J50: 55.51 | K50: 111.02
B51: 1.5.5. | C51: TUBO PEMD 2" PN60 | D51: m | E51: 15 | F51: COT | G51: COT07 | H51: =TRUNC((1-$L$7)*('COT07'!L37),2) -> 19.18 | I51: 287.7 | J51: 21.58 | K51: 323.7
B52: 1.5.6. | C52: BUCHA DE REDUÇÃO 3X2" | D52: und | E52: 1 | F52: SBC | G52: 8784 | H52: =TRUNC((1-$L$7)*(VLOOKUP(G52,'OUTROS BANCOS'!$C$2:$E$69,3,FALSE)),2) -> 94 | I52: 94 | J52: 105.75 | K52: 105.75
B53: 1.5.7. | C53: UNIÃO PVC BR 3" | D53: und | E53: 2 | F53: SEINFRA | G53: I2242 | H53: =TRUNC((1-$L$7)*(VLOOKUP(G53,'OUTROS BANCOS'!$C$2:$E$69,3,FALSE)),2) -> 229.21 | I53: 458.42 | J53: 257.86 | K53: 515.72
B54: 1.5.8. | C54: ADAPTADOR BSXRM 75X3" | D54: und | E54: 3 | F54: ORSE | G54: 14059 | H54: =TRUNC((1-$L$7)*(VLOOKUP(G54,'OUTROS BANCOS'!$C$2:$E$69,3,FALSE)),2) -> 8.5 | I54: 25.5 | J54: 9.56 | K54: 28.68
B55: 1.5.9. | C55: TUBO IRRIG. PB DN75 PN80 | D55: m | E55: =2*6 -> 12 | F55: ORSE | G55: 9502 | H55: =TRUNC((1-$L$7)*(VLOOKUP(G55,'OUTROS BANCOS'!$C$2:$E$69,3,FALSE)),2) -> 40.52 | I55: 486.24 | J55: 45.59 | K55: 547.08
B56: 1.5.10. | C56: CURVA PVC 90° PB 75 MM | D56: und | E56: 6 | F56: SINAPI | G56: 1824 | H56: =TRUNC((1-$L$7)*(VLOOKUP(G56,'INSUMO SINAPI'!$A:$D,4,FALSE)),2) -> 86.5 | I56: 519 | J56: 97.31 | K56: 583.86
B57: 1.5.11. | C57: REGISTRO ESFERA 3" | D57: und | E57: 2 | F57: ORSE | G57: 2604 | H57: =TRUNC((1-$L$7)*(VLOOKUP(G57,'OUTROS BANCOS'!$C$2:$E$69,3,FALSE)),2) -> 109.45 | I57: 218.9 | J57: 123.13 | K57: 246.26
B58: 1.5.12. | C58: FILTRO DE DISCO 3" - 25M³/H | D58: und | E58: 1 | F58: COT | G58: COT08 | H58: =TRUNC((1-$L$7)*('COT08'!L37),2) -> 1117.51 | I58: 1117.51 | J58: 1257.2 | K58: 1257.2
B59: 1.6. | C59: Materias de Consumo | K59: =SUM(K60:K63) -> 286.43
B60: 1.6.1. | C60: ADESIVO PLÁSTICO 850G | D60: und | E60: 2 | F60: EMOP | G60: 5102 | H60: =TRUNC((1-$L$7)*(VLOOKUP(G60,'OUTROS BANCOS'!$C$2:$E$69,3,FALSE)),2) -> 54.85 | I60: 109.7 | J60: 61.71 | K60: =TRUNC(E60*J60,2) -> 123.42
B61: 1.6.2. | C61: FITA VEDA ROSCA 18MM X 50 M | D61: und | E61: 1 | F61: SINAPI | G61: 3148 | H61: =TRUNC((1-$L$7)*(VLOOKUP(G61,'INSUMO SINAPI'!$A:$D,4,FALSE)),2) -> 14.56 | I61: 14.56 | J61: 16.38 | K61: =TRUNC(E61*J61,2) -> 16.38
B62: 1.6.3. | C62: FITA ISOLANTE 18MM X 20M | D62: und | E62: 1 | F62: SBC | G62: 36795 | H62: =TRUNC((1-$L$7)*(VLOOKUP(G62,'OUTROS BANCOS'!$C$2:$E$69,3,FALSE)),2) -> 1 | I62: 1 | J62: 1.13 | K62: =TRUNC(E62*J62,2) -> 1.13
B63: 1.6.4. | C63: FOLHA DE LIXA N100 | D63: und | E63: 50 | F63: SINAPI | G63: 38383 | H63: =TRUNC((1-$L$7)*(VLOOKUP(G63,'INSUMO SINAPI'!$A:$D,4,FALSE)),2) -> 2.59 | I63: 129.5 | J63: 2.91 | K63: =TRUNC(E63*J63,2) -> 145.5
B64: 1.7. | C64: Elaboração do Layout do Sistema Hidráulico | K64: =SUM(K65:K66) -> 1290.6
B65: 1.7.1. | C65: Mão-de-obra de Projetista Cadista Pleno - Projeto e Consultoria, inclusive Encargos Sociais | D65: h | E65: 4 | F65: EMOP | G65: 10984 | H65: =TRUNC((1-$L$7)*(VLOOKUP(G65,'OUTROS BANCOS'!$C$2:$E$69,3,FALSE)),2) -> 75.3 | I65: 301.2 | J65: =H65*(1+$L$4) -> 94.09 | K65: =TRUNC(E65*J65,2) -> 376.36
B66: 1.7.2. | C66: Mão-de-obra de Engenheiro Pleno, inclusive com encargos sociais | D66: h | E66: 4 | F66: EMOP | G66: 14610 | H66: =TRUNC((1-$L$7)*(VLOOKUP(G66,'OUTROS BANCOS'!$C$2:$E$69,3,FALSE)),2) -> 182.91 | I66: 731.64 | J66: 228.56 | K66: =TRUNC(E66*J66,2) -> 914.24
B67: 1.8. | C67: Montagem do Sistema Hidráulico | K67: =SUM(K68:K69) -> 1524.48
B68: 1.8.1. | C68: Encanador ou bombeiro hidráulico com encargos complementares (01 encanador ou bombeiro hidráulico em jornada de trabalho de 8 h por dia) | D68: h | E68: 24 | F68: AGESUL | G68: 4005 | H68: =TRUNC((1-$L$7)*(VLOOKUP(G68,'OUTROS BANCOS'!$C$2:$E$69,3,FALSE)),2) -> 27.84 | I68: 668.16 | J68: =H68*(1+$L$4) -> 34.79 | K68: =TRUNC(E68*J68,2) -> 834.96
B69: 1.8.2. | C69: Auxiliar de encanador ou bombeiro hidráulico com encargos complementares (02 auxiliares de encanador ou bombeiro hidráulico em jornada de trabalho de 8 h por dia) | D69: h | E69: 24 | F69: AGESUL | G69: 4052 | H69: =TRUNC((1-$L$7)*(VLOOKUP(G69,'OUTROS BANCOS'!$C$2:$E$69,3,FALSE)),2) -> 22.99 | I69: 551.76 | J69: 28.73 | K69: =TRUNC(E69*J69,2) -> 689.52
B70: 1.9 | C70: Preparo mecanizado de solo | K70: =K71 -> 468.48
B71: 1.9.1 | C71: ARACÃO DO SOLO A 20CM DE PROFUNDIDADE COM TRATOR DE PNEUS E ARADO DE DISCO | D71: ha | E71: 1 | F71: EMOP/COMPOSIÇÃO | G71: 22.016.0025-A | H71: =TRUNC(((1-$L$7)*374.9),2) -> 374.9 | I71: 374.9 | J71: 468.48 | K71: =TRUNC(E71*J71,2) -> 468.48
B72: 2 | C72: Sistema Elétrico | K72: =SUM(K73,K84,K127,K112,K120,K131) -> 8026.85
B73: 2.1 | C73: Rede de Distribuição - Fonte até o Quadro de Comando | K73: =SUM(K74:K83) -> 3129.54
B74: 2.1.1 | C74: Poste de madeira eucalipto preservado, diâmetro de 20cm, 7 metros | D74: Unidade | E74: 5 | F74: SBC | G74: 46336 | H74: =TRUNC((1-$L$7)*(VLOOKUP(G74,'OUTROS BANCOS'!$C$2:$E$69,3,FALSE)),2) -> 95.07 | I74: =H74*E74 -> 475.35 | J74: =H74*(1+$L$5) -> 106.95 | K74: =TRUNC(E74*J74,2) -> 534.75
B75: 2.1.2 | C75: Isolador Porcelana Tipo Roldana 80x80 mm p/ 2 cabos, marrom | D75: Unidade | E75: 5 | F75: IOPES | G75: 48342 | H75: =TRUNC((1-$L$7)*(VLOOKUP(G75,'OUTROS BANCOS'!$C$2:$E$69,3,FALSE)),2) -> 10.95 | I75: 54.75 | J75: 12.32 | K75: 61.6
B76: 2.1.3 | C76: Suporte Isolador c/ Roldana p/ aparafusar c/ chapa | D76: Unidade | E76: 5 | F76: SETOP | G76: MATED-12988 | H76: =TRUNC((1-$L$7)*(VLOOKUP(G76,'OUTROS BANCOS'!$C$2:$E$69,3,FALSE)),2) -> 18.18 | I76: 90.9 | J76: 20.45 | K76: 102.25
B77: 2.1.4 | C77: Cinta aço galvanizado para poste DT 240mm, inclui parafusos | D77: Unidade | E77: 5 | F77: ORSE | G77: 4628 | H77: =TRUNC((1-$L$7)*(VLOOKUP(G77,'OUTROS BANCOS'!$C$2:$E$69,3,FALSE)),2) -> 15.22 | I77: 76.1 | J77: 17.12 | K77: 85.6
B78: 2.1.5 | C78: Alça preformada para islador roldana, seção conforme condutores instalados | D78: Unidade | E78: 5 | F78: COT | G78: COT13 | H78: =TRUNC((1-$L$7)*('COT13'!L37),2) -> 14.01 | I78: 70.05 | J78: 15.76 | K78: 78.8
B79: 2.1.6 | C79: Cabo de cobre isolado HEPR (XLPE), 10mm², 1kv / 90º C (cor conforme a aplicação) apropriado para redes aéreas | D79: Metro | E79: 200 | F79: COT | G79: COT14 | H79: =TRUNC((1-$L$7)*('COT14'!L37),2) -> 9.26 | I79: 1852 | J79: 10.42 | K79: 2084
B80: 2.1.7 | C80: Cabeçote p/ Eletroduto de 1.1/4" | D80: Unidade | E80: 1 | F80: SINAPI | G80: 1099 | H80: =TRUNC((1-$L$7)*(VLOOKUP(G80,'INSUMO SINAPI'!$A:$D,4,FALSE)),2) -> 7.95 | I80: 7.95 | J80: 8.94 | K80: 8.94
B81: 2.1.8 | C81: Eletroduto em aço galvanizado 1.1/4" | D81: Unidade | E81: 1 | F81: SCO | G81: MAT050850 | H81: =TRUNC((1-$L$7)*(VLOOKUP(G81,'OUTROS BANCOS'!$C$2:$E$69,3,FALSE)),2) -> 131.83 | I81: 131.83 | J81: 148.31 | K81: 148.31
B82: 2.1.9 | C82: Conector reto com arruela para eletroduto 1.1/4" | D82: Unidade | E82: 1 | F82: SINAPI | G82: 2526 | H82: =TRUNC((1-$L$7)*(VLOOKUP(G82,'INSUMO SINAPI'!$A:$D,4,FALSE)),2) -> 6.29 | I82: 6.29 | J82: 7.08 | K82: 7.08
B83: 2.1.10 | C83: Curva 90º aço galvanizado 1.1/4" | D83: Unidade | E83: 1 | F83: SINAPI | G83: 2618 | H83: =TRUNC((1-$L$7)*(VLOOKUP(G83,'INSUMO SINAPI'!$A:$D,4,FALSE)),2) -> 16.19 | I83: 16.19 | J83: 18.21 | K83: 18.21
B84: 2.2 | C84: Quadro de Comando | K84: =SUM(K85:K111) -> 1996.47
B85: 2.2.1 | C85: Quadro elétrico metálico com placa de montagem, grau de proteção mínimo IP54, dimensões mínimas 400x300x200 mm | D85: Unidade | E85: 1 | F85: SBC | G85: 53375 | H85: =TRUNC((1-$L$7)*(VLOOKUP(G85,'OUTROS BANCOS'!$C$2:$E$69,3,FALSE)),2) -> 355.25 | I85: 355.25 | J85: 399.66 | K85: =TRUNC(E85*J85,2) -> 399.66
B86: 2.2.2 | C86: Canaleta para quadro 30 x 50 mm, fabricada em PVC, tipo semi-aberta. | D86: Metro | E86: 0.4 | F86: SETOP | G86: MATED-17646 | H86: =TRUNC((1-$L$7)*(VLOOKUP(G86,'OUTROS BANCOS'!$C$2:$E$69,3,FALSE)),2) -> 15.38 | I86: 6.15 | J86: 17.3 | K86: 6.92
B87: 2.2.3 | C87: Canaleta para quadro 50 x 50 mm, fabricada em PVC, tipo semi-aberta. | D87: Metro | E87: 0.3 | F87: SETOP | G87: MATED-17647 | H87: =TRUNC((1-$L$7)*(VLOOKUP(G87,'OUTROS BANCOS'!$C$2:$E$69,3,FALSE)),2) -> 20.58 | I87: 6.17 | J87: 23.15 | K87: 6.94
B88: 2.2.4 | C88: Trilho DIN 35 mm | D88: Metro | E88: 0.4 | F88: SEINFRA | G88: I7410 | H88: =TRUNC((1-$L$7)*(VLOOKUP(G88,'OUTROS BANCOS'!$C$2:$E$69,3,FALSE)),2) -> 11.56 | I88: 4.62 | J88: 13.01 | K88: 5.2
B89: 2.2.5 | C89: Conector (terminal isolado) para barramento isolado, conexão reta ou lateral, até 25 mm² | D89: Unidade | E89: 2 | F89: COT | G89: COT19 | H89: =TRUNC((1-$L$7)*('COT19'!L37),2) -> 8.23 | I89: 16.46 | J89: 9.26 | K89: 18.52
B90: 2.2.6 | C90: Barramento monofásico isolado (barramento pente), horizontal, fabricado em cobre, até 63 A, acompanhado de tampas finais, 8 polos | D90: Unidade | E90: 1 | F90: SBC | G90: 10562 | H90: =TRUNC((1-$L$7)*(VLOOKUP(G90,'OUTROS BANCOS'!$C$2:$E$69,3,FALSE)),2) -> 22.06 | I90: 22.06 | J90: 24.82 | K90: 24.82
B91: 2.2.7 | C91: Interruptor diferencial residual bipolar de 25A, corrente residual de 30 mA, tensão de operação conforme aplicação, corrente de curto circuito de 3 kA | D91: Unidade | E91: 1 | F91: SINAPI | G91: 39445 | H91: =TRUNC((1-$L$7)*(VLOOKUP(G91,'INSUMO SINAPI'!$A:$D,4,FALSE)),2) -> 137.19 | I91: 137.19 | J91: 154.34 | K91: 154.34
B92: 2.2.8 | C92: Dispositivo de Proteção Contra Surtos Classe II, 20 kA (Imáx), tensão de operação compatível com a aplicação, nível de proeção (Up) 1,4 kV | D92: Unidade | E92: 1 | F92: SINAPI | G92: 39469 | H92: =TRUNC((1-$L$7)*(VLOOKUP(G92,'INSUMO SINAPI'!$A:$D,4,FALSE)),2) -> 69.47 | I92: 69.47 | J92: 78.15 | K92: 78.15
B93: 2.2.9 | C93: Disjuntor monopolar para trilho DIN (mini disjuntor) para correntes de 25A, curva C, 60 Hz, capacidade de interrupção em curto-circuito 3 kA ou superior | D93: Unidade | E93: 1 | F93: SINAPI | G93: 34653 | H93: =TRUNC((1-$L$7)*(VLOOKUP(G93,'INSUMO SINAPI'!$A:$D,4,FALSE)),2) -> 8.91 | I93: 8.91 | J93: 10.02 | K93: 10.02
B94: 2.2.10 | C94: Disjuntor monopolar para trilho DIN (mini disjuntor) para correntes de 20A, curva C, 60 Hz, capacidade de interrupção em curto-circuito 3 kA ou superior | D94: Unidade | E94: 1 | F94: SINAPI | G94: 34653 | H94: =TRUNC((1-$L$7)*(VLOOKUP(G94,'INSUMO SINAPI'!$A:$D,4,FALSE)),2) -> 8.91 | I94: 8.91 | J94: 10.02 | K94: 10.02
B95: 2.2.11 | C95: Disjuntor monopolar para trilho DIN (mini disjuntor) para correntes de 2A, curva C, 60 Hz, capacidade de interrupção em curto-circuito 3 kA ou superior | D95: Unidade | E95: 1 | F95: IOPES | G95: 44951 | H95: =TRUNC((1-$L$7)*(VLOOKUP(G95,'OUTROS BANCOS'!$C$2:$E$69,3,FALSE)),2) -> 31.32 | I95: 31.32 | J95: 35.24 | K95: 35.24
B96: 2.2.12 | C96: Minicontator, com capacidade de corrente até 25A (em regime AC-3), contato auxiliar integrado e bobina em corrente alternada (tensão conforme a aplicação) | D96: Unidade | E96: 1 | F96: SINAPI | G96: 1619 | H96: =TRUNC((1-$L$7)*(VLOOKUP(G96,'INSUMO SINAPI'!$A:$D,4,FALSE)),2) -> 188.34 | I96: 188.34 | J96: 211.88 | K96: 211.88
B97: 2.2.13 | C97: Relé de sobrecarga para minicontator ajustável até 25A, conforme aplicação, com montagem direta nos contatores | D97: Unidade | E97: 1 | F97: EMBASA | G97: M103900330 | H97: =TRUNC((1-$L$7)*(VLOOKUP(G97,'OUTROS BANCOS'!$C$2:$E$69,3,FALSE)),2) -> 216.48 | I97: 216.48 | J97: 243.54 | K97: 243.54
B98: 2.2.14 | C98: Relé eletrônico/digital monitor de tensão monofásico, com funcionalidade de subtensão e sobretensão, ajustes através de trimpot no relé, LED indicativo de funcionamento, tensão conforme aplicação, 60 Hz, com 1 contato reversível | D98: Unidade | E98: 1 | F98: COT | G98: COT15 | H98: =TRUNC((1-$L$7)*('COT15'!L37),2) -> 197.31 | I98: 197.31 | J98: 221.97 | K98: 221.97
B99: 2.2.15 | C99: Relé temporizador, alimentação 220V, 1 saída a relé, com função de pulso na energização, ajustável de 1 segundo a 100 horas, ajuste por trimpots no relé | D99: Unidade | E99: 1 | F99: COT | G99: COT20 | H99: =TRUNC((1-$L$7)*('COT20'!L37),2) -> 201.71 | I99: 201.71 | J99: 226.92 | K99: 226.92
B100: 2.2.16 | C100: Barramento de neutro, na cor azul, para fixação em trilho DIN, fabricado em cobre, com furos e parafusos para fixação, ao menos um furo para o alimentador (até 25 mm²), pré isolado, 10 furos. | D100: Unidade | E100: 1 | F100: COT | G100: COT21 | H100: =TRUNC((1-$L$7)*('COT21'!L37),2) -> 53.95 | I100: 53.95 | J100: 60.69 | K100: 60.69
B101: 2.2.17 | C101: Barramento de terra, na cor verde, para fixação em trilho DIN, fabricado em cobre, com furos e parafusos para fixação, ao menos um furo para o alimentador (até 25 mm²), pré isolado, 10 furos. | D101: Unidade | E101: 1 | F101: COT | G101: COT22 | H101: =TRUNC((1-$L$7)*('COT22'!L37),2) -> 52.09 | I101: 52.09 | J101: 58.6 | K101: 58.6
B102: 2.2.18 | C102: Botão de emergência tipo cogumelo, com trava e retorno com mola, para furos 22mm, 1 NF, tensão conforme aplicação, vermelho | D102: Unidade | E102: 1 | F102: CPOS | G102: P.13.000.042461 | H102: =TRUNC((1-$L$7)*(VLOOKUP(G102,'OUTROS BANCOS'!$C$2:$E$69,3,FALSE)),2) -> 37.72 | I102: 37.72 | J102: 42.44 | K102: 42.44
B103: 2.2.19 | C103: Chave seletora de 3 posições para furos 22mm, 2 NA, completa, tensão conforme aplicação | D103: Unidade | E103: 1 | F103: SETOP | G103: MATED-19494 | H103: =TRUNC((1-$L$7)*(VLOOKUP(G103,'OUTROS BANCOS'!$C$2:$E$69,3,FALSE)),2) -> 18.4 | I103: 18.4 | J103: 20.7 | K103: 20.7
B104: 2.2.20 | C104: Sinalizador luminoso para furos de 22 mm, iluminação LED, vermelho, tensão conforme aplicação | D104: Unidade | E104: 1 | F104: ORSE | G104: 12379 | H104: =TRUNC((1-$L$7)*(VLOOKUP(G104,'OUTROS BANCOS'!$C$2:$E$69,3,FALSE)),2) -> 18.32 | I104: 18.32 | J104: 20.61 | K104: 20.61
B105: 2.2.21 | C105: Policarbonato compacto, incolor (transparente/cristal), livre de rebarbas, espessura mínima de 3 mm | D105: Metro² | E105: 0.24 | F105: SBC | G105: 28100 | H105: =TRUNC((1-$L$7)*(VLOOKUP(G105,'OUTROS BANCOS'!$C$2:$E$69,3,FALSE)),2) -> 159 | I105: 38.16 | J105: 178.88 | K105: 42.93
B106: 2.2.22 | C106: Barra roscada 1/4", acabamento zincado | D106: Metro | E106: 1 | F106: ORSE | G106: 7551 | H106: =TRUNC((1-$L$7)*(VLOOKUP(G106,'OUTROS BANCOS'!$C$2:$E$69,3,FALSE)),2) -> 4.73 | I106: 4.73 | J106: 5.32 | K106: 5.32
B107: 2.2.23 | C107: Porca sextavada zincada, 1/4" | D107: Unidade | E107: 8 | F107: SINAPI | G107: 39997 | H107: =TRUNC((1-$L$7)*(VLOOKUP(G107,'INSUMO SINAPI'!$A:$D,4,FALSE)),2) -> 0.28 | I107: 2.24 | J107: 0.32 | K107: 2.56
B108: 2.2.24 | C108: Arruela zincada, 1/4" | D108: Unidade | E108: 8 | F108: ORSE | G108: 8347 | H108: =TRUNC((1-$L$7)*(VLOOKUP(G108,'OUTROS BANCOS'!$C$2:$E$69,3,FALSE)),2) -> 0.05 | I108: 0.4 | J108: 0.06 | K108: 0.48
B109: 2.2.25 | C109: Placa de identificação (plaqueta de identificação) fabricada em ABS ou acrílico para painéis elétricos (30 X 15 mm), fixação por adesivo, resistente ao tempo (Escrita Personalizada) | D109: Unidade | E109: 10 | F109: COT | G109: COT16 | H109: =TRUNC((1-$L$7)*('COT16'!$L$37),2) -> 7.32 | I109: 73.2 | J109: 8.24 | K109: 82.4
B110: 2.2.26 | C110: Terminal a compressão, tipo pino ou garfo, 2,5 mm³ | D110: Unidade | E110: 30 | F110: SEINFRA | G110: I10080 | H110: =TRUNC((1-$L$7)*(VLOOKUP(G110,'OUTROS BANCOS'!$C$2:$E$69,3,FALSE)),2) -> 0.14 | I110: 4.2 | J110: 0.16 | K110: 4.8
B111: 2.2.27 | C111: Abraçadeira de nylon 2,5x100 mm, para organização cabos elétricos | D111: Unidade | E111: 10 | F111: SINAPI | G111: 414 | H111: =TRUNC((1-$L$7)*(VLOOKUP(G111,'INSUMO SINAPI'!$A:$D,4,FALSE)),2) -> 0.07 | I111: 0.7 | J111: 0.08 | K111: 0.8
B112: 2.3 | C112: Sistema de Aterramento | K112: =SUM(K113:K119) -> 1371.18
B113: 2.3.1 | C113: Cordoalha em cobre nu, 50 mm² | D113: Metro | E113: 16 | F113: SINAPI | G113: 867 | H113: =TRUNC((1-$L$7)*(VLOOKUP(G113,'INSUMO SINAPI'!$A:$D,4,FALSE)),2) -> 63.24 | I113: 1011.84 | J113: 71.15 | K113: =TRUNC(E113*J113,2) -> 1138.4
B114: 2.3.2 | C114: Conector à compressão para aterramento (CABO-CABO) | D114: Unidade | E114: 2 | F114: SEDOP | G114: E00189 | H114: =TRUNC((1-$L$7)*(VLOOKUP(G114,'OUTROS BANCOS'!$C$2:$E$69,3,FALSE)),2) -> 62.63 | I114: 125.26 | J114: 70.46 | K114: 140.92
B115: 2.3.3 | C115: Curva longa 90º Galvanizada a fogo, 1" | D115: Unidade | E115: 1 | F115: SINAPI | G115: 2617 | H115: =TRUNC((1-$L$7)*(VLOOKUP(G115,'INSUMO SINAPI'!$A:$D,4,FALSE)),2) -> 7.11 | I115: 7.11 | J115: 8 | K115: 8
B116: 2.3.4 | C116: Eletroduto Galvanizado a Fogo, 1" | D116: Metro | E116: 1.5 | F116: SETOP | G116: MATED-12288 | H116: =TRUNC((1-$L$7)*(VLOOKUP(G116,'OUTROS BANCOS'!$C$2:$E$69,3,FALSE)),2) -> 7.5 | I116: 11.25 | J116: 8.44 | K116: 12.66
B117: 2.3.5 | C117: Abraçadeira tipo D, 1" e cunha de fixação | D117: Unidade | E117: 1 | F117: SINAPI | G117: 393 | H117: =TRUNC((1-$L$7)*(VLOOKUP(G117,'INSUMO SINAPI'!$A:$D,4,FALSE)),2) -> 2.46 | I117: 2.46 | J117: 2.77 | K117: 2.77
B118: 2.3.6 | C118: Conector reto com arruela para eletroduto 1" | D118: Unidade | E118: 1 | F118: SINAPI | G118: 2483 | H118: =TRUNC((1-$L$7)*(VLOOKUP(G118,'INSUMO SINAPI'!$A:$D,4,FALSE)),2) -> 4.48 | I118: 4.48 | J118: 5.04 | K118: 5.04
B119: 2.3.7 | C119: Caixa de inspeção para ateramento | D119: Unidade | E119: 1 | F119: SINAPI | G119: 41480 | H119: =TRUNC((1-$L$7)*(VLOOKUP(G119,'INSUMO SINAPI'!$A:$D,4,FALSE)),2) -> 56.35 | I119: 56.35 | J119: 63.39 | K119: 63.39
B120: 2.4 | C120: Alimentação do Motor | K120: =SUM(K121:K126) -> 209.17
B121: 2.4.1 | C121: Cabo de cobre flexível, classe 4 ou 5, isolação em PVC/A, antichama BWF-B, 1 condutor, 450/750V seção de 4 mm² (cor preta, azul ou verde) | D121: Metro | E121: 30 | F121: SINAPI | G121: 981 | H121: =TRUNC((1-$L$7)*(VLOOKUP(G121,'INSUMO SINAPI'!$A:$D,4,FALSE)),2) -> 4.45 | I121: 133.5 | J121: 5.01 | K121: =TRUNC(E121*J121,2) -> 150.3
B122: 2.4.2 | C122: Terminal a compressão, tipo pino, 4 mm² | D122: Unidade | E122: 3 | F122: SINAPI | G122: 1571 | H122: =TRUNC((1-$L$7)*(VLOOKUP(G122,'INSUMO SINAPI'!$A:$D,4,FALSE)),2) -> 1.54 | I122: 4.62 | J122: 1.73 | K122: 5.19
B123: 2.4.3 | C123: Eletroduto corrugado tipo PEAD, 3/4 | D123: Metro | E123: 10 | F123: SINAPI | G123: 39244 | H123: =TRUNC((1-$L$7)*(VLOOKUP(G123,'INSUMO SINAPI'!$A:$D,4,FALSE)),2) -> 4.3 | I123: 43 | J123: 4.84 | K123: 48.4
B124: 2.4.4 | C124: Caixa de passagem em concreto 30X30X40 cm | D124: Unidade | E124: 1 | F124: SINAPI | G124: 43429 | H124: =TRUNC((1-$L$7)*(VLOOKUP(G124,'INSUMO SINAPI'!$A:$D,4,FALSE)),2) -> 0 | I124: 0 | J124: 0 | K124: 0
B125: 2.4.5 | C125: Conector reto com arruela para eletroduto 3/4" | D125: Unidade | E125: 1 | F125: SINAPI | G125: 2488 | H125: =TRUNC((1-$L$7)*(VLOOKUP(G125,'INSUMO SINAPI'!$A:$D,4,FALSE)),2) -> 2.51 | I125: 2.51 | J125: 2.82 | K125: 2.82
B126: 2.4.6 | C126: Abraçadeira tipo D, 3/4" e cunha de fixação | D126: Unidade | E126: 1 | F126: SINAPI | G126: 39128 | H126: =TRUNC((1-$L$7)*(VLOOKUP(G126,'INSUMO SINAPI'!$A:$D,4,FALSE)),2) -> 2.19 | I126: 2.19 | J126: 2.46 | K126: 2.46
B127: 2.5 | C127: Montagem do Sistema Elétrico | K127: =SUM(K128:K130) -> 999.2
B128: 2.5.1 | C128: Eletrotécnico (horista), INCLUSIDE ENCARGOS SOCIAIS | D128: h | E128: 8 | F128: EMOP | G128: 1916 | H128: =TRUNC((1-$L$7)*(VLOOKUP(G128,'OUTROS BANCOS'!$C$2:$E$69,3,FALSE)),2) -> 34.86 | I128: 278.88 | J128: =H128*(1+$L$4) -> 43.56 | K128: =TRUNC(E128*J128,2) -> 348.48
B129: 2.5.2 | C129: Auxiliar de Eletricista com encargos complementares | D129: h | E129: 16 | F129: AGESUL | G129: 88247 | H129: =TRUNC((1-$L$7)*(VLOOKUP(G129,'OUTROS BANCOS'!$C$2:$E$69,3,FALSE)),2) -> 23.83 | I129: 381.28 | J129: 29.78 | K129: =TRUNC(E129*J129,2) -> 476.48
B130: 2.5.3 | C130: Comissionamento - Eletrotécnico, INCLUSIVE ENCARGOS SOCIAIS | D130: h | E130: 4 | F130: EMOP | G130: 1916 | H130: =TRUNC((1-$L$7)*(VLOOKUP(G130,'OUTROS BANCOS'!$C$2:$E$69,3,FALSE)),2) -> 34.86 | I130: 139.44 | J130: 43.56 | K130: =TRUNC(E130*J130,2) -> 174.24
B131: 2.6 | C131: Emissão de ART | K131: =K132 -> 321.29
B132: 2.6.1 | C132: Emissão de ART | D132: um | E132: 1 | F132: PRÓPRIA | G132: CPU1 | H132: =TRUNC((1-$L$7)*('CPU1'!J7),2) -> 285.59 | I132: 285.59 | J132: =H132*(1+$L$5) -> 321.29 | K132: =TRUNC(E132*J132,2) -> 321.29
B133: TOTAL | K133: =SUM(K72,K12) -> 32527.32
K134: 28679.69

Sheet Item 75- MICROASPERSÃO 2,0 HA
K2: BASE | L2: 2026-02-01 | M2: BANCO | N2: DATA
K3: VALOR TOTAL | L3: =K141 -> 46378.32 | M3: ORSE | N3: 2025-12-01
K4: BDI SERVIÇO | L4: 0.2496 | M4: SEINFRA | N4: 27/28
K5: BDI MATERIAL | L5: 0.125 | M5: EMBASA | N5: 2025-06-01
M6: SCO | N6: 2026-01-01
B7: PLANILHA ORÇAMENTÁRIA - MATO GROSSO | K7: DESCONTO | L7: 0 | M7: SBC | N7: 2026-01-01
B8: SERVIÇO DE FORNECIMENTO, TRANSPORTE, CARGA, DESCARGA, MONTAGEM E ADEQUADO FUNCIONAMENTO DE SISTEMA DE IRRIGAÇÃO - MICROASPERSÃO - 2 ha - 220 V | M8: AGETOP CIVIL | N8: 2025-10-01
M9: AGESUL | N9: 2026-01-01
M10: IOPES | N10: 2025-12-01
B11: ITEM | C11: DESCRIÇÃO | D11: UNID. | E11: QUANT. - (A) | F11: PESQUISA DE PREÇOS (SIST. REF. / COT) | G11: CÓDIGO | H11: Custo Unitário (R$) - (B) | I11: Custo Total (Com Desconto) | J11: Preço Unitário (R$) com BDI (%) | K11: Preço Total (R$) C = (AxB) | M11: SETOP | N11: 2025-10-01
B12: 1. | C12: Sistema Hidráulico | K12: =SUM(K13,K22,K25,K41,K46,K67,K72,K75,K79) -> 38127.67 | M12: CPOS | N12: 2026-01-01
B13: 1.1. | C13: Linha Lateral - Emissores | K13: =SUM(K14:K21) -> 12504 | M13: SEDOP | N13: 2025-10-01
B14: 1.1.1. | C14: TUBO PEBD DI 16 mm PN30 | D14: m | E14: 3500 | F14: COT | G14: COT01 | H14: =TRUNC((1-$L$7)*('COT01'!L37),2) -> 1.32 | I14: =H14*E14 -> 4620 | J14: =H14*(1+$L$5) -> 1.49 | K14: =TRUNC(E14*J14,2) -> 5215 | M14: SINAPI | N14: 2026-01-01
B15: 1.1.2. | C15: MICROASPERSOR 75 LPH | D15: und | E15: 900 | F15: COT | G15: COT09 | H15: =TRUNC((1-$L$7)*('COT09'!L37),2) -> 2.91 | I15: =H15*E15 -> 2619 | J15: =H15*(1+$L$5) -> 3.27 | K15: 2943 | M15: EMOP | N15: 2026-01-04
B16: 1.1.3. | C16: MICROTUBO COM CONECTOR 4/6 X 80 cm | D16: und | E16: 900 | F16: COT | G16: COT10 | H16: =TRUNC((1-$L$7)*('COT10'!L37),2) -> 2.19 | I16: 1971 | J16: 2.46 | K16: 2214
B17: 1.1.4. | C17: HASTE PLÁSTICA PARA MICROASPERSÃO - 60 cm | D17: und | E17: 900 | F17: COT | G17: COT11 | H17: =TRUNC((1-$L$7)*('COT11'!L37),2) -> 1.62 | I17: 1458 | J17: 1.82 | K17: 1638
B18: 1.1.5. | C18: CONECTOR INICIAL 16 mm | D18: und | E18: 100 | F18: ORSE | G18: 9550 | H18: =TRUNC((1-$L$7)*(VLOOKUP(G18,'OUTROS BANCOS'!$C:$E,3,FALSE)),2) -> 0.96 | I18: 96 | J18: 1.08 | K18: 108
B19: 1.1.6. | C19: ANEL DE VEDAÇÃO COM CHULA 13/17 | D19: und | E19: 100 | F19: SEINFRA | G19: I9557 | H19: =TRUNC((1-$L$7)*(VLOOKUP(G19,'OUTROS BANCOS'!$C:$E,3,FALSE)),2) -> 0.87 | I19: 87 | J19: 0.98 | K19: 98
B20: 1.1.5. | C20: CONECTOR UNIÃO COM ANEL 16 mm | D20: und | E20: 200 | F20: EMBASA | G20: M019000003 | H20: =TRUNC((1-$L$7)*(VLOOKUP(G20,'OUTROS BANCOS'!$C:$E,3,FALSE)),2) -> 0.77 | I20: 154 | J20: 0.87 | K20: 174
B21: 1.1.6. | C21: CONECTOR FINAL DE LINHA TIPO 8 16 mm | D21: und | E21: 100 | F21: SEINFRA | G21: I9775 | H21: =TRUNC((1-$L$7)*(VLOOKUP(G21,'OUTROS BANCOS'!$C:$E,3,FALSE)),2) -> 1.01 | I21: 101 | J21: 1.14 | K21: 114
B22: 1.2. | C22: Tubulação - PVC | K22: =SUM(K23:K24) -> 8973.36
B23: 1.2.1 | C23: TUBO IRRIG. PB DN50 PN40 | D23: m | E23: =6*44 -> 264 | F23: ORSE | G23: 8369 | H23: =TRUNC((1-$L$7)*(VLOOKUP(G23,'OUTROS BANCOS'!$C:$E,3,FALSE)),2) -> 13.88 | I23: 3664.32 | J23: =H23*(1+$L$5) -> 15.62 | K23: =TRUNC(E23*J23,2) -> 4123.68
B24: 1.2.2 | C24: TUBO IRRIG. PB DN75 PN40 | D24: m | E24: =6*44 -> 264 | F24: COT | G24: COT18 | H24: =TRUNC((1-$L$7)*('COT17'!L37/6),2) -> 16.33 | I24: 4311.12 | J24: =H24*(1+$L$5) -> 18.37 | K24: =TRUNC(E24*J24,2) -> 4849.68
B25: 1.3. | C25: Controle de Proteção e Comando | K25: =SUM(K26:K40) -> 3325.94
B26: 1.3.1. | C26: REGISTRO ESFERA SOLD. 50 mm | D26: und | E26: 6 | F26: SINAPI | G26: 11677 | H26: =TRUNC((1-$L$7)*(VLOOKUP(G26,'INSUMO SINAPI'!$A:$D,4,FALSE)),2) -> 44.84 | I26: 269.04 | J26: =H26*(1+$L$5) -> 50.45 | K26: =TRUNC(E26*J26,2) -> 302.7
B27: 1.3.2. | C27: VÁLVULA ANTIVÁCUO 1/2" | D27: und | E27: 6 | F27: COT | G27: COT03 | H27: =TRUNC((1-$L$7)*('COT03'!L37),2) -> 12.43 | I27: 74.58 | J27: =H27*(1+$L$5) -> 13.98 | K27: 83.88
B28: 1.3.3. | C28: VÁLVULA VENTOSA TRÍPLICE FUNÇÃO 2" | D28: und | E28: 2 | F28: COT | G28: COT04 | H28: =TRUNC((1-$L$7)*('COT04'!L37),2) -> 669.1 | I28: 1338.2 | J28: 752.74 | K28: 1505.48
B29: 1.3.4. | C29: TUBO IRRIG. PB DN50 PN80 | D29: m | E29: =6*4 -> 24 | F29: ORSE | G29: 14068 | H29: =TRUNC((1-$L$7)*(VLOOKUP(G29,'OUTROS BANCOS'!$C:$E,3,FALSE)),2) -> 9.74 | I29: 233.76 | J29: 10.96 | K29: 263.04
B30: 1.3.5. | C30: REDUÇÃO PVC PB 75 mm X 50 mm | D30: und | E30: 2 | F30: SCO | G30: MAT118400 | H30: =TRUNC((1-$L$7)*(VLOOKUP(G30,'OUTROS BANCOS'!$C:$E,3,FALSE)),2) -> 11.1 | I30: 22.2 | J30: 12.49 | K30: 24.98
B31: 1.3.6. | C31: CURVA PVC 90° PB 50 mm | D31: und | E31: 8 | F31: SINAPI | G31: 1845 | H31: =TRUNC((1-$L$7)*(VLOOKUP(G31,'INSUMO SINAPI'!$A$2:$D$4985,4,FALSE)),2) -> 36.64 | I31: 293.12 | J31: 41.22 | K31: 329.76
B32: 1.3.7. | C32: TÊ PVC 50 mm | D32: und | E32: 6 | F32: ORSE | G32: 2113 | H32: =TRUNC((1-$L$7)*(VLOOKUP(G32,'OUTROS BANCOS'!$C:$E,3,FALSE)),2) -> 9.68 | I32: 58.08 | J32: 10.89 | K32: 65.34
B33: 1.3.8. | C33: ADAPTADOR BS X RM 50 X 2" | D33: und | E33: 2 | F33: ORSE | G33: 14060 | H33: =TRUNC((1-$L$7)*(VLOOKUP(G33,'OUTROS BANCOS'!$C:$E,3,FALSE)),2) -> 4.23 | I33: 8.46 | J33: 4.76 | K33: 9.52
B34: 1.3.9. | C34: LUVA PVC BR 2" | D34: und | E34: 2 | F34: ORSE | G34: 1434 | H34: =TRUNC((1-$L$7)*(VLOOKUP(G34,'OUTROS BANCOS'!$C:$E,3,FALSE)),2) -> 28.58 | I34: 57.16 | J34: 32.15 | K34: 64.3
B35: 1.3.10. | C35: COLAR DE TOMADA 50 X 1/2" | D35: und | E35: 6 | F35: COT | G35: COT05 | H35: =TRUNC((1-$L$7)*('COT05'!L37),2) -> 19.49 | I35: 116.94 | J35: 21.93 | K35: 131.58
B36: 1.3.11 | C36: REGISTRO DE GAVETA 2" | D36: und | E36: 1 | F36: COT | G36: COT23 | H36: =TRUNC((1-$L$7)*('COT23'!L37),2) -> 150.45 | I36: 150.45 | J36: 169.26 | K36: 169.26
B37: 1.3.12 | C37: MANÔMETRO DE GLICERINA DE ATÉ 6kgf/cm² ROSCA DE 1/4 " | D37: und | E37: 2 | F37: COT | G37: COT24 | H37: =TRUNC((1-$L$7)*('COT24'!L37),2) -> 121.7 | I37: 243.4 | J37: 136.91 | K37: 273.82
B38: 1.3.13 | C38: BUCHA DE REDUÇÃO DE 3/4" PARA 1/4" | D38: und | E38: 2 | F38: COT | G38: COT25 | H38: =TRUNC((1-$L$7)*('COT25'!L37),2) -> 22.59 | I38: 45.18 | J38: 25.41 | K38: 50.82
B39: 1.3.14 | C39: ADAPTADOR DE REDUÇÃO Bsa SOLD. 50 mm X 1 1/2" | D39: und | E39: 2 | F39: COT | G39: COT26 | H39: =TRUNC((1-$L$7)*('COT26'!L37),2) -> 8.36 | I39: 16.72 | J39: 9.41 | K39: 18.82
B40: 1.3.15 | C40: TE DE REDUÇÃO ROSCA 50 mm X 3/4" | D40: und | E40: 2 | F40: COT | G40: COT27 | H40: =TRUNC((1-$L$7)*('COT27'!L37),2) -> 14.51 | I40: 29.02 | J40: 16.32 | K40: 32.64
B41: 1.4. | C41: Conexões de Campo | K41: =SUM(K42:K45) -> 852.77
B42: 1.4.1. | C42: REGISTRO ESFERA PVC 50 mm | D42: und | E42: 8 | F42: SINAPI | G42: 11677 | H42: =TRUNC((1-$L$7)*(VLOOKUP(G42,'INSUMO SINAPI'!$A:$D,4,FALSE)),2) -> 44.84 | I42: 358.72 | J42: =H42*(1+$L$5) -> 50.45 | K42: =TRUNC(E42*J42,2) -> 403.6
B43: 1.4.2. | C43: CURVA PVC 45° PB 50 mm | D43: und | E43: 8 | F43: SINAPI | G43: 1831 | H43: =TRUNC((1-$L$7)*(VLOOKUP(G43,'INSUMO SINAPI'!$A$2:$D$4985,4,FALSE)),2) -> 29.24 | I43: 233.92 | J43: =H43*(1+$L$5) -> 32.9 | K43: =TRUNC(E43*J43,2) -> 263.2
B44: 1.4.3. | C44: CURVA PVC 90° PB 50 mm | D44: und | E44: 4 | F44: SINAPI | G44: 1845 | H44: =TRUNC((1-$L$7)*(VLOOKUP(G44,'INSUMO SINAPI'!$A$2:$D$4985,4,FALSE)),2) -> 36.64 | I44: 146.56 | J44: 41.22 | K44: =TRUNC(E44*J44,2) -> 164.88
B45: 1.4.4. | C45: TÊ PVC 7 mm (7 ou 75 mm?) | D45: und | E45: 1 | F45: ORSE | G45: 2145 | H45: =TRUNC((1-$L$7)*(VLOOKUP(G45,'OUTROS BANCOS'!$C:$E,3,FALSE)),2) -> 18.75 | I45: 18.75 | J45: 21.09 | K45: =TRUNC(E45*J45,2) -> 21.09
B46: 1.5. | C46: Filtragem e Ligação de Pressão | K46: =SUM(K47:K66) -> 7384.46
B47: 1.5.1. | C47: MOTOBOMBA SUBMERSA 3HP 12m³/h + 43mca | D47: und | E47: 1 | F47: COT | G47: COT06 | H47: =TRUNC((1-$L$7)*('COT06'!L37),2) -> 1714.01 | I47: 1714.01 | J47: =H47*(1+$L$5) -> 1928.26 | K47: =TRUNC(E47*J47,2) -> 1928.26
B48: 1.5.2. | C48: NIPLE PVC BR 2" | D48: und | E48: 1 | F48: SBC | G48: 5719 | H48: =TRUNC((1-$L$7)*(VLOOKUP(G48,'OUTROS BANCOS'!$C:$E,3,FALSE)),2) -> 32.23 | I48: 32.23 | J48: =H48*(1+$L$5) -> 36.26 | K48: 36.26
B49: 1.5.3. | C49: UNIÃO PVC BR 2" | D49: und | E49: 5 | F49: ORSE | G49: 2365 | H49: =TRUNC((1-$L$7)*(VLOOKUP(G49,'OUTROS BANCOS'!$C:$E,3,FALSE)),2) -> 54.89 | I49: 274.45 | J49: 61.75 | K49: 308.75
B50: 1.5.4. | C50: ADAPTADOR COMPRESSÃO X ROSCA MACHO 2" | D50: und | E50: 2 | F50: EMBASA | G50: M080800108 | H50: =TRUNC((1-$L$7)*(VLOOKUP(G50,'OUTROS BANCOS'!$C:$E,3,FALSE)),2) -> 49.34 | I50: 98.68 | J50: 55.51 | K50: 111.02
B51: 1.5.5. | C51: TUBO PEMD 2" PN60 | D51: m | E51: 15 | F51: COT | G51: COT07 | H51: =TRUNC((1-$L$7)*('COT07'!L37),2) -> 19.18 | I51: 287.7 | J51: 21.58 | K51: 323.7
B52: 1.5.6. | C52: BUCHA DE REDUÇÃO 3X2" | D52: und | E52: 1 | F52: SBC | G52: 8784 | H52: =TRUNC((1-$L$7)*(VLOOKUP(G52,'OUTROS BANCOS'!$C:$E,3,FALSE)),2) -> 94 | I52: 94 | J52: 105.75 | K52: 105.75
B53: 1.5.7. | C53: UNIÃO PVC BR 3" | D53: und | E53: 1 | F53: ORSE | G53: 2367 | H53: =TRUNC((1-$L$7)*(VLOOKUP(G53,'OUTROS BANCOS'!$C:$E,3,FALSE)),2) -> 283.58 | I53: 283.58 | J53: 319.03 | K53: 319.03
B54: 1.5.8. | C54: ADAPTADOR BSXRM 75 mm x 3" | D54: und | E54: 5 | F54: ORSE | G54: 14059 | H54: =TRUNC((1-$L$7)*(VLOOKUP(G54,'OUTROS BANCOS'!$C:$E,3,FALSE)),2) -> 8.5 | I54: 42.5 | J54: 9.56 | K54: 47.8
B55: 1.5.9. | C55: TUBO IRRIG. PB DN75 PN80 | D55: m | E55: =6*2 -> 12 | F55: ORSE | G55: 9502 | H55: =TRUNC((1-$L$7)*(VLOOKUP(G55,'OUTROS BANCOS'!$C:$E,3,FALSE)),2) -> 40.52 | I55: 486.24 | J55: 45.59 | K55: 547.08
B56: 1.5.10. | C56: TÊ 75 mm | D56: und | E56: 2 | F56: ORSE | G56: 9505 | H56: =TRUNC((1-$L$7)*(VLOOKUP(G56,'OUTROS BANCOS'!$C:$E,3,FALSE)),2) -> 41.27 | I56: 82.54 | J56: 46.43 | K56: 92.86
B57: 1.5.11. | C57: REDUÇÃO 75 mm x 50 mm | D57: und | E57: 4 | F57: SEINFRA | G57: I3138 | H57: =TRUNC((1-$L$7)*(VLOOKUP(G57,'OUTROS BANCOS'!$C:$E,3,FALSE)),2) -> 45.38 | I57: 181.52 | J57: 51.05 | K57: 204.2
B58: 1.5.12. | C58: CURVA PVC 90º PB 50 mm | D58: und | E58: 4 | F58: SINAPI | G58: 1845 | H58: =TRUNC((1-$L$7)*(VLOOKUP(G58,'INSUMO SINAPI'!$A$2:$D$4985,4,FALSE)),2) -> 36.64 | I58: 146.56 | J58: 41.22 | K58: 164.88
B59: 1.5.13. | C59: CURVA PVC 90° PB 75 MM | D59: und | E59: 6 | F59: SINAPI | G59: 1824 | H59: =TRUNC((1-$L$7)*(VLOOKUP(G59,'INSUMO SINAPI'!$A$2:$D$4985,4,FALSE)),2) -> 86.5 | I59: 519 | J59: 97.31 | K59: 583.86
B60: 1.5.14. | C60: ADAPTADOR BSXRM 50 mm x 2" | D60: und | E60: 4 | F60: ORSE | G60: 14060 | H60: =TRUNC((1-$L$7)*(VLOOKUP(G60,'OUTROS BANCOS'!$C:$E,3,FALSE)),2) -> 4.23 | I60: 16.92 | J60: 4.76 | K60: 19.04
B61: 1.5.15. | C61: FILTRO DE DISCO 3" - 25M³/H | D61: und | E61: 1 | F61: COT | G61: COT08 | H61: =TRUNC((1-$L$7)*('COT08'!L37),2) -> 1117.51 | I61: 1117.51 | J61: 1257.2 | K61: 1257.2
B62: 1.5.16. | C62: VÁLVULA DE RETENÇÃO 3" | D62: und | E62: 1 | F62: COT | G62: COT18 | H62: =TRUNC((1-$L$7)*('COT18'!L37),2) -> 542.26 | I62: 542.26 | J62: 610.04 | K62: 610.04
B63: 1.5.17. | C63: TÊ 75 x 50 mm | D63: und | E63: 4 | F63: SINAPI | G63: 7132 | H63: =TRUNC((1-$L$7)*(VLOOKUP(G63,'INSUMO SINAPI'!$A$2:$D$4985,4,FALSE)),2) -> 40.3 | I63: 161.2 | J63: 45.34 | K63: 181.36
B64: 1.5.18. | C64: REGISTRO DE ESFERA 50 mm | D64: und | E64: 4 | F64: SINAPI | G64: 11677 | H64: =TRUNC((1-$L$7)*(VLOOKUP(G64,'INSUMO SINAPI'!$A:$D,4,FALSE)),2) -> 44.84 | I64: 179.36 | J64: 50.45 | K64: 201.8
B65: 1.5.19. | C65: LUVA PVC BR 2" | D65: und | E65: 1 | F65: EMOP | G65: 2352 | H65: =TRUNC((1-$L$7)*(VLOOKUP(G65,'OUTROS BANCOS'!$C:$E,3,FALSE)),2) -> 25.39 | I65: 25.39 | J65: 28.56 | K65: 28.56
B66: 1.5.20. | C66: VÁLVULA VENTOSA BR 2" | D66: und | E66: 1 | F66: COT | G66: COT12 | H66: =TRUNC((1-$L$7)*('COT12 '!L37),2) -> 278.23 | I66: 278.23 | J66: 313.01 | K66: 313.01
B67: 1.6. | C67: Materias de Consumo | K67: =SUM(K68:K71) -> 572.86
B68: 1.6.1. | C68: ADESIVO PLÁSTICO 850G | D68: und | E68: 4 | F68: EMOP | G68: 5102 | H68: =TRUNC((1-$L$7)*(VLOOKUP(G68,'OUTROS BANCOS'!$C:$E,3,FALSE)),2) -> 54.85 | I68: 219.4 | J68: =H68*(1+$L$5) -> 61.71 | K68: =TRUNC(E68*J68,2) -> 246.84
B69: 1.6.2. | C69: FITA VEDA ROSCA 18MM X 50 M | D69: und | E69: 2 | F69: SINAPI | G69: 3148 | H69: =TRUNC((1-$L$7)*(VLOOKUP(G69,'INSUMO SINAPI'!$A:$D,4,FALSE)),2) -> 14.56 | I69: 29.12 | J69: =H69*(1+$L$5) -> 16.38 | K69: =TRUNC(E69*J69,2) -> 32.76
B70: 1.6.3. | C70: FITA ISOLANTE 18MM X 20M | D70: und | E70: 2 | F70: SBC | G70: 36795 | H70: =TRUNC((1-$L$7)*(VLOOKUP(G70,'OUTROS BANCOS'!$C:$E,3,FALSE)),2) -> 1 | I70: 2 | J70: 1.13 | K70: =TRUNC(E70*J70,2) -> 2.26
B71: 1.6.4. | C71: FOLHA DE LIXA N100 | D71: und | E71: 100 | F71: SINAPI | G71: 38383 | H71: =TRUNC((1-$L$7)*(VLOOKUP(G71,'INSUMO SINAPI'!$A$2:$D$4985,4,FALSE)),2) -> 2.59 | I71: 259 | J71: 2.91 | K71: =TRUNC(E71*J71,2) -> 291
B72: 1.7. | C72: Elaboração do Layout do Sistema Hidráulico | K72: =SUM(K73:K74) -> 1290.6
B73: 1.7.1. | C73: Mão-de-obra de Projetista Cadista Pleno - Projeto e Consultoria, inclusive Encargos Sociais | D73: h | E73: 4 | F73: EMOP | G73: 10984 | H73: =TRUNC((1-$L$7)*(VLOOKUP(G73,'OUTROS BANCOS'!$C:$E,3,FALSE)),2) -> 75.3 | I73: 301.2 | J73: =H73*(1+$L$4) -> 94.09 | K73: =TRUNC(E73*J73,2) -> 376.36
B74: 1.7.2. | C74: Mão-de-obra de Engenheiro Pleno, inclusive com encargos sociais | D74: h | E74: 4 | F74: EMOP | G74: 14610 | H74: =TRUNC((1-$L$7)*(VLOOKUP(G74,'OUTROS BANCOS'!$C:$E,3,FALSE)),2) -> 182.91 | I74: 731.64 | J74: =H74*(1+$L$4) -> 228.56 | K74: =TRUNC(E74*J74,2) -> 914.24
B75: 1.8. | C75: Montagem do Sistema Hidráulico | K75: =SUM(K76:K77) -> 2286.72
B76: 1.8.1. | C76: Encanador ou bombeiro hidráulico com encargos complementares (01 encanador ou bombeiro hidráulico em jornada de trabalho de 8 h por dia) | D76: h | E76: 36 | F76: AGESUL | G76: 4005 | H76: =TRUNC((1-$L$7)*(VLOOKUP(G76,'OUTROS BANCOS'!$C:$E,3,FALSE)),2) -> 27.84 | I76: 1002.24 | J76: =H76*(1+$L$4) -> 34.79 | K76: =TRUNC(E76*J76,2) -> 1252.44
B77: 1.8.2. | C77: Auxiliar de encanador ou bombeiro hidráulico com encargos complementares (02 auxiliares de encanador ou bombeiro hidráulico em jornada de trabalho de 8 h por dia) | D77: h | E77: 36 | F77: AGESUL | G77: 4052 | H77: =TRUNC((1-$L$7)*(VLOOKUP(G77,'OUTROS BANCOS'!$C:$E,3,FALSE)),2) -> 22.99 | I77: 827.64 | J77: =H77*(1+$L$4) -> 28.73 | K77: =TRUNC(E77*J77,2) -> 1034.28
B78: 1.9 | C78: Preparo mecanizado de solo | K78: =K79 -> 936.96
B79: 1.9.1 | C79: ARACÃO DO SOLO A 20CM DE PROFUNDIDADE COM TRATOR DE PNEUS E ARADO DE DISCO | D79: ha | E79: 2 | F79: EMOP/COMPOSIÇÃO | G79: 22.016.0025-A | H79: =TRUNC(((1-$L$7)*374.9),2) -> 374.9 | I79: =H79*E79 -> 749.8 | J79: =H79*(1+$L$4) -> 468.48 | K79: =TRUNC(E79*J79,2) -> 936.96
B80: 2 | C80: Sistema Elétrico | K80: =SUM(K81,K92,K135,K120,K128,K139) -> 8250.65
B81: 2.1 | C81: Rede de Distribuição - Fonte até o Quadro de Comando | K81: =SUM(K82:K91) -> 3353.34
B82: 2.1.1 | C82: Poste de madeira eucalipto preservado, diâmetro de 20cm, 7 metros | D82: Unidade | E82: 5 | F82: SBC | G82: 46336 | H82: =TRUNC((1-$L$7)*(VLOOKUP(G82,'OUTROS BANCOS'!$C:$E,3,FALSE)),2) -> 95.07 | I82: =H82*E82 -> 475.35 | J82: =H82*(1+$L$5) -> 106.95 | K82: =TRUNC(E82*J82,2) -> 534.75
B83: 2.1.2 | C83: Isolador Porcelana Tipo Roldana 80x80 mm p/ 2 cabos, marrom | D83: Unidade | E83: 5 | F83: IOPES | G83: 48342 | H83: =TRUNC((1-$L$7)*(VLOOKUP(G83,'OUTROS BANCOS'!$C:$E,3,FALSE)),2) -> 10.95 | I83: =H83*E83 -> 54.75 | J83: =H83*(1+$L$5) -> 12.32 | K83: 61.6
B84: 2.1.3 | C84: Suporte Isolador c/ Roldana p/ aparafusar c/ chapa | D84: Unidade | E84: 5 | F84: SETOP | G84: MATED-12988 | H84: =TRUNC((1-$L$7)*(VLOOKUP(G84,'OUTROS BANCOS'!$C:$E,3,FALSE)),2) -> 18.18 | I84: 90.9 | J84: 20.45 | K84: 102.25
B85: 2.1.4 | C85: Cinta aço galvanizado para poste DT 240mm, inclui parafusos | D85: Unidade | E85: 5 | F85: ORSE | G85: 4628 | H85: 55 | I85: 275 | J85: 61.88 | K85: 309.4
B86: 2.1.5 | C86: Alça preformada para islador roldana, seção conforme condutores instalados | D86: Unidade | E86: 5 | F86: COT | G86: COT13 | H86: =TRUNC((1-$L$7)*('COT13'!L37),2) -> 14.01 | I86: 70.05 | J86: 15.76 | K86: 78.8
B87: 2.1.6 | C87: Cabo de cobre isolado HEPR (XLPE), 10mm², 1kv / 90º C (cor conforme a aplicação) apropriado para redes aéreas | D87: Metro | E87: 200 | F87: COT | G87: COT14 | H87: =TRUNC((1-$L$7)*('COT14'!L37),2) -> 9.26 | I87: 1852 | J87: 10.42 | K87: 2084
B88: 2.1.7 | C88: Cabeçote p/ Eletroduto de 1.1/4" | D88: Unidade | E88: 1 | F88: SINAPI | G88: 1099 | H88: =TRUNC((1-$L$7)*(VLOOKUP(G88,'INSUMO SINAPI'!$A:$D,4,FALSE)),2) -> 7.95 | I88: 7.95 | J88: 8.94 | K88: 8.94
B89: 2.1.8 | C89: Eletroduto em aço galvanizado 1.1/4" | D89: Unidade | E89: 1 | F89: SCO | G89: MAT050850 | H89: =TRUNC((1-$L$7)*(VLOOKUP(G89,'OUTROS BANCOS'!$C:$E,3,FALSE)),2) -> 131.83 | I89: 131.83 | J89: 148.31 | K89: 148.31
B90: 2.1.9 | C90: Conector reto com arruela para eletroduto 1.1/4" | D90: Unidade | E90: 1 | F90: SINAPI | G90: 2526 | H90: =TRUNC((1-$L$7)*(VLOOKUP(G90,'INSUMO SINAPI'!$A:$D,4,FALSE)),2) -> 6.29 | I90: 6.29 | J90: 7.08 | K90: 7.08
B91: 2.1.10 | C91: Curva 90º aço galvanizado 1.1/4" | D91: Unidade | E91: 1 | F91: SINAPI | G91: 2618 | H91: =TRUNC((1-$L$7)*(VLOOKUP(G91,'INSUMO SINAPI'!$A:$D,4,FALSE)),2) -> 16.19 | I91: 16.19 | J91: 18.21 | K91: 18.21
B92: 2.2 | C92: Quadro de Comando | K92: =SUM(K93:K119) -> 1996.47
B93: 2.2.1 | C93: Quadro elétrico metálico com placa de montagem, grau de proteção mínimo IP54, dimensões mínimas 400x300x200 mm | D93: Unidade | E93: 1 | F93: SBC | G93: 53375 | H93: =TRUNC((1-$L$7)*(VLOOKUP(G93,'OUTROS BANCOS'!$C:$E,3,FALSE)),2) -> 355.25 | I93: 355.25 | J93: 399.66 | K93: =TRUNC(E93*J93,2) -> 399.66
B94: 2.2.2 | C94: Canaleta para quadro 30 x 50 mm, fabricada em PVC, tipo semi-aberta. | D94: Metro | E94: 0.4 | F94: SETOP | G94: MATED-17646 | H94: =TRUNC((1-$L$7)*(VLOOKUP(G94,'OUTROS BANCOS'!$C:$E,3,FALSE)),2) -> 15.38 | I94: 6.15 | J94: 17.3 | K94: 6.92
B95: 2.2.3 | C95: Canaleta para quadro 50 x 50 mm, fabricada em PVC, tipo semi-aberta. | D95: Metro | E95: 0.3 | F95: SETOP | G95: MATED-17647 | H95: =TRUNC((1-$L$7)*(VLOOKUP(G95,'OUTROS BANCOS'!$C:$E,3,FALSE)),2) -> 20.58 | I95: 6.17 | J95: 23.15 | K95: 6.94
B96: 2.2.4 | C96: Trilho DIN 35 mm | D96: Metro | E96: 0.4 | F96: SEINFRA | G96: I7410 | H96: =TRUNC((1-$L$7)*(VLOOKUP(G96,'OUTROS BANCOS'!$C:$E,3,FALSE)),2) -> 11.56 | I96: 4.62 | J96: 13.01 | K96: 5.2
B97: 2.2.5 | C97: Conector (terminal isolado) para barramento isolado, conexão reta ou lateral, até 25 mm² | D97: Unidade | E97: 2 | F97: COT | G97: COT19 | H97: =TRUNC((1-$L$7)*('COT19'!L37),2) -> 8.23 | I97: 16.46 | J97: 9.26 | K97: 18.52
B98: 2.2.6 | C98: Barramento monofásico isolado (barramento pente), horizontal, fabricado em cobre, até 63 A, acompanhado de tampas finais, 8 polos | D98: Unidade | E98: 1 | F98: SBC | G98: 10562 | H98: =TRUNC((1-$L$7)*(VLOOKUP(G98,'OUTROS BANCOS'!$C:$E,3,FALSE)),2) -> 22.06 | I98: 22.06 | J98: 24.82 | K98: 24.82
B99: 2.2.7 | C99: Interruptor diferencial residual bipolar de 25A, corrente residual de 30 mA, tensão de operação conforme aplicação, corrente de curto circuito de 3 kA | D99: Unidade | E99: 1 | F99: SINAPI | G99: 39445 | H99: =TRUNC((1-$L$7)*(VLOOKUP(G99,'INSUMO SINAPI'!$A:$D,4,FALSE)),2) -> 137.19 | I99: 137.19 | J99: 154.34 | K99: 154.34
B100: 2.2.8 | C100: Dispositivo de Proteção Contra Surtos Classe II, 20 kA (Imáx), tensão de operação compatível com a aplicação, nível de proeção (Up) 1,4 kV | D100: Unidade | E100: 1 | F100: SINAPI | G100: 39469 | H100: =TRUNC((1-$L$7)*(VLOOKUP(G100,'INSUMO SINAPI'!$A:$D,4,FALSE)),2) -> 69.47 | I100: 69.47 | J100: 78.15 | K100: 78.15
B101: 2.2.9 | C101: Disjuntor monopolar para trilho DIN (mini disjuntor) para correntes de 25A, curva C, 60 Hz, capacidade de interrupção em curto-circuito 3 kA ou superior | D101: Unidade | E101: 1 | F101: SINAPI | G101: 34653 | H101: =TRUNC((1-$L$7)*(VLOOKUP(G101,'INSUMO SINAPI'!$A:$D,4,FALSE)),2) -> 8.91 | I101: 8.91 | J101: 10.02 | K101: 10.02
B102: 2.2.10 | C102: Disjuntor monopolar para trilho DIN (mini disjuntor) para correntes de 20A, curva C, 60 Hz, capacidade de interrupção em curto-circuito 3 kA ou superior | D102: Unidade | E102: 1 | F102: SINAPI | G102: 34653 | H102: =TRUNC((1-$L$7)*(VLOOKUP(G102,'INSUMO SINAPI'!$A:$D,4,FALSE)),2) -> 8.91 | I102: 8.91 | J102: 10.02 | K102: 10.02
B103: 2.2.11 | C103: Disjuntor monopolar para trilho DIN (mini disjuntor) para correntes de 2A, curva C, 60 Hz, capacidade de interrupção em curto-circuito 3 kA ou superior | D103: Unidade | E103: 1 | F103: IOPES | G103: 44951 | H103: =TRUNC((1-$L$7)*(VLOOKUP(G103,'OUTROS BANCOS'!$C:$E,3,FALSE)),2) -> 31.32 | I103: 31.32 | J103: 35.24 | K103: 35.24
B104: 2.2.12 | C104: Minicontator, com capacidade de corrente até 25A (em regime AC-3), contato auxiliar integrado e bobina em corrente alternada (tensão conforme a aplicação) | D104: Unidade | E104: 1 | F104: SINAPI | G104: 1619 | H104: =TRUNC((1-$L$7)*(VLOOKUP(G104,'INSUMO SINAPI'!$A:$D,4,FALSE)),2) -> 188.34 | I104: 188.34 | J104: 211.88 | K104: 211.88
B105: 2.2.13 | C105: Relé de sobrecarga para minicontator ajustável até 25A, conforme aplicação, com montagem direta nos contatores | D105: Unidade | E105: 1 | F105: EMBASA | G105: M103900330 | H105: =TRUNC((1-$L$7)*(VLOOKUP(G105,'OUTROS BANCOS'!$C:$E,3,FALSE)),2) -> 216.48 | I105: 216.48 | J105: 243.54 | K105: 243.54
B106: 2.2.14 | C106: Relé eletrônico/digital monitor de tensão monofásico, com funcionalidade de subtensão e sobretensão, ajustes através de trimpot no relé, LED indicativo de funcionamento, tensão conforme aplicação, 60 Hz, com 1 contato reversível | D106: Unidade | E106: 1 | F106: COT | G106: COT15 | H106: =TRUNC((1-$L$7)*('COT15'!L37),2) -> 197.31 | I106: 197.31 | J106: 221.97 | K106: 221.97
B107: 2.2.15 | C107: Relé temporizador, alimentação 220V, 1 saída a relé, com função de pulso na energização, ajustável de 1 segundo a 100 horas, ajuste por trimpots no relé | D107: Unidade | E107: 1 | F107: COT | G107: COT20 | H107: =TRUNC((1-$L$7)*('COT20'!L37),2) -> 201.71 | I107: 201.71 | J107: 226.92 | K107: 226.92
B108: 2.2.16 | C108: Barramento de neutro, na cor azul, para fixação em trilho DIN, fabricado em cobre, com furos e parafusos para fixação, ao menos um furo para o alimentador (até 25 mm²), pré isolado, 10 furos. | D108: Unidade | E108: 1 | F108: COT | G108: COT21 | H108: =TRUNC((1-$L$7)*('COT21'!L37),2) -> 53.95 | I108: 53.95 | J108: 60.69 | K108: 60.69
B109: 2.2.17 | C109: Barramento de terra, na cor verde, para fixação em trilho DIN, fabricado em cobre, com furos e parafusos para fixação, ao menos um furo para o alimentador (até 25 mm²), pré isolado, 10 furos. | D109: Unidade | E109: 1 | F109: COT | G109: COT22 | H109: =TRUNC((1-$L$7)*('COT22'!L37),2) -> 52.09 | I109: 52.09 | J109: 58.6 | K109: 58.6
B110: 2.2.18 | C110: Botão de emergência tipo cogumelo, com trava e retorno com mola, para furos 22mm, 1 NF, tensão conforme aplicação, vermelho | D110: Unidade | E110: 1 | F110: CPOS | G110: P.13.000.042461 | H110: =TRUNC((1-$L$7)*(VLOOKUP(G110,'OUTROS BANCOS'!$C:$E,3,FALSE)),2) -> 37.72 | I110: 37.72 | J110: 42.44 | K110: 42.44
B111: 2.2.19 | C111: Chave seletora de 3 posições para furos 22mm, 2 NA, completa, tensão conforme aplicação | D111: Unidade | E111: 1 | F111: SETOP | G111: MATED-19494 | H111: =TRUNC((1-$L$7)*(VLOOKUP(G111,'OUTROS BANCOS'!$C:$E,3,FALSE)),2) -> 18.4 | I111: 18.4 | J111: 20.7 | K111: 20.7
B112: 2.2.20 | C112: Sinalizador luminoso para furos de 22 mm, iluminação LED, vermelho, tensão conforme aplicação | D112: Unidade | E112: 1 | F112: ORSE | G112: 12379 | H112: =TRUNC((1-$L$7)*(VLOOKUP(G112,'OUTROS BANCOS'!$C:$E,3,FALSE)),2) -> 18.32 | I112: 18.32 | J112: 20.61 | K112: 20.61
B113: 2.2.21 | C113: Policarbonato compacto, incolor (transparente/cristal), livre de rebarbas, espessura mínima de 3 mm | D113: Metro² | E113: 0.24 | F113: SBC | G113: 28100 | H113: =TRUNC((1-$L$7)*(VLOOKUP(G113,'OUTROS BANCOS'!$C:$E,3,FALSE)),2) -> 159 | I113: 38.16 | J113: 178.88 | K113: 42.93
B114: 2.2.22 | C114: Barra roscada 1/4", acabamento zincado | D114: Metro | E114: 1 | F114: ORSE | G114: 7551 | H114: =TRUNC((1-$L$7)*(VLOOKUP(G114,'OUTROS BANCOS'!$C:$E,3,FALSE)),2) -> 4.73 | I114: 4.73 | J114: 5.32 | K114: 5.32
B115: 2.2.23 | C115: Porca sextavada zincada, 1/4" | D115: Unidade | E115: 8 | F115: SINAPI | G115: 39997 | H115: =TRUNC((1-$L$7)*(VLOOKUP(G115,'INSUMO SINAPI'!$A:$D,4,FALSE)),2) -> 0.28 | I115: 2.24 | J115: 0.32 | K115: 2.56
B116: 2.2.24 | C116: Arruela zincada, 1/4" | D116: Unidade | E116: 8 | F116: ORSE | G116: 8347 | H116: =TRUNC((1-$L$7)*(VLOOKUP(G116,'OUTROS BANCOS'!$C:$E,3,FALSE)),2) -> 0.05 | I116: 0.4 | J116: 0.06 | K116: 0.48
B117: 2.2.25 | C117: Placa de identificação (plaqueta de identificação) fabricada em ABS ou acrílico para painéis elétricos (30 X 15 mm), fixação por adesivo, resistente ao tempo (Escrita Personalizada) | D117: Unidade | E117: 10 | F117: COT | G117: COT16 | H117: =TRUNC((1-$L$7)*('COT16'!$L$37),2) -> 7.32 | I117: 73.2 | J117: 8.24 | K117: 82.4
B118: 2.2.26 | C118: Terminal a compressão, tipo pino ou garfo, 2,5 mm³ | D118: Unidade | E118: 30 | F118: SEINFRA | G118: I10080 | H118: =TRUNC((1-$L$7)*(VLOOKUP(G118,'OUTROS BANCOS'!$C:$E,3,FALSE)),2) -> 0.14 | I118: 4.2 | J118: 0.16 | K118: 4.8
B119: 2.2.27 | C119: Abraçadeira de nylon 2,5x100 mm, para organização cabos elétricos | D119: Unidade | E119: 10 | F119: SINAPI | G119: 414 | H119: =TRUNC((1-$L$7)*(VLOOKUP(G119,'INSUMO SINAPI'!$A:$D,4,FALSE)),2) -> 0.07 | I119: 0.7 | J119: 0.08 | K119: 0.8
B120: 2.3 | C120: Sistema de Aterramento | K120: =SUM(K121:K127) -> 1371.18
B121: 2.3.1 | C121: Cordoalha em cobre nu, 50 mm² | D121: Metro | E121: 16 | F121: SINAPI | G121: 867 | H121: =TRUNC((1-$L$7)*(VLOOKUP(G121,'INSUMO SINAPI'!$A:$D,4,FALSE)),2) -> 63.24 | I121: 1011.84 | J121: 71.15 | K121: =TRUNC(E121*J121,2) -> 1138.4
B122: 2.3.2 | C122: Conector à compressão para aterramento (CABO-CABO) | D122: Unidade | E122: 2 | F122: SEDOP | G122: E00189 | H122: =TRUNC((1-$L$7)*(VLOOKUP(G122,'OUTROS BANCOS'!$C:$E,3,FALSE)),2) -> 62.63 | I122: 125.26 | J122: 70.46 | K122: 140.92
B123: 2.3.3 | C123: Curva longa 90º Galvanizada a fogo, 1" | D123: Unidade | E123: 1 | F123: SINAPI | G123: 2617 | H123: =TRUNC((1-$L$7)*(VLOOKUP(G123,'INSUMO SINAPI'!$A:$D,4,FALSE)),2) -> 7.11 | I123: 7.11 | J123: 8 | K123: 8
B124: 2.3.4 | C124: Eletroduto Galvanizado a Fogo, 1" | D124: Metro | E124: 1.5 | F124: SETOP | G124: MATED-12288 | H124: =TRUNC((1-$L$7)*(VLOOKUP(G124,'OUTROS BANCOS'!$C:$E,3,FALSE)),2) -> 7.5 | I124: 11.25 | J124: 8.44 | K124: 12.66
B125: 2.3.5 | C125: Abraçadeira tipo D, 1" e cunha de fixação | D125: Unidade | E125: 1 | F125: SINAPI | G125: 393 | H125: =TRUNC((1-$L$7)*(VLOOKUP(G125,'INSUMO SINAPI'!$A:$D,4,FALSE)),2) -> 2.46 | I125: 2.46 | J125: 2.77 | K125: 2.77
B126: 2.3.6 | C126: Conector reto com arruela para eletroduto 1" | D126: Unidade | E126: 1 | F126: SINAPI | G126: 2483 | H126: =TRUNC((1-$L$7)*(VLOOKUP(G126,'INSUMO SINAPI'!$A:$D,4,FALSE)),2) -> 4.48 | I126: 4.48 | J126: 5.04 | K126: 5.04
B127: 2.3.7 | C127: Caixa de inspeção para ateramento | D127: Unidade | E127: 1 | F127: SINAPI | G127: 41480 | H127: =TRUNC((1-$L$7)*(VLOOKUP(G127,'INSUMO SINAPI'!$A:$D,4,FALSE)),2) -> 56.35 | I127: 56.35 | J127: 63.39 | K127: 63.39
B128: 2.4 | C128: Alimentação do Motor | K128: =SUM(K129:K134) -> 209.17
B129: 2.4.1 | C129: Cabo de cobre flexível, classe 4 ou 5, isolação em PVC/A, antichama BWF-B, 1 condutor, 450/750V seção de 4 mm² (cor preta, azul ou verde) | D129: Metro | E129: 30 | F129: SINAPI | G129: 981 | H129: =TRUNC((1-$L$7)*(VLOOKUP(G129,'INSUMO SINAPI'!$A:$D,4,FALSE)),2) -> 4.45 | I129: 133.5 | J129: =H129*(1+$L$5) -> 5.01 | K129: =TRUNC(E129*J129,2) -> 150.3
B130: 2.4.2 | C130: Terminal a compressão, tipo pino, 4 mm² | D130: Unidade | E130: 3 | F130: SINAPI | G130: 1571 | H130: =TRUNC((1-$L$7)*(VLOOKUP(G130,'INSUMO SINAPI'!$A:$D,4,FALSE)),2) -> 1.54 | I130: 4.62 | J130: 1.73 | K130: 5.19
B131: 2.4.3 | C131: Eletroduto corrugado tipo PEAD, 3/4 | D131: Metro | E131: 10 | F131: SINAPI | G131: 39244 | H131: =TRUNC((1-$L$7)*(VLOOKUP(G131,'INSUMO SINAPI'!$A:$D,4,FALSE)),2) -> 4.3 | I131: 43 | J131: 4.84 | K131: 48.4
B132: 2.4.4 | C132: Caixa de passagem em concreto 30X30X40 cm | D132: Unidade | E132: 1 | F132: SINAPI | G132: 43429 | H132: =TRUNC((1-$L$7)*(VLOOKUP(G132,'INSUMO SINAPI'!$A:$D,4,FALSE)),2) -> 0 | I132: 0 | J132: 0 | K132: 0
B133: 2.4.5 | C133: Conector reto com arruela para eletroduto 3/4" | D133: Unidade | E133: 1 | F133: SINAPI | G133: 2488 | H133: =TRUNC((1-$L$7)*(VLOOKUP(G133,'INSUMO SINAPI'!$A:$D,4,FALSE)),2) -> 2.51 | I133: 2.51 | J133: 2.82 | K133: 2.82
B134: 2.4.6 | C134: Abraçadeira tipo D, 3/4" e cunha de fixação | D134: Unidade | E134: 1 | F134: SINAPI | G134: 39128 | H134: =TRUNC((1-$L$7)*(VLOOKUP(G134,'INSUMO SINAPI'!$A:$D,4,FALSE)),2) -> 2.19 | I134: 2.19 | J134: 2.46 | K134: 2.46
B135: 2.5 | C135: Montagem do Sistema Elétrico | K135: =SUM(K136:K138) -> 999.2
B136: 2.5.1 | C136: Eletrotécnico (horista), INCLUSIDE ENCARGOS SOCIAIS | D136: h | E136: 8 | F136: EMOP | G136: 1916 | H136: =TRUNC((1-$L$7)*(VLOOKUP(G136,'OUTROS BANCOS'!$C:$E,3,FALSE)),2) -> 34.86 | I136: 278.88 | J136: =H136*(1+$L$4) -> 43.56 | K136: =TRUNC(E136*J136,2) -> 348.48
B137: 2.5.2 | C137: Auxiliar de Eletricista com encargos complementares | D137: h | E137: 16 | F137: AGESUL | G137: 88247 | H137: =TRUNC((1-$L$7)*(VLOOKUP(G137,'OUTROS BANCOS'!$C:$E,3,FALSE)),2) -> 23.83 | I137: 381.28 | J137: =H137*(1+$L$4) -> 29.78 | K137: =TRUNC(E137*J137,2) -> 476.48
B138: 2.5.3 | C138: Comissionamento - Eletrotécnico, INCLUSIVE ENCARGOS SOCIAIS | D138: h | E138: 4 | F138: EMOP | G138: 1916 | H138: =TRUNC((1-$L$7)*(VLOOKUP(G138,'OUTROS BANCOS'!$C:$E,3,FALSE)),2) -> 34.86 | I138: 139.44 | J138: 43.56 | K138: =TRUNC(E138*J138,2) -> 174.24
B139: 2.6 | C139: Emissão de ART | K139: =K140 -> 321.29
B140: 2.6.1 | C140: Emissão de ART | D140: um | E140: 1 | F140: PRÓPRIA | G140: CPU1 | H140: =TRUNC((1-$L$7)*('CPU1'!J7),2) -> 285.59 | I140: 285.59 | J140: =H140*(1+$L$5) -> 321.29 | K140: =TRUNC(E140*J140,2) -> 321.29
B141: TOTAL | K141: =SUM(K80,K12) -> 46378.32
K142: 41597.12

Sheet Item 76- GOTEJAMENTO 1,0 HA
K2: BASE | L2: 2026-02-01 | M2: BANCO | N2: DATA
K3: VALOR TOTAL | L3: =K131 -> 39576.71 | M3: ORSE | N3: 2025-12-01
K4: BDI SERVIÇO | L4: 0.2496 | M4: SEINFRA | N4: 27/28
K5: BDI MATERIAL | L5: 0.125 | M5: EMBASA | N5: 2025-06-01
M6: SCO | N6: 2026-01-01
K7: DESCONTO | L7: 0 | M7: SBC | N7: 2026-01-01
B8: PLANILHA ORÇAMENTÁRIA - MATO GROSSO | M8: AGETOP CIVIL | N8: 2025-10-01
B9: SERVIÇO DE FORNECIMENTO, TRANSPORTE, CARGA, DESCARGA, MONTAGEM E ADEQUADO FUNCIONAMENTO DE SISTEMA DE IRRIGAÇÃO - GOTEJAMENTO - 1 ha - 127 V | M9: AGESUL | N9: 2026-01-01
M10: IOPES | N10: 2025-12-01
B11: ITEM | C11: DESCRIÇÃO | D11: UNID. | E11: QUANT. (A) | F11: PESQUISA DE PREÇOS (SIST. REF. / COT) | G11: CÓDIGO | H11: Custo Unitário (R$) - (B) | I11: Custo Total (Com Desconto) | J11: Preço Unitário (R$) com BDI (%) | K11: Preço Total (R$) C = (AxB) | M11: SETOP | N11: 2025-10-01
B12: 1 | C12: Sistema Hidráulico | K12: =SUM(K13,K20,K23,K39,K44,K57,K62,K65,K69) -> 26991.04 | M12: CPOS | N12: 2026-01-01
B13: 1.1 | C13: Linha Lateral - Emissores | K13: =SUM(K14:K19) -> 10010.6 | M13: SEDOP | N13: 2025-10-01
B14: 1.1.1 | C14: TUBO PEBD DI 16 mm PN30 | D14: m | E14: 100 | F14: COT | G14: COT01 | H14: =TRUNC((1-$L$7)*('COT 30'!L37),2) -> 1.32 | I14: =H14*E14 -> 132 | J14: =H14*(1+$L$5) -> 1.49 | K14: =TRUNC(E14*J14,2) -> 149 | M14: SINAPI | N14: 2026-01-01
B15: 1.1.2 | C15: TUBO GOTEJADOR DI 16 mm PAREDE 15MIL 1,85 LPH X 0,20 M | D15: m | E15: 4000 | F15: COT | G15: COT02 | H15: =TRUNC((1-$L$7)*('COT 31'!L37),2) -> 2.11 | I15: 8440 | J15: 2.37 | K15: 9480 | M15: EMOP | N15: 2026-01-04
B16: 1.1.3 | C16: CONECTOR INICIAL 16 mm | D16: und | E16: 90 | F16: SEINFRA | G16: I9811 | H16: =TRUNC((1-$L$7)*(VLOOKUP(G16,'OUTROS BANCOS 127V'!$C$2:$E$77,3,FALSE)),2) -> 0.85 | I16: 76.5 | J16: 0.96 | K16: 86.4
B17: 1.1.4 | C17: ANEL DE VEDAÇÃO/ CHULA 13/17 | D17: und | E17: 90 | F17: SEINFRA | G17: I9557 | H17: =TRUNC((1-$L$7)*(VLOOKUP(G17,'OUTROS BANCOS 127V'!$C$2:$E$77,3,FALSE)),2) -> 0.87 | I17: 78.3 | J17: 0.98 | K17: 88.2
B18: 1.1.5 | C18: CONECTOR UNIÃO C/ ANEL 16 mm | D18: und | E18: 120 | F18: EMBASA | G18: M019000003 | H18: =TRUNC((1-$L$7)*(VLOOKUP(G18,'OUTROS BANCOS 127V'!$C$2:$E$77,3,FALSE)),2) -> 0.77 | I18: 92.4 | J18: 0.87 | K18: 104.4
B19: 1.1.6 | C19: CONECTOR FINAL DE LINHA 16 mm | D19: und | E19: 90 | F19: SEINFRA | G19: I9775 | H19: =TRUNC((1-$L$7)*(VLOOKUP(G19,'OUTROS BANCOS 127V'!$C$2:$E$77,3,FALSE)),2) -> 1.01 | I19: 90.9 | J19: 1.14 | K19: 102.6
B20: 1.2 | C20: Tubulação - PVC | K20: =SUM(K21:K22) -> 5082
B21: 1.2.1 | C21: TUBO IRRIG. PB DN50 PN40 | D21: m | E21: =6*26 -> 156 | F21: ORSE | G21: 8369 | H21: =TRUNC((1-$L$7)*(VLOOKUP(G21,'OUTROS BANCOS 127V'!$C$2:$E$77,3,FALSE)),2) -> 13.88 | I21: =H21*E21 -> 2165.28 | J21: =H21*(1+$L$5) -> 15.62 | K21: =TRUNC(E21*J21,2) -> 2436.72
B22: 1.2.2 | C22: TUBO IRRIG. PB DN75 PN40 | D22: m | E22: =24*6 -> 144 | F22: COT | G22: COT17 | H22: =TRUNC((1-$L$7)*('COT 46'!L37/6),2) -> 16.33 | I22: =H22*E22 -> 2351.52 | J22: =H22*(1+$L$5) -> 18.37 | K22: =TRUNC(E22*J22,2) -> 2645.28
B23: 1.3 | C23: Controle de Proteção e Comando | K23: =SUM(K24:K38) -> 1998.3
B24: 1.3.1 | C24: REGISTRO ESFERA SOLD. 50 mm | D24: und | E24: 3 | F24: SINAPI | G24: 11677 | H24: =TRUNC((1-$L$7)*(VLOOKUP(G24,'INSUMO SINAPI 127V'!$A$2:$D$4985,4,FALSE)),2) -> 44.84 | I24: =H24*E24 -> 134.52 | J24: =H24*(1+$L$5) -> 50.45 | K24: =TRUNC(E24*J24,2) -> 151.35
B25: 1.3.2 | C25: VÁLVULA ANTIVÁCUO 1/2" | D25: und | E25: 3 | F25: COT | G25: COT03 | H25: =TRUNC((1-$L$7)*('COT 32'!L37),2) -> 12.43 | I25: 37.29 | J25: 13.98 | K25: 41.94
B26: 1.3.3 | C26: VÁLVULA VENTOSA TRÍPLICE FUNÇÃO 2" | D26: und | E26: 1 | F26: COT | G26: COT04 | H26: =TRUNC((1-$L$7)*('COT 33'!L37),2) -> 669.1 | I26: 669.1 | J26: 752.74 | K26: 752.74
B27: 1.3.4 | C27: TUBO IRRIG. PB DN50 PN80 | D27: m | E27: =2*6 -> 12 | F27: ORSE | G27: 14068 | H27: =TRUNC((1-$L$7)*(VLOOKUP(G27,'OUTROS BANCOS 127V'!$C$2:$E$77,3,FALSE)),2) -> 9.74 | I27: 116.88 | J27: 10.96 | K27: 131.52
B28: 1.3.5 | C28: REDUÇÃO PVC PB 75 mm X 50 mm | D28: und | E28: 1 | F28: SEINFRA | G28: I3138 | H28: =TRUNC((1-$L$7)*(VLOOKUP(G28,'OUTROS BANCOS 127V'!$C$2:$E$77,3,FALSE)),2) -> 45.38 | I28: 45.38 | J28: 51.05 | K28: 51.05
B29: 1.3.6 | C29: CURVA PVC 90° PB 50 mm | D29: und | E29: 4 | F29: SINAPI | G29: 1845 | H29: =TRUNC((1-$L$7)*(VLOOKUP(G29,'INSUMO SINAPI 127V'!$A$2:$D$4985,4,FALSE)),2) -> 36.64 | I29: 146.56 | J29: 41.22 | K29: 164.88
B30: 1.3.7 | C30: TÊ PVC 50 mm | D30: und | E30: 3 | F30: ORSE | G30: 9504 | H30: =TRUNC((1-$L$7)*(VLOOKUP(G30,'OUTROS BANCOS 127V'!$C$2:$E$77,3,FALSE)),2) -> 16.82 | I30: 50.46 | J30: 18.92 | K30: 56.76
B31: 1.3.8 | C31: ADAPTADOR BS X RM 50 X 2" | D31: und | E31: 1 | F31: ORSE | G31: 14060 | H31: =TRUNC((1-$L$7)*(VLOOKUP(G31,'OUTROS BANCOS 127V'!$C$2:$E$77,3,FALSE)),2) -> 4.23 | I31: 4.23 | J31: 4.76 | K31: 4.76
B32: 1.3.9 | C32: LUVA PVC BR 2" | D32: und | E32: 1 | F32: ORSE | G32: 1434 | H32: =TRUNC((1-$L$7)*(VLOOKUP(G32,'OUTROS BANCOS 127V'!$C$2:$E$77,3,FALSE)),2) -> 28.58 | I32: 28.58 | J32: 32.15 | K32: 32.15
B33: 1.3.10 | C33: COLAR DE TOMADA 50 X 1/2" | D33: und | E33: 3 | F33: COT | G33: COT05 | H33: =TRUNC((1-$L$7)*('COT 34'!L37),2) -> 19.49 | I33: 58.47 | J33: 21.93 | K33: 65.79
B34: 1.3.11 | C34: REGISTRO DE GAVETA 2" | D34: und | E34: 1 | F34: COT | G34: COT23 | H34: =TRUNC((1-$L$7)*('COT 52'!L37),2) -> 150.45 | I34: 150.45 | J34: 169.26 | K34: 169.26
B35: 1.3.12 | C35: MANÔMETRO DE GLICERINA DE ATÉ 6kgf/cm² ROSCA DE 1/4 " | D35: und | E35: 2 | F35: COT | G35: COT24 | H35: =TRUNC((1-$L$7)*('COT 53'!L37),2) -> 121.7 | I35: 243.4 | J35: 136.91 | K35: 273.82
B36: 1.3.13 | C36: BUCHA DE REDUÇÃO DE 3/4" PARA 1/4" | D36: und | E36: 2 | F36: COT | G36: COT25 | H36: =TRUNC((1-$L$7)*('COT 54'!L37),2) -> 22.59 | I36: 45.18 | J36: 25.41 | K36: 50.82
B37: 1.3.14 | C37: ADAPTADOR DE REDUÇÃO Bsa SOLD. 50 mm X 1 1/2" | D37: und | E37: 2 | F37: COT | G37: COT26 | H37: =TRUNC((1-$L$7)*('COT 55'!L37),2) -> 8.36 | I37: 16.72 | J37: 9.41 | K37: 18.82
B38: 1.3.15 | C38: TE DE REDUÇÃO ROSCA 50 mm X 3/4" | D38: und | E38: 2 | F38: COT | G38: COT27 | H38: =TRUNC((1-$L$7)*('COT 56'!L37),2) -> 14.51 | I38: 29.02 | J38: 16.32 | K38: 32.64
B39: 1.4 | C39: Conexões de Campo | K39: =SUM(K40:K43) -> 462.27
B40: 1.4.1 | C40: REGISTRO ESFERA PVC 50 mm | D40: und | E40: 4 | F40: SINAPI | G40: 11677 | H40: =TRUNC((1-$L$7)*(VLOOKUP(G40,'INSUMO SINAPI 127V'!$A$2:$D$4985,4,FALSE)),2) -> 44.84 | I40: =H40*E40 -> 179.36 | J40: =H40*(1+$L$5) -> 50.45 | K40: =TRUNC(E40*J40,2) -> 201.8
B41: 1.4.2 | C41: CURVA PVC 45° PB 50 mm | D41: und | E41: 4 | F41: SINAPI | G41: 1831 | H41: =TRUNC((1-$L$7)*(VLOOKUP(G41,'INSUMO SINAPI 127V'!$A$2:$D$4985,4,FALSE)),2) -> 29.24 | I41: =H41*E41 -> 116.96 | J41: =H41*(1+$L$5) -> 32.9 | K41: =TRUNC(E41*J41,2) -> 131.6
B42: 1.4.3 | C42: CURVA PVC 90° PB 50 mm | D42: und | E42: 2 | F42: SINAPI | G42: 1845 | H42: =TRUNC((1-$L$7)*(VLOOKUP(G42,'INSUMO SINAPI 127V'!$A$2:$D$4985,4,FALSE)),2) -> 36.64 | I42: =H42*E42 -> 73.28 | J42: =H42*(1+$L$5) -> 41.22 | K42: =TRUNC(E42*J42,2) -> 82.44
B43: 1.4.4 | C43: TÊ PVC 75 mm | D43: und | E43: 1 | F43: ORSE | G43: 9505 | H43: =TRUNC((1-$L$7)*(VLOOKUP(G43,'OUTROS BANCOS 127V'!$C$2:$E$77,3,FALSE)),2) -> 41.27 | I43: =H43*E43 -> 41.27 | J43: =H43*(1+$L$5) -> 46.43 | K43: =TRUNC(E43*J43,2) -> 46.43
B44: 1.5 | C44: Filtragem e Ligação de Pressão | K44: =SUM(K45:K56) -> 5867.88
B45: 1.5.1 | C45: MOTOBOMBA SUBMERSA 3HP 12m³/h + 43mca | D45: und | E45: 1 | F45: COT | G45: COT06 | H45: =TRUNC((1-$L$7)*('COT 35'!L37),2) -> 1714.01 | I45: =H45*E45 -> 1714.01 | J45: =H45*(1+$L$5) -> 1928.26 | K45: =TRUNC(E45*J45,2) -> 1928.26
B46: 1.5.2 | C46: NIPLE PVC BR 2" | D46: und | E46: 1 | F46: SBC | G46: 5719 | H46: =TRUNC((1-$L$7)*(VLOOKUP(G46,'OUTROS BANCOS 127V'!$C$2:$E$77,3,FALSE)),2) -> 32.23 | I46: 32.23 | J46: 36.26 | K46: 36.26
B47: 1.5.3 | C47: UNIÃO PVC BR 2" | D47: und | E47: 1 | F47: ORSE | G47: 2365 | H47: =TRUNC((1-$L$7)*(VLOOKUP(G47,'OUTROS BANCOS 127V'!$C$2:$E$77,3,FALSE)),2) -> 54.89 | I47: 54.89 | J47: 61.75 | K47: 61.75
B48: 1.5.4 | C48: ADAPTADOR COMPRESSÃO X ROSCA MACHO 2" | D48: und | E48: 2 | F48: EMBASA | G48: M080800108 | H48: =TRUNC((1-$L$7)*(VLOOKUP(G48,'OUTROS BANCOS 127V'!$C$2:$E$77,3,FALSE)),2) -> 49.34 | I48: 98.68 | J48: 55.51 | K48: 111.02
B49: 1.5.5 | C49: TUBO PEMD 2" PN60 | D49: m | E49: 15 | F49: COT | G49: COT07 | H49: =TRUNC((1-$L$7)*('COT 36'!L37),2) -> 19.18 | I49: 287.7 | J49: 21.58 | K49: 323.7
B50: 1.5.6 | C50: BUCHA DE REDUÇÃO 3X2" | D50: und | E50: 1 | F50: SBC | G50: 8784 | H50: =TRUNC((1-$L$7)*(VLOOKUP(G50,'OUTROS BANCOS 127V'!$C$2:$E$77,3,FALSE)),2) -> 94 | I50: 94 | J50: 105.75 | K50: 105.75
B51: 1.5.7 | C51: UNIÃO PVC BR 3" | D51: und | E51: 2 | F51: ORSE | G51: 2367 | H51: =TRUNC((1-$L$7)*(VLOOKUP(G51,'OUTROS BANCOS 127V'!$C$2:$E$77,3,FALSE)),2) -> 283.58 | I51: 567.16 | J51: 319.03 | K51: 638.06
B52: 1.5.8 | C52: ADAPTADOR BSXRM 75X3" | D52: und | E52: 3 | F52: ORSE | G52: 14059 | H52: =TRUNC((1-$L$7)*(VLOOKUP(G52,'OUTROS BANCOS 127V'!$C$2:$E$77,3,FALSE)),2) -> 8.5 | I52: 25.5 | J52: 9.56 | K52: 28.68
B53: 1.5.9 | C53: TUBO IRRIG. PB DN75 PN80 | D53: m | E53: =2*6 -> 12 | F53: ORSE | G53: 9502 | H53: =TRUNC((1-$L$7)*(VLOOKUP(G53,'OUTROS BANCOS 127V'!$C$2:$E$77,3,FALSE)),2) -> 40.52 | I53: 486.24 | J53: 45.59 | K53: 547.08
B54: 1.5.10 | C54: CURVA PVC 90° PB 75 MM | D54: und | E54: 6 | F54: SINAPI | G54: 1824 | H54: =TRUNC((1-$L$7)*(VLOOKUP(G54,'INSUMO SINAPI 127V'!$A$2:$D$4985,4,FALSE)),2) -> 86.5 | I54: 519 | J54: 97.31 | K54: 583.86
B55: 1.5.11 | C55: REGISTRO ESFERA 3" | D55: und | E55: 2 | F55: ORSE | G55: 2604 | H55: =TRUNC((1-$L$7)*(VLOOKUP(G55,'OUTROS BANCOS 127V'!$C$2:$E$77,3,FALSE)),2) -> 109.45 | I55: 218.9 | J55: 123.13 | K55: 246.26
B56: 1.5.12 | C56: FILTRO DE DISCO 3" - 25M³/H | D56: und | E56: 1 | F56: COT | G56: COT08 | H56: =TRUNC((1-$L$7)*('COT 37'!L37),2) -> 1117.51 | I56: 1117.51 | J56: 1257.2 | K56: 1257.2
B57: 1.6 | C57: Materias de Consumo | K57: =SUM(K58:K61) -> 286.43
B58: 1.6.1 | C58: ADESIVO PLÁSTICO 850G | D58: und | E58: 2 | F58: EMOP | G58: 5102 | H58: =TRUNC((1-$L$7)*(VLOOKUP(G58,'OUTROS BANCOS 127V'!$C$2:$E$77,3,FALSE)),2) -> 54.85 | I58: =H58*E58 -> 109.7 | J58: =H58*(1+$L$5) -> 61.71 | K58: =TRUNC(E58*J58,2) -> 123.42
B59: 1.6.2 | C59: FITA VEDA ROSCA 18MM X 50 M | D59: und | E59: 1 | F59: SINAPI | G59: 3148 | H59: =TRUNC((1-$L$7)*(VLOOKUP(G59,'INSUMO SINAPI 127V'!$A$2:$D$4985,4,FALSE)),2) -> 14.56 | I59: =H59*E59 -> 14.56 | J59: =H59*(1+$L$5) -> 16.38 | K59: =TRUNC(E59*J59,2) -> 16.38
B60: 1.6.3 | C60: FITA ISOLANTE 18MM X 20M | D60: und | E60: 1 | F60: SBC | G60: 36795 | H60: =TRUNC((1-$L$7)*(VLOOKUP(G60,'OUTROS BANCOS 127V'!$C$2:$E$77,3,FALSE)),2) -> 1 | I60: =H60*E60 -> 1 | J60: =H60*(1+$L$5) -> 1.13 | K60: =TRUNC(E60*J60,2) -> 1.13
B61: 1.6.4 | C61: FOLHA DE LIXA N100 | D61: und | E61: 50 | F61: SINAPI | G61: 38383 | H61: =TRUNC((1-$L$7)*(VLOOKUP(G61,'INSUMO SINAPI 127V'!$A$2:$D$4985,4,FALSE)),2) -> 2.59 | I61: =H61*E61 -> 129.5 | J61: =H61*(1+$L$5) -> 2.91 | K61: =TRUNC(E61*J61,2) -> 145.5
B62: 1.7 | C62: Elaboração do Layout do Sistema Hidráulico | K62: =SUM(K63:K64) -> 1290.6
B63: 1.7.1 | C63: Mão-de-obra de Projetista Cadista Pleno - Projeto e Consultoria, inclusive Encargos Sociais | D63: h | E63: 4 | F63: EMOP | G63: 10984 | H63: =TRUNC((1-$L$7)*(VLOOKUP(G63,'OUTROS BANCOS 127V'!$C$2:$E$77,3,FALSE)),2) -> 75.3 | I63: =H63*E63 -> 301.2 | J63: =H63*(1+$L$4) -> 94.09 | K63: =TRUNC(E63*J63,2) -> 376.36
B64: 1.7.2 | C64: Mão-de-obra de Engenheiro Pleno, inclusive com encargos sociais | D64: h | E64: 4 | F64: EMOP | G64: 14610 | H64: =TRUNC((1-$L$7)*(VLOOKUP(G64,'OUTROS BANCOS 127V'!$C$2:$E$77,3,FALSE)),2) -> 182.91 | I64: =H64*E64 -> 731.64 | J64: =H64*(1+$L$4) -> 228.56 | K64: =TRUNC(E64*J64,2) -> 914.24
B65: 1.8 | C65: Montagem do Sistema Hidráulico | K65: =SUM(K66:K67) -> 1524.48
B66: 1.8.1 | C66: Encanador ou bombeiro hidráulico com encargos complementares (01 encanador ou bombeiro hidráulico em jornada de trabalho de 8 h por dia) | D66: h | E66: 24 | F66: AGESUL | G66: 4005 | H66: =TRUNC((1-$L$7)*(VLOOKUP(G66,'OUTROS BANCOS 127V'!$C$2:$E$77,3,FALSE)),2) -> 27.84 | I66: =H66*E66 -> 668.16 | J66: =H66*(1+$L$4) -> 34.79 | K66: =TRUNC(E66*J66,2) -> 834.96
B67: 1.8.2 | C67: Auxiliar de encanador ou bombeiro hidráulico com encargos complementares (02 auxiliares de encanador ou bombeiro hidráulico em jornada de trabalho de 8 h por dia) | D67: h | E67: 24 | F67: AGESUL | G67: 4052 | H67: =TRUNC((1-$L$7)*(VLOOKUP(G67,'OUTROS BANCOS 127V'!$C$2:$E$77,3,FALSE)),2) -> 22.99 | I67: =H67*E67 -> 551.76 | J67: =H67*(1+$L$4) -> 28.73 | K67: =TRUNC(E67*J67,2) -> 689.52
B68: 1.9 | C68: Preparo mecanizado de solo | K68: =K69 -> 468.48
B69: 1.9.1 | C69: ARACÃO DO SOLO A 20CM DE PROFUNDIDADE COM TRATOR DE PNEUS E ARADO DE DISCO | D69: ha | E69: 1 | F69: EMOP/COMPOSIÇÃO | G69: 22.016.0025-A | H69: =TRUNC(((1-$L$7)*374.9),2) -> 374.9 | I69: =H69*E69 -> 374.9 | J69: =H69*(1+$L$4) -> 468.48 | K69: =TRUNC(E69*J69,2) -> 468.48
B70: 2 | C70: Sistema Elétrico | K70: =SUM(K71,K82,K125,K110,K118,K129) -> 12585.67
B71: 2.1 | C71: Rede de Distribuição - Fonte até o Quadro de Comando | K71: =SUM(K72:K81) -> 7059.54
B72: 2.1.1 | C72: Poste de madeira eucalipto preservado, diâmetro de 20cm, 7 metros | D72: Unidade | E72: 5 | F72: SBC | G72: 46336 | H72: =TRUNC((1-$L$7)*(VLOOKUP(G72,'OUTROS BANCOS 127V'!$C$2:$E$77,3,FALSE)),2) -> 95.07 | I72: =H72*E72 -> 475.35 | J72: =H72*(1+$L$5) -> 106.95 | K72: =TRUNC(E72*J72,2) -> 534.75
B73: 2.1.2 | C73: Isolador Porcelana Tipo Roldana 80x80 mm p/ 2 cabos, marrom | D73: Unidade | E73: 5 | F73: IOPES | G73: 48342 | H73: =TRUNC((1-$L$7)*(VLOOKUP(G73,'OUTROS BANCOS 127V'!$C$2:$E$77,3,FALSE)),2) -> 10.95 | I73: 54.75 | J73: 12.32 | K73: 61.6
B74: 2.1.3 | C74: Suporte Isolador c/ Roldana p/ aparafusar c/ chapa | D74: Unidade | E74: 5 | F74: SETOP | G74: MATED-12988 | H74: =TRUNC((1-$L$7)*(VLOOKUP(G74,'OUTROS BANCOS 127V'!$C$2:$E$77,3,FALSE)),2) -> 18.18 | I74: 90.9 | J74: 20.45 | K74: 102.25
B75: 2.1.4 | C75: Cinta aço galvanizado para poste DT 240mm, inclui parafusos | D75: Unidade | E75: 5 | F75: ORSE | G75: 4628 | H75: =TRUNC((1-$L$7)*(VLOOKUP(G75,'OUTROS BANCOS 127V'!$C$2:$E$77,3,FALSE)),2) -> 15.22 | I75: 76.1 | J75: 17.12 | K75: 85.6
B76: 2.1.5 | C76: Alça preformada para islador roldana, seção conforme condutores instalados | D76: Unidade | E76: 5 | F76: COT | G76: COT13 | H76: =TRUNC((1-$L$7)*('COT 42'!L37),2) -> 14.01 | I76: 70.05 | J76: 15.76 | K76: 78.8
B77: 2.1.6 | C77: Cabo de cobre isolado HEPR (XLPE), 25mm², 1kv / 90º C (cor conforme a aplicação) apropriado para redes aéreas | D77: Metro | E77: 200 | F77: ORSE | G77: 3814 | H77: =TRUNC((1-$L$7)*(VLOOKUP(G77,'OUTROS BANCOS 127V'!$C$2:$E$77,3,FALSE)),2) -> 26.73 | I77: 5346 | J77: 30.07 | K77: 6014
B78: 2.1.7 | C78: Cabeçote p/ Eletroduto de 1.1/4" | D78: Unidade | E78: 1 | F78: SINAPI | G78: 1099 | H78: =TRUNC((1-$L$7)*(VLOOKUP(G78,'INSUMO SINAPI 127V'!$A$2:$D$4985,4,FALSE)),2) -> 7.95 | I78: 7.95 | J78: 8.94 | K78: 8.94
B79: 2.1.8 | C79: Eletroduto em aço galvanizado 1.1/4" | D79: Unidade | E79: 1 | F79: SCO | G79: MAT050850 | H79: =TRUNC((1-$L$7)*(VLOOKUP(G79,'OUTROS BANCOS 127V'!$C$2:$E$77,3,FALSE)),2) -> 131.83 | I79: 131.83 | J79: 148.31 | K79: 148.31
B80: 2.1.9 | C80: Conector reto com arruela para eletroduto 1.1/4" | D80: Unidade | E80: 1 | F80: SINAPI | G80: 2526 | H80: =TRUNC((1-$L$7)*(VLOOKUP(G80,'INSUMO SINAPI 127V'!$A$2:$D$4985,4,FALSE)),2) -> 6.29 | I80: 6.29 | J80: 7.08 | K80: 7.08
B81: 2.1.10 | C81: Curva 90º aço galvanizado 1.1/4" | D81: Unidade | E81: 1 | F81: SINAPI | G81: 2618 | H81: =TRUNC((1-$L$7)*(VLOOKUP(G81,'INSUMO SINAPI 127V'!$A$2:$D$4985,4,FALSE)),2) -> 16.19 | I81: 16.19 | J81: 18.21 | K81: 18.21
B82: 2.2 | C82: Quadro de Comando | K82: =SUM(K83:K109) -> 2187.84
B83: 2.2.1 | C83: Quadro elétrico metálico com placa de montagem, grau de proteção mínimo IP54, dimensões mínimas 400x300x200 mm | D83: Unidade | E83: 1 | F83: SBC | G83: 53375 | H83: =TRUNC((1-$L$7)*(VLOOKUP(G83,'OUTROS BANCOS 127V'!$C$2:$E$77,3,FALSE)),2) -> 355.25 | I83: =H83*E83 -> 355.25 | J83: =H83*(1+$L$5) -> 399.66 | K83: =TRUNC(E83*J83,2) -> 399.66
B84: 2.2.2 | C84: Canaleta para quadro 30 x 50 mm, fabricada em PVC, tipo semi-aberta. | D84: Metro | E84: 0.4 | F84: SETOP | G84: MATED-17646 | H84: =TRUNC((1-$L$7)*(VLOOKUP(G84,'OUTROS BANCOS 127V'!$C$2:$E$77,3,FALSE)),2) -> 15.38 | I84: 6.15 | J84: 17.3 | K84: 6.92
B85: 2.2.3 | C85: Canaleta para quadro 50 x 50 mm, fabricada em PVC, tipo semi-aberta. | D85: Metro | E85: 0.3 | F85: SETOP | G85: MATED-17647 | H85: =TRUNC((1-$L$7)*(VLOOKUP(G85,'OUTROS BANCOS 127V'!$C$2:$E$77,3,FALSE)),2) -> 20.58 | I85: 6.17 | J85: 23.15 | K85: 6.94
B86: 2.2.4 | C86: Trilho DIN 35 mm | D86: Metro | E86: 0.4 | F86: SEINFRA | G86: I7410 | H86: =TRUNC((1-$L$7)*(VLOOKUP(G86,'OUTROS BANCOS 127V'!$C$2:$E$77,3,FALSE)),2) -> 11.56 | I86: 4.62 | J86: 13.01 | K86: 5.2
B87: 2.2.5 | C87: Conector (terminal isolado) para barramento isolado, conexão reta ou lateral, até 25 mm² | D87: Unidade | E87: 2 | F87: COT | G87: COT19 | H87: =TRUNC((1-$L$7)*('COT 48'!L37),2) -> 8.23 | I87: 16.46 | J87: 9.26 | K87: 18.52
B88: 2.2.6 | C88: Barramento monofásico isolado (barramento pente), horizontal, fabricado em cobre, até 63 A, acompanhado de tampas finais, 8 polos | D88: Unidade | E88: 1 | F88: SBC | G88: 10562 | H88: =TRUNC((1-$L$7)*(VLOOKUP(G88,'OUTROS BANCOS 127V'!$C$2:$E$77,3,FALSE)),2) -> 22.06 | I88: 22.06 | J88: 24.82 | K88: 24.82
B89: 2.2.7 | C89: Interruptor diferencial residual bipolar de 40A, corrente residual de 30 mA, tensão de operação conforme aplicação, corrente de curto circuito de 3 kA | D89: Unidade | E89: 1 | F89: SINAPI | G89: 39446 | H89: =TRUNC((1-$L$7)*(VLOOKUP(G89,'INSUMO SINAPI 127V'!$A$2:$D$4985,4,FALSE)),2) -> 139.64 | I89: 139.64 | J89: 157.1 | K89: 157.1
B90: 2.2.8 | C90: Dispositivo de Proteção Contra Surtos Classe II, 20 kA (Imáx), tensão de operação compatível com a aplicação, nível de proeção (Up) 1,4 kV | D90: Unidade | E90: 1 | F90: SINAPI | G90: 39469 | H90: =TRUNC((1-$L$7)*(VLOOKUP(G90,'INSUMO SINAPI 127V'!$A$2:$D$4985,4,FALSE)),2) -> 69.47 | I90: 69.47 | J90: 78.15 | K90: 78.15
B91: 2.2.9 | C91: Disjuntor monopolar para trilho DIN (mini disjuntor) para correntes de 40A, curva C, 60 Hz, capacidade de interrupção em curto-circuito 3 kA ou superior | D91: Unidade | E91: 1 | F91: SINAPI | G91: 34686 | H91: =TRUNC((1-$L$7)*(VLOOKUP(G91,'INSUMO SINAPI 127V'!$A$2:$D$4985,4,FALSE)),2) -> 13.21 | I91: 13.21 | J91: 14.86 | K91: 14.86
B92: 2.2.10 | C92: Disjuntor monopolar para trilho DIN (mini disjuntor) para correntes de 40A, curva C, 60 Hz, capacidade de interrupção em curto-circuito 3 kA ou superior | D92: Unidade | E92: 1 | F92: SINAPI | G92: 34686 | H92: =TRUNC((1-$L$7)*(VLOOKUP(G92,'INSUMO SINAPI 127V'!$A$2:$D$4985,4,FALSE)),2) -> 13.21 | I92: 13.21 | J92: 14.86 | K92: 14.86
B93: 2.2.11 | C93: Disjuntor monopolar para trilho DIN (mini disjuntor) para correntes de 2A, curva C, 60 Hz, capacidade de interrupção em curto-circuito 3 kA ou superior | D93: Unidade | E93: 1 | F93: IOPES | G93: 44951 | H93: =TRUNC((1-$L$7)*(VLOOKUP(G93,'OUTROS BANCOS 127V'!$C$2:$E$77,3,FALSE)),2) -> 31.32 | I93: 31.32 | J93: 35.24 | K93: 35.24
B94: 2.2.12 | C94: Minicontator, com capacidade de corrente até 40A (em regime AC-3), contato auxiliar integrado e bobina em corrente alternada (tensão conforme a aplicação) | D94: Unidade | E94: 1 | F94: AGETOP CIVIL | G94: 3756 | H94: =TRUNC((1-$L$7)*(VLOOKUP(G94,'OUTROS BANCOS 127V'!$C$2:$E$77,3,FALSE)),2) -> 262.72 | I94: 262.72 | J94: 295.56 | K94: 295.56
B95: 2.2.13 | C95: Relé de sobrecarga para minicontator ajustável até 40A, conforme aplicação, com montagem direta nos contatores | D95: Unidade | E95: 1 | F95: COT | G95: COT 29 | H95: =TRUNC((1-$L$7)*('COT 57'!$L$37),2) -> 277.59 | I95: 277.59 | J95: 312.29 | K95: 312.29
B96: 2.2.14 | C96: Relé eletrônico/digital monitor de tensão monofásico, com funcionalidade de subtensão e sobretensão, ajustes através de trimpot no relé, LED indicativo de funcionamento, tensão conforme aplicação, 60 Hz, com 1 contato reversível | D96: Unidade | E96: 1 | F96: COT | G96: COT15 | H96: =TRUNC((1-$L$7)*('COT 44'!L37),2) -> 197.31 | I96: 197.31 | J96: 221.97 | K96: 221.97
B97: 2.2.15 | C97: Relé temporizador, alimentação 220V, 1 saída a relé, com função de pulso na energização, ajustável de 1 segundo a 100 horas, ajuste por trimpots no relé | D97: Unidade | E97: 1 | F97: COT | G97: COT20 | H97: =TRUNC((1-$L$7)*('COT 49'!L37),2) -> 201.71 | I97: 201.71 | J97: 226.92 | K97: 226.92
B98: 2.2.16 | C98: Barramento de neutro, na cor azul, para fixação em trilho DIN, fabricado em cobre, com furos e parafusos para fixação, ao menos um furo para o alimentador (até 25 mm²), pré isolado, 10 furos. | D98: Unidade | E98: 1 | F98: COT | G98: COT21 | H98: =TRUNC((1-$L$7)*('COT 50'!L37),2) -> 53.95 | I98: 53.95 | J98: 60.69 | K98: 60.69
B99: 2.2.17 | C99: Barramento de terra, na cor verde, para fixação em trilho DIN, fabricado em cobre, com furos e parafusos para fixação, ao menos um furo para o alimentador (até 25 mm²), pré isolado, 10 furos. | D99: Unidade | E99: 1 | F99: COT | G99: COT22 | H99: =TRUNC((1-$L$7)*('COT 51'!L37),2) -> 52.09 | I99: 52.09 | J99: 58.6 | K99: 58.6
B100: 2.2.18 | C100: Botão de emergência tipo cogumelo, com trava e retorno com mola, para furos 22mm, 1 NF, tensão conforme aplicação, vermelho | D100: Unidade | E100: 1 | F100: CPOS | G100: P.13.000.042461 | H100: =TRUNC((1-$L$7)*(VLOOKUP(G100,'OUTROS BANCOS 127V'!$C$2:$E$77,3,FALSE)),2) -> 37.72 | I100: 37.72 | J100: 42.44 | K100: 42.44
B101: 2.2.19 | C101: Chave seletora de 3 posições para furos 22mm, 2 NA, completa, tensão conforme aplicação | D101: Unidade | E101: 1 | F101: SETOP | G101: MATED-19494 | H101: =TRUNC((1-$L$7)*(VLOOKUP(G101,'OUTROS BANCOS 127V'!$C$2:$E$77,3,FALSE)),2) -> 18.4 | I101: 18.4 | J101: 20.7 | K101: 20.7
B102: 2.2.20 | C102: Sinalizador luminoso para furos de 22 mm, iluminação LED, vermelho, tensão conforme aplicação | D102: Unidade | E102: 1 | F102: ORSE | G102: 12379 | H102: =TRUNC((1-$L$7)*(VLOOKUP(G102,'OUTROS BANCOS 127V'!$C$2:$E$77,3,FALSE)),2) -> 18.32 | I102: 18.32 | J102: 20.61 | K102: 20.61
B103: 2.2.21 | C103: Policarbonato compacto, incolor (transparente/cristal), livre de rebarbas, espessura mínima de 3 mm | D103: Metro² | E103: 0.24 | F103: SBC | G103: 28100 | H103: =TRUNC((1-$L$7)*(VLOOKUP(G103,'OUTROS BANCOS 127V'!$C$2:$E$77,3,FALSE)),2) -> 159 | I103: 38.16 | J103: 178.88 | K103: 42.93
B104: 2.2.22 | C104: Barra roscada 1/4", acabamento zincado | D104: Metro | E104: 1 | F104: ORSE | G104: 7551 | H104: =TRUNC((1-$L$7)*(VLOOKUP(G104,'OUTROS BANCOS 127V'!$C$2:$E$77,3,FALSE)),2) -> 4.73 | I104: 4.73 | J104: 5.32 | K104: 5.32
B105: 2.2.23 | C105: Porca sextavada zincada, 1/4" | D105: Unidade | E105: 8 | F105: SINAPI | G105: 39997 | H105: =TRUNC((1-$L$7)*(VLOOKUP(G105,'INSUMO SINAPI 127V'!$A$2:$D$4985,4,FALSE)),2) -> 0.28 | I105: 2.24 | J105: 0.32 | K105: 2.56
B106: 2.2.24 | C106: Arruela zincada, 1/4" | D106: Unidade | E106: 8 | F106: ORSE | G106: 8347 | H106: =TRUNC((1-$L$7)*(VLOOKUP(G106,'OUTROS BANCOS 127V'!$C$2:$E$77,3,FALSE)),2) -> 0.05 | I106: 0.4 | J106: 0.06 | K106: 0.48
B107: 2.2.25 | C107: Placa de identificação (plaqueta de identificação) fabricada em ABS ou acrílico para painéis elétricos (30 X 15 mm), fixação por adesivo, resistente ao tempo (Escrita Personalizada) | D107: Unidade | E107: 10 | F107: COT | G107: COT16 | H107: =TRUNC((1-$L$7)*('COT 45'!$L$37),2) -> 9.68 | I107: 96.8 | J107: 10.89 | K107: 108.9
B108: 2.2.26 | C108: Terminal a compressão, tipo pino ou garfo, 2,5 mm³ | D108: Unidade | E108: 30 | F108: SEINFRA | G108: I10080 | H108: =TRUNC((1-$L$7)*(VLOOKUP(G108,'OUTROS BANCOS 127V'!$C$2:$E$77,3,FALSE)),2) -> 0.14 | I108: 4.2 | J108: 0.16 | K108: 4.8
B109: 2.2.27 | C109: Abraçadeira de nylon 2,5x100 mm, para organização cabos elétricos | D109: Unidade | E109: 10 | F109: SINAPI | G109: 414 | H109: =TRUNC((1-$L$7)*(VLOOKUP(G109,'INSUMO SINAPI 127V'!$A$2:$D$4985,4,FALSE)),2) -> 0.07 | I109: 0.7 | J109: 0.08 | K109: 0.8
B110: 2.3 | C110: Sistema de Aterramento | K110: =SUM(K111:K117) -> 1371.18
B111: 2.3.1 | C111: Cordoalha em cobre nu, 50 mm² | D111: Metro | E111: 16 | F111: SINAPI | G111: 867 | H111: =TRUNC((1-$L$7)*(VLOOKUP(G111,'INSUMO SINAPI 127V'!$A$2:$D$4985,4,FALSE)),2) -> 63.24 | I111: =H111*E111 -> 1011.84 | J111: =H111*(1+$L$5) -> 71.15 | K111: =TRUNC(E111*J111,2) -> 1138.4
B112: 2.3.2 | C112: Conector à compressão para aterramento (CABO-CABO) | D112: Unidade | E112: 2 | F112: SEDOP | G112: E00189 | H112: =TRUNC((1-$L$7)*(VLOOKUP(G112,'OUTROS BANCOS 127V'!$C$2:$E$77,3,FALSE)),2) -> 62.63 | I112: 125.26 | J112: 70.46 | K112: 140.92
B113: 2.3.3 | C113: Curva longa 90º Galvanizada a fogo, 1" | D113: Unidade | E113: 1 | F113: SINAPI | G113: 2617 | H113: =TRUNC((1-$L$7)*(VLOOKUP(G113,'INSUMO SINAPI 127V'!$A$2:$D$4985,4,FALSE)),2) -> 7.11 | I113: 7.11 | J113: 8 | K113: 8
B114: 2.3.4 | C114: Eletroduto Galvanizado a Fogo, 1" | D114: Metro | E114: 1.5 | F114: SETOP | G114: MATED-12288 | H114: =TRUNC((1-$L$7)*(VLOOKUP(G114,'OUTROS BANCOS 127V'!$C$2:$E$77,3,FALSE)),2) -> 7.5 | I114: 11.25 | J114: 8.44 | K114: 12.66
B115: 2.3.5 | C115: Abraçadeira tipo D, 1" e cunha de fixação | D115: Unidade | E115: 1 | F115: SINAPI | G115: 393 | H115: =TRUNC((1-$L$7)*(VLOOKUP(G115,'INSUMO SINAPI 127V'!$A$2:$D$4985,4,FALSE)),2) -> 2.46 | I115: 2.46 | J115: 2.77 | K115: 2.77
B116: 2.3.6 | C116: Conector reto com arruela para eletroduto 1" | D116: Unidade | E116: 1 | F116: SINAPI | G116: 2483 | H116: =TRUNC((1-$L$7)*(VLOOKUP(G116,'INSUMO SINAPI 127V'!$A$2:$D$4985,4,FALSE)),2) -> 4.48 | I116: 4.48 | J116: 5.04 | K116: 5.04
B117: 2.3.7 | C117: Caixa de inspeção para ateramento | D117: Unidade | E117: 1 | F117: SINAPI | G117: 41480 | H117: =TRUNC((1-$L$7)*(VLOOKUP(G117,'INSUMO SINAPI 127V'!$A$2:$D$4985,4,FALSE)),2) -> 56.35 | I117: 56.35 | J117: 63.39 | K117: 63.39
B118: 2.4 | C118: Alimentação do Motor | K118: =SUM(K119:K124) -> 646.62
B119: 2.4.1 | C119: Cabo de cobre flexível, classe 4 ou 5, isolação em PVC/A, antichama BWF-B, 1 condutor, 450/750V seção de 16 mm² (cor preta, azul ou verde) | D119: Metro | E119: 30 | F119: SINAPI | G119: 979 | H119: =TRUNC((1-$L$7)*(VLOOKUP(G119,'INSUMO SINAPI 127V'!$A$2:$D$4985,4,FALSE)),2) -> 17.47 | I119: =H119*E119 -> 524.1 | J119: =H119*(1+$L$5) -> 19.65 | K119: =TRUNC(E119*J119,2) -> 589.5
B120: 2.4.2 | C120: Terminal a compressão, tipo pino, 16 mm² | D120: Unidade | E120: 3 | F120: COT | G120: COT14 | H120: =TRUNC((1-$L$7)*('COT 43'!L37),2) -> 1.58 | I120: 4.74 | J120: 1.78 | K120: 5.34
B121: 2.4.3 | C121: Eletroduto corrugado tipo PEAD, 1.1/4" | D121: Metro | E121: 10 | F121: SINAPI | G121: 39247 | H121: =TRUNC((1-$L$7)*(VLOOKUP(G121,'INSUMO SINAPI 127V'!$A$2:$D$4985,4,FALSE)),2) -> 3.59 | I121: 35.9 | J121: 4.04 | K121: 40.4
B122: 2.4.4 | C122: Caixa de passagem em concreto 30X30X40 cm | D122: Unidade | E122: 1 | F122: SINAPI | G122: 43429 | H122: =TRUNC((1-$L$7)*(VLOOKUP(G122,'INSUMO SINAPI 127V'!$A$2:$D$4985,4,FALSE)),2) -> 0 | I122: 0 | J122: 0 | K122: 0
B123: 2.4.5 | C123: Conector reto com arruela para eletroduto 1.1/4" | D123: Unidade | E123: 1 | F123: SINAPI | G123: 2526 | H123: =TRUNC((1-$L$7)*(VLOOKUP(G123,'INSUMO SINAPI 127V'!$A$2:$D$4985,4,FALSE)),2) -> 6.29 | I123: 6.29 | J123: 7.08 | K123: 7.08
B124: 2.4.6 | C124: Abraçadeira tipo D, 1.1/4" e cunha de fixação | D124: Unidade | E124: 1 | F124: SINAPI | G124: 39130 | H124: =TRUNC((1-$L$7)*(VLOOKUP(G124,'INSUMO SINAPI 127V'!$A$2:$D$4985,4,FALSE)),2) -> 3.82 | I124: 3.82 | J124: 4.3 | K124: 4.3
B125: 2.5 | C125: Montagem do Sistema Elétrico | K125: =SUM(K126:K128) -> 999.2
B126: 2.5.1 | C126: Eletrotécnico (horista), INCLUSIDE ENCARGOS SOCIAIS | D126: h | E126: 8 | F126: EMOP | G126: 1916 | H126: =TRUNC((1-$L$7)*(VLOOKUP(G126,'OUTROS BANCOS 127V'!$C$2:$E$77,3,FALSE)),2) -> 34.86 | I126: =H126*E126 -> 278.88 | J126: =H126*(1+$L$4) -> 43.56 | K126: =TRUNC(E126*J126,2) -> 348.48
B127: 2.5.2 | C127: Auxiliar de Eletricista com encargos complementares | D127: h | E127: 16 | F127: AGESUL | G127: 88247 | H127: =TRUNC((1-$L$7)*(VLOOKUP(G127,'OUTROS BANCOS 127V'!$C$2:$E$77,3,FALSE)),2) -> 23.83 | I127: =H127*E127 -> 381.28 | J127: =H127*(1+$L$4) -> 29.78 | K127: =TRUNC(E127*J127,2) -> 476.48
B128: 2.5.3 | C128: Comissionamento - Eletrotécnico, INCLUSIVE ENCARGOS SOCIAIS | D128: h | E128: 4 | F128: EMOP | G128: 1916 | H128: =TRUNC((1-$L$7)*(VLOOKUP(G128,'OUTROS BANCOS 127V'!$C$2:$E$77,3,FALSE)),2) -> 34.86 | I128: =H128*E128 -> 139.44 | J128: =H128*(1+$L$4) -> 43.56 | K128: =TRUNC(E128*J128,2) -> 174.24
B129: 2.6 | C129: Emissão de ART | K129: =K130 -> 321.29
B130: 2.6.1 | C130: Emissão de ART | D130: um | E130: 1 | F130: PRÓPRIA | G130: CPU1 | H130: =TRUNC((1-$L$7)*('CPU2'!J7),2) -> 285.59 | I130: =H130*E130 -> 285.59 | J130: =H130*(1+$L$5) -> 321.29 | K130: =TRUNC(E130*J130,2) -> 321.29
B131: TOTAL | K131: =SUM(K70,K12) -> 39576.71
K133: 31106.35

Sheet Item 77- MICROASPERSÃO 1,0 HA
K2: BASE | L2: 2026-02-01 | M2: BANCO | N2: DATA
K3: VALOR TOTAL | L3: =K133 -> 37217.47 | M3: ORSE | N3: 2025-12-01
K4: BDI SERVIÇO | L4: 0.2496 | M4: SEINFRA | N4: 27/28
K5: BDI MATERIAL | L5: 0.125 | M5: EMBASA | N5: 2025-06-01
M6: SCO | N6: 2026-01-01
B7: PLANILHA ORÇAMENTÁRIA - MATO GROSSO | K7: DESCONTO | L7: 0 | M7: SBC | N7: 2026-01-01
B8: SERVIÇO DE FORNECIMENTO, TRANSPORTE, CARGA, DESCARGA, MONTAGEM E ADEQUADO FUNCIONAMENTO DE SISTEMA DE IRRIGAÇÃO - MICROASPERSÃO - 1 ha -127 V | M8: AGETOP CIVIL | N8: 2025-10-01
M9: AGESUL | N9: 2026-01-01
M10: IOPES | N10: 2025-12-01
B11: ITEM | C11: DESCRIÇÃO | D11: UNID. | E11: QUANT. - (A) | F11: PESQUISA DE PREÇOS (SIST. REF. / COT) | G11: CÓDIGO | H11: Custo Unitário (R$) - (B) | I11: Custo Total (Com Desconto) | J11: Preço Unitário (R$) com BDI (%) | K11: Preço Total (R$) C = (AxB) | M11: SETOP | N11: 2025-10-01
B12: 1. | C12: Sistema Hidráulico | K12: =SUM(K13,K22,K25,K41,K46,K59,K64,K67,K71) -> 24517.11 | M12: CPOS | N12: 2026-01-01
B13: 1.1. | C13: Linha Lateral - Emissores | K13: =SUM(K14:K21) -> 7747 | M13: SEDOP | N13: 2025-10-01
B14: 1.1.1. | C14: TUBO PEBD DI 16 mm PN30 | D14: m | E14: 2500 | F14: COT | G14: COT01 | H14: =TRUNC((1-$L$7)*('COT 30'!L37),2) -> 1.32 | I14: =H14*E14 -> 3300 | J14: =H14*(1+$L$5) -> 1.49 | K14: =TRUNC(E14*J14,2) -> 3725 | M14: SINAPI | N14: 2026-01-01
B15: 1.1.2. | C15: MICROASPERSOR 75 LPH | D15: und | E15: 500 | F15: COT | G15: COT09 | H15: =TRUNC((1-$L$7)*('COT 38'!L37),2) -> 2.91 | I15: 1455 | J15: 3.27 | K15: 1635 | M15: EMOP | N15: 2026-01-04
B16: 1.1.3. | C16: MICROTUBO COM CONECTOR 4/6 X 80 cm | D16: und | E16: 500 | F16: COT | G16: COT10 | H16: =TRUNC((1-$L$7)*('COT 39'!L37),2) -> 2.19 | I16: 1095 | J16: 2.46 | K16: 1230
B17: 1.1.4. | C17: HASTE PLÁSTICA PARA MICROASPERSÃO - 60 cm | D17: und | E17: 500 | F17: COT | G17: COT11 | H17: =TRUNC((1-$L$7)*('COT 40'!L37),2) -> 1.62 | I17: 810 | J17: 1.82 | K17: 910
B18: 1.1.5. | C18: CONECTOR INICIAL 16 mm | D18: und | E18: 50 | F18: ORSE | G18: 9550 | H18: =TRUNC((1-$L$7)*(VLOOKUP(G18,'OUTROS BANCOS 127V'!$C$2:$E$77,3,FALSE)),2) -> 0.96 | I18: 48 | J18: 1.08 | K18: 54
B19: 1.1.6. | C19: ANEL DE VEDAÇÃO COM CHULA 13/17 | D19: und | E19: 50 | F19: SEINFRA | G19: I9557 | H19: =TRUNC((1-$L$7)*(VLOOKUP(G19,'OUTROS BANCOS 127V'!$C$2:$E$77,3,FALSE)),2) -> 0.87 | I19: 43.5 | J19: 0.98 | K19: 49
B20: 1.1.5. | C20: CONECTOR UNIÃO COM ANEL 16 mm | D20: und | E20: 100 | F20: EMBASA | G20: M019000003 | H20: =TRUNC((1-$L$7)*(VLOOKUP(G20,'OUTROS BANCOS 127V'!$C$2:$E$77,3,FALSE)),2) -> 0.77 | I20: 77 | J20: 0.87 | K20: 87
B21: 1.1.6. | C21: CONECTOR FINAL DE LINHA TIPO 8 16 mm | D21: und | E21: 50 | F21: SEINFRA | G21: I9775 | H21: =TRUNC((1-$L$7)*(VLOOKUP(G21,'[3]OUTROS BANCOS'!$E$2:$G$95,3,0)),2) -> 1.01 | I21: 50.5 | J21: 1.14 | K21: 57
B22: 1.2. | C22: Tubulação - PVC | K22: =SUM(K23:K24) -> 5082
B23: 1.2.1 | C23: TUBO IRRIG. PB DN50 PN40 | D23: m | E23: =26*6 -> 156 | F23: ORSE | G23: 8369 | H23: =TRUNC((1-$L$7)*(VLOOKUP(G23,'OUTROS BANCOS 127V'!$C$2:$E$77,3,FALSE)),2) -> 13.88 | I23: =H23*E23 -> 2165.28 | J23: =H23*(1+$L$5) -> 15.62 | K23: =TRUNC(E23*J23,2) -> 2436.72
B24: 1.2.2 | C24: TUBO IRRIG. PB DN75 PN40 | D24: m | E24: =24*6 -> 144 | F24: COT | G24: COT17 | H24: =TRUNC((1-$L$7)*('COT 46'!$L$37/6),2) -> 16.33 | I24: =H24*E24 -> 2351.52 | J24: =H24*(1+$L$5) -> 18.37 | K24: =TRUNC(E24*J24,2) -> 2645.28
B25: 1.3. | C25: Controle de Proteção e Comando | K25: =SUM(K26:K40) -> 1935.65
B26: 1.3.1. | C26: REGISTRO ESFERA SOLD. 50 mm | D26: und | E26: 3 | F26: SINAPI | G26: 11677 | H26: =TRUNC((1-$L$7)*(VLOOKUP(G26,'INSUMO SINAPI 127V'!$A:$D,4,FALSE)),2) -> 44.84 | I26: =H26*E26 -> 134.52 | J26: =H26*(1+$L$5) -> 50.45 | K26: =TRUNC(E26*J26,2) -> 151.35
B27: 1.3.2. | C27: VÁLVULA ANTIVÁCUO 1/2" | D27: und | E27: 3 | F27: COT | G27: COT03 | H27: =TRUNC((1-$L$7)*('COT 32'!L37),2) -> 12.43 | I27: 37.29 | J27: 13.98 | K27: 41.94
B28: 1.3.3. | C28: VÁLVULA VENTOSA TRÍPLICE FUNÇÃO 2" | D28: und | E28: 1 | F28: COT | G28: COT04 | H28: =TRUNC((1-$L$7)*('COT 33'!L37),2) -> 669.1 | I28: 669.1 | J28: 752.74 | K28: 752.74
B29: 1.3.4. | C29: TUBO IRRIG. PB DN50 PN80 | D29: m | E29: =2*6 -> 12 | F29: ORSE | G29: 14068 | H29: =TRUNC((1-$L$7)*(VLOOKUP(G29,'OUTROS BANCOS 127V'!$C$2:$E$77,3,FALSE)),2) -> 9.74 | I29: 116.88 | J29: 10.96 | K29: 131.52
B30: 1.3.5. | C30: REDUÇÃO PVC PB 75 mm X 50 mm | D30: und | E30: 1 | F30: SCO | G30: MAT118400 | H30: =TRUNC((1-$L$7)*(VLOOKUP(G30,'OUTROS BANCOS 127V'!$C$2:$E$77,3,FALSE)),2) -> 11.1 | I30: 11.1 | J30: 12.49 | K30: 12.49
B31: 1.3.6. | C31: CURVA PVC 90° PB 50 mm | D31: und | E31: 4 | F31: SINAPI | G31: 1845 | H31: =TRUNC((1-$L$7)*(VLOOKUP(G31,'INSUMO SINAPI 127V'!$A:$D,4,FALSE)),2) -> 36.64 | I31: 146.56 | J31: 41.22 | K31: 164.88
B32: 1.3.7. | C32: TÊ PVC 50 mm | D32: und | E32: 3 | F32: ORSE | G32: 2113 | H32: =TRUNC((1-$L$7)*(VLOOKUP(G32,'OUTROS BANCOS 127V'!$C$2:$E$77,3,FALSE)),2) -> 9.68 | I32: 29.04 | J32: 10.89 | K32: 32.67
B33: 1.3.8. | C33: ADAPTADOR BS X RM 50 X 2" | D33: und | E33: 1 | F33: ORSE | G33: 14060 | H33: =TRUNC((1-$L$7)*(VLOOKUP(G33,'OUTROS BANCOS 127V'!$C$2:$E$77,3,FALSE)),2) -> 4.23 | I33: 4.23 | J33: 4.76 | K33: 4.76
B34: 1.3.9. | C34: LUVA PVC BR 2" | D34: und | E34: 1 | F34: ORSE | G34: 1434 | H34: =TRUNC((1-$L$7)*(VLOOKUP(G34,'OUTROS BANCOS 127V'!$C$2:$E$77,3,FALSE)),2) -> 28.58 | I34: 28.58 | J34: 32.15 | K34: 32.15
B35: 1.3.10. | C35: COLAR DE TOMADA 50 X 1/2" | D35: und | E35: 3 | F35: COT | G35: COT05 | H35: =TRUNC((1-$L$7)*('COT 34'!L37),2) -> 19.49 | I35: 58.47 | J35: 21.93 | K35: 65.79
B36: 1.3.11 | C36: REGISTRO DE GAVETA 2" | D36: und | E36: 1 | F36: COT | G36: COT23 | H36: =TRUNC((1-$L$7)*('COT 52'!L37),2) -> 150.45 | I36: 150.45 | J36: 169.26 | K36: 169.26
B37: 1.3.12 | C37: MANÔMETRO DE GLICERINA DE ATÉ 6kgf/cm² ROSCA DE 1/4 " | D37: und | E37: 2 | F37: COT | G37: COT24 | H37: =TRUNC((1-$L$7)*('COT 53'!L37),2) -> 121.7 | I37: 243.4 | J37: 136.91 | K37: 273.82
B38: 1.3.13 | C38: BUCHA DE REDUÇÃO DE 3/4" PARA 1/4" | D38: und | E38: 2 | F38: COT | G38: COT25 | H38: =TRUNC((1-$L$7)*('COT 54'!L37),2) -> 22.59 | I38: 45.18 | J38: 25.41 | K38: 50.82
B39: 1.3.14 | C39: ADAPTADOR DE REDUÇÃO Bsa SOLD. 50 mm X 1 1/2" | D39: und | E39: 2 | F39: COT | G39: COT26 | H39: =TRUNC((1-$L$7)*('COT 55'!L37),2) -> 8.36 | I39: 16.72 | J39: 9.41 | K39: 18.82
B40: 1.3.15 | C40: TE DE REDUÇÃO ROSCA 50 mm X 3/4" | D40: und | E40: 2 | F40: COT | G40: COT27 | H40: =TRUNC((1-$L$7)*('COT 56'!L37),2) -> 14.51 | I40: 29.02 | J40: 16.32 | K40: 32.64
B41: 1.4. | C41: Conexões de Campo | K41: =SUM(K42:K45) -> 436.93
B42: 1.4.1. | C42: REGISTRO ESFERA PVC 50 mm | D42: und | E42: 4 | F42: SINAPI | G42: 11677 | H42: =TRUNC((1-$L$7)*(VLOOKUP(G42,'INSUMO SINAPI 127V'!$A:$D,4,FALSE)),2) -> 44.84 | I42: =H42*E42 -> 179.36 | J42: =H42*(1+$L$5) -> 50.45 | K42: =TRUNC(E42*J42,2) -> 201.8
B43: 1.4.2. | C43: CURVA PVC 45° PB 50 mm | D43: und | E43: 4 | F43: SINAPI | G43: 1831 | H43: =TRUNC((1-$L$7)*(VLOOKUP(G43,'INSUMO SINAPI 127V'!$A:$D,4,FALSE)),2) -> 29.24 | I43: =H43*E43 -> 116.96 | J43: =H43*(1+$L$5) -> 32.9 | K43: =TRUNC(E43*J43,2) -> 131.6
B44: 1.4.3. | C44: CURVA PVC 90° PB 50 mm | D44: und | E44: 2 | F44: SINAPI | G44: 1845 | H44: =TRUNC((1-$L$7)*(VLOOKUP(G44,'INSUMO SINAPI 127V'!$A:$D,4,FALSE)),2) -> 36.64 | I44: =H44*E44 -> 73.28 | J44: =H44*(1+$L$5) -> 41.22 | K44: =TRUNC(E44*J44,2) -> 82.44
B45: 1.4.4. | C45: TÊ PVC 75 mm | D45: und | E45: 1 | F45: ORSE | G45: 2145 | H45: =TRUNC((1-$L$7)*(VLOOKUP(G45,'OUTROS BANCOS 127V'!$C$2:$E$77,3,FALSE)),2) -> 18.75 | I45: =H45*E45 -> 18.75 | J45: =H45*(1+$L$5) -> 21.09 | K45: =TRUNC(E45*J45,2) -> 21.09
B46: 1.5. | C46: Filtragem e Ligação de Pressão | K46: =SUM(K47:K58) -> 5745.54
B47: 1.5.1. | C47: MOTOBOMBA SUBMERSA 3HP 12m³/h + 43mca | D47: und | E47: 1 | F47: COT | G47: COT06 | H47: =TRUNC((1-$L$7)*('COT 35'!L37),2) -> 1714.01 | I47: =H47*E47 -> 1714.01 | J47: =H47*(1+$L$5) -> 1928.26 | K47: =TRUNC(E47*J47,2) -> 1928.26
B48: 1.5.2. | C48: NIPLE PVC BR 2" | D48: und | E48: 1 | F48: SBC | G48: 5719 | H48: =TRUNC((1-$L$7)*(VLOOKUP(G48,'OUTROS BANCOS 127V'!$C$2:$E$77,3,FALSE)),2) -> 32.23 | I48: 32.23 | J48: 36.26 | K48: 36.26
B49: 1.5.3. | C49: UNIÃO PVC BR 2" | D49: und | E49: 1 | F49: ORSE | G49: 2365 | H49: =TRUNC((1-$L$7)*(VLOOKUP(G49,'OUTROS BANCOS 127V'!$C$2:$E$77,3,FALSE)),2) -> 54.89 | I49: 54.89 | J49: 61.75 | K49: 61.75
B50: 1.5.4. | C50: ADAPTADOR COMPRESSÃO X ROSCA MACHO 2" | D50: und | E50: 2 | F50: EMBASA | G50: M080800108 | H50: =TRUNC((1-$L$7)*(VLOOKUP(G50,'OUTROS BANCOS 127V'!$C$2:$E$77,3,FALSE)),2) -> 49.34 | I50: 98.68 | J50: 55.51 | K50: 111.02
B51: 1.5.5. | C51: TUBO PEMD 2" PN60 | D51: m | E51: 15 | F51: COT | G51: COT07 | H51: =TRUNC((1-$L$7)*('COT 36'!L37),2) -> 19.18 | I51: 287.7 | J51: 21.58 | K51: 323.7
B52: 1.5.6. | C52: BUCHA DE REDUÇÃO 3X2" | D52: und | E52: 1 | F52: SBC | G52: 8784 | H52: =TRUNC((1-$L$7)*(VLOOKUP(G52,'OUTROS BANCOS 127V'!$C$2:$E$77,3,FALSE)),2) -> 94 | I52: 94 | J52: 105.75 | K52: 105.75
B53: 1.5.7. | C53: UNIÃO PVC BR 3" | D53: und | E53: 2 | F53: SEINFRA | G53: I2242 | H53: =TRUNC((1-$L$7)*(VLOOKUP(G53,'OUTROS BANCOS 127V'!$C$2:$E$77,3,FALSE)),2) -> 229.21 | I53: 458.42 | J53: 257.86 | K53: 515.72
B54: 1.5.8. | C54: ADAPTADOR BSXRM 75X3" | D54: und | E54: 3 | F54: ORSE | G54: 14059 | H54: =TRUNC((1-$L$7)*(VLOOKUP(G54,'OUTROS BANCOS 127V'!$C$2:$E$77,3,FALSE)),2) -> 8.5 | I54: 25.5 | J54: 9.56 | K54: 28.68
B55: 1.5.9. | C55: TUBO IRRIG. PB DN75 PN80 | D55: m | E55: =2*6 -> 12 | F55: ORSE | G55: 9502 | H55: =TRUNC((1-$L$7)*(VLOOKUP(G55,'OUTROS BANCOS 127V'!$C$2:$E$77,3,FALSE)),2) -> 40.52 | I55: 486.24 | J55: 45.59 | K55: 547.08
B56: 1.5.10. | C56: CURVA PVC 90° PB 75 MM | D56: und | E56: 6 | F56: SINAPI | G56: 1824 | H56: =TRUNC((1-$L$7)*(VLOOKUP(G56,'INSUMO SINAPI 127V'!$A:$D,4,FALSE)),2) -> 86.5 | I56: 519 | J56: 97.31 | K56: 583.86
B57: 1.5.11. | C57: REGISTRO ESFERA 3" | D57: und | E57: 2 | F57: ORSE | G57: 2604 | H57: =TRUNC((1-$L$7)*(VLOOKUP(G57,'OUTROS BANCOS 127V'!$C$2:$E$77,3,FALSE)),2) -> 109.45 | I57: 218.9 | J57: 123.13 | K57: 246.26
B58: 1.5.12. | C58: FILTRO DE DISCO 3" - 25M³/H | D58: und | E58: 1 | F58: COT | G58: COT08 | H58: =TRUNC((1-$L$7)*('COT 37'!L37),2) -> 1117.51 | I58: 1117.51 | J58: 1257.2 | K58: 1257.2
B59: 1.6. | C59: Materias de Consumo | K59: =SUM(K60:K63) -> 286.43
B60: 1.6.1. | C60: ADESIVO PLÁSTICO 850G | D60: und | E60: 2 | F60: EMOP | G60: 5102 | H60: =TRUNC((1-$L$7)*(VLOOKUP(G60,'OUTROS BANCOS 127V'!$C$2:$E$77,3,FALSE)),2) -> 54.85 | I60: =H60*E60 -> 109.7 | J60: =H60*(1+$L$5) -> 61.71 | K60: =TRUNC(E60*J60,2) -> 123.42
B61: 1.6.2. | C61: FITA VEDA ROSCA 18MM X 50 M | D61: und | E61: 1 | F61: SINAPI | G61: 3148 | H61: =TRUNC((1-$L$7)*(VLOOKUP(G61,'INSUMO SINAPI 127V'!$A:$D,4,FALSE)),2) -> 14.56 | I61: =H61*E61 -> 14.56 | J61: =H61*(1+$L$5) -> 16.38 | K61: =TRUNC(E61*J61,2) -> 16.38
B62: 1.6.3. | C62: FITA ISOLANTE 18MM X 20M | D62: und | E62: 1 | F62: SBC | G62: 36795 | H62: =TRUNC((1-$L$7)*(VLOOKUP(G62,'OUTROS BANCOS 127V'!$C$2:$E$77,3,FALSE)),2) -> 1 | I62: =H62*E62 -> 1 | J62: =H62*(1+$L$5) -> 1.13 | K62: =TRUNC(E62*J62,2) -> 1.13
B63: 1.6.4. | C63: FOLHA DE LIXA N100 | D63: und | E63: 50 | F63: SINAPI | G63: 38383 | H63: =TRUNC((1-$L$7)*(VLOOKUP(G63,'INSUMO SINAPI 127V'!$A:$D,4,FALSE)),2) -> 2.59 | I63: =H63*E63 -> 129.5 | J63: =H63*(1+$L$5) -> 2.91 | K63: =TRUNC(E63*J63,2) -> 145.5
B64: 1.7. | C64: Elaboração do Layout do Sistema Hidráulico | K64: =SUM(K65:K66) -> 1290.6
B65: 1.7.1. | C65: Mão-de-obra de Projetista Cadista Pleno - Projeto e Consultoria, inclusive Encargos Sociais | D65: h | E65: 4 | F65: EMOP | G65: 10984 | H65: =TRUNC((1-$L$7)*(VLOOKUP(G65,'OUTROS BANCOS 127V'!$C$2:$E$77,3,FALSE)),2) -> 75.3 | I65: =H65*E65 -> 301.2 | J65: =H65*(1+$L$4) -> 94.09 | K65: =TRUNC(E65*J65,2) -> 376.36
B66: 1.7.2. | C66: Mão-de-obra de Engenheiro Pleno, inclusive com encargos sociais | D66: h | E66: 4 | F66: EMOP | G66: 14610 | H66: =TRUNC((1-$L$7)*(VLOOKUP(G66,'OUTROS BANCOS 127V'!$C$2:$E$77,3,FALSE)),2) -> 182.91 | I66: =H66*E66 -> 731.64 | J66: =H66*(1+$L$4) -> 228.56 | K66: =TRUNC(E66*J66,2) -> 914.24
B67: 1.8. | C67: Montagem do Sistema Hidráulico | K67: =SUM(K68:K69) -> 1524.48
B68: 1.8.1. | C68: Encanador ou bombeiro hidráulico com encargos complementares (01 encanador ou bombeiro hidráulico em jornada de trabalho de 8 h por dia) | D68: h | E68: 24 | F68: AGESUL | G68: 4005 | H68: =TRUNC((1-$L$7)*(VLOOKUP(G68,'OUTROS BANCOS 127V'!$C$2:$E$77,3,FALSE)),2) -> 27.84 | I68: =H68*E68 -> 668.16 | J68: =H68*(1+$L$4) -> 34.79 | K68: =TRUNC(E68*J68,2) -> 834.96
B69: 1.8.2. | C69: Auxiliar de encanador ou bombeiro hidráulico com encargos complementares (02 auxiliares de encanador ou bombeiro hidráulico em jornada de trabalho de 8 h por dia) | D69: h | E69: 24 | F69: AGESUL | G69: 4052 | H69: =TRUNC((1-$L$7)*(VLOOKUP(G69,'OUTROS BANCOS 127V'!$C$2:$E$77,3,FALSE)),2) -> 22.99 | I69: =H69*E69 -> 551.76 | J69: =H69*(1+$L$4) -> 28.73 | K69: =TRUNC(E69*J69,2) -> 689.52
B70: 1.9 | C70: Preparo mecanizado de solo | K70: =K71 -> 468.48
B71: 1.9.1 | C71: ARACÃO DO SOLO A 20CM DE PROFUNDIDADE COM TRATOR DE PNEUS E ARADO DE DISCO | D71: ha | E71: 1 | F71: EMOP/COMPOSIÇÃO | G71: 22.016.0025-A | H71: =TRUNC(((1-$L$7)*374.9),2) -> 374.9 | I71: =H71*E71 -> 374.9 | J71: =H71*(1+$L$4) -> 468.48 | K71: =TRUNC(E71*J71,2) -> 468.48
B72: 2 | C72: Sistema Elétrico | K72: =SUM(K73,K84,K127,K112,K120,K131) -> 12700.36
B73: 2.1 | C73: Rede de Distribuição - Fonte até o Quadro de Comando | K73: =SUM(K74:K83) -> 7059.54
B74: 2.1.1 | C74: Poste de madeira eucalipto preservado, diâmetro de 20cm, 7 metros | D74: Unidade | E74: 5 | F74: SBC | G74: 46336 | H74: =TRUNC((1-$L$7)*(VLOOKUP(G74,'OUTROS BANCOS 127V'!$C$2:$E$77,3,FALSE)),2) -> 95.07 | I74: =H74*E74 -> 475.35 | J74: =H74*(1+$L$5) -> 106.95 | K74: =TRUNC(E74*J74,2) -> 534.75
B75: 2.1.2 | C75: Isolador Porcelana Tipo Roldana 80x80 mm p/ 2 cabos, marrom | D75: Unidade | E75: 5 | F75: IOPES | G75: 48342 | H75: =TRUNC((1-$L$7)*(VLOOKUP(G75,'OUTROS BANCOS 127V'!$C$2:$E$77,3,FALSE)),2) -> 10.95 | I75: 54.75 | J75: 12.32 | K75: 61.6
B76: 2.1.3 | C76: Suporte Isolador c/ Roldana p/ aparafusar c/ chapa | D76: Unidade | E76: 5 | F76: SETOP | G76: MATED-12988 | H76: =TRUNC((1-$L$7)*(VLOOKUP(G76,'OUTROS BANCOS 127V'!$C$2:$E$77,3,FALSE)),2) -> 18.18 | I76: 90.9 | J76: 20.45 | K76: 102.25
B77: 2.1.4 | C77: Cinta aço galvanizado para poste DT 240mm, inclui parafusos | D77: Unidade | E77: 5 | F77: ORSE | G77: 4628 | H77: =TRUNC((1-$L$7)*(VLOOKUP(G77,'OUTROS BANCOS 127V'!$C$2:$E$77,3,FALSE)),2) -> 15.22 | I77: 76.1 | J77: 17.12 | K77: 85.6
B78: 2.1.5 | C78: Alça preformada para islador roldana, seção conforme condutores instalados | D78: Unidade | E78: 5 | F78: COT | G78: COT13 | H78: =TRUNC((1-$L$7)*('COT 42'!L37),2) -> 14.01 | I78: 70.05 | J78: 15.76 | K78: 78.8
B79: 2.1.6 | C79: Cabo de cobre isolado HEPR (XLPE), 25mm², 1kv / 90º C (cor conforme a aplicação) apropriado para redes aéreas | D79: Metro | E79: 200 | F79: ORSE | G79: 3814 | H79: =TRUNC((1-$L$7)*(VLOOKUP(G79,'OUTROS BANCOS 127V'!$C$2:$E$77,3,FALSE)),2) -> 26.73 | I79: 5346 | J79: 30.07 | K79: 6014
B80: 2.1.7 | C80: Cabeçote p/ Eletroduto de 1.1/4" | D80: Unidade | E80: 1 | F80: SINAPI | G80: 1099 | H80: =TRUNC((1-$L$7)*(VLOOKUP(G80,'INSUMO SINAPI 127V'!$A:$D,4,FALSE)),2) -> 7.95 | I80: 7.95 | J80: 8.94 | K80: 8.94
B81: 2.1.8 | C81: Eletroduto em aço galvanizado 1.1/4" | D81: Unidade | E81: 1 | F81: SCO | G81: MAT050850 | H81: =TRUNC((1-$L$7)*(VLOOKUP(G81,'OUTROS BANCOS 127V'!$C$2:$E$77,3,FALSE)),2) -> 131.83 | I81: 131.83 | J81: 148.31 | K81: 148.31
B82: 2.1.9 | C82: Conector reto com arruela para eletroduto 1.1/4" | D82: Unidade | E82: 1 | F82: SINAPI | G82: 2526 | H82: =TRUNC((1-$L$7)*(VLOOKUP(G82,'INSUMO SINAPI 127V'!$A:$D,4,FALSE)),2) -> 6.29 | I82: 6.29 | J82: 7.08 | K82: 7.08
B83: 2.1.10 | C83: Curva 90º aço galvanizado 1.1/4" | D83: Unidade | E83: 1 | F83: SINAPI | G83: 2618 | H83: =TRUNC((1-$L$7)*(VLOOKUP(G83,'INSUMO SINAPI 127V'!$A:$D,4,FALSE)),2) -> 16.19 | I83: 16.19 | J83: 18.21 | K83: 18.21
B84: 2.2 | C84: Quadro de Comando | K84: =SUM(K85:K111) -> 2302.53
B85: 2.2.1 | C85: Quadro elétrico metálico com placa de montagem, grau de proteção mínimo IP54, dimensões mínimas 400x300x200 mm | D85: Unidade | E85: 1 | F85: SBC | G85: 53375 | H85: =TRUNC((1-$L$7)*(VLOOKUP(G85,'OUTROS BANCOS 127V'!$C$2:$E$77,3,FALSE)),2) -> 355.25 | I85: =H85*E85 -> 355.25 | J85: =H85*(1+$L$5) -> 399.66 | K85: =TRUNC(E85*J85,2) -> 399.66
B86: 2.2.2 | C86: Canaleta para quadro 30 x 50 mm, fabricada em PVC, tipo semi-aberta. | D86: Metro | E86: 0.4 | F86: SETOP | G86: MATED-17646 | H86: =TRUNC((1-$L$7)*(VLOOKUP(G86,'OUTROS BANCOS 127V'!$C$2:$E$77,3,FALSE)),2) -> 15.38 | I86: 6.15 | J86: 17.3 | K86: 6.92
B87: 2.2.3 | C87: Canaleta para quadro 50 x 50 mm, fabricada em PVC, tipo semi-aberta. | D87: Metro | E87: 0.3 | F87: SETOP | G87: MATED-17647 | H87: =TRUNC((1-$L$7)*(VLOOKUP(G87,'OUTROS BANCOS 127V'!$C$2:$E$77,3,FALSE)),2) -> 20.58 | I87: 6.17 | J87: 23.15 | K87: 6.94
B88: 2.2.4 | C88: Trilho DIN 35 mm | D88: Metro | E88: 0.4 | F88: SEINFRA | G88: I7410 | H88: =TRUNC((1-$L$7)*(VLOOKUP(G88,'OUTROS BANCOS 127V'!$C$2:$E$77,3,FALSE)),2) -> 11.56 | I88: 4.62 | J88: 13.01 | K88: 5.2
B89: 2.2.5 | C89: Conector (terminal isolado) para barramento isolado, conexão reta ou lateral, até 25 mm² | D89: Unidade | E89: 2 | F89: COT | G89: COT19 | H89: =TRUNC((1-$L$7)*('COT 48'!L37),2) -> 8.23 | I89: 16.46 | J89: 9.26 | K89: 18.52
B90: 2.2.6 | C90: Barramento monofásico isolado (barramento pente), horizontal, fabricado em cobre, até 63 A, acompanhado de tampas finais, 8 polos | D90: Unidade | E90: 1 | F90: SBC | G90: 10562 | H90: =TRUNC((1-$L$7)*(VLOOKUP(G90,'OUTROS BANCOS 127V'!$C$2:$E$77,3,FALSE)),2) -> 22.06 | I90: 22.06 | J90: 24.82 | K90: 24.82
B91: 2.2.7 | C91: Interruptor diferencial residual bipolar de 40A, corrente residual de 30 mA, tensão de operação conforme aplicação, corrente de curto circuito de 3 kA | D91: Unidade | E91: 1 | F91: SINAPI | G91: 39446 | H91: =TRUNC((1-$L$7)*226.28) -> 226 | I91: 226 | J91: 254.25 | K91: 254.25
B92: 2.2.8 | C92: Dispositivo de Proteção Contra Surtos Classe II, 20 kA (Imáx), tensão de operação compatível com a aplicação, nível de proeção (Up) 1,4 kV | D92: Unidade | E92: 1 | F92: SINAPI | G92: 39469 | H92: =TRUNC((1-$L$7)*(VLOOKUP(G92,'INSUMO SINAPI 127V'!$A:$D,4,FALSE)),2) -> 69.47 | I92: 69.47 | J92: 78.15 | K92: 78.15
B93: 2.2.9 | C93: Disjuntor monopolar para trilho DIN (mini disjuntor) para correntes de 40A, curva C, 60 Hz, capacidade de interrupção em curto-circuito 3 kA ou superior | D93: Unidade | E93: 1 | F93: SINAPI | G93: 00034686 | H93: =TRUNC((1-$L$7)*21.41) -> 21 | I93: 21 | J93: 23.63 | K93: 23.63
B94: 2.2.10 | C94: Disjuntor monopolar para trilho DIN (mini disjuntor) para correntes de 40A, curva C, 60 Hz, capacidade de interrupção em curto-circuito 3 kA ou superior | D94: Unidade | E94: 1 | F94: SINAPI | G94: 00034686 | H94: =TRUNC((1-$L$7)*21.41) -> 21 | I94: 21 | J94: 23.63 | K94: 23.63
B95: 2.2.11 | C95: Disjuntor monopolar para trilho DIN (mini disjuntor) para correntes de 2A, curva C, 60 Hz, capacidade de interrupção em curto-circuito 3 kA ou superior | D95: Unidade | E95: 1 | F95: IOPES | G95: 44951 | H95: =TRUNC((1-$L$7)*(VLOOKUP(G95,'OUTROS BANCOS 127V'!$C$2:$E$77,3,FALSE)),2) -> 31.32 | I95: 31.32 | J95: 35.24 | K95: 35.24
B96: 2.2.12 | C96: Minicontator, com capacidade de corrente até 40A (em regime AC-3), contato auxiliar integrado e bobina em corrente alternada (tensão conforme a aplicação) | D96: Unidade | E96: 1 | F96: AGETOP CIVIL | G96: 3756 | H96: =TRUNC((1-$L$7)*(VLOOKUP(G96,'OUTROS BANCOS 127V'!$C$2:$E$77,3,FALSE)),2) -> 262.72 | I96: 262.72 | J96: 295.56 | K96: 295.56
B97: 2.2.13 | C97: Relé de sobrecarga para minicontator ajustável até 40A, conforme aplicação, com montagem direta nos contatores | D97: Unidade | E97: 1 | F97: COT | G97: COT 29 | H97: =TRUNC((1-$L$7)*('COT 57'!$L$37),2) -> 277.59 | I97: 277.59 | J97: 312.29 | K97: 312.29
B98: 2.2.14 | C98: Relé eletrônico/digital monitor de tensão monofásico, com funcionalidade de subtensão e sobretensão, ajustes através de trimpot no relé, LED indicativo de funcionamento, tensão conforme aplicação, 60 Hz, com 1 contato reversível | D98: Unidade | E98: 1 | F98: COT | G98: COT15 | H98: =TRUNC((1-$L$7)*('COT 44'!L37),2) -> 197.31 | I98: 197.31 | J98: 221.97 | K98: 221.97
B99: 2.2.15 | C99: Relé temporizador, alimentação 220V, 1 saída a relé, com função de pulso na energização, ajustável de 1 segundo a 100 horas, ajuste por trimpots no relé | D99: Unidade | E99: 1 | F99: COT | G99: COT20 | H99: =TRUNC((1-$L$7)*('COT 49'!L37),2) -> 201.71 | I99: 201.71 | J99: 226.92 | K99: 226.92
B100: 2.2.16 | C100: Barramento de neutro, na cor azul, para fixação em trilho DIN, fabricado em cobre, com furos e parafusos para fixação, ao menos um furo para o alimentador (até 25 mm²), pré isolado, 10 furos. | D100: Unidade | E100: 1 | F100: COT | G100: COT21 | H100: =TRUNC((1-$L$7)*('COT 50'!$L$37),2) -> 53.95 | I100: 53.95 | J100: 60.69 | K100: 60.69
B101: 2.2.17 | C101: Barramento de terra, na cor verde, para fixação em trilho DIN, fabricado em cobre, com furos e parafusos para fixação, ao menos um furo para o alimentador (até 25 mm²), pré isolado, 10 furos. | D101: Unidade | E101: 1 | F101: COT | G101: COT22 | H101: =TRUNC((1-$L$7)*('COT 51'!L37),2) -> 52.09 | I101: 52.09 | J101: 58.6 | K101: 58.6
B102: 2.2.18 | C102: Botão de emergência tipo cogumelo, com trava e retorno com mola, para furos 22mm, 1 NF, tensão conforme aplicação, vermelho | D102: Unidade | E102: 1 | F102: CPOS | G102: P.13.000.042461 | H102: =TRUNC((1-$L$7)*(VLOOKUP(G102,'OUTROS BANCOS 127V'!$C$2:$E$77,3,FALSE)),2) -> 37.72 | I102: 37.72 | J102: 42.44 | K102: 42.44
B103: 2.2.19 | C103: Chave seletora de 3 posições para furos 22mm, 2 NA, completa, tensão conforme aplicação | D103: Unidade | E103: 1 | F103: SETOP | G103: MATED-19494 | H103: =TRUNC((1-$L$7)*(VLOOKUP(G103,'OUTROS BANCOS 127V'!$C$2:$E$77,3,FALSE)),2) -> 18.4 | I103: 18.4 | J103: 20.7 | K103: 20.7
B104: 2.2.20 | C104: Sinalizador luminoso para furos de 22 mm, iluminação LED, vermelho, tensão conforme aplicação | D104: Unidade | E104: 1 | F104: ORSE | G104: 12379 | H104: =TRUNC((1-$L$7)*(VLOOKUP(G104,'OUTROS BANCOS 127V'!$C$2:$E$77,3,FALSE)),2) -> 18.32 | I104: 18.32 | J104: 20.61 | K104: 20.61
B105: 2.2.21 | C105: Policarbonato compacto, incolor (transparente/cristal), livre de rebarbas, espessura mínima de 3 mm | D105: Metro² | E105: 0.24 | F105: SBC | G105: 28100 | H105: =TRUNC((1-$L$7)*(VLOOKUP(G105,'OUTROS BANCOS 127V'!$C$2:$E$77,3,FALSE)),2) -> 159 | I105: 38.16 | J105: 178.88 | K105: 42.93
B106: 2.2.22 | C106: Barra roscada 1/4", acabamento zincado | D106: Metro | E106: 1 | F106: ORSE | G106: 7551 | H106: =TRUNC((1-$L$7)*(VLOOKUP(G106,'OUTROS BANCOS 127V'!$C$2:$E$77,3,FALSE)),2) -> 4.73 | I106: 4.73 | J106: 5.32 | K106: 5.32
B107: 2.2.23 | C107: Porca sextavada zincada, 1/4" | D107: Unidade | E107: 8 | F107: SINAPI | G107: 39997 | H107: =TRUNC((1-$L$7)*(VLOOKUP(G107,'INSUMO SINAPI 127V'!$A:$D,4,FALSE)),2) -> 0.28 | I107: 2.24 | J107: 0.32 | K107: 2.56
B108: 2.2.24 | C108: Arruela zincada, 1/4" | D108: Unidade | E108: 8 | F108: ORSE | G108: 8347 | H108: =TRUNC((1-$L$7)*(VLOOKUP(G108,'OUTROS BANCOS 127V'!$C$2:$E$77,3,FALSE)),2) -> 0.05 | I108: 0.4 | J108: 0.06 | K108: 0.48
B109: 2.2.25 | C109: Placa de identificação (plaqueta de identificação) fabricada em ABS ou acrílico para painéis elétricos (30 X 15 mm), fixação por adesivo, resistente ao tempo (Escrita Personalizada) | D109: Unidade | E109: 10 | F109: COT | G109: COT16 | H109: =TRUNC((1-$L$7)*('COT 45'!$L$37),2) -> 9.68 | I109: 96.8 | J109: 10.89 | K109: 108.9
B110: 2.2.26 | C110: Terminal a compressão, tipo pino ou garfo, 2,5 mm³ | D110: Unidade | E110: 30 | F110: SEINFRA | G110: I10080 | H110: =TRUNC((1-$L$7)*(VLOOKUP(G110,'OUTROS BANCOS 127V'!$C$2:$E$77,3,FALSE)),2) -> 0.14 | I110: 4.2 | J110: 0.16 | K110: 4.8
B111: 2.2.27 | C111: Abraçadeira de nylon 2,5x100 mm, para organização cabos elétricos | D111: Unidade | E111: 10 | F111: SINAPI | G111: 414 | H111: =TRUNC((1-$L$7)*(VLOOKUP(G111,'INSUMO SINAPI 127V'!$A:$D,4,FALSE)),2) -> 0.07 | I111: 0.7 | J111: 0.08 | K111: 0.8
B112: 2.3 | C112: Sistema de Aterramento | K112: =SUM(K113:K119) -> 1371.18
B113: 2.3.1 | C113: Cordoalha em cobre nu, 50 mm² | D113: Metro | E113: 16 | F113: SINAPI | G113: 867 | H113: =TRUNC((1-$L$7)*(VLOOKUP(G113,'INSUMO SINAPI 127V'!$A:$D,4,FALSE)),2) -> 63.24 | I113: =H113*E113 -> 1011.84 | J113: =H113*(1+$L$5) -> 71.15 | K113: =TRUNC(E113*J113,2) -> 1138.4
B114: 2.3.2 | C114: Conector à compressão para aterramento (CABO-CABO) | D114: Unidade | E114: 2 | F114: SEDOP | G114: E00189 | H114: =TRUNC((1-$L$7)*(VLOOKUP(G114,'OUTROS BANCOS 127V'!$C$2:$E$77,3,FALSE)),2) -> 62.63 | I114: 125.26 | J114: 70.46 | K114: 140.92
B115: 2.3.3 | C115: Curva longa 90º Galvanizada a fogo, 1" | D115: Unidade | E115: 1 | F115: SINAPI | G115: 2617 | H115: =TRUNC((1-$L$7)*(VLOOKUP(G115,'INSUMO SINAPI 127V'!$A:$D,4,FALSE)),2) -> 7.11 | I115: 7.11 | J115: 8 | K115: 8
B116: 2.3.4 | C116: Eletroduto Galvanizado a Fogo, 1" | D116: Metro | E116: 1.5 | F116: SETOP | G116: MATED-12288 | H116: =TRUNC((1-$L$7)*(VLOOKUP(G116,'OUTROS BANCOS 127V'!$C$2:$E$77,3,FALSE)),2) -> 7.5 | I116: 11.25 | J116: 8.44 | K116: 12.66
B117: 2.3.5 | C117: Abraçadeira tipo D, 1" e cunha de fixação | D117: Unidade | E117: 1 | F117: SINAPI | G117: 393 | H117: =TRUNC((1-$L$7)*(VLOOKUP(G117,'INSUMO SINAPI 127V'!$A:$D,4,FALSE)),2) -> 2.46 | I117: 2.46 | J117: 2.77 | K117: 2.77
B118: 2.3.6 | C118: Conector reto com arruela para eletroduto 1" | D118: Unidade | E118: 1 | F118: SINAPI | G118: 2483 | H118: =TRUNC((1-$L$7)*(VLOOKUP(G118,'INSUMO SINAPI 127V'!$A:$D,4,FALSE)),2) -> 4.48 | I118: 4.48 | J118: 5.04 | K118: 5.04
B119: 2.3.7 | C119: Caixa de inspeção para ateramento | D119: Unidade | E119: 1 | F119: SINAPI | G119: 41480 | H119: =TRUNC((1-$L$7)*(VLOOKUP(G119,'INSUMO SINAPI 127V'!$A:$D,4,FALSE)),2) -> 56.35 | I119: 56.35 | J119: 63.39 | K119: 63.39
B120: 2.4 | C120: Alimentação do Motor | K120: =SUM(K121:K126) -> 646.62
B121: 2.4.1 | C121: Cabo de cobre flexível, classe 4 ou 5, isolação em PVC/A, antichama BWF-B, 1 condutor, 450/750V seção de 16 mm² (cor preta, azul ou verde) | D121: Metro | E121: 30 | F121: SINAPI | G121: 979 | H121: =TRUNC((1-$L$7)*(VLOOKUP(G121,'INSUMO SINAPI 127V'!$A:$D,4,FALSE)),2) -> 17.47 | I121: =H121*E121 -> 524.1 | J121: =H121*(1+$L$5) -> 19.65 | K121: =TRUNC(E121*J121,2) -> 589.5
B122: 2.4.2 | C122: Terminal a compressão, tipo pino, 16 mm² | D122: Unidade | E122: 3 | F122: COT | G122: COT14 | H122: =TRUNC((1-$L$7)*('COT 43'!L37),2) -> 1.58 | I122: 4.74 | J122: 1.78 | K122: 5.34
B123: 2.4.3 | C123: Eletroduto corrugado tipo PEAD, 1.1/4" | D123: Metro | E123: 10 | F123: SINAPI | G123: 39247 | H123: =TRUNC((1-$L$7)*(VLOOKUP(G123,'INSUMO SINAPI 127V'!$A:$D,4,FALSE)),2) -> 3.59 | I123: 35.9 | J123: 4.04 | K123: 40.4
B124: 2.4.4 | C124: Caixa de passagem em concreto 30X30X40 cm | D124: Unidade | E124: 1 | F124: SINAPI | G124: 43429 | H124: =TRUNC((1-$L$7)*(VLOOKUP(G124,'INSUMO SINAPI 127V'!$A:$D,4,FALSE)),2) -> 0 | I124: 0 | J124: 0 | K124: 0
B125: 2.4.5 | C125: Conector reto com arruela para eletroduto 1.1/4" | D125: Unidade | E125: 1 | F125: SINAPI | G125: 2526 | H125: =TRUNC((1-$L$7)*(VLOOKUP(G125,'INSUMO SINAPI 127V'!$A:$D,4,FALSE)),2) -> 6.29 | I125: 6.29 | J125: 7.08 | K125: 7.08
B126: 2.4.6 | C126: Abraçadeira tipo D, 1.1/4" e cunha de fixação | D126: Unidade | E126: 1 | F126: SINAPI | G126: 39130 | H126: =TRUNC((1-$L$7)*(VLOOKUP(G126,'INSUMO SINAPI 127V'!$A:$D,4,FALSE)),2) -> 3.82 | I126: 3.82 | J126: 4.3 | K126: 4.3
B127: 2.5 | C127: Montagem do Sistema Elétrico | K127: =SUM(K128:K130) -> 999.2
B128: 2.5.1 | C128: Eletrotécnico (horista), INCLUSIDE ENCARGOS SOCIAIS | D128: h | E128: 8 | F128: EMOP | G128: 1916 | H128: =TRUNC((1-$L$7)*(VLOOKUP(G128,'OUTROS BANCOS 127V'!$C$2:$E$77,3,FALSE)),2) -> 34.86 | I128: =H128*E128 -> 278.88 | J128: =H128*(1+$L$4) -> 43.56 | K128: =TRUNC(E128*J128,2) -> 348.48
B129: 2.5.2 | C129: Auxiliar de Eletricista com encargos complementares | D129: h | E129: 16 | F129: AGESUL | G129: 88247 | H129: =TRUNC((1-$L$7)*(VLOOKUP(G129,'OUTROS BANCOS 127V'!$C$2:$E$77,3,FALSE)),2) -> 23.83 | I129: =H129*E129 -> 381.28 | J129: =H129*(1+$L$4) -> 29.78 | K129: =TRUNC(E129*J129,2) -> 476.48
B130: 2.5.3 | C130: Comissionamento - Eletrotécnico, INCLUSIVE ENCARGOS SOCIAIS | D130: h | E130: 4 | F130: EMOP | G130: 1916 | H130: =TRUNC((1-$L$7)*(VLOOKUP(G130,'OUTROS BANCOS 127V'!$C$2:$E$77,3,FALSE)),2) -> 34.86 | I130: =H130*E130 -> 139.44 | J130: =H130*(1+$L$4) -> 43.56 | K130: =TRUNC(E130*J130,2) -> 174.24
B131: 2.6 | C131: Emissão de ART | K131: =K132 -> 321.29
B132: 2.6.1 | C132: Emissão de ART | D132: um | E132: 1 | F132: PRÓPRIA | G132: CPU1 | H132: =TRUNC((1-$L$7)*('CPU2'!J7),2) -> 285.59 | I132: =H132*E132 -> 285.59 | J132: =H132*(1+$L$5) -> 321.29 | K132: =TRUNC(E132*J132,2) -> 321.29
B133: TOTAL | K133: =SUM(K72,K12) -> 37217.47
K134: 28679.69

Sheet Item 78- MICROASPERSÃO 2,0 HA
K2: BASE | L2: 2026-02-01 | M2: BANCO | N2: DATA
K3: VALOR TOTAL | L3: =K141 -> 50713.34 | M3: ORSE | N3: 2025-12-01
K4: BDI SERVIÇO | L4: 0.2496 | M4: SEINFRA | N4: 27/28
K5: BDI MATERIAL | L5: 0.125 | M5: EMBASA | N5: 2025-06-01
M6: SCO | N6: 2026-01-01
B7: PLANILHA ORÇAMENTÁRIA - MATO GROSSO | K7: DESCONTO | L7: 0 | M7: SBC | N7: 2026-01-01
B8: SERVIÇO DE FORNECIMENTO, TRANSPORTE, CARGA, DESCARGA, MONTAGEM E ADEQUADO FUNCIONAMENTO DE SISTEMA DE IRRIGAÇÃO - MICROASPERSÃO - 2 ha -127 V | M8: AGETOP CIVIL | N8: 2025-10-01
M9: AGESUL | N9: 2026-01-01
M10: IOPES | N10: 2025-12-01
B11: ITEM | C11: DESCRIÇÃO | D11: UNID. | E11: QUANT. - (A) | F11: PESQUISA DE PREÇOS (SIST. REF. / COT) | G11: CÓDIGO | H11: Custo Unitário (R$) - (B) | I11: Custo Total (Com Desconto) | J11: Preço Unitário (R$) com BDI (%) | K11: Preço Total (R$) C = (AxB) | M11: SETOP | N11: 2025-10-01
B12: 1. | C12: Sistema Hidráulico | K12: =SUM(K13,K22,K25,K41,K46,K67,K72,K75,K79) -> 38127.67 | M12: CPOS | N12: 2026-01-01
B13: 1.1. | C13: Linha Lateral - Emissores | K13: =SUM(K14:K21) -> 12504 | M13: SEDOP | N13: 2025-10-01
B14: 1.1.1. | C14: TUBO PEBD DI 16 mm PN30 | D14: m | E14: 3500 | F14: COT | G14: COT01 | H14: =TRUNC((1-$L$7)*('COT 30'!L37),2) -> 1.32 | I14: =H14*E14 -> 4620 | J14: =H14*(1+$L$5) -> 1.49 | K14: =TRUNC(E14*J14,2) -> 5215 | M14: SINAPI | N14: 2026-01-01
B15: 1.1.2. | C15: MICROASPERSOR 75 LPH | D15: und | E15: 900 | F15: COT | G15: COT09 | H15: =TRUNC((1-$L$7)*('COT 38'!L37),2) -> 2.91 | I15: 2619 | J15: 3.27 | K15: 2943 | M15: EMOP | N15: 2026-01-04
B16: 1.1.3. | C16: MICROTUBO COM CONECTOR 4/6 X 80 cm | D16: und | E16: 900 | F16: COT | G16: COT10 | H16: =TRUNC((1-$L$7)*('COT 39'!L37),2) -> 2.19 | I16: 1971 | J16: 2.46 | K16: 2214
B17: 1.1.4. | C17: HASTE PLÁSTICA PARA MICROASPERSÃO - 60 cm | D17: und | E17: 900 | F17: COT | G17: COT11 | H17: =TRUNC((1-$L$7)*('COT 40'!L37),2) -> 1.62 | I17: 1458 | J17: 1.82 | K17: 1638
B18: 1.1.5. | C18: CONECTOR INICIAL 16 mm | D18: und | E18: 100 | F18: ORSE | G18: 9550 | H18: =TRUNC((1-$L$7)*(VLOOKUP(G18,'OUTROS BANCOS 127V'!$C$2:$E$75,3,FALSE)),2) -> 0.96 | I18: 96 | J18: 1.08 | K18: 108
B19: 1.1.6. | C19: ANEL DE VEDAÇÃO COM CHULA 13/17 | D19: und | E19: 100 | F19: SEINFRA | G19: I9557 | H19: =TRUNC((1-$L$7)*(VLOOKUP(G19,'OUTROS BANCOS 127V'!$C$2:$E$75,3,FALSE)),2) -> 0.87 | I19: 87 | J19: 0.98 | K19: 98
B20: 1.1.5. | C20: CONECTOR UNIÃO COM ANEL 16 mm | D20: und | E20: 200 | F20: EMBASA | G20: M019000003 | H20: =TRUNC((1-$L$7)*(VLOOKUP(G20,'OUTROS BANCOS 127V'!$C$2:$E$75,3,FALSE)),2) -> 0.77 | I20: 154 | J20: 0.87 | K20: 174
B21: 1.1.6. | C21: CONECTOR FINAL DE LINHA TIPO 8 16 mm | D21: und | E21: 100 | F21: SEINFRA | G21: I9775 | H21: =TRUNC((1-$L$7)*(VLOOKUP(G21,'OUTROS BANCOS 127V'!$C$2:$E$75,3,FALSE)),2) -> 1.01 | I21: 101 | J21: 1.14 | K21: 114
B22: 1.2. | C22: Tubulação - PVC | K22: =SUM(K23:K24) -> 8973.36
B23: 1.2.1 | C23: TUBO IRRIG. PB DN50 PN40 | D23: m | E23: =44*6 -> 264 | F23: ORSE | G23: 8369 | H23: =TRUNC((1-$L$7)*(VLOOKUP(G23,'OUTROS BANCOS 127V'!$C$2:$E$75,3,FALSE)),2) -> 13.88 | I23: =H23*E23 -> 3664.32 | J23: =H23*(1+$L$5) -> 15.62 | K23: =TRUNC(E23*J23,2) -> 4123.68
B24: 1.2.2 | C24: TUBO IRRIG. PB DN75 PN40 | D24: m | E24: =6*44 -> 264 | F24: COT | G24: COT18 | H24: =TRUNC((1-$L$7)*('COT 46'!$L$37/6),2) -> 16.33 | I24: =H24*E24 -> 4311.12 | J24: =H24*(1+$L$5) -> 18.37 | K24: =TRUNC(E24*J24,2) -> 4849.68
B25: 1.3. | C25: Controle de Proteção e Comando | K25: =SUM(K26:K40) -> 3325.94
B26: 1.3.1. | C26: REGISTRO ESFERA SOLD. 50 mm | D26: und | E26: 6 | F26: SINAPI | G26: 11677 | H26: =TRUNC((1-$L$7)*(VLOOKUP(G26,'INSUMO SINAPI 127V'!$A$2:$D$4985,4,FALSE)),2) -> 44.84 | I26: =H26*E26 -> 269.04 | J26: =H26*(1+$L$5) -> 50.45 | K26: =TRUNC(E26*J26,2) -> 302.7
B27: 1.3.2. | C27: VÁLVULA ANTIVÁCUO 1/2" | D27: und | E27: 6 | F27: COT | G27: COT03 | H27: =TRUNC((1-$L$7)*('COT 32'!L37),2) -> 12.43 | I27: 74.58 | J27: 13.98 | K27: 83.88
B28: 1.3.3. | C28: VÁLVULA VENTOSA TRÍPLICE FUNÇÃO 2" | D28: und | E28: 2 | F28: COT | G28: COT04 | H28: =TRUNC((1-$L$7)*('COT 33'!L37),2) -> 669.1 | I28: 1338.2 | J28: 752.74 | K28: 1505.48
B29: 1.3.4. | C29: TUBO IRRIG. PB DN50 PN80 | D29: m | E29: =6*4 -> 24 | F29: ORSE | G29: 14068 | H29: =TRUNC((1-$L$7)*(VLOOKUP(G29,'OUTROS BANCOS 127V'!$C$2:$E$75,3,FALSE)),2) -> 9.74 | I29: 233.76 | J29: 10.96 | K29: 263.04
B30: 1.3.5. | C30: REDUÇÃO PVC PB 75 mm X 50 mm | D30: und | E30: 2 | F30: SCO | G30: MAT118400 | H30: =TRUNC((1-$L$7)*(VLOOKUP(G30,'OUTROS BANCOS 127V'!$C$2:$E$75,3,FALSE)),2) -> 11.1 | I30: 22.2 | J30: 12.49 | K30: 24.98
B31: 1.3.6. | C31: CURVA PVC 90° PB 50 mm | D31: und | E31: 8 | F31: SINAPI | G31: 1845 | H31: =TRUNC((1-$L$7)*(VLOOKUP(G31,'INSUMO SINAPI 127V'!$A$2:$D$4985,4,FALSE)),2) -> 36.64 | I31: 293.12 | J31: 41.22 | K31: 329.76
B32: 1.3.7. | C32: TÊ PVC 50 mm | D32: und | E32: 6 | F32: ORSE | G32: 2113 | H32: =TRUNC((1-$L$7)*(VLOOKUP(G32,'OUTROS BANCOS 127V'!$C$2:$E$75,3,FALSE)),2) -> 9.68 | I32: 58.08 | J32: 10.89 | K32: 65.34
B33: 1.3.8. | C33: ADAPTADOR BS X RM 50 X 2" | D33: und | E33: 2 | F33: ORSE | G33: 14060 | H33: =TRUNC((1-$L$7)*(VLOOKUP(G33,'OUTROS BANCOS 127V'!$C$2:$E$75,3,FALSE)),2) -> 4.23 | I33: 8.46 | J33: 4.76 | K33: 9.52
B34: 1.3.9. | C34: LUVA PVC BR 2" | D34: und | E34: 2 | F34: ORSE | G34: 1434 | H34: =TRUNC((1-$L$7)*(VLOOKUP(G34,'OUTROS BANCOS 127V'!$C$2:$E$75,3,FALSE)),2) -> 28.58 | I34: 57.16 | J34: 32.15 | K34: 64.3
B35: 1.3.10. | C35: COLAR DE TOMADA 50 X 1/2" | D35: und | E35: 6 | F35: COT | G35: COT05 | H35: =TRUNC((1-$L$7)*('COT 34'!L37),2) -> 19.49 | I35: 116.94 | J35: 21.93 | K35: 131.58
B36: 1.3.11 | C36: REGISTRO DE GAVETA 2" | D36: und | E36: 1 | F36: COT | G36: COT23 | H36: =TRUNC((1-$L$7)*('COT 52'!L37),2) -> 150.45 | I36: 150.45 | J36: 169.26 | K36: 169.26
B37: 1.3.12 | C37: MANÔMETRO DE GLICERINA DE ATÉ 6kgf/cm² ROSCA DE 1/4 " | D37: und | E37: 2 | F37: COT | G37: COT24 | H37: =TRUNC((1-$L$7)*('COT 53'!L37),2) -> 121.7 | I37: 243.4 | J37: 136.91 | K37: 273.82
B38: 1.3.13 | C38: BUCHA DE REDUÇÃO DE 3/4" PARA 1/4" | D38: und | E38: 2 | F38: COT | G38: COT25 | H38: =TRUNC((1-$L$7)*('COT 54'!L37),2) -> 22.59 | I38: 45.18 | J38: 25.41 | K38: 50.82
B39: 1.3.14 | C39: ADAPTADOR DE REDUÇÃO Bsa SOLD. 50 mm X 1 1/2" | D39: und | E39: 2 | F39: COT | G39: COT26 | H39: =TRUNC((1-$L$7)*('COT 55'!L37),2) -> 8.36 | I39: 16.72 | J39: 9.41 | K39: 18.82
B40: 1.3.15 | C40: TE DE REDUÇÃO ROSCA 50 mm X 3/4" | D40: und | E40: 2 | F40: COT | G40: COT27 | H40: =TRUNC((1-$L$7)*('COT 56'!L37),2) -> 14.51 | I40: 29.02 | J40: 16.32 | K40: 32.64
B41: 1.4. | C41: Conexões de Campo | K41: =SUM(K42:K45) -> 852.77
B42: 1.4.1. | C42: REGISTRO ESFERA PVC 50 mm | D42: und | E42: 8 | F42: SINAPI | G42: 11677 | H42: =TRUNC((1-$L$7)*(VLOOKUP(G42,'INSUMO SINAPI 127V'!$A$2:$D$4985,4,FALSE)),2) -> 44.84 | I42: =H42*E42 -> 358.72 | J42: =H42*(1+$L$5) -> 50.45 | K42: =TRUNC(E42*J42,2) -> 403.6
B43: 1.4.2. | C43: CURVA PVC 45° PB 50 mm | D43: und | E43: 8 | F43: SINAPI | G43: 1831 | H43: =TRUNC((1-$L$7)*(VLOOKUP(G43,'INSUMO SINAPI 127V'!$A$2:$D$4985,4,FALSE)),2) -> 29.24 | I43: =H43*E43 -> 233.92 | J43: =H43*(1+$L$5) -> 32.9 | K43: =TRUNC(E43*J43,2) -> 263.2
B44: 1.4.3. | C44: CURVA PVC 90° PB 50 mm | D44: und | E44: 4 | F44: SINAPI | G44: 1845 | H44: =TRUNC((1-$L$7)*(VLOOKUP(G44,'INSUMO SINAPI 127V'!$A$2:$D$4985,4,FALSE)),2) -> 36.64 | I44: =H44*E44 -> 146.56 | J44: =H44*(1+$L$5) -> 41.22 | K44: =TRUNC(E44*J44,2) -> 164.88
B45: 1.4.4. | C45: TÊ PVC 7 mm (7 ou 75 mm?) | D45: und | E45: 1 | F45: ORSE | G45: 2145 | H45: =TRUNC((1-$L$7)*(VLOOKUP(G45,'OUTROS BANCOS 127V'!$C$2:$E$75,3,FALSE)),2) -> 18.75 | I45: =H45*E45 -> 18.75 | J45: =H45*(1+$L$5) -> 21.09 | K45: =TRUNC(E45*J45,2) -> 21.09
B46: 1.5. | C46: Filtragem e Ligação de Pressão | K46: =SUM(K47:K66) -> 7384.46
B47: 1.5.1. | C47: MOTOBOMBA SUBMERSA 3HP 12m³/h + 43mca | D47: und | E47: 1 | F47: COT | G47: COT06 | H47: =TRUNC((1-$L$7)*('COT 35'!L37),2) -> 1714.01 | I47: =H47*E47 -> 1714.01 | J47: =H47*(1+$L$5) -> 1928.26 | K47: =TRUNC(E47*J47,2) -> 1928.26
B48: 1.5.2. | C48: NIPLE PVC BR 2" | D48: und | E48: 1 | F48: SBC | G48: 5719 | H48: =TRUNC((1-$L$7)*(VLOOKUP(G48,'OUTROS BANCOS 127V'!$C$2:$E$75,3,FALSE)),2) -> 32.23 | I48: 32.23 | J48: 36.26 | K48: 36.26
B49: 1.5.3. | C49: UNIÃO PVC BR 2" | D49: und | E49: 5 | F49: ORSE | G49: 2365 | H49: =TRUNC((1-$L$7)*(VLOOKUP(G49,'OUTROS BANCOS 127V'!$C$2:$E$75,3,FALSE)),2) -> 54.89 | I49: 274.45 | J49: 61.75 | K49: 308.75
B50: 1.5.4. | C50: ADAPTADOR COMPRESSÃO X ROSCA MACHO 2" | D50: und | E50: 2 | F50: EMBASA | G50: M080800108 | H50: =TRUNC((1-$L$7)*(VLOOKUP(G50,'OUTROS BANCOS 127V'!$C$2:$E$75,3,FALSE)),2) -> 49.34 | I50: 98.68 | J50: 55.51 | K50: 111.02
B51: 1.5.5. | C51: TUBO PEMD 2" PN60 | D51: m | E51: 15 | F51: COT | G51: COT07 | H51: =TRUNC((1-$L$7)*('COT 36'!L37),2) -> 19.18 | I51: 287.7 | J51: 21.58 | K51: 323.7
B52: 1.5.6. | C52: BUCHA DE REDUÇÃO 3X2" | D52: und | E52: 1 | F52: SBC | G52: 8784 | H52: =TRUNC((1-$L$7)*(VLOOKUP(G52,'OUTROS BANCOS 127V'!$C$2:$E$75,3,FALSE)),2) -> 94 | I52: 94 | J52: 105.75 | K52: 105.75
B53: 1.5.7. | C53: UNIÃO PVC BR 3" | D53: und | E53: 1 | F53: ORSE | G53: 2367 | H53: =TRUNC((1-$L$7)*(VLOOKUP(G53,'OUTROS BANCOS 127V'!$C$2:$E$75,3,FALSE)),2) -> 283.58 | I53: 283.58 | J53: 319.03 | K53: 319.03
B54: 1.5.8. | C54: ADAPTADOR BSXRM 75 mm x 3" | D54: und | E54: 5 | F54: ORSE | G54: 14059 | H54: =TRUNC((1-$L$7)*(VLOOKUP(G54,'OUTROS BANCOS 127V'!$C$2:$E$75,3,FALSE)),2) -> 8.5 | I54: 42.5 | J54: 9.56 | K54: 47.8
B55: 1.5.9. | C55: TUBO IRRIG. PB DN75 PN80 | D55: m | E55: =2*6 -> 12 | F55: ORSE | G55: 9502 | H55: =TRUNC((1-$L$7)*(VLOOKUP(G55,'OUTROS BANCOS 127V'!$C$2:$E$75,3,FALSE)),2) -> 40.52 | I55: 486.24 | J55: 45.59 | K55: 547.08
B56: 1.5.10. | C56: TÊ 75 mm | D56: und | E56: 2 | F56: ORSE | G56: 9505 | H56: =TRUNC((1-$L$7)*(VLOOKUP(G56,'OUTROS BANCOS 127V'!$C$2:$E$75,3,FALSE)),2) -> 41.27 | I56: 82.54 | J56: 46.43 | K56: 92.86
B57: 1.5.11. | C57: REDUÇÃO 75 mm x 50 mm | D57: und | E57: 4 | F57: SEINFRA | G57: I3138 | H57: =TRUNC((1-$L$7)*(VLOOKUP(G57,'OUTROS BANCOS 127V'!$C$2:$E$75,3,FALSE)),2) -> 45.38 | I57: 181.52 | J57: 51.05 | K57: 204.2
B58: 1.5.12. | C58: CURVA PVC 90º PB 50 mm | D58: und | E58: 4 | F58: SINAPI | G58: 1845 | H58: =TRUNC((1-$L$7)*(VLOOKUP(G58,'INSUMO SINAPI 127V'!$A$2:$D$4985,4,FALSE)),2) -> 36.64 | I58: 146.56 | J58: 41.22 | K58: 164.88
B59: 1.5.13. | C59: CURVA PVC 90° PB 75 MM | D59: und | E59: 6 | F59: SINAPI | G59: 1824 | H59: =TRUNC((1-$L$7)*(VLOOKUP(G59,'INSUMO SINAPI 127V'!$A$2:$D$4985,4,FALSE)),2) -> 86.5 | I59: 519 | J59: 97.31 | K59: 583.86
B60: 1.5.14. | C60: ADAPTADOR BSXRM 50 mm x 2" | D60: und | E60: 4 | F60: ORSE | G60: 14060 | H60: =TRUNC((1-$L$7)*(VLOOKUP(G60,'OUTROS BANCOS 127V'!$C$2:$E$75,3,FALSE)),2) -> 4.23 | I60: 16.92 | J60: 4.76 | K60: 19.04
B61: 1.5.15. | C61: FILTRO DE DISCO 3" - 25M³/H | D61: und | E61: 1 | F61: COT | G61: COT08 | H61: =TRUNC((1-$L$7)*('COT 37'!L37),2) -> 1117.51 | I61: 1117.51 | J61: 1257.2 | K61: 1257.2
B62: 1.5.16. | C62: VÁLVULA DE RETENÇÃO 3" | D62: und | E62: 1 | F62: COT | G62: COT18 | H62: =TRUNC((1-$L$7)*('COT 47'!L37),2) -> 542.26 | I62: 542.26 | J62: 610.04 | K62: 610.04
B63: 1.5.17. | C63: TÊ 75 x 50 mm | D63: und | E63: 4 | F63: SINAPI | G63: 7132 | H63: =TRUNC((1-$L$7)*(VLOOKUP(G63,'INSUMO SINAPI 127V'!$A$2:$D$4985,4,FALSE)),2) -> 40.3 | I63: 161.2 | J63: 45.34 | K63: 181.36
B64: 1.5.18. | C64: REGISTRO DE ESFERA 50 mm | D64: und | E64: 4 | F64: SINAPI | G64: 11677 | H64: =TRUNC((1-$L$7)*(VLOOKUP(G64,'INSUMO SINAPI 127V'!$A$2:$D$4985,4,FALSE)),2) -> 44.84 | I64: 179.36 | J64: 50.45 | K64: 201.8
B65: 1.5.19. | C65: LUVA PVC BR 2" | D65: und | E65: 1 | F65: EMOP | G65: 2352 | H65: =TRUNC((1-$L$7)*(VLOOKUP(G65,'OUTROS BANCOS 127V'!C:E,3,FALSE)),2) -> 25.39 | I65: 25.39 | J65: 28.56 | K65: 28.56
B66: 1.5.20. | C66: VÁLVULA VENTOSA BR 2" | D66: und | E66: 1 | F66: COT | G66: COT12 | H66: =TRUNC((1-$L$7)*('COT 41'!L37),2) -> 278.23 | I66: 278.23 | J66: 313.01 | K66: 313.01
B67: 1.6. | C67: Materias de Consumo | K67: =SUM(K68:K71) -> 572.86
B68: 1.6.1. | C68: ADESIVO PLÁSTICO 850G | D68: und | E68: 4 | F68: EMOP | G68: 5102 | H68: =TRUNC((1-$L$7)*(VLOOKUP(G68,'OUTROS BANCOS 127V'!$C$2:$E$75,3,FALSE)),2) -> 54.85 | I68: =H68*E68 -> 219.4 | J68: =H68*(1+$L$5) -> 61.71 | K68: =TRUNC(E68*J68,2) -> 246.84
B69: 1.6.2. | C69: FITA VEDA ROSCA 18MM X 50 M | D69: und | E69: 2 | F69: SINAPI | G69: 3148 | H69: =TRUNC((1-$L$7)*(VLOOKUP(G69,'INSUMO SINAPI 127V'!$A$2:$D$4985,4,FALSE)),2) -> 14.56 | I69: =H69*E69 -> 29.12 | J69: =H69*(1+$L$5) -> 16.38 | K69: =TRUNC(E69*J69,2) -> 32.76
B70: 1.6.3. | C70: FITA ISOLANTE 18MM X 20M | D70: und | E70: 2 | F70: SBC | G70: 36795 | H70: =TRUNC((1-$L$7)*(VLOOKUP(G70,'OUTROS BANCOS 127V'!$C$2:$E$75,3,FALSE)),2) -> 1 | I70: =H70*E70 -> 2 | J70: =H70*(1+$L$5) -> 1.13 | K70: =TRUNC(E70*J70,2) -> 2.26
B71: 1.6.4. | C71: FOLHA DE LIXA N100 | D71: und | E71: 100 | F71: SINAPI | G71: 38383 | H71: =TRUNC((1-$L$7)*(VLOOKUP(G71,'INSUMO SINAPI 127V'!$A$2:$D$4985,4,FALSE)),2) -> 2.59 | I71: =H71*E71 -> 259 | J71: =H71*(1+$L$5) -> 2.91 | K71: =TRUNC(E71*J71,2) -> 291
B72: 1.7. | C72: Elaboração do Layout do Sistema Hidráulico | K72: =SUM(K73:K74) -> 1290.6
B73: 1.7.1. | C73: Mão-de-obra de Projetista Cadista Pleno - Projeto e Consultoria, inclusive Encargos Sociais | D73: h | E73: 4 | F73: EMOP | G73: 10984 | H73: =TRUNC((1-$L$7)*(VLOOKUP(G73,'OUTROS BANCOS 127V'!$C$2:$E$75,3,FALSE)),2) -> 75.3 | I73: =H73*E73 -> 301.2 | J73: =H73*(1+$L$4) -> 94.09 | K73: =TRUNC(E73*J73,2) -> 376.36
B74: 1.7.2. | C74: Mão-de-obra de Engenheiro Pleno, inclusive com encargos sociais | D74: h | E74: 4 | F74: EMOP | G74: 14610 | H74: =TRUNC((1-$L$7)*(VLOOKUP(G74,'OUTROS BANCOS 127V'!$C$2:$E$75,3,FALSE)),2) -> 182.91 | I74: =H74*E74 -> 731.64 | J74: =H74*(1+$L$4) -> 228.56 | K74: =TRUNC(E74*J74,2) -> 914.24
B75: 1.8. | C75: Montagem do Sistema Hidráulico | K75: =SUM(K76:K77) -> 2286.72
B76: 1.8.1. | C76: Encanador ou bombeiro hidráulico com encargos complementares (01 encanador ou bombeiro hidráulico em jornada de trabalho de 8 h por dia) | D76: h | E76: 36 | F76: AGESUL | G76: 4005 | H76: =TRUNC((1-$L$7)*(VLOOKUP(G76,'OUTROS BANCOS 127V'!$C$2:$E$75,3,FALSE)),2) -> 27.84 | I76: =H76*E76 -> 1002.24 | J76: =H76*(1+$L$4) -> 34.79 | K76: =TRUNC(E76*J76,2) -> 1252.44
B77: 1.8.2. | C77: Auxiliar de encanador ou bombeiro hidráulico com encargos complementares (02 auxiliares de encanador ou bombeiro hidráulico em jornada de trabalho de 8 h por dia) | D77: h | E77: 36 | F77: AGESUL | G77: 4052 | H77: =TRUNC((1-$L$7)*(VLOOKUP(G77,'OUTROS BANCOS 127V'!$C$2:$E$75,3,FALSE)),2) -> 22.99 | I77: =H77*E77 -> 827.64 | J77: =H77*(1+$L$4) -> 28.73 | K77: =TRUNC(E77*J77,2) -> 1034.28
B78: 1.9 | C78: Preparo mecanizado de solo | K78: =K79 -> 936.96
B79: 1.9.1 | C79: ARACÃO DO SOLO A 20CM DE PROFUNDIDADE COM TRATOR DE PNEUS E ARADO DE DISCO | D79: ha | E79: 2 | F79: EMOP/COMPOSIÇÃO | G79: 22.016.0025-A | H79: 374.9 | J79: =H79*(1+$L$4) -> 468.48 | K79: =TRUNC(E79*J79,2) -> 936.96
B80: 2 | C80: Sistema Elétrico | K80: =SUM(K81,K92,K135,K120,K128,K139) -> 12585.67
B81: 2.1 | C81: Rede de Distribuição - Fonte até o Quadro de Comando | K81: =SUM(K82:K91) -> 7059.54
B82: 2.1.1 | C82: Poste de madeira eucalipto preservado, diâmetro de 20cm, 7 metros | D82: Unidade | E82: 5 | F82: SBC | G82: 46336 | H82: =TRUNC((1-$L$7)*(VLOOKUP(G82,'OUTROS BANCOS 127V'!$C$2:$E$75,3,FALSE)),2) -> 95.07 | I82: =H82*E82 -> 475.35 | J82: =H82*(1+$L$5) -> 106.95 | K82: =TRUNC(E82*J82,2) -> 534.75
B83: 2.1.2 | C83: Isolador Porcelana Tipo Roldana 80x80 mm p/ 2 cabos, marrom | D83: Unidade | E83: 5 | F83: IOPES | G83: 48342 | H83: =TRUNC((1-$L$7)*(VLOOKUP(G83,'OUTROS BANCOS 127V'!$C$2:$E$75,3,FALSE)),2) -> 10.95 | I83: 54.75 | J83: 12.32 | K83: 61.6
B84: 2.1.3 | C84: Suporte Isolador c/ Roldana p/ aparafusar c/ chapa | D84: Unidade | E84: 5 | F84: SETOP | G84: MATED-12988 | H84: =TRUNC((1-$L$7)*(VLOOKUP(G84,'OUTROS BANCOS 127V'!$C$2:$E$75,3,FALSE)),2) -> 18.18 | I84: 90.9 | J84: 20.45 | K84: 102.25
B85: 2.1.4 | C85: Cinta aço galvanizado para poste DT 240mm, inclui parafusos | D85: Unidade | E85: 5 | F85: ORSE | G85: 4628 | H85: =TRUNC((1-$L$7)*(VLOOKUP(G85,'OUTROS BANCOS 127V'!$C$2:$E$75,3,FALSE)),2) -> 15.22 | I85: 76.1 | J85: 17.12 | K85: 85.6
B86: 2.1.5 | C86: Alça preformada para islador roldana, seção conforme condutores instalados | D86: Unidade | E86: 5 | F86: COT | G86: COT13 | H86: =TRUNC((1-$L$7)*('COT 42'!L37),2) -> 14.01 | I86: 70.05 | J86: 15.76 | K86: 78.8
B87: 2.1.6 | C87: Cabo de cobre isolado HEPR (XLPE), 25mm², 1kv / 90º C (cor conforme a aplicação) apropriado para redes aéreas | D87: Metro | E87: 200 | F87: ORSE | G87: 3814 | H87: =TRUNC((1-$L$7)*(VLOOKUP(G87,'OUTROS BANCOS 127V'!$C$2:$E$75,3,FALSE)),2) -> 26.73 | I87: 5346 | J87: 30.07 | K87: 6014
B88: 2.1.7 | C88: Cabeçote p/ Eletroduto de 1.1/4" | D88: Unidade | E88: 1 | F88: SINAPI | G88: 1099 | H88: =TRUNC((1-$L$7)*(VLOOKUP(G88,'INSUMO SINAPI 127V'!$A$2:$D$4985,4,FALSE)),2) -> 7.95 | I88: 7.95 | J88: 8.94 | K88: 8.94
B89: 2.1.8 | C89: Eletroduto em aço galvanizado 1.1/4" | D89: Unidade | E89: 1 | F89: SCO | G89: MAT050850 | H89: =TRUNC((1-$L$7)*(VLOOKUP(G89,'OUTROS BANCOS 127V'!$C$2:$E$75,3,FALSE)),2) -> 131.83 | I89: 131.83 | J89: 148.31 | K89: 148.31
B90: 2.1.9 | C90: Conector reto com arruela para eletroduto 1.1/4" | D90: Unidade | E90: 1 | F90: SINAPI | G90: 2526 | H90: =TRUNC((1-$L$7)*(VLOOKUP(G90,'INSUMO SINAPI 127V'!$A$2:$D$4985,4,FALSE)),2) -> 6.29 | I90: 6.29 | J90: 7.08 | K90: 7.08
B91: 2.1.10 | C91: Curva 90º aço galvanizado 1.1/4" | D91: Unidade | E91: 1 | F91: SINAPI | G91: 2618 | H91: =TRUNC((1-$L$7)*(VLOOKUP(G91,'INSUMO SINAPI 127V'!$A$2:$D$4985,4,FALSE)),2) -> 16.19 | I91: 16.19 | J91: 18.21 | K91: 18.21
B92: 2.2 | C92: Quadro de Comando | K92: =SUM(K93:K119) -> 2187.84
B93: 2.2.1 | C93: Quadro elétrico metálico com placa de montagem, grau de proteção mínimo IP54, dimensões mínimas 400x300x200 mm | D93: Unidade | E93: 1 | F93: SBC | G93: 53375 | H93: =TRUNC((1-$L$7)*(VLOOKUP(G93,'OUTROS BANCOS 127V'!$C$2:$E$75,3,FALSE)),2) -> 355.25 | I93: =H93*E93 -> 355.25 | J93: =H93*(1+$L$5) -> 399.66 | K93: =TRUNC(E93*J93,2) -> 399.66
B94: 2.2.2 | C94: Canaleta para quadro 30 x 50 mm, fabricada em PVC, tipo semi-aberta. | D94: Metro | E94: 0.4 | F94: SETOP | G94: MATED-17646 | H94: =TRUNC((1-$L$7)*(VLOOKUP(G94,'OUTROS BANCOS 127V'!$C$2:$E$75,3,FALSE)),2) -> 15.38 | I94: 6.15 | J94: 17.3 | K94: 6.92
B95: 2.2.3 | C95: Canaleta para quadro 50 x 50 mm, fabricada em PVC, tipo semi-aberta. | D95: Metro | E95: 0.3 | F95: SETOP | G95: MATED-17647 | H95: =TRUNC((1-$L$7)*(VLOOKUP(G95,'OUTROS BANCOS 127V'!$C$2:$E$75,3,FALSE)),2) -> 20.58 | I95: 6.17 | J95: 23.15 | K95: 6.94
B96: 2.2.4 | C96: Trilho DIN 35 mm | D96: Metro | E96: 0.4 | F96: SEINFRA | G96: I7410 | H96: =TRUNC((1-$L$7)*(VLOOKUP(G96,'OUTROS BANCOS 127V'!$C$2:$E$75,3,FALSE)),2) -> 11.56 | I96: 4.62 | J96: 13.01 | K96: 5.2
B97: 2.2.5 | C97: Conector (terminal isolado) para barramento isolado, conexão reta ou lateral, até 25 mm² | D97: Unidade | E97: 2 | F97: COT | G97: COT19 | H97: =TRUNC((1-$L$7)*('COT 48'!L37),2) -> 8.23 | I97: 16.46 | J97: 9.26 | K97: 18.52
B98: 2.2.6 | C98: Barramento monofásico isolado (barramento pente), horizontal, fabricado em cobre, até 63 A, acompanhado de tampas finais, 8 polos | D98: Unidade | E98: 1 | F98: SBC | G98: 10562 | H98: =TRUNC((1-$L$7)*(VLOOKUP(G98,'OUTROS BANCOS 127V'!$C$2:$E$75,3,FALSE)),2) -> 22.06 | I98: 22.06 | J98: 24.82 | K98: 24.82
B99: 2.2.7 | C99: Interruptor diferencial residual bipolar de 40A, corrente residual de 30 mA, tensão de operação conforme aplicação, corrente de curto circuito de 3 kA | D99: Unidade | E99: 1 | F99: SINAPI | G99: 39446 | H99: =TRUNC((1-$L$7)*(VLOOKUP(G99,'INSUMO SINAPI 127V'!$A$2:$D$4985,4,FALSE)),2) -> 139.64 | I99: 139.64 | J99: 157.1 | K99: 157.1
B100: 2.2.8 | C100: Dispositivo de Proteção Contra Surtos Classe II, 20 kA (Imáx), tensão de operação compatível com a aplicação, nível de proeção (Up) 1,4 kV | D100: Unidade | E100: 1 | F100: SINAPI | G100: 39469 | H100: =TRUNC((1-$L$7)*(VLOOKUP(G100,'INSUMO SINAPI 127V'!$A$2:$D$4985,4,FALSE)),2) -> 69.47 | I100: 69.47 | J100: 78.15 | K100: 78.15
B101: 2.2.9 | C101: Disjuntor monopolar para trilho DIN (mini disjuntor) para correntes de 40A, curva C, 60 Hz, capacidade de interrupção em curto-circuito 3 kA ou superior | D101: Unidade | E101: 1 | F101: SINAPI | G101: 34686 | H101: =TRUNC((1-$L$7)*(VLOOKUP(G101,'INSUMO SINAPI 127V'!$A$2:$D$4985,4,FALSE)),2) -> 13.21 | I101: 13.21 | J101: 14.86 | K101: 14.86
B102: 2.2.10 | C102: Disjuntor monopolar para trilho DIN (mini disjuntor) para correntes de 40A, curva C, 60 Hz, capacidade de interrupção em curto-circuito 3 kA ou superior | D102: Unidade | E102: 1 | F102: SINAPI | G102: 34686 | H102: =TRUNC((1-$L$7)*(VLOOKUP(G102,'INSUMO SINAPI 127V'!$A$2:$D$4985,4,FALSE)),2) -> 13.21 | I102: 13.21 | J102: 14.86 | K102: 14.86
B103: 2.2.11 | C103: Disjuntor monopolar para trilho DIN (mini disjuntor) para correntes de 2A, curva C, 60 Hz, capacidade de interrupção em curto-circuito 3 kA ou superior | D103: Unidade | E103: 1 | F103: IOPES | G103: 44951 | H103: =TRUNC((1-$L$7)*(VLOOKUP(G103,'OUTROS BANCOS 127V'!$C$2:$E$75,3,FALSE)),2) -> 31.32 | I103: 31.32 | J103: 35.24 | K103: 35.24
B104: 2.2.12 | C104: Minicontator, com capacidade de corrente até 40A (em regime AC-3), contato auxiliar integrado e bobina em corrente alternada (tensão conforme a aplicação) | D104: Unidade | E104: 1 | F104: AGETOP CIVIL | G104: 3756 | H104: =TRUNC((1-$L$7)*(VLOOKUP(G104,'OUTROS BANCOS 127V'!$C$2:$E$75,3,FALSE)),2) -> 262.72 | I104: 262.72 | J104: 295.56 | K104: 295.56
B105: 2.2.13 | C105: Relé de sobrecarga para minicontator ajustável até 40A, conforme aplicação, com montagem direta nos contatores | D105: Unidade | E105: 1 | F105: COT | G105: COT 29 | H105: =TRUNC((1-$L$7)*('COT 57'!$L$37),2) -> 277.59 | I105: 277.59 | J105: 312.29 | K105: 312.29
B106: 2.2.14 | C106: Relé eletrônico/digital monitor de tensão monofásico, com funcionalidade de subtensão e sobretensão, ajustes através de trimpot no relé, LED indicativo de funcionamento, tensão conforme aplicação, 60 Hz, com 1 contato reversível | D106: Unidade | E106: 1 | F106: COT | G106: COT15 | H106: =TRUNC((1-$L$7)*('COT 44'!L37),2) -> 197.31 | I106: 197.31 | J106: 221.97 | K106: 221.97
B107: 2.2.15 | C107: Relé temporizador, alimentação 220V, 1 saída a relé, com função de pulso na energização, ajustável de 1 segundo a 100 horas, ajuste por trimpots no relé | D107: Unidade | E107: 1 | F107: COT | G107: COT20 | H107: =TRUNC((1-$L$7)*('COT 49'!L37),2) -> 201.71 | I107: 201.71 | J107: 226.92 | K107: 226.92
B108: 2.2.16 | C108: Barramento de neutro, na cor azul, para fixação em trilho DIN, fabricado em cobre, com furos e parafusos para fixação, ao menos um furo para o alimentador (até 25 mm²), pré isolado, 10 furos. | D108: Unidade | E108: 1 | F108: COT | G108: COT21 | H108: =TRUNC((1-$L$7)*('COT 50'!L37),2) -> 53.95 | I108: 53.95 | J108: 60.69 | K108: 60.69
B109: 2.2.17 | C109: Barramento de terra, na cor verde, para fixação em trilho DIN, fabricado em cobre, com furos e parafusos para fixação, ao menos um furo para o alimentador (até 25 mm²), pré isolado, 10 furos. | D109: Unidade | E109: 1 | F109: COT | G109: COT22 | H109: =TRUNC((1-$L$7)*('COT 51'!L37),2) -> 52.09 | I109: 52.09 | J109: 58.6 | K109: 58.6
B110: 2.2.18 | C110: Botão de emergência tipo cogumelo, com trava e retorno com mola, para furos 22mm, 1 NF, tensão conforme aplicação, vermelho | D110: Unidade | E110: 1 | F110: CPOS | G110: P.13.000.042461 | H110: =TRUNC((1-$L$7)*(VLOOKUP(G110,'OUTROS BANCOS 127V'!$C$2:$E$75,3,FALSE)),2) -> 37.72 | I110: 37.72 | J110: 42.44 | K110: 42.44
B111: 2.2.19 | C111: Chave seletora de 3 posições para furos 22mm, 2 NA, completa, tensão conforme aplicação | D111: Unidade | E111: 1 | F111: SETOP | G111: MATED-19494 | H111: =TRUNC((1-$L$7)*(VLOOKUP(G111,'OUTROS BANCOS 127V'!$C$2:$E$75,3,FALSE)),2) -> 18.4 | I111: 18.4 | J111: 20.7 | K111: 20.7
B112: 2.2.20 | C112: Sinalizador luminoso para furos de 22 mm, iluminação LED, vermelho, tensão conforme aplicação | D112: Unidade | E112: 1 | F112: ORSE | G112: 12379 | H112: =TRUNC((1-$L$7)*(VLOOKUP(G112,'OUTROS BANCOS 127V'!$C$2:$E$75,3,FALSE)),2) -> 18.32 | I112: 18.32 | J112: 20.61 | K112: 20.61
B113: 2.2.21 | C113: Policarbonato compacto, incolor (transparente/cristal), livre de rebarbas, espessura mínima de 3 mm | D113: Metro² | E113: 0.24 | F113: SBC | G113: 28100 | H113: =TRUNC((1-$L$7)*(VLOOKUP(G113,'OUTROS BANCOS 127V'!$C$2:$E$75,3,FALSE)),2) -> 159 | I113: 38.16 | J113: 178.88 | K113: 42.93
B114: 2.2.22 | C114: Barra roscada 1/4", acabamento zincado | D114: Metro | E114: 1 | F114: ORSE | G114: 7551 | H114: =TRUNC((1-$L$7)*(VLOOKUP(G114,'OUTROS BANCOS 127V'!$C$2:$E$75,3,FALSE)),2) -> 4.73 | I114: 4.73 | J114: 5.32 | K114: 5.32
B115: 2.2.23 | C115: Porca sextavada zincada, 1/4" | D115: Unidade | E115: 8 | F115: SINAPI | G115: 39997 | H115: =TRUNC((1-$L$7)*(VLOOKUP(G115,'INSUMO SINAPI 127V'!$A$2:$D$4985,4,FALSE)),2) -> 0.28 | I115: 2.24 | J115: 0.32 | K115: 2.56
B116: 2.2.24 | C116: Arruela zincada, 1/4" | D116: Unidade | E116: 8 | F116: ORSE | G116: 8347 | H116: =TRUNC((1-$L$7)*(VLOOKUP(G116,'OUTROS BANCOS 127V'!$C$2:$E$75,3,FALSE)),2) -> 0.05 | I116: 0.4 | J116: 0.06 | K116: 0.48
B117: 2.2.25 | C117: Placa de identificação (plaqueta de identificação) fabricada em ABS ou acrílico para painéis elétricos (30 X 15 mm), fixação por adesivo, resistente ao tempo (Escrita Personalizada) | D117: Unidade | E117: 10 | F117: COT | G117: COT16 | H117: =TRUNC((1-$L$7)*('COT 45'!$L$37),2) -> 9.68 | I117: 96.8 | J117: 10.89 | K117: 108.9
B118: 2.2.26 | C118: Terminal a compressão, tipo pino ou garfo, 2,5 mm³ | D118: Unidade | E118: 30 | F118: SEINFRA | G118: I10080 | H118: =TRUNC((1-$L$7)*(VLOOKUP(G118,'OUTROS BANCOS 127V'!$C$2:$E$75,3,FALSE)),2) -> 0.14 | I118: 4.2 | J118: 0.16 | K118: 4.8
B119: 2.2.27 | C119: Abraçadeira de nylon 2,5x100 mm, para organização cabos elétricos | D119: Unidade | E119: 10 | F119: SINAPI | G119: 414 | H119: =TRUNC((1-$L$7)*(VLOOKUP(G119,'INSUMO SINAPI 127V'!$A$2:$D$4985,4,FALSE)),2) -> 0.07 | I119: 0.7 | J119: 0.08 | K119: 0.8
B120: 2.3 | C120: Sistema de Aterramento | K120: =SUM(K121:K127) -> 1371.18
B121: 2.3.1 | C121: Cordoalha em cobre nu, 50 mm² | D121: Metro | E121: 16 | F121: SINAPI | G121: 867 | H121: =TRUNC((1-$L$7)*(VLOOKUP(G121,'INSUMO SINAPI 127V'!$A$2:$D$4985,4,FALSE)),2) -> 63.24 | I121: =H121*E121 -> 1011.84 | J121: =H121*(1+$L$5) -> 71.15 | K121: =TRUNC(E121*J121,2) -> 1138.4
B122: 2.3.2 | C122: Conector à compressão para aterramento (CABO-CABO) | D122: Unidade | E122: 2 | F122: SEDOP | G122: E00189 | H122: =TRUNC((1-$L$7)*(VLOOKUP(G122,'OUTROS BANCOS 127V'!$C$2:$E$75,3,FALSE)),2) -> 62.63 | I122: 125.26 | J122: 70.46 | K122: 140.92
B123: 2.3.3 | C123: Curva longa 90º Galvanizada a fogo, 1" | D123: Unidade | E123: 1 | F123: SINAPI | G123: 2617 | H123: =TRUNC((1-$L$7)*(VLOOKUP(G123,'INSUMO SINAPI 127V'!$A$2:$D$4985,4,FALSE)),2) -> 7.11 | I123: 7.11 | J123: 8 | K123: 8
B124: 2.3.4 | C124: Eletroduto Galvanizado a Fogo, 1" | D124: Metro | E124: 1.5 | F124: SETOP | G124: MATED-12288 | H124: =TRUNC((1-$L$7)*(VLOOKUP(G124,'OUTROS BANCOS 127V'!$C$2:$E$75,3,FALSE)),2) -> 7.5 | I124: 11.25 | J124: 8.44 | K124: 12.66
B125: 2.3.5 | C125: Abraçadeira tipo D, 1" e cunha de fixação | D125: Unidade | E125: 1 | F125: SINAPI | G125: 393 | H125: =TRUNC((1-$L$7)*(VLOOKUP(G125,'INSUMO SINAPI 127V'!$A$2:$D$4985,4,FALSE)),2) -> 2.46 | I125: 2.46 | J125: 2.77 | K125: 2.77
B126: 2.3.6 | C126: Conector reto com arruela para eletroduto 1" | D126: Unidade | E126: 1 | F126: SINAPI | G126: 2483 | H126: =TRUNC((1-$L$7)*(VLOOKUP(G126,'INSUMO SINAPI 127V'!$A$2:$D$4985,4,FALSE)),2) -> 4.48 | I126: 4.48 | J126: 5.04 | K126: 5.04
B127: 2.3.7 | C127: Caixa de inspeção para ateramento | D127: Unidade | E127: 1 | F127: SINAPI | G127: 41480 | H127: =TRUNC((1-$L$7)*(VLOOKUP(G127,'INSUMO SINAPI 127V'!$A$2:$D$4985,4,FALSE)),2) -> 56.35 | I127: 56.35 | J127: 63.39 | K127: 63.39
B128: 2.4 | C128: Alimentação do Motor | K128: =SUM(K129:K134) -> 646.62
B129: 2.4.1 | C129: Cabo de cobre flexível, classe 4 ou 5, isolação em PVC/A, antichama BWF-B, 1 condutor, 450/750V seção de 16 mm² (cor preta, azul ou verde) | D129: Metro | E129: 30 | F129: SINAPI | G129: 979 | H129: =TRUNC((1-$L$7)*(VLOOKUP(G129,'INSUMO SINAPI 127V'!$A$2:$D$4985,4,FALSE)),2) -> 17.47 | I129: =H129*E129 -> 524.1 | J129: =H129*(1+$L$5) -> 19.65 | K129: =TRUNC(E129*J129,2) -> 589.5
B130: 2.4.2 | C130: Terminal a compressão, tipo pino, 16 mm² | D130: Unidade | E130: 3 | F130: COT | G130: COT14 | H130: =TRUNC((1-$L$7)*('COT 43'!L37),2) -> 1.58 | I130: 4.74 | J130: 1.78 | K130: 5.34
B131: 2.4.3 | C131: Eletroduto corrugado tipo PEAD, 1.1/4" | D131: Metro | E131: 10 | F131: SINAPI | G131: 39247 | H131: =TRUNC((1-$L$7)*(VLOOKUP(G131,'INSUMO SINAPI 127V'!$A$2:$D$4985,4,FALSE)),2) -> 3.59 | I131: 35.9 | J131: 4.04 | K131: 40.4
B132: 2.4.4 | C132: Caixa de passagem em concreto 30X30X40 cm | D132: Unidade | E132: 1 | F132: SINAPI | G132: 43429 | H132: =TRUNC((1-$L$7)*(VLOOKUP(G132,'INSUMO SINAPI 127V'!$A$2:$D$4985,4,FALSE)),2) -> 0 | I132: 0 | J132: 0 | K132: 0
B133: 2.4.5 | C133: Conector reto com arruela para eletroduto 1.1/4" | D133: Unidade | E133: 1 | F133: SINAPI | G133: 2526 | H133: =TRUNC((1-$L$7)*(VLOOKUP(G133,'INSUMO SINAPI 127V'!$A$2:$D$4985,4,FALSE)),2) -> 6.29 | I133: 6.29 | J133: 7.08 | K133: 7.08
B134: 2.4.6 | C134: Abraçadeira tipo D, 1.1/4" e cunha de fixação | D134: Unidade | E134: 1 | F134: SINAPI | G134: 39130 | H134: =TRUNC((1-$L$7)*(VLOOKUP(G134,'INSUMO SINAPI 127V'!$A$2:$D$4985,4,FALSE)),2) -> 3.82 | I134: 3.82 | J134: 4.3 | K134: 4.3
B135: 2.5 | C135: Montagem do Sistema Elétrico | K135: =SUM(K136:K138) -> 999.2
B136: 2.5.1 | C136: Eletrotécnico (horista), INCLUSIDE ENCARGOS SOCIAIS | D136: h | E136: 8 | F136: EMOP | G136: 1916 | H136: =TRUNC((1-$L$7)*(VLOOKUP(G136,'OUTROS BANCOS 127V'!$C$2:$E$75,3,FALSE)),2) -> 34.86 | I136: =H136*E136 -> 278.88 | J136: =H136*(1+$L$4) -> 43.56 | K136: =TRUNC(E136*J136,2) -> 348.48
B137: 2.5.2 | C137: Auxiliar de Eletricista com encargos complementares | D137: h | E137: 16 | F137: AGESUL | G137: 88247 | H137: =TRUNC((1-$L$7)*(VLOOKUP(G137,'OUTROS BANCOS 127V'!$C$2:$E$75,3,FALSE)),2) -> 23.83 | I137: =H137*E137 -> 381.28 | J137: =H137*(1+$L$4) -> 29.78 | K137: =TRUNC(E137*J137,2) -> 476.48
B138: 2.5.3 | C138: Comissionamento - Eletrotécnico, INCLUSIVE ENCARGOS SOCIAIS | D138: h | E138: 4 | F138: EMOP | G138: 1916 | H138: =TRUNC((1-$L$7)*(VLOOKUP(G138,'OUTROS BANCOS 127V'!$C$2:$E$75,3,FALSE)),2) -> 34.86 | I138: =H138*E138 -> 139.44 | J138: =H138*(1+$L$4) -> 43.56 | K138: =TRUNC(E138*J138,2) -> 174.24
B139: 2.6 | C139: Emissão de ART | K139: =K140 -> 321.29
B140: 2.6.1 | C140: Emissão de ART | D140: um | E140: 1 | F140: PRÓPRIA | G140: CPU1 | H140: =TRUNC((1-$L$7)*('CPU2'!J7),2) -> 285.59 | I140: =H140*E140 -> 285.59 | J140: =H140*(1+$L$5) -> 321.29 | K140: =TRUNC(E140*J140,2) -> 321.29
B141: TOTAL | K141: =SUM(K80,K12) -> 50713.34
K142: 41597.12

Sheet ORIENTAÇÕES E ADVERTÊNCIAS (hidden)
A1: A Norma N-440 estabelece critérios objetivos para pesquisa e análise crítica de preços de referência para aquisição de bens e contratação de serviços em geral.
A3: Esta planilha possui caráter unicamente sugestivo e foi elaborada visando melhorar a transparência dos processos de pesquisa de preços efetivados no âmbito da Codevasf, em suporte à aplicação da Norma N-440.
A5: O uso desta planilha é responsabilidade exclusiva do(a) analista que efetuar a pesquisa de preços, que deve conferir os dados inseridos e cálculos realizados para a obtenção do preço estimado.
A7: A N-440 apresenta os parâmetros para a aplicação de metodologia(s) de exclusão de preços inexequíveis, inconsistentes ou excessivamente elevados.
A9: Etapas de preenchimento da planilha e orientações:
A10: Etapa | B10: Células Referenciadas | C10: Descrição | D10: Coluna1
A11: 1 | B11: C2 a C5 | C11: Insira as informações de processo, responsável e data referentes à pesquisa de preços.
A12: 2 | B12: C7 | C12: Insira a descrição do item submetido à pesquisa de preços.
A13: 3 | B13: J7 | C13: Insira a unidade de medida do item (unidade, comprimento, volume, etc).
A14: 4 | B14: L7 | C14: Insira a quantidade pesquisada para contratação.
A15: 5 | B15: B10 a F16 | C15: Insira as informações pertinentes às licitações e contratações realizadas pela Administração Pública, se houver.
A16: 6 | B16: G10 a I16 | C16: Informe o índice de atualização de preços, se for o caso, e a variação acumulada.
A17: 7 | B17: B19 a K29 | C17: Insira as informações obtidas em pesquisa direta de mercado (cotações), se houver.
A18: 8 | B18: O35 | C18: O(a) analista deve avaliar se aplicará a metodologia e o preço estimado sugeridos automaticamente (Outliers) ou se modificará a metodologia manualmente na lista suspensa existente na célula O35.
A19: 9 | B19: P10 a P29 | C19: Caso o(a) analista selecione a opção de metodologia de exclusão de preços "Por critério do(a) analista", deverá selecionar no botão lateral ou preencher manualmente com "Sim" ou "Não", nas células P10 a P29, quais preços serão utilizados no cálculo do preço estimado.
A20: 10 | B20: L32 | C20: Automaticamente, a célula L32 informa qual foi a metodologia de exclusão de preços adotada pelo(a) analista.
A21: 11 | B21: L37 | C21: Automaticamente, a célula L37 informa o preço estimado calculado com base nas informações e seleções efetivadas pelo(a) analista.
A22: 12 | B22: N7 a P35 | C22: Contém a Tabela Auxiliar pertinente às metodologias de exclusão de preços inexequíveis, inconsistentes ou excessivamente elevados. Apenas as células P10 a P29 são passíveis de preenchimento e se aplicam caso seja selecionada a metodologia de exclusão de preços "Por critério do(a) analista".
A23: 13 | B23: L35 | C23: Cabe ao analista selecionar no botão escolhendo a média ou mediana conforme melhor cenário para sua composição de preços de referência.
A24: 14 | C24: Caso haja a necessidade de inserção de mais linhas nos campos de informações de licitações/contratações realizadas pela Administração Pública e pesquisa direta de mercado (cotações), deve-se observar que as células: J10:J16 (Variação acumulada do índice (%)); K10:K16 (Preço unitário atualizado); L10:L16, L19:L29 (Utilizar? (Sim/Não)); O10:O16, O19:O29 (Outliers), estão automatizas com fórmulas e portanto o (a) analista deve copiar as mesmas fórmulas para as novas linhas inseridas.
A25: 15 | C25: Replique as etapas acima em planilhas/abas individuais para cada item pesquisado. Para isso, crie cópia(s) das planilhas/abas pré-existentes.
A27: Existem células bloqueadas na planilha, caso apresentem divergências contate a AG/GCT.

Sheet OUTROS BANCOS (hidden)
A1: ITEM | B1: PESQUISA DE PREÇOS (SIST. REF. / COT) | C1: CÓDIGO | D1: DATA | E1: PREÇO
A2: 1 | B2: ORSE | C2: 9550 | D2: 2025-11-01 | E2: 0.96
A3: 2 | B3: SEINFRA | C3: I9557 | D3: 028 | E3: 0.87
A4: 3 | B4: EMBASA | C4: M019000003 | D4: 2025-06-01 | E4: 0.77
A5: 4 | B5: SEINFRA | C5: I9775 | D5: 028 | E5: 1.01
A6: 5 | B6: ORSE | C6: 8369 | D6: 2025-11-01 | E6: 13.88
A7: 7 | B7: ORSE | C7: 14068 | D7: 2025-11-01 | E7: 9.74
A8: 8 | B8: SCO | C8: MAT118400 | D8: 2026-01-01 | E8: 11.1
A9: 9 | B9: SBC | C9: 5385 | D9: 2026-01-01 | E9: 14.27
A10: 10 | B10: ORSE | C10: 2113 | D10: 2025-11-01 | E10: 9.68
A11: 11 | B11: ORSE | C11: 14060 | D11: 2025-11-01 | E11: 4.23
A12: 12 | B12: SBC | C12: 5708 | D12: 2026-01-01 | E12: 32.9
A13: 13 | B13: EMOP | C13: 7153 | D13: 2025-12-01 | E13: 25.63
A14: 14 | B14: ORSE | C14: 2115 | D14: 2025-11-01 | E14: 57.66
A15: 15 | B15: SBC | C15: 5719 | D15: 2026-01-01 | E15: 32.23
A16: 16 | B16: EMBASA | C16: M080800108 | D16: 2025-06-01 | E16: 49.34
A17: 17 | B17: SBC | C17: 8784 | D17: 2026-01-01 | E17: 94
A18: 18 | B18: EMBASA | C18: M021519005 | D18: 2025-06-01 | E18: 6.75
A19: 19 | B19: ORSE | C19: 14059 | D19: 2025-11-01 | E19: 8.5
A20: 20 | B20: ORSE | C20: 9502 | D20: 2025-11-01 | E20: 40.52
A21: 21 | B21: SBC | C21: 5387 | D21: 2026-01-01 | E21: 100.54
A22: 22 | B22: ORSE | C22: 2604 | D22: 2025-11-01 | E22: 109.45
A23: 23 | B23: EMOP | C23: 5102 | D23: 2025-12-01 | E23: 54.85
A24: 25 | B24: SBC | C24: 36795 | D24: 2026-01-01 | E24: 1
A25: 26 | B25: AGETOP CIVIL | C25: 1674 | D25: 2025-10-01 | E25: 1.2
A26: 27 | B26: EMOP | C26: 10984 | D26: 2025-12-01 | E26: 75.3
A27: 28 | B27: EMOP | C27: 14610 | D27: 2025-12-01 | E27: 182.91
A28: 29 | B28: AGESUL | C28: 4005 | D28: 2026-01-01 | E28: 27.84
A29: 30 | B29: AGESUL | C29: 4052 | D29: 2026-01-01 | E29: 22.99
A30: 31 | B30: SBC | C30: 46336 | D30: 2026-01-01 | E30: 95.07
A31: 32 | B31: IOPES | C31: 48342 | D31: 2025-12-01 | E31: 10.95
A32: 33 | B32: SETOP | C32: MATED-12988 | D32: 2025-10-01 | E32: 18.18
A33: 34 | B33: ORSE | C33: 4628 | D33: 2025-11-01 | E33: 15.22
A34: 35 | B34: ORSE | C34: 3814 | D34: 2025-11-01 | E34: 26.73
A35: 37 | B35: SCO | C35: MAT050850 | D35: 2026-01-01 | E35: 131.83
A36: 40 | B36: SBC | C36: 53375 | D36: 2026-01-01 | E36: 355.25
A37: 41 | B37: SETOP | C37: MATED-17646 | D37: 2025-01-01 | E37: 15.38
A38: 42 | B38: SETOP | C38: MATED-17647 | D38: 2025-01-01 | E38: 20.58
A39: 43 | B39: SEINFRA | C39: I7410 | D39: 028 | E39: 11.56
A40: 44 | B40: SBC | C40: 10562 | D40: 2026-01-01 | E40: 22.06
A41: 48 | B41: IOPES | C41: 44951 | D41: 2025-12-01 | E41: 31.32
A42: 49 | B42: AGETOP CIVIL | C42: 3756 | D42: 2025-10-01 | E42: 262.72
A43: 50 | B43: CAEMA | C43: M101705141 | E43: 308.46 | F43: ANO 2019 (ITEM REPETIDO 73)
A44: 51 | B44: CPOS | C44: P.13.000.042461 | D44: 2026-01-01 | E44: 37.72
A45: 52 | B45: SETOP | C45: MATED-19494 | D45: 2025-10-01 | E45: 18.4
A46: 53 | B46: ORSE | C46: 12379 | D46: 2025-11-01 | E46: 18.32
A47: 54 | B47: SBC | C47: 28100 | D47: 2026-01-01 | E47: 159
A48: 55 | B48: ORSE | C48: 7551 | D48: 2025-11-01 | E48: 4.73
A49: 57 | B49: ORSE | C49: 8347 | D49: 2025-11-01 | E49: 0.05
A50: 58 | B50: SEINFRA | C50: I1008 | D50: 028 | E50: 60.13
A51: 61 | B51: SEDOP | C51: E00189 | D51: 2025-10-01 | E51: 62.63
A52: 62 | B52: SINAPI | C52: 2617 | D52: 2026-01-01 | E52: 7.11
A53: 63 | B53: SETOP | C53: MATED-12288 | D53: 2025-10-01 | E53: 7.5
A54: 71 | B54: EMOP | C54: 1916 | D54: 2025-12-01 | E54: 34.86
A55: 72 | B55: AGESUL | C55: 88247 | D55: 2026-01-01 | E55: 23.83
A56: 73 | B56: CAEMA | C56: M101705141 | E56: 308.46 | F56: ANO 2019 (ITEM REPETIDO 50)
A57: 74 | B57: SEINFRA | C57: I3145 | D57: 028 | E57: 77.3
A58: 75 | B58: SBC | C58: 46336 | D58: 2026-01-01 | E58: 95.07
A59: 76 | B59: IOPES | C59: 48342 | D59: 2025-12-01 | E59: 10.95
A60: 77 | B60: ORSE | C60: 4628 | D60: 2025-08-01 | E60: 55
A61: 78 | B61: SBC | C61: 53375 | D61: 2026-01-01 | E61: 355.25
A62: 79 | B62: EMBASA | C62: M103900330 | D62: 2025-06-01 | E62: 216.48
A63: 80 | B63: ORSE | C63: 7551 | D63: 2025-11-01 | E63: 4.95
A64: 81 | B64: ORSE | C64: 8347 | D64: 2025-11-01 | E64: 0.05
A65: 82 | B65: SEINFRA | C65: I10080 | D65: 028 | E65: 0.14
A66: 83 | B66: ORSE | C66: 2145 | D66: 2025-11-01 | E66: 18.75
A67: 84 | B67: SEINFRA | C67: I2241 | D67: 028 | E67: 88.02
A68: 85 | B68: SEINFRA | C68: I2242 | D68: 028 | E68: 229.21
A69: 86 | B69: SEINFRA | C69: I3138 | D69: 028 | E69: 45.38
A70: 87 | B70: SEINFRA | C70: I9640 | D70: 027 | E70: 184.5
A71: 88 | B71: ORSE | C71: 9504 | D71: 2025-11-01 | E71: 16.82
A72: 89 | B72: ORSE | C72: 1434 | D72: 2025-11-01 | E72: 28.58
A73: 90 | B73: ORSE | C73: 2365 | D73: 2025-11-01 | E73: 54.89
A74: 91 | B74: ORSE | C74: 2367 | D74: 2025-11-01 | E74: 283.58
A75: 92 | B75: ORSE | C75: 9505 | D75: 2025-11-01 | E75: 41.27
A76: 93 | B76: SEINFRA | C76: I9811 | D76: 028 | E76: 0.85
A77: 94 | B77: EMOP | C77: 2352 | D77: 2025-12-01 | E77: 25.39

Sheet INSUMO SINAPI (hidden)
A1: Código do Insumo | B1: Descrição do Insumo | C1: Unidade | D1: MT | F1: 2026-01-01
A2: 45333 | B2: ABERTURA PARA ENCAIXE DE CUBA OU LAVATORIO EM BANCADA DE MARMORE/ GRANITO OU OUTRO TIPO DE PEDRA NATURAL | C2: UN | D2: 156.37 | F2: MT
A3: 11270 | B3: ABRACADEIRA DE LATAO PARA FIXACAO DE CABO PARA-RAIO, DIMENSOES 32 X 24 X 24 MM | C3: UN | D3: 2.46 | F3: CUIABA
A4: 412 | B4: ABRACADEIRA DE NYLON PARA AMARRACAO DE CABOS, COMPRIMENTO DE *230* X *7,6* MM | C4: UN | D4: 1.18 | F4: 1.0533
A5: 414 | B5: ABRACADEIRA DE NYLON PARA AMARRACAO DE CABOS, COMPRIMENTO DE 100 X 2,5 MM | C5: UN | D5: 0.07 | F5: 0.6783
A6: 410 | B6: ABRACADEIRA DE NYLON PARA AMARRACAO DE CABOS, COMPRIMENTO DE 150 X *3,6* MM | C6: UN | D6: 0.18
A7: 411 | B7: ABRACADEIRA DE NYLON PARA AMARRACAO DE CABOS, COMPRIMENTO DE 200 X *4,6* MM | C7: UN | D7: 0.23
A8: 408 | B8: ABRACADEIRA DE NYLON PARA AMARRACAO DE CABOS, COMPRIMENTO DE 390 X *4,6* MM | C8: UN | D8: 1.14
A9: 39131 | B9: ABRACADEIRA EM ACO PARA AMARRACAO DE ELETRODUTOS, TIPO D, COM 1 1/2" E CUNHA DE FIXACAO | C9: UN | D9: 4.18
A10: 394 | B10: ABRACADEIRA EM ACO PARA AMARRACAO DE ELETRODUTOS, TIPO D, COM 1 1/2" E PARAFUSO DE FIXACAO | C10: UN | D10: 4.23
A11: 39130 | B11: ABRACADEIRA EM ACO PARA AMARRACAO DE ELETRODUTOS, TIPO D, COM 1 1/4" E CUNHA DE FIXACAO | C11: UN | D11: 3.82
A12: 395 | B12: ABRACADEIRA EM ACO PARA AMARRACAO DE ELETRODUTOS, TIPO D, COM 1 1/4" E PARAFUSO DE FIXACAO | C12: UN | D12: 4.08
A13: 39129 | B13: ABRACADEIRA EM ACO PARA AMARRACAO DE ELETRODUTOS, TIPO D, COM 1" E CUNHA DE FIXACAO | C13: UN | D13: 2.35
A14: 393 | B14: ABRACADEIRA EM ACO PARA AMARRACAO DE ELETRODUTOS, TIPO D, COM 1" E PARAFUSO DE FIXACAO | C14: UN | D14: 2.46
A15: 39127 | B15: ABRACADEIRA EM ACO PARA AMARRACAO DE ELETRODUTOS, TIPO D, COM 1/2" E CUNHA DE FIXACAO | C15: UN | D15: 2.01
A16: 392 | B16: ABRACADEIRA EM ACO PARA AMARRACAO DE ELETRODUTOS, TIPO D, COM 1/2" E PARAFUSO DE FIXACAO | C16: UN | D16: 2.06
A17: 39133 | B17: ABRACADEIRA EM ACO PARA AMARRACAO DE ELETRODUTOS, TIPO D, COM 2 1/2" E CUNHA DE FIXACAO | C17: UN | D17: 5.49
A18: 397 | B18: ABRACADEIRA EM ACO PARA AMARRACAO DE ELETRODUTOS, TIPO D, COM 2 1/2" E PARAFUSO DE FIXACAO | C18: UN | D18: 6.07
A19: 39132 | B19: ABRACADEIRA EM ACO PARA AMARRACAO DE ELETRODUTOS, TIPO D, COM 2" E CUNHA DE FIXACAO | C19: UN | D19: 4.39
A20: 396 | B20: ABRACADEIRA EM ACO PARA AMARRACAO DE ELETRODUTOS, TIPO D, COM 2" E PARAFUSO DE FIXACAO | C20: UN | D20: 4.71
A21: 39135 | B21: ABRACADEIRA EM ACO PARA AMARRACAO DE ELETRODUTOS, TIPO D, COM 3 1/2" E CUNHA DE FIXACAO | C21: UN | D21: 8.79
A22: 39134 | B22: ABRACADEIRA EM ACO PARA AMARRACAO DE ELETRODUTOS, TIPO D, COM 3" E CUNHA DE FIXACAO | C22: UN | D22: 7.32
A23: 398 | B23: ABRACADEIRA EM ACO PARA AMARRACAO DE ELETRODUTOS, TIPO D, COM 3" E PARAFUSO DE FIXACAO | C23: UN | D23: 6.75
A24: 39128 | B24: ABRACADEIRA EM ACO PARA AMARRACAO DE ELETRODUTOS, TIPO D, COM 3/4" E CUNHA DE FIXACAO | C24: UN | D24: 2.19
A25: 400 | B25: ABRACADEIRA EM ACO PARA AMARRACAO DE ELETRODUTOS, TIPO D, COM 3/4" E PARAFUSO DE FIXACAO | C25: UN | D25: 2.14
A26: 39125 | B26: ABRACADEIRA EM ACO PARA AMARRACAO DE ELETRODUTOS, TIPO D, COM 3/8" E PARAFUSO DE FIXACAO | C26: UN | D26: 2.19
A27: 39126 | B27: ABRACADEIRA EM ACO PARA AMARRACAO DE ELETRODUTOS, TIPO D, COM 4" E CUNHA DE FIXACAO | C27: UN | D27: 9.89
A28: 399 | B28: ABRACADEIRA EM ACO PARA AMARRACAO DE ELETRODUTOS, TIPO D, COM 4" E PARAFUSO DE FIXACAO | C28: UN | D28: 8.71
A29: 39158 | B29: ABRACADEIRA EM ACO PARA AMARRACAO DE ELETRODUTOS, TIPO ECONOMICA (GOTA), COM 8" | C29: UN | D29: 23.39
A30: 39141 | B30: ABRACADEIRA EM ACO PARA AMARRACAO DE ELETRODUTOS, TIPO U SIMPLES, COM 1 1/2" | C30: UN | D30: 1.7
A31: 39140 | B31: ABRACADEIRA EM ACO PARA AMARRACAO DE ELETRODUTOS, TIPO U SIMPLES, COM 1 1/4" | C31: UN | D31: 1.54
A32: 39139 | B32: ABRACADEIRA EM ACO PARA AMARRACAO DE ELETRODUTOS, TIPO U SIMPLES, COM 1" | C32: UN | D32: 1.28
A33: 39137 | B33: ABRACADEIRA EM ACO PARA AMARRACAO DE ELETRODUTOS, TIPO U SIMPLES, COM 1/2" | C33: UN | D33: 0.88
A34: 39143 | B34: ABRACADEIRA EM ACO PARA AMARRACAO DE ELETRODUTOS, TIPO U SIMPLES, COM 2 1/2" | C34: UN | D34: 3.5
A35: 39142 | B35: ABRACADEIRA EM ACO PARA AMARRACAO DE ELETRODUTOS, TIPO U SIMPLES, COM 2" | C35: UN | D35: 2.51
A36: 39144 | B36: ABRACADEIRA EM ACO PARA AMARRACAO DE ELETRODUTOS, TIPO U SIMPLES, COM 3" | C36: UN | D36: 4.08
A37: 39138 | B37: ABRACADEIRA EM ACO PARA AMARRACAO DE ELETRODUTOS, TIPO U SIMPLES, COM 3/4" | C37: UN | D37: 0.94
A38: 39136 | B38: ABRACADEIRA EM ACO PARA AMARRACAO DE ELETRODUTOS, TIPO U SIMPLES, COM 3/8" | C38: UN | D38: 0.62
A39: 39145 | B39: ABRACADEIRA EM ACO PARA AMARRACAO DE ELETRODUTOS, TIPO U SIMPLES, COM 4" | C39: UN | D39: 6.72
A40: 12615 | B40: ABRACADEIRA PVC, PARA CALHA PLUVIAL, DIAMETRO ENTRE *80 E 100* MM, PARA DRENAGEM PLUVIAL PREDIAL | C40: UN | D40: 13.71
A41: 11927 | B41: ABRACADEIRA, GALVANIZADA/ZINCADA, ROSCA SEM FIM, PARAFUSO INOX, LARGURA FITA *12,6 A *14 MM, D = 2" A 2 1/2" | C41: UN | D41: 7.34
A42: 11928 | B42: ABRACADEIRA, GALVANIZADA/ZINCADA, ROSCA SEM FIM, PARAFUSO INOX, LARGURA FITA *12,6 A *14 MM, D = 3" A 3 3/4" | C42: UN | D42: 8.41
A43: 11929 | B43: ABRACADEIRA, GALVANIZADA/ZINCADA, ROSCA SEM FIM, PARAFUSO INOX, LARGURA FITA *12,6 A *14 MM, D = 4" A 4 3/4" | C43: UN | D43: 13.01
A44: 36801 | B44: ACABAMENTO DE METAL CROMADO PARA REGISTRO PEQUENO, DE PAREDE, 1/2" OU 3/4" | C44: UN | D44: 42.77
A45: 36246 | B45: ACABAMENTO SIMPLES/CONVENCIONAL PARA FORRO PVC, TIPO "U" OU "C", COR BRANCA, COMPRIMENTO 6 M | C45: M | D45: 4.27
A46: 37600 | B46: ACESSORIO DE LIGACAO NAO ELETRICO PARA CARGAS EXPLOSIVAS, TUBO DE 6 M | C46: UN
A47: 37599 | B47: ACESSORIO INICIADOR NAO ELETRICO, TUBO DE 6 M, TEMPO DE RETARDO DE *160* MS | C47: UN
A48: 1 | B48: ACETILENO - RECARGA DE GAS PARA CILINDRO (NAO INCLUI TROCA/MANUTENCAO DO CILINDRO) | C48: KG | D48: 119.64
A49: 3 | B49: ACIDO CLORIDRICO / ACIDO MURIATICO, DILUICAO 10% A 12% PARA USO EM LIMPEZA | C49: L | D49: 16.84
A50: 43054 | B50: ACO CA-25, 10,0 MM, OU 12,5 MM, OU 16,0 MM, OU 20,0 MM, OU 25,0 MM, VERGALHAO | C50: KG | D50: 8.77
A51: 42402 | B51: ACO CA-25, 16,0 MM, BARRA DE TRANSFERENCIA | C51: KG | D51: 8.38
A52: 42403 | B52: ACO CA-25, 20,0 MM, BARRA DE TRANSFERENCIA | C52: KG | D52: 10.75
A53: 42404 | B53: ACO CA-25, 25,0 MM, BARRA DE TRANSFERENCIA | C53: KG | D53: 10.69
A54: 42405 | B54: ACO CA-25, 32,0 MM, BARRA DE TRANSFERENCIA | C54: KG | D54: 11.39
A55: 34341 | B55: ACO CA-25, 32,0 MM, VERGALHAO | C55: KG | D55: 9.88
A56: 43053 | B56: ACO CA-25, 6,3 MM OU 8,0 MM, VERGALHAO | C56: KG | D56: 7.83
A57: 43058 | B57: ACO CA-50, 10,0 MM, OU 12,5 MM, OU 16,0 MM, OU 20,0 MM, DOBRADO E CORTADO | C57: KG | D57: 8.12
A58: 34 | B58: ACO CA-50, 10,0 MM, VERGALHAO | C58: KG | D58: 8.16
A59: 43055 | B59: ACO CA-50, 12,5 MM OU 16,0 MM, VERGALHAO | C59: KG | D59: 7.07
A60: 43056 | B60: ACO CA-50, 20,0 MM OU 25,0 MM, VERGALHAO | C60: KG | D60: 8.15
A61: 43057 | B61: ACO CA-50, 32,0 MM, VERGALHAO | C61: KG | D61: 8.96
A62: 34449 | B62: ACO CA-50, 6,3 MM, DOBRADO E CORTADO | C62: KG | D62: 9.57
A63: 32 | B63: ACO CA-50, 6,3 MM, VERGALHAO | C63: KG | D63: 8.61
A64: 33 | B64: ACO CA-50, 8,0 MM, VERGALHAO | C64: KG | D64: 8.66
A65: 43061 | B65: ACO CA-60, 4,2 MM OU 5,0 MM, DOBRADO E CORTADO | C65: KG | D65: 8.09
A66: 43059 | B66: ACO CA-60, 4,2 MM, OU 5,0 MM, OU 6,0 MM, OU 7,0 MM, VERGALHAO | C66: KG | D66: 7.72
A67: 43062 | B67: ACO CA-60, 6,0 MM OU 7,0 MM, DOBRADO E CORTADO | C67: KG | D67: 8.56
A68: 43060 | B68: ACO CA-60, 8,0 MM OU 9,5 MM, VERGALHAO | C68: KG | D68: 6.73
A69: 40410 | B69: ACOPLAMENTO RIGIDO EM FERRO FUNDIDO PARA SISTEMA DE TUBULACAO RANHURADA, DN 50 MM (2") | C69: UN
A70: 40411 | B70: ACOPLAMENTO RIGIDO EM FERRO FUNDIDO PARA SISTEMA DE TUBULACAO RANHURADA, DN 65 MM (2 1/2") | C70: UN
A71: 40412 | B71: ACOPLAMENTO RIGIDO EM FERRO FUNDIDO PARA SISTEMA DE TUBULACAO RANHURADA, DN 80 MM (3") | C71: UN
A72: 44254 | B72: ADAPTADOR CPVC, ROSCAVEL, COM FLANGES E ANEL DE VEDACAO, 15 MM, CAIXA D'AGUA PARA AGUA QUENTE | C72: UN | D72: 31.92
A73: 44255 | B73: ADAPTADOR CPVC, ROSCAVEL, COM FLANGES E ANEL DE VEDACAO, 22 MM, CAIXA D'AGUA PARA AGUA QUENTE | C73: UN | D73: 35.38
A74: 44256 | B74: ADAPTADOR CPVC, ROSCAVEL, COM FLANGES E ANEL DE VEDACAO, 28 MM, CAIXA D'AGUA PARA AGUA QUENTE | C74: UN | D74: 39.96
A75: 44257 | B75: ADAPTADOR CPVC, ROSCAVEL, COM FLANGES E ANEL DE VEDACAO, 35 MM, CAIXA D'AGUA PARA AGUA QUENTE | C75: UN | D75: 63.23
A76: 44258 | B76: ADAPTADOR CPVC, ROSCAVEL, COM FLANGES E ANEL DE VEDACAO, 42 MM, CAIXA D'AGUA PARA AGUA QUENTE | C76: UN | D76: 72.26
A77: 44259 | B77: ADAPTADOR CPVC, ROSCAVEL, COM FLANGES E ANEL DE VEDACAO, 54 MM, CAIXA D'AGUA PARA AGUA QUENTE | C77: UN | D77: 99.18
A78: 37997 | B78: ADAPTADOR CPVC, SOLDAVEL, 15 MM, PARA AGUA QUENTE | C78: UN | D78: 19.02
A79: 37998 | B79: ADAPTADOR CPVC, SOLDAVEL, 22 MM, PARA AGUA QUENTE | C79: UN | D79: 25.46
A80: 55 | B80: ADAPTADOR DE COMPRESSAO EM POLIPROPILENO (PP), PARA TUBO EM PEAD, 20 MM X 1/2", PARA LIGACAO PREDIAL DE AGUA (NTS 179) | C80: UN
A81: 61 | B81: ADAPTADOR DE COMPRESSAO EM POLIPROPILENO (PP), PARA TUBO EM PEAD, 20 MM X 3/4", PARA LIGACAO PREDIAL DE AGUA (NTS 179) | C81: UN
A82: 62 | B82: ADAPTADOR DE COMPRESSAO EM POLIPROPILENO (PP), PARA TUBO EM PEAD, 32 MM X 1", PARA LIGACAO PREDIAL DE AGUA (NTS 179) | C82: UN
A83: 10899 | B83: ADAPTADOR EM LATAO, ENGATE RAPIDO 2 1/2" X ROSCA INTERNA 5 FIOS 2 1/2", PARA INSTALACAO PREDIAL DE COMBATE A INCENDIO | C83: UN | D83: 59.11
A84: 10900 | B84: ADAPTADOR EM LATAO, ENGATE RAPIDO1 1/2" X ROSCA INTERNA 5 FIOS 2 1/2", PARA INSTALACAO PREDIAL DE COMBATE A INCENDIO | C84: UN | D84: 46.26
A85: 47 | B85: ADAPTADOR PVC PBA, BOLSA/ROSCA, JE, DN 100 / DE 110 MM | C85: UN | D85: 78.34
A86: 48 | B86: ADAPTADOR PVC PBA, BOLSA/ROSCA, JE, DN 50 / DE 60 MM | C86: UN | D86: 20.43
A87: 46 | B87: ADAPTADOR PVC PBA, BOLSA/ROSCA, JE, DN 75 / DE 85 MM | C87: UN | D87: 45.81
A88: 52 | B88: ADAPTADOR PVC PBA, PONTA/ROSCA, JE, DN 50 / DE 60 MM | C88: UN | D88: 15.52
A89: 43 | B89: ADAPTADOR PVC PBA, PONTA/ROSCA, JE, DN 75 / DE 85 MM | C89: UN | D89: 52.39
A90: 103 | B90: ADAPTADOR PVC SOLDAVEL CURTO COM BOLSA E ROSCA, 110 MM X 4", PARA AGUA FRIA | C90: UN | D90: 40.93
A91: 107 | B91: ADAPTADOR PVC SOLDAVEL CURTO COM BOLSA E ROSCA, 20 MM X 1/2", PARA AGUA FRIA | C91: UN | D91: 0.77
A92: 65 | B92: ADAPTADOR PVC SOLDAVEL CURTO COM BOLSA E ROSCA, 25 MM X 3/4", PARA AGUA FRIA | C92: UN | D92: 0.84
A93: 108 | B93: ADAPTADOR PVC SOLDAVEL CURTO COM BOLSA E ROSCA, 32 MM X 1", PARA AGUA FRIA | C93: UN | D93: 1.69
A94: 110 | B94: ADAPTADOR PVC SOLDAVEL CURTO COM BOLSA E ROSCA, 40 MM X 1 1/2", PARA AGUA FRIA | C94: UN | D94: 5.89
A95: 109 | B95: ADAPTADOR PVC SOLDAVEL CURTO COM BOLSA E ROSCA, 40 MM X 1 1/4", PARA AGUA FRIA | C95: UN | D95: 3.51
A96: 111 | B96: ADAPTADOR PVC SOLDAVEL CURTO COM BOLSA E ROSCA, 50 MM X 1 1/4", PARA AGUA FRIA | C96: UN | D96: 7.97
A97: 112 | B97: ADAPTADOR PVC SOLDAVEL CURTO COM BOLSA E ROSCA, 50 MM X1 1/2", PARA AGUA FRIA | C97: UN | D97: 4.22
A98: 113 | B98: ADAPTADOR PVC SOLDAVEL CURTO COM BOLSA E ROSCA, 60 MM X 2", PARA AGUA FRIA | C98: UN | D98: 10.57
A99: 104 | B99: ADAPTADOR PVC SOLDAVEL CURTO COM BOLSA E ROSCA, 75 MM X 2 1/2", PARA AGUA FRIA | C99: UN | D99: 18.4
A100: 102 | B100: ADAPTADOR PVC SOLDAVEL CURTO COM BOLSA E ROSCA, 85 MM X 3", PARA AGUA FRIA | C100: UN | D100: 25.36
A101: 95 | B101: ADAPTADOR PVC SOLDAVEL, COM FLANGE E ANEL DE VEDACAO, 20 MM X 1/2", PARA CAIXA D'AGUA | C101: UN | D101: 10.72
A102: 96 | B102: ADAPTADOR PVC SOLDAVEL, COM FLANGE E ANEL DE VEDACAO, 25 MM X 3/4", PARA CAIXA D'AGUA | C102: UN | D102: 11.66
A103: 97 | B103: ADAPTADOR PVC SOLDAVEL, COM FLANGE E ANEL DE VEDACAO, 32 MM X 1", PARA CAIXA D'AGUA | C103: UN | D103: 17.54
A104: 98 | B104: ADAPTADOR PVC SOLDAVEL, COM FLANGE E ANEL DE VEDACAO, 40 MM X 1 1/4", PARA CAIXA D'AGUA | C104: UN | D104: 26.26
A105: 99 | B105: ADAPTADOR PVC SOLDAVEL, COM FLANGE E ANEL DE VEDACAO, 50 MM X 1 1/2", PARA CAIXA D'AGUA | C105: UN | D105: 24.81
A106: 60 | B106: ADAPTADOR PVC, COM REGISTRO, PARA PEAD, 20 MM X 3/4", PARA LIGACAO PREDIAL DE AGUA | C106: UN
A107: 72 | B107: ADAPTADOR PVC, ROSCAVEL, COM FLANGES E ANEL DE VEDACAO, 1 1/2", PARA CAIXA D'AGUA | C107: UN | D107: 47.59
A108: 71 | B108: ADAPTADOR PVC, ROSCAVEL, COM FLANGES E ANEL DE VEDACAO, 1", PARA CAIXA D'AGUA | C108: UN | D108: 29.39
A109: 67 | B109: ADAPTADOR PVC, ROSCAVEL, COM FLANGES E ANEL DE VEDACAO, 1/2", PARA CAIXA D'AGUA | C109: UN | D109: 15.39
A110: 73 | B110: ADAPTADOR PVC, ROSCAVEL, COM FLANGES E ANEL DE VEDACAO, 3/4", PARA CAIXA D'AGUA | C110: UN | D110: 14.72
A111: 100 | B111: ADAPTADOR PVC, SOLDAVEL, COM FLANGES E ANEL DE VEDACAO, 60 MM X 2", PARA CAIXA D'AGUA | C111: UN | D111: 43.36
A112: 75 | B112: ADAPTADOR PVC, SOLDAVEL, COM FLANGES LIVRES, 110 MM X 4", PARA CAIXA D'AGUA | C112: UN | D112: 252.78
A113: 83 | B113: ADAPTADOR PVC, SOLDAVEL, COM FLANGES LIVRES, 75 MM X 2 1/2", PARA CAIXA D'AGUA | C113: UN | D113: 202.09
A114: 74 | B114: ADAPTADOR PVC, SOLDAVEL, COM FLANGES LIVRES, 85 MM X 3", PARA CAIXA D'AGUA | C114: UN | D114: 288.93
A115: 106 | B115: ADAPTADOR PVC, SOLDAVEL, LONGO, COM FLANGE LIVRE, 110 MM X 4", PARA CAIXA D'AGUA | C115: UN | D115: 365.36
A116: 88 | B116: ADAPTADOR PVC, SOLDAVEL, LONGO, COM FLANGE LIVRE, 32 MM X 1", PARA CAIXA D'AGUA | C116: UN | D116: 10.27
A117: 82 | B117: ADAPTADOR PVC, SOLDAVEL, LONGO, COM FLANGE LIVRE, 75 MM X 2 1/2", PARA CAIXA D'AGUA | C117: UN | D117: 192.27
A118: 105 | B118: ADAPTADOR PVC, SOLDAVEL, LONGO, COM FLANGE LIVRE, 85 MM X 3", PARA CAIXA D'AGUA | C118: UN | D118: 272.44
A119: 39719 | B119: ADESIVO / COLA DE CONTATO LIQUIDO, A BASE DE RESINAS, PARA COLAGEM DE ESPUMA PARA ISOLAMENTO TERMICO FLEXIVEL | C119: L | D119: 240.19
A120: 3410 | B120: ADESIVO / COLA PARA EPS (ISOPOR) E OUTROS MATERIAIS | C120: KG | D120: 54.03
A121: 4791 | B121: ADESIVO ACRILICO DE BASE AQUOSA / COLA DE CONTATO | C121: KG | D121: 29.94
A122: 157 | B122: ADESIVO ESTRUTURAL A BASE DE RESINA EPOXI PARA INJECAO EM TRINCAS, BICOMPONENTE, BAIXA VISCOSIDADE | C122: KG | D122: 175.27
A123: 156 | B123: ADESIVO ESTRUTURAL A BASE DE RESINA EPOXI, BICOMPONENTE, FLUIDO | C123: KG | D123: 62.4
A124: 131 | B124: ADESIVO ESTRUTURAL A BASE DE RESINA EPOXI, BICOMPONENTE, PASTOSO (TIXOTROPICO) | C124: KG | D124: 53.37
A125: 21114 | B125: ADESIVO PARA TUBOS CPVC, *75* G | C125: UN | D125: 47.34
A126: 119 | B126: ADESIVO PLASTICO PARA PVC, BISNAGA COM 75 GR | C126: UN | D126: 12
A127: 122 | B127: ADESIVO PLASTICO PARA PVC, FRASCO COM *850* GR | C127: UN | D127: 92.33
A128: 20080 | B128: ADESIVO PLASTICO PARA PVC, FRASCO COM 175 GR | C128: UN | D128: 30.13
A129: 124 | B129: ADITIVO ACELERADOR DE PEGA E ENDURECIMENTO PARA ARGAMASSAS E CONCRETOS, LIQUIDO E ISENTO DE CLORETOS | C129: L | D129: 20.58
A130: 7334 | B130: ADITIVO ADESIVO LIQUIDO PARA ARGAMASSAS DE REVESTIMENTOS CIMENTICIOS | C130: L
A131: 45146 | B131: ADITIVO IMPERMEABILIZANTE CRISTALIZANTE PARA CONCRETO | C131: KG | D131: 39.46
A132: 123 | B132: ADITIVO IMPERMEABILIZANTE DE PEGA NORMAL PARA ARGAMASSAS E CONCRETOS SEM ARMACAO, LIQUIDO E ISENTO DE CLORETOS | C132: L | D132: 8.42
A133: 127 | B133: ADITIVO IMPERMEABILIZANTE DE PEGA ULTRARRAPIDA, LIQUIDO E ISENTO DE CLORETOS | C133: L | D133: 20.1
A134: 133 | B134: ADITIVO LIQUIDO INCORPORADOR DE AR PARA CONCRETO E ARGAMASSA, LIQUIDO E ISENTO DE CLORETOS | C134: L | D134: 8.35
A135: 43617 | B135: ADITIVO PLASTIFICANTE E ESTABILIZADOR PARA ARGAMASSAS DE ASSENTAMENTO E REBOCO, LIQUIDO E ISENTO DE CLORETOS | C135: L | D135: 9.33
A136: 132 | B136: ADITIVO PLASTIFICANTE RETARDADOR DE PEGA E REDUTOR DE AGUA PARA CONCRETO, LIQUIDO E ISENTO DE CLORETOS | C136: L | D136: 8.65
A137: 43618 | B137: ADITIVO SUPERPLASTIFICANTE DE PEGA NORMAL PARA CONCRETO, LIQUIDO E ISENTO DE CLORETOS | C137: KG | D137: 21.79
A138: 37476 | B138: ADUELA/ GALERIA PRE-MOLDADA DE CONCRETO ARMADO, SECAO QUADRADA INTERNA DE 1,50 X 1,50 M (L X A), MISULA DE 20 X 20 CM, C = 1,00 M, ESPESSURA MIN = 15 CM, TB-45 E FCK DO CONCRETO = 30 MPA | C138: UN
A139: 37478 | B139: ADUELA/ GALERIA PRE-MOLDADA DE CONCRETO ARMADO, SECAO RETANGULAR INTERNA DE 2,00 X 2,00 M (L X A), MISULA DE 20 X 20 CM, C = 1,00 M, ESPESSURA MIN = 15 CM, TB-45 E FCK DO CONCRETO = 30 MPA | C139: UN
A140: 37477 | B140: ADUELA/ GALERIA PRE-MOLDADA DE CONCRETO ARMADO, SECAO RETANGULAR INTERNA DE 2,50 X 2,50 M (L X A), MISULA DE 20 X 20 CM, C = 1,00 M, ESPESSURA MIN = 15 CM, TB-45 E FCK DO CONCRETO = 30 MPA | C140: UN
A141: 37479 | B141: ADUELA/ GALERIA PRE-MOLDADA DE CONCRETO ARMADO, SECAO RETANGULAR INTERNA DE 3,00 X 3,00 M (L X A), MISULA DE 20 X 20 CM, C = 1.00 M, ESPESSURA MIN = 20 CM, TB-45 E FCK DO CONCRETO = 30 MPA | C141: UN
A142: 4319 | B142: AFASTADOR PARA TELHA DE FIBROCIMENTO CANALETE 90 OU KALHETAO | C142: UN | D142: 1.54
A143: 42409 | B143: AGENTE DE CURA, PROTETOR DA EVAPORACAO DA AGUA DE HIDRATACAO DO CONCRETO | C143: KG | D143: 13.72
A144: 40553 | B144: AGREGADO RECICLADO, TIPO RACHAO RECICLADO CINZA, CLASSE A | C144: M3
A145: 6114 | B145: AJUDANTE DE ARMADOR (HORISTA) | C145: H | D145: 17.96
A146: 40912 | B146: AJUDANTE DE ARMADOR (MENSALISTA) | C146: MES | D146: 3231.66
A147: 247 | B147: AJUDANTE DE ELETRICISTA (HORISTA) | C147: H | D147: 17.96
A148: 40919 | B148: AJUDANTE DE ELETRICISTA (MENSALISTA) | C148: MES | D148: 3231.66
A149: 44499 | B149: AJUDANTE DE ESTRUTURAS METALICAS (HORISTA) | C149: H | D149: 17.96
A150: 40984 | B150: AJUDANTE DE ESTRUTURAS METALICAS (MENSALISTA) | C150: MES | D150: 3231.66
A151: 248 | B151: AJUDANTE DE OPERACAO EM GERAL (HORISTA) | C151: H | D151: 17.78
A152: 41086 | B152: AJUDANTE DE OPERACAO EM GERAL (MENSALISTA) | C152: MES | D152: 3198.21
A153: 34466 | B153: AJUDANTE DE PINTOR (HORISTA) | C153: H | D153: 22.29
A154: 41083 | B154: AJUDANTE DE PINTOR (MENSALISTA) | C154: MES | D154: 4011.01
A155: 252 | B155: AJUDANTE DE SERRALHEIRO (HORISTA) | C155: H | D155: 17.96
A156: 40909 | B156: AJUDANTE DE SERRALHEIRO (MENSALISTA) | C156: MES | D156: 3231.66
A157: 242 | B157: AJUDANTE ESPECIALIZADO (HORISTA) | C157: H | D157: 17.78
A158: 41085 | B158: AJUDANTE ESPECIALIZADO (MENSALISTA) | C158: MES | D158: 3198.21
A159: 427 | B159: ALCA PREFORMADA DE CONTRA POSTE, EM ACO GALVANIZADO, PARA CABO 3/16", COMPRIMENTO *860* MM | C159: UN | D159: 11.42
A160: 417 | B160: ALCA PREFORMADA DE DISTRIBUICAO, EM ACO GALVANIZADO, PARA CABO DE ALUMINIO DIAMETRO 16 A 25 MM | C160: UN | D160: 5.38
A161: 11273 | B161: ALCA PREFORMADA DE DISTRIBUICAO, EM ACO GALVANIZADO, PARA CONDUTORES DE ALUMINIO AWG 1/0 (CAA 6/1 OU CA 7 FIOS) | C161: UN | D161: 16.71
A162: 11272 | B162: ALCA PREFORMADA DE DISTRIBUICAO, EM ACO GALVANIZADO, PARA CONDUTORES DE ALUMINIO AWG 2 (CAA 6/1 OU CA 7 FIOS) | C162: UN | D162: 10.08
A163: 11275 | B163: ALCA PREFORMADA DE SERVICO, EM ACO GALVANIZADO, PARA CONDUTORES DE ALUMINIO AWG 4 (CAA 6/1) | C163: UN | D163: 4.04
A164: 11274 | B164: ALCA PREFORMADA DE SERVICO, EM ACO GALVANIZADO, PARA CONDUTORES DE ALUMINIO AWG 6 (CAA 6/1) | C164: UN | D164: 3.08
A165: 45208 | B165: ALICATE AMPERIMETRO, TENSAO AC/DC, CAPACIDADE MAXIMA 1000 A | C165: UN | D165: 271.11
A166: 45250 | B166: ALICATE BICO LONGO (MEIA CANA) 6", COM ISOLAMENTO ATE 1000 V | C166: UN | D166: 41.93
A167: 38470 | B167: ALICATE DE CORTE DIAGONAL 6" COM ISOLAMENTO | C167: UN | D167: 42.92
A168: 38547 | B168: ALICATE DE CRIMPAR RJ11, RJ12 E RJ45, COM CATRACA | C168: UN | D168: 284.94
A169: 38467 | B169: ALICATE DE PRESSAO 11" PARA SOLDA, TIPO C | C169: UN | D169: 205.01
A170: 38468 | B170: ALICATE DE PRESSAO 11" PARA SOLDA, TIPO U | C170: UN | D170: 255.91
A171: 38469 | B171: ALICATE DE PRESSAO PARA SOLDA DE CHAPA 18" | C171: UN | D171: 272.07
A172: 45197 | B172: ALICATE DESENCAPADOR AUTOMATICO 8" | C172: UN | D172: 216.99
A173: 38471 | B173: ALICATE PARA ANEIS DE PISTAO, CAPACIDADE *50* A 100 MM | C173: UN | D173: 290.99
A174: 45206 | B174: ALICATE PROFISSIONAL 8", UNIVERSAL, COM ISOLAMENTO ATE 1000 V | C174: UN | D174: 57.49
A175: 37370 | B175: ALIMENTACAO - HORISTA (COLETADO CAIXA - ENCARGOS COMPLEMENTARES) | C175: H | D175: 2.9
A176: 40862 | B176: ALIMENTACAO - MENSALISTA (COLETADO CAIXA - ENCARGOS COMPLEMENTARES) | C176: MES | D176: 521
A177: 10658 | B177: ALISADORA DE CONCRETO COM MOTOR A GASOLINA DE 5,5 HP, PESO COM MOTOR DE 78 KG, 4 PAS | C177: UN
A178: 253 | B178: ALMOXARIFE (HORISTA) | C178: H | D178: 22.29
A179: 40809 | B179: ALMOXARIFE (MENSALISTA) | C179: MES | D179: 4009.79
A180: 42428 | B180: ALONGADOR COM TRES ALTURAS, EM TUBO DE ACO CARBONO, PINTURA NO PROCESSO ELETROSTATICO - EQUIPAMENTO DE GINASTICA PARA ACADEMIA AO AR LIVRE / ACADEMIA DA TERCEIRA IDADE - ATI | C180: UN
A181: 301 | B181: ANEL BORRACHA PARA TUBO ESGOTO PREDIAL, DN 100 MM (NBR 5688) | C181: UN | D181: 3.16
A182: 296 | B182: ANEL BORRACHA PARA TUBO ESGOTO PREDIAL, DN 50 MM (NBR 5688) | C182: UN | D182: 1.78
A183: 297 | B183: ANEL BORRACHA PARA TUBO ESGOTO PREDIAL, DN 75 MM (NBR 5688) | C183: UN | D183: 2.62
A184: 299 | B184: ANEL BORRACHA, DN 100 MM, PARA TUBO SERIE REFORCADA ESGOTO PREDIAL | C184: UN | D184: 3.71
A185: 300 | B185: ANEL BORRACHA, DN 150 MM, PARA TUBO SERIE REFORCADA ESGOTO PREDIAL | C185: UN | D185: 12.82
A186: 20085 | B186: ANEL BORRACHA, DN 50 MM, PARA TUBO SERIE REFORCADA ESGOTO PREDIAL | C186: UN | D186: 2.34
A187: 298 | B187: ANEL BORRACHA, DN 75 MM, PARA TUBO SERIE REFORCADA ESGOTO PREDIAL | C187: UN | D187: 2.85
A188: 311 | B188: ANEL BORRACHA, PARA TUBO PVC DEFOFO, DN 100 MM (NBR 7665) | C188: UN | D188: 10.58
A189: 318 | B189: ANEL BORRACHA, PARA TUBO PVC DEFOFO, DN 150 MM (NBR 7665) | C189: UN | D189: 21.3
A190: 319 | B190: ANEL BORRACHA, PARA TUBO PVC DEFOFO, DN 200 MM (NBR 7665) | C190: UN | D190: 33.4
A191: 303 | B191: ANEL BORRACHA, PARA TUBO PVC, REDE COLETOR ESGOTO, DN 100 MM (NBR 7362) | C191: UN | D191: 3.5
A192: 305 | B192: ANEL BORRACHA, PARA TUBO PVC, REDE COLETOR ESGOTO, DN 150 MM (NBR 7362) | C192: UN | D192: 11.01
A193: 306 | B193: ANEL BORRACHA, PARA TUBO PVC, REDE COLETOR ESGOTO, DN 200 MM (NBR 7362) | C193: UN | D193: 16.7
A194: 307 | B194: ANEL BORRACHA, PARA TUBO PVC, REDE COLETOR ESGOTO, DN 250 MM (NBR 7362) | C194: UN | D194: 42.19
A195: 309 | B195: ANEL BORRACHA, PARA TUBO PVC, REDE COLETOR ESGOTO, DN 350 MM (NBR 7362) | C195: UN | D195: 69.12
A196: 310 | B196: ANEL BORRACHA, PARA TUBO PVC, REDE COLETOR ESGOTO, DN 400 MM (NBR 7362) | C196: UN | D196: 95.8
A197: 308 | B197: ANEL BORRACHA, PARA TUBO, PVC REDE COLETOR ESGOTO, DN 300 MM (NBR 7362) | C197: UN | D197: 94.17
A198: 328 | B198: ANEL BORRACHA, PARA TUBO/CONEXAO PVC PBA, DN 100 MM, PARA REDE AGUA | C198: UN | D198: 8.37
A199: 325 | B199: ANEL BORRACHA, PARA TUBO/CONEXAO PVC PBA, DN 50 MM, PARA REDE AGUA | C199: UN | D199: 2.47
A200: 20326 | B200: ANEL BORRACHA, PARA TUBO/CONEXAO PVC PBA, DN 60 MM, PARA REDE AGUA | C200: UN | D200: 4.52
... 4785 more rows

Sheet CPU1 (hidden)
A2: Processo | B2: 59500.003753/2025-45
A4: ITEM: | B4: EMISSÃO ART | H4: UNIDADE DE MEDIDA: | I4: UM | J4: QUANTIDADE: | K4: 1
A5: LICITAÇÕES ANTERIORES
A6: Empresa | I6: Data | J6: Preço Unitário | K6: Utilizar? (Sim/Não)
A7: EMISSÃO DE ART | I7: 2025-03-02 | J7: 285.59 | K7: SIM
A8: =IF(ISBLANK(D8),"",IF(ISNUMBER(G8),(H8-G8)/G8,0)) -> 

Sheet OUTROS BANCOS 127V (hidden)
A1: ITEM | B1: PESQUISA DE PREÇOS (SIST. REF. / COT) | C1: CÓDIGO | D1: DATA | E1: PREÇO
A2: 1 | B2: ORSE | C2: 9550 | D2: 2025-11-01 | E2: 0.96
A3: 2 | B3: SEINFRA | C3: I9557 | D3: 028 | E3: 0.87
A4: 3 | B4: EMBASA | C4: M019000003 | D4: 2025-06-01 | E4: 0.77
A5: 4 | B5: SEINFRA | C5: I9775 | D5: 028 | E5: 1.01
A6: 5 | B6: ORSE | C6: 8369 | D6: 2025-11-01 | E6: 13.88
A7: 7 | B7: ORSE | C7: 14068 | D7: 2025-11-01 | E7: 9.74
A8: 8 | B8: SCO | C8: MAT118400 | D8: 2026-01-01 | E8: 11.1
A9: 9 | B9: SBC | C9: 5385 | D9: 2026-01-01 | E9: 14.27
A10: 10 | B10: ORSE | C10: 2113 | D10: 2025-11-01 | E10: 9.68
A11: 11 | B11: ORSE | C11: 14060 | D11: 2025-11-01 | E11: 4.23
A12: 12 | B12: SBC | C12: 5708 | D12: 2026-01-01 | E12: 32.9
A13: 13 | B13: EMOP | C13: 7153 | D13: 2025-12-01 | E13: 25.63
A14: 14 | B14: ORSE | C14: 2115 | D14: 2025-11-01 | E14: 57.66
A15: 15 | B15: SBC | C15: 5719 | D15: 2026-01-01 | E15: 32.23
A16: 16 | B16: EMBASA | C16: M080800108 | D16: 2025-06-01 | E16: 49.34
A17: 17 | B17: SBC | C17: 8784 | D17: 2026-01-01 | E17: 94
A18: 18 | B18: EMBASA | C18: M021519005 | D18: 2025-06-01 | E18: 6.75
A19: 19 | B19: ORSE | C19: 14059 | D19: 2025-11-01 | E19: 8.5
A20: 20 | B20: ORSE | C20: 9502 | D20: 2025-11-01 | E20: 40.52
A21: 21 | B21: SBC | C21: 5387 | D21: 2026-01-01 | E21: 100.54
A22: 22 | B22: ORSE | C22: 2604 | D22: 2025-11-01 | E22: 109.45
A23: 23 | B23: EMOP | C23: 5102 | D23: 2025-12-01 | E23: 54.85
A24: 25 | B24: SBC | C24: 36795 | D24: 2026-01-01 | E24: 1
A25: 26 | B25: AGETOP CIVIL | C25: 1674 | D25: 2025-10-01 | E25: 1.2
A26: 27 | B26: EMOP | C26: 10984 | D26: 2025-12-01 | E26: 75.3
A27: 28 | B27: EMOP | C27: 14610 | D27: 2025-12-01 | E27: 182.91
A28: 29 | B28: AGESUL | C28: 4005 | D28: 2026-01-01 | E28: 27.84
A29: 30 | B29: AGESUL | C29: 4052 | D29: 2026-01-01 | E29: 22.99
A30: 31 | B30: SBC | C30: 46336 | D30: 2026-01-01 | E30: 95.07
A31: 32 | B31: IOPES | C31: 48342 | D31: 2025-12-01 | E31: 10.95
A32: 33 | B32: SETOP | C32: MATED-12988 | D32: 2025-10-01 | E32: 18.18
A33: 34 | B33: ORSE | C33: 4628 | D33: 2025-11-01 | E33: 15.22
A34: 35 | B34: ORSE | C34: 3814 | D34: 2025-11-01 | E34: 26.73
A35: 37 | B35: SCO | C35: MAT050850 | D35: 2026-01-01 | E35: 131.83
A36: 40 | B36: SBC | C36: 53375 | D36: 2026-01-01 | E36: 355.25
A37: 41 | B37: SETOP | C37: MATED-17646 | D37: 2025-01-01 | E37: 15.38
A38: 42 | B38: SETOP | C38: MATED-17647 | D38: 2025-01-01 | E38: 20.58
A39: 43 | B39: SEINFRA | C39: I7410 | D39: 028 | E39: 11.56
A40: 44 | B40: SBC | C40: 10562 | D40: 2026-01-01 | E40: 22.06
A41: 48 | B41: IOPES | C41: 44951 | D41: 2025-12-01 | E41: 31.32
A42: 49 | B42: AGETOP CIVIL | C42: 3756 | D42: 2025-10-01 | E42: 262.72
A43: 50 | B43: CAEMA | C43: M101705141 | E43: 308.46 | F43: ANO 2019 (ITEM REPETIDO 73)
A44: 51 | B44: CPOS | C44: P.13.000.042461 | D44: 2026-01-01 | E44: 37.72
A45: 52 | B45: SETOP | C45: MATED-19494 | D45: 2025-10-01 | E45: 18.4
A46: 53 | B46: ORSE | C46: 12379 | D46: 2025-11-01 | E46: 18.32
A47: 54 | B47: SBC | C47: 28100 | D47: 2026-01-01 | E47: 159
A48: 55 | B48: ORSE | C48: 7551 | D48: 2025-11-01 | E48: 4.73
A49: 57 | B49: ORSE | C49: 8347 | D49: 2025-11-01 | E49: 0.05
A50: 58 | B50: SEINFRA | C50: I1008 | D50: 028 | E50: 60.13
A51: 61 | B51: SEDOP | C51: E00189 | D51: 2025-10-01 | E51: 62.63
A52: 62 | B52: SINAPI | C52: 2617 | D52: 2026-01-01 | E52: 7.11
A53: 63 | B53: SETOP | C53: MATED-12288 | D53: 2025-10-01 | E53: 7.5
A54: 71 | B54: EMOP | C54: 1916 | D54: 2025-12-01 | E54: 34.86
A55: 72 | B55: AGESUL | C55: 88247 | D55: 2026-01-01 | E55: 23.83
A56: 73 | B56: CAEMA | C56: M101705141 | E56: 308.46 | F56: ANO 2019 (ITEM REPETIDO 50)
A57: 74 | B57: SEINFRA | C57: I3145 | D57: 028 | E57: 77.3
A58: 75 | B58: SBC | C58: 46336 | D58: 2026-01-01 | E58: 95.07
A59: 76 | B59: IOPES | C59: 48342 | D59: 2025-12-01 | E59: 10.95
A60: 77 | B60: ORSE | C60: 4628 | D60: 2025-08-01 | E60: 55
A61: 78 | B61: SBC | C61: 53375 | D61: 2026-01-01 | E61: 355.25
A62: 79 | B62: EMBASA | C62: M103900330 | D62: 2025-06-01 | E62: 216.48
A63: 80 | B63: ORSE | C63: 7551 | D63: 2025-11-01 | E63: 4.95
A64: 81 | B64: ORSE | C64: 8347 | D64: 2025-11-01 | E64: 0.05
A65: 82 | B65: SEINFRA | C65: I10080 | D65: 028 | E65: 0.14
A66: 83 | B66: ORSE | C66: 2145 | D66: 2025-11-01 | E66: 18.75
A67: 84 | B67: SEINFRA | C67: I2241 | D67: 028 | E67: 88.02
A68: 85 | B68: SEINFRA | C68: I2242 | D68: 028 | E68: 229.21
A69: 86 | B69: SEINFRA | C69: I3138 | D69: 028 | E69: 45.38
A70: 87 | B70: SEINFRA | C70: I9640 | D70: 027 | E70: 184.5
A71: 88 | B71: ORSE | C71: 9504 | D71: 2025-11-01 | E71: 16.82
A72: 89 | B72: ORSE | C72: 1434 | D72: 2025-11-01 | E72: 28.58
A73: 90 | B73: ORSE | C73: 2365 | D73: 2025-11-01 | E73: 54.89
A74: 91 | B74: ORSE | C74: 2367 | D74: 2025-11-01 | E74: 283.58
A75: 92 | B75: ORSE | C75: 9505 | D75: 2025-11-01 | E75: 41.27
A76: 93 | B76: SEINFRA | C76: I9811 | D76: 028 | E76: 0.85
A77: 94 | B77: EMOP | C77: 2352 | D77: 2025-12-01 | E77: 25.39

Sheet INSUMO SINAPI 127V (hidden)
A1: Código do Insumo | B1: Descrição do Insumo | C1: Unidade | D1: MT | F1: 2026-01-01
A2: 45333 | B2: ABERTURA PARA ENCAIXE DE CUBA OU LAVATORIO EM BANCADA DE MARMORE/ GRANITO OU OUTRO TIPO DE PEDRA NATURAL | C2: UN | D2: 156.37 | F2: MT
A3: 11270 | B3: ABRACADEIRA DE LATAO PARA FIXACAO DE CABO PARA-RAIO, DIMENSOES 32 X 24 X 24 MM | C3: UN | D3: 2.46 | F3: CUIABA
A4: 412 | B4: ABRACADEIRA DE NYLON PARA AMARRACAO DE CABOS, COMPRIMENTO DE *230* X *7,6* MM | C4: UN | D4: 1.18 | F4: 1.0533
A5: 414 | B5: ABRACADEIRA DE NYLON PARA AMARRACAO DE CABOS, COMPRIMENTO DE 100 X 2,5 MM | C5: UN | D5: 0.07 | F5: 0.6783
A6: 410 | B6: ABRACADEIRA DE NYLON PARA AMARRACAO DE CABOS, COMPRIMENTO DE 150 X *3,6* MM | C6: UN | D6: 0.18
A7: 411 | B7: ABRACADEIRA DE NYLON PARA AMARRACAO DE CABOS, COMPRIMENTO DE 200 X *4,6* MM | C7: UN | D7: 0.23
A8: 408 | B8: ABRACADEIRA DE NYLON PARA AMARRACAO DE CABOS, COMPRIMENTO DE 390 X *4,6* MM | C8: UN | D8: 1.14
A9: 39131 | B9: ABRACADEIRA EM ACO PARA AMARRACAO DE ELETRODUTOS, TIPO D, COM 1 1/2" E CUNHA DE FIXACAO | C9: UN | D9: 4.18
A10: 394 | B10: ABRACADEIRA EM ACO PARA AMARRACAO DE ELETRODUTOS, TIPO D, COM 1 1/2" E PARAFUSO DE FIXACAO | C10: UN | D10: 4.23
A11: 39130 | B11: ABRACADEIRA EM ACO PARA AMARRACAO DE ELETRODUTOS, TIPO D, COM 1 1/4" E CUNHA DE FIXACAO | C11: UN | D11: 3.82
A12: 395 | B12: ABRACADEIRA EM ACO PARA AMARRACAO DE ELETRODUTOS, TIPO D, COM 1 1/4" E PARAFUSO DE FIXACAO | C12: UN | D12: 4.08
A13: 39129 | B13: ABRACADEIRA EM ACO PARA AMARRACAO DE ELETRODUTOS, TIPO D, COM 1" E CUNHA DE FIXACAO | C13: UN | D13: 2.35
A14: 393 | B14: ABRACADEIRA EM ACO PARA AMARRACAO DE ELETRODUTOS, TIPO D, COM 1" E PARAFUSO DE FIXACAO | C14: UN | D14: 2.46
A15: 39127 | B15: ABRACADEIRA EM ACO PARA AMARRACAO DE ELETRODUTOS, TIPO D, COM 1/2" E CUNHA DE FIXACAO | C15: UN | D15: 2.01
A16: 392 | B16: ABRACADEIRA EM ACO PARA AMARRACAO DE ELETRODUTOS, TIPO D, COM 1/2" E PARAFUSO DE FIXACAO | C16: UN | D16: 2.06
A17: 39133 | B17: ABRACADEIRA EM ACO PARA AMARRACAO DE ELETRODUTOS, TIPO D, COM 2 1/2" E CUNHA DE FIXACAO | C17: UN | D17: 5.49
A18: 397 | B18: ABRACADEIRA EM ACO PARA AMARRACAO DE ELETRODUTOS, TIPO D, COM 2 1/2" E PARAFUSO DE FIXACAO | C18: UN | D18: 6.07
A19: 39132 | B19: ABRACADEIRA EM ACO PARA AMARRACAO DE ELETRODUTOS, TIPO D, COM 2" E CUNHA DE FIXACAO | C19: UN | D19: 4.39
A20: 396 | B20: ABRACADEIRA EM ACO PARA AMARRACAO DE ELETRODUTOS, TIPO D, COM 2" E PARAFUSO DE FIXACAO | C20: UN | D20: 4.71
A21: 39135 | B21: ABRACADEIRA EM ACO PARA AMARRACAO DE ELETRODUTOS, TIPO D, COM 3 1/2" E CUNHA DE FIXACAO | C21: UN | D21: 8.79
A22: 39134 | B22: ABRACADEIRA EM ACO PARA AMARRACAO DE ELETRODUTOS, TIPO D, COM 3" E CUNHA DE FIXACAO | C22: UN | D22: 7.32
A23: 398 | B23: ABRACADEIRA EM ACO PARA AMARRACAO DE ELETRODUTOS, TIPO D, COM 3" E PARAFUSO DE FIXACAO | C23: UN | D23: 6.75
A24: 39128 | B24: ABRACADEIRA EM ACO PARA AMARRACAO DE ELETRODUTOS, TIPO D, COM 3/4" E CUNHA DE FIXACAO | C24: UN | D24: 2.19
A25: 400 | B25: ABRACADEIRA EM ACO PARA AMARRACAO DE ELETRODUTOS, TIPO D, COM 3/4" E PARAFUSO DE FIXACAO | C25: UN | D25: 2.14
A26: 39125 | B26: ABRACADEIRA EM ACO PARA AMARRACAO DE ELETRODUTOS, TIPO D, COM 3/8" E PARAFUSO DE FIXACAO | C26: UN | D26: 2.19
A27: 39126 | B27: ABRACADEIRA EM ACO PARA AMARRACAO DE ELETRODUTOS, TIPO D, COM 4" E CUNHA DE FIXACAO | C27: UN | D27: 9.89
A28: 399 | B28: ABRACADEIRA EM ACO PARA AMARRACAO DE ELETRODUTOS, TIPO D, COM 4" E PARAFUSO DE FIXACAO | C28: UN | D28: 8.71
A29: 39158 | B29: ABRACADEIRA EM ACO PARA AMARRACAO DE ELETRODUTOS, TIPO ECONOMICA (GOTA), COM 8" | C29: UN | D29: 23.39
A30: 39141 | B30: ABRACADEIRA EM ACO PARA AMARRACAO DE ELETRODUTOS, TIPO U SIMPLES, COM 1 1/2" | C30: UN | D30: 1.7
A31: 39140 | B31: ABRACADEIRA EM ACO PARA AMARRACAO DE ELETRODUTOS, TIPO U SIMPLES, COM 1 1/4" | C31: UN | D31: 1.54
A32: 39139 | B32: ABRACADEIRA EM ACO PARA AMARRACAO DE ELETRODUTOS, TIPO U SIMPLES, COM 1" | C32: UN | D32: 1.28
A33: 39137 | B33: ABRACADEIRA EM ACO PARA AMARRACAO DE ELETRODUTOS, TIPO U SIMPLES, COM 1/2" | C33: UN | D33: 0.88
A34: 39143 | B34: ABRACADEIRA EM ACO PARA AMARRACAO DE ELETRODUTOS, TIPO U SIMPLES, COM 2 1/2" | C34: UN | D34: 3.5
A35: 39142 | B35: ABRACADEIRA EM ACO PARA AMARRACAO DE ELETRODUTOS, TIPO U SIMPLES, COM 2" | C35: UN | D35: 2.51
A36: 39144 | B36: ABRACADEIRA EM ACO PARA AMARRACAO DE ELETRODUTOS, TIPO U SIMPLES, COM 3" | C36: UN | D36: 4.08
A37: 39138 | B37: ABRACADEIRA EM ACO PARA AMARRACAO DE ELETRODUTOS, TIPO U SIMPLES, COM 3/4" | C37: UN | D37: 0.94
A38: 39136 | B38: ABRACADEIRA EM ACO PARA AMARRACAO DE ELETRODUTOS, TIPO U SIMPLES, COM 3/8" | C38: UN | D38: 0.62
A39: 39145 | B39: ABRACADEIRA EM ACO PARA AMARRACAO DE ELETRODUTOS, TIPO U SIMPLES, COM 4" | C39: UN | D39: 6.72
A40: 12615 | B40: ABRACADEIRA PVC, PARA CALHA PLUVIAL, DIAMETRO ENTRE *80 E 100* MM, PARA DRENAGEM PLUVIAL PREDIAL | C40: UN | D40: 13.71
A41: 11927 | B41: ABRACADEIRA, GALVANIZADA/ZINCADA, ROSCA SEM FIM, PARAFUSO INOX, LARGURA FITA *12,6 A *14 MM, D = 2" A 2 1/2" | C41: UN | D41: 7.34
A42: 11928 | B42: ABRACADEIRA, GALVANIZADA/ZINCADA, ROSCA SEM FIM, PARAFUSO INOX, LARGURA FITA *12,6 A *14 MM, D = 3" A 3 3/4" | C42: UN | D42: 8.41
A43: 11929 | B43: ABRACADEIRA, GALVANIZADA/ZINCADA, ROSCA SEM FIM, PARAFUSO INOX, LARGURA FITA *12,6 A *14 MM, D = 4" A 4 3/4" | C43: UN | D43: 13.01
A44: 36801 | B44: ACABAMENTO DE METAL CROMADO PARA REGISTRO PEQUENO, DE PAREDE, 1/2" OU 3/4" | C44: UN | D44: 42.77
A45: 36246 | B45: ACABAMENTO SIMPLES/CONVENCIONAL PARA FORRO PVC, TIPO "U" OU "C", COR BRANCA, COMPRIMENTO 6 M | C45: M | D45: 4.27
A46: 37600 | B46: ACESSORIO DE LIGACAO NAO ELETRICO PARA CARGAS EXPLOSIVAS, TUBO DE 6 M | C46: UN
A47: 37599 | B47: ACESSORIO INICIADOR NAO ELETRICO, TUBO DE 6 M, TEMPO DE RETARDO DE *160* MS | C47: UN
A48: 1 | B48: ACETILENO - RECARGA DE GAS PARA CILINDRO (NAO INCLUI TROCA/MANUTENCAO DO CILINDRO) | C48: KG | D48: 119.64
A49: 3 | B49: ACIDO CLORIDRICO / ACIDO MURIATICO, DILUICAO 10% A 12% PARA USO EM LIMPEZA | C49: L | D49: 16.84
A50: 43054 | B50: ACO CA-25, 10,0 MM, OU 12,5 MM, OU 16,0 MM, OU 20,0 MM, OU 25,0 MM, VERGALHAO | C50: KG | D50: 8.77
A51: 42402 | B51: ACO CA-25, 16,0 MM, BARRA DE TRANSFERENCIA | C51: KG | D51: 8.38
A52: 42403 | B52: ACO CA-25, 20,0 MM, BARRA DE TRANSFERENCIA | C52: KG | D52: 10.75
A53: 42404 | B53: ACO CA-25, 25,0 MM, BARRA DE TRANSFERENCIA | C53: KG | D53: 10.69
A54: 42405 | B54: ACO CA-25, 32,0 MM, BARRA DE TRANSFERENCIA | C54: KG | D54: 11.39
A55: 34341 | B55: ACO CA-25, 32,0 MM, VERGALHAO | C55: KG | D55: 9.88
A56: 43053 | B56: ACO CA-25, 6,3 MM OU 8,0 MM, VERGALHAO | C56: KG | D56: 7.83
A57: 43058 | B57: ACO CA-50, 10,0 MM, OU 12,5 MM, OU 16,0 MM, OU 20,0 MM, DOBRADO E CORTADO | C57: KG | D57: 8.12
A58: 34 | B58: ACO CA-50, 10,0 MM, VERGALHAO | C58: KG | D58: 8.16
A59: 43055 | B59: ACO CA-50, 12,5 MM OU 16,0 MM, VERGALHAO | C59: KG | D59: 7.07
A60: 43056 | B60: ACO CA-50, 20,0 MM OU 25,0 MM, VERGALHAO | C60: KG | D60: 8.15
A61: 43057 | B61: ACO CA-50, 32,0 MM, VERGALHAO | C61: KG | D61: 8.96
A62: 34449 | B62: ACO CA-50, 6,3 MM, DOBRADO E CORTADO | C62: KG | D62: 9.57
A63: 32 | B63: ACO CA-50, 6,3 MM, VERGALHAO | C63: KG | D63: 8.61
A64: 33 | B64: ACO CA-50, 8,0 MM, VERGALHAO | C64: KG | D64: 8.66
A65: 43061 | B65: ACO CA-60, 4,2 MM OU 5,0 MM, DOBRADO E CORTADO | C65: KG | D65: 8.09
A66: 43059 | B66: ACO CA-60, 4,2 MM, OU 5,0 MM, OU 6,0 MM, OU 7,0 MM, VERGALHAO | C66: KG | D66: 7.72
A67: 43062 | B67: ACO CA-60, 6,0 MM OU 7,0 MM, DOBRADO E CORTADO | C67: KG | D67: 8.56
A68: 43060 | B68: ACO CA-60, 8,0 MM OU 9,5 MM, VERGALHAO | C68: KG | D68: 6.73
A69: 40410 | B69: ACOPLAMENTO RIGIDO EM FERRO FUNDIDO PARA SISTEMA DE TUBULACAO RANHURADA, DN 50 MM (2") | C69: UN
A70: 40411 | B70: ACOPLAMENTO RIGIDO EM FERRO FUNDIDO PARA SISTEMA DE TUBULACAO RANHURADA, DN 65 MM (2 1/2") | C70: UN
A71: 40412 | B71: ACOPLAMENTO RIGIDO EM FERRO FUNDIDO PARA SISTEMA DE TUBULACAO RANHURADA, DN 80 MM (3") | C71: UN
A72: 44254 | B72: ADAPTADOR CPVC, ROSCAVEL, COM FLANGES E ANEL DE VEDACAO, 15 MM, CAIXA D'AGUA PARA AGUA QUENTE | C72: UN | D72: 31.92
A73: 44255 | B73: ADAPTADOR CPVC, ROSCAVEL, COM FLANGES E ANEL DE VEDACAO, 22 MM, CAIXA D'AGUA PARA AGUA QUENTE | C73: UN | D73: 35.38
A74: 44256 | B74: ADAPTADOR CPVC, ROSCAVEL, COM FLANGES E ANEL DE VEDACAO, 28 MM, CAIXA D'AGUA PARA AGUA QUENTE | C74: UN | D74: 39.96
A75: 44257 | B75: ADAPTADOR CPVC, ROSCAVEL, COM FLANGES E ANEL DE VEDACAO, 35 MM, CAIXA D'AGUA PARA AGUA QUENTE | C75: UN | D75: 63.23
A76: 44258 | B76: ADAPTADOR CPVC, ROSCAVEL, COM FLANGES E ANEL DE VEDACAO, 42 MM, CAIXA D'AGUA PARA AGUA QUENTE | C76: UN | D76: 72.26
A77: 44259 | B77: ADAPTADOR CPVC, ROSCAVEL, COM FLANGES E ANEL DE VEDACAO, 54 MM, CAIXA D'AGUA PARA AGUA QUENTE | C77: UN | D77: 99.18
A78: 37997 | B78: ADAPTADOR CPVC, SOLDAVEL, 15 MM, PARA AGUA QUENTE | C78: UN | D78: 19.02
A79: 37998 | B79: ADAPTADOR CPVC, SOLDAVEL, 22 MM, PARA AGUA QUENTE | C79: UN | D79: 25.46
A80: 55 | B80: ADAPTADOR DE COMPRESSAO EM POLIPROPILENO (PP), PARA TUBO EM PEAD, 20 MM X 1/2", PARA LIGACAO PREDIAL DE AGUA (NTS 179) | C80: UN
A81: 61 | B81: ADAPTADOR DE COMPRESSAO EM POLIPROPILENO (PP), PARA TUBO EM PEAD, 20 MM X 3/4", PARA LIGACAO PREDIAL DE AGUA (NTS 179) | C81: UN
A82: 62 | B82: ADAPTADOR DE COMPRESSAO EM POLIPROPILENO (PP), PARA TUBO EM PEAD, 32 MM X 1", PARA LIGACAO PREDIAL DE AGUA (NTS 179) | C82: UN
A83: 10899 | B83: ADAPTADOR EM LATAO, ENGATE RAPIDO 2 1/2" X ROSCA INTERNA 5 FIOS 2 1/2", PARA INSTALACAO PREDIAL DE COMBATE A INCENDIO | C83: UN | D83: 59.11
A84: 10900 | B84: ADAPTADOR EM LATAO, ENGATE RAPIDO1 1/2" X ROSCA INTERNA 5 FIOS 2 1/2", PARA INSTALACAO PREDIAL DE COMBATE A INCENDIO | C84: UN | D84: 46.26
A85: 47 | B85: ADAPTADOR PVC PBA, BOLSA/ROSCA, JE, DN 100 / DE 110 MM | C85: UN | D85: 78.34
A86: 48 | B86: ADAPTADOR PVC PBA, BOLSA/ROSCA, JE, DN 50 / DE 60 MM | C86: UN | D86: 20.43
A87: 46 | B87: ADAPTADOR PVC PBA, BOLSA/ROSCA, JE, DN 75 / DE 85 MM | C87: UN | D87: 45.81
A88: 52 | B88: ADAPTADOR PVC PBA, PONTA/ROSCA, JE, DN 50 / DE 60 MM | C88: UN | D88: 15.52
A89: 43 | B89: ADAPTADOR PVC PBA, PONTA/ROSCA, JE, DN 75 / DE 85 MM | C89: UN | D89: 52.39
A90: 103 | B90: ADAPTADOR PVC SOLDAVEL CURTO COM BOLSA E ROSCA, 110 MM X 4", PARA AGUA FRIA | C90: UN | D90: 40.93
A91: 107 | B91: ADAPTADOR PVC SOLDAVEL CURTO COM BOLSA E ROSCA, 20 MM X 1/2", PARA AGUA FRIA | C91: UN | D91: 0.77
A92: 65 | B92: ADAPTADOR PVC SOLDAVEL CURTO COM BOLSA E ROSCA, 25 MM X 3/4", PARA AGUA FRIA | C92: UN | D92: 0.84
A93: 108 | B93: ADAPTADOR PVC SOLDAVEL CURTO COM BOLSA E ROSCA, 32 MM X 1", PARA AGUA FRIA | C93: UN | D93: 1.69
A94: 110 | B94: ADAPTADOR PVC SOLDAVEL CURTO COM BOLSA E ROSCA, 40 MM X 1 1/2", PARA AGUA FRIA | C94: UN | D94: 5.89
A95: 109 | B95: ADAPTADOR PVC SOLDAVEL CURTO COM BOLSA E ROSCA, 40 MM X 1 1/4", PARA AGUA FRIA | C95: UN | D95: 3.51
A96: 111 | B96: ADAPTADOR PVC SOLDAVEL CURTO COM BOLSA E ROSCA, 50 MM X 1 1/4", PARA AGUA FRIA | C96: UN | D96: 7.97
A97: 112 | B97: ADAPTADOR PVC SOLDAVEL CURTO COM BOLSA E ROSCA, 50 MM X1 1/2", PARA AGUA FRIA | C97: UN | D97: 4.22
A98: 113 | B98: ADAPTADOR PVC SOLDAVEL CURTO COM BOLSA E ROSCA, 60 MM X 2", PARA AGUA FRIA | C98: UN | D98: 10.57
A99: 104 | B99: ADAPTADOR PVC SOLDAVEL CURTO COM BOLSA E ROSCA, 75 MM X 2 1/2", PARA AGUA FRIA | C99: UN | D99: 18.4
A100: 102 | B100: ADAPTADOR PVC SOLDAVEL CURTO COM BOLSA E ROSCA, 85 MM X 3", PARA AGUA FRIA | C100: UN | D100: 25.36
A101: 95 | B101: ADAPTADOR PVC SOLDAVEL, COM FLANGE E ANEL DE VEDACAO, 20 MM X 1/2", PARA CAIXA D'AGUA | C101: UN | D101: 10.72
A102: 96 | B102: ADAPTADOR PVC SOLDAVEL, COM FLANGE E ANEL DE VEDACAO, 25 MM X 3/4", PARA CAIXA D'AGUA | C102: UN | D102: 11.66
A103: 97 | B103: ADAPTADOR PVC SOLDAVEL, COM FLANGE E ANEL DE VEDACAO, 32 MM X 1", PARA CAIXA D'AGUA | C103: UN | D103: 17.54
A104: 98 | B104: ADAPTADOR PVC SOLDAVEL, COM FLANGE E ANEL DE VEDACAO, 40 MM X 1 1/4", PARA CAIXA D'AGUA | C104: UN | D104: 26.26
A105: 99 | B105: ADAPTADOR PVC SOLDAVEL, COM FLANGE E ANEL DE VEDACAO, 50 MM X 1 1/2", PARA CAIXA D'AGUA | C105: UN | D105: 24.81
A106: 60 | B106: ADAPTADOR PVC, COM REGISTRO, PARA PEAD, 20 MM X 3/4", PARA LIGACAO PREDIAL DE AGUA | C106: UN
A107: 72 | B107: ADAPTADOR PVC, ROSCAVEL, COM FLANGES E ANEL DE VEDACAO, 1 1/2", PARA CAIXA D'AGUA | C107: UN | D107: 47.59
A108: 71 | B108: ADAPTADOR PVC, ROSCAVEL, COM FLANGES E ANEL DE VEDACAO, 1", PARA CAIXA D'AGUA | C108: UN | D108: 29.39
A109: 67 | B109: ADAPTADOR PVC, ROSCAVEL, COM FLANGES E ANEL DE VEDACAO, 1/2", PARA CAIXA D'AGUA | C109: UN | D109: 15.39
A110: 73 | B110: ADAPTADOR PVC, ROSCAVEL, COM FLANGES E ANEL DE VEDACAO, 3/4", PARA CAIXA D'AGUA | C110: UN | D110: 14.72
A111: 100 | B111: ADAPTADOR PVC, SOLDAVEL, COM FLANGES E ANEL DE VEDACAO, 60 MM X 2", PARA CAIXA D'AGUA | C111: UN | D111: 43.36
A112: 75 | B112: ADAPTADOR PVC, SOLDAVEL, COM FLANGES LIVRES, 110 MM X 4", PARA CAIXA D'AGUA | C112: UN | D112: 252.78
A113: 83 | B113: ADAPTADOR PVC, SOLDAVEL, COM FLANGES LIVRES, 75 MM X 2 1/2", PARA CAIXA D'AGUA | C113: UN | D113: 202.09
A114: 74 | B114: ADAPTADOR PVC, SOLDAVEL, COM FLANGES LIVRES, 85 MM X 3", PARA CAIXA D'AGUA | C114: UN | D114: 288.93
A115: 106 | B115: ADAPTADOR PVC, SOLDAVEL, LONGO, COM FLANGE LIVRE, 110 MM X 4", PARA CAIXA D'AGUA | C115: UN | D115: 365.36
A116: 88 | B116: ADAPTADOR PVC, SOLDAVEL, LONGO, COM FLANGE LIVRE, 32 MM X 1", PARA CAIXA D'AGUA | C116: UN | D116: 10.27
A117: 82 | B117: ADAPTADOR PVC, SOLDAVEL, LONGO, COM FLANGE LIVRE, 75 MM X 2 1/2", PARA CAIXA D'AGUA | C117: UN | D117: 192.27
A118: 105 | B118: ADAPTADOR PVC, SOLDAVEL, LONGO, COM FLANGE LIVRE, 85 MM X 3", PARA CAIXA D'AGUA | C118: UN | D118: 272.44
A119: 39719 | B119: ADESIVO / COLA DE CONTATO LIQUIDO, A BASE DE RESINAS, PARA COLAGEM DE ESPUMA PARA ISOLAMENTO TERMICO FLEXIVEL | C119: L | D119: 240.19
A120: 3410 | B120: ADESIVO / COLA PARA EPS (ISOPOR) E OUTROS MATERIAIS | C120: KG | D120: 54.03
A121: 4791 | B121: ADESIVO ACRILICO DE BASE AQUOSA / COLA DE CONTATO | C121: KG | D121: 29.94
A122: 157 | B122: ADESIVO ESTRUTURAL A BASE DE RESINA EPOXI PARA INJECAO EM TRINCAS, BICOMPONENTE, BAIXA VISCOSIDADE | C122: KG | D122: 175.27
A123: 156 | B123: ADESIVO ESTRUTURAL A BASE DE RESINA EPOXI, BICOMPONENTE, FLUIDO | C123: KG | D123: 62.4
A124: 131 | B124: ADESIVO ESTRUTURAL A BASE DE RESINA EPOXI, BICOMPONENTE, PASTOSO (TIXOTROPICO) | C124: KG | D124: 53.37
A125: 21114 | B125: ADESIVO PARA TUBOS CPVC, *75* G | C125: UN | D125: 47.34
A126: 119 | B126: ADESIVO PLASTICO PARA PVC, BISNAGA COM 75 GR | C126: UN | D126: 12
A127: 122 | B127: ADESIVO PLASTICO PARA PVC, FRASCO COM *850* GR | C127: UN | D127: 92.33
A128: 20080 | B128: ADESIVO PLASTICO PARA PVC, FRASCO COM 175 GR | C128: UN | D128: 30.13
A129: 124 | B129: ADITIVO ACELERADOR DE PEGA E ENDURECIMENTO PARA ARGAMASSAS E CONCRETOS, LIQUIDO E ISENTO DE CLORETOS | C129: L | D129: 20.58
A130: 7334 | B130: ADITIVO ADESIVO LIQUIDO PARA ARGAMASSAS DE REVESTIMENTOS CIMENTICIOS | C130: L
A131: 45146 | B131: ADITIVO IMPERMEABILIZANTE CRISTALIZANTE PARA CONCRETO | C131: KG | D131: 39.46
A132: 123 | B132: ADITIVO IMPERMEABILIZANTE DE PEGA NORMAL PARA ARGAMASSAS E CONCRETOS SEM ARMACAO, LIQUIDO E ISENTO DE CLORETOS | C132: L | D132: 8.42
A133: 127 | B133: ADITIVO IMPERMEABILIZANTE DE PEGA ULTRARRAPIDA, LIQUIDO E ISENTO DE CLORETOS | C133: L | D133: 20.1
A134: 133 | B134: ADITIVO LIQUIDO INCORPORADOR DE AR PARA CONCRETO E ARGAMASSA, LIQUIDO E ISENTO DE CLORETOS | C134: L | D134: 8.35
A135: 43617 | B135: ADITIVO PLASTIFICANTE E ESTABILIZADOR PARA ARGAMASSAS DE ASSENTAMENTO E REBOCO, LIQUIDO E ISENTO DE CLORETOS | C135: L | D135: 9.33
A136: 132 | B136: ADITIVO PLASTIFICANTE RETARDADOR DE PEGA E REDUTOR DE AGUA PARA CONCRETO, LIQUIDO E ISENTO DE CLORETOS | C136: L | D136: 8.65
A137: 43618 | B137: ADITIVO SUPERPLASTIFICANTE DE PEGA NORMAL PARA CONCRETO, LIQUIDO E ISENTO DE CLORETOS | C137: KG | D137: 21.79
A138: 37476 | B138: ADUELA/ GALERIA PRE-MOLDADA DE CONCRETO ARMADO, SECAO QUADRADA INTERNA DE 1,50 X 1,50 M (L X A), MISULA DE 20 X 20 CM, C = 1,00 M, ESPESSURA MIN = 15 CM, TB-45 E FCK DO CONCRETO = 30 MPA | C138: UN
A139: 37478 | B139: ADUELA/ GALERIA PRE-MOLDADA DE CONCRETO ARMADO, SECAO RETANGULAR INTERNA DE 2,00 X 2,00 M (L X A), MISULA DE 20 X 20 CM, C = 1,00 M, ESPESSURA MIN = 15 CM, TB-45 E FCK DO CONCRETO = 30 MPA | C139: UN
A140: 37477 | B140: ADUELA/ GALERIA PRE-MOLDADA DE CONCRETO ARMADO, SECAO RETANGULAR INTERNA DE 2,50 X 2,50 M (L X A), MISULA DE 20 X 20 CM, C = 1,00 M, ESPESSURA MIN = 15 CM, TB-45 E FCK DO CONCRETO = 30 MPA | C140: UN
A141: 37479 | B141: ADUELA/ GALERIA PRE-MOLDADA DE CONCRETO ARMADO, SECAO RETANGULAR INTERNA DE 3,00 X 3,00 M (L X A), MISULA DE 20 X 20 CM, C = 1.00 M, ESPESSURA MIN = 20 CM, TB-45 E FCK DO CONCRETO = 30 MPA | C141: UN
A142: 4319 | B142: AFASTADOR PARA TELHA DE FIBROCIMENTO CANALETE 90 OU KALHETAO | C142: UN | D142: 1.54
A143: 42409 | B143: AGENTE DE CURA, PROTETOR DA EVAPORACAO DA AGUA DE HIDRATACAO DO CONCRETO | C143: KG | D143: 13.72
A144: 40553 | B144: AGREGADO RECICLADO, TIPO RACHAO RECICLADO CINZA, CLASSE A | C144: M3
A145: 6114 | B145: AJUDANTE DE ARMADOR (HORISTA) | C145: H | D145: 17.96
A146: 40912 | B146: AJUDANTE DE ARMADOR (MENSALISTA) | C146: MES | D146: 3231.66
A147: 247 | B147: AJUDANTE DE ELETRICISTA (HORISTA) | C147: H | D147: 17.96
A148: 40919 | B148: AJUDANTE DE ELETRICISTA (MENSALISTA) | C148: MES | D148: 3231.66
A149: 44499 | B149: AJUDANTE DE ESTRUTURAS METALICAS (HORISTA) | C149: H | D149: 17.96
A150: 40984 | B150: AJUDANTE DE ESTRUTURAS METALICAS (MENSALISTA) | C150: MES | D150: 3231.66
A151: 248 | B151: AJUDANTE DE OPERACAO EM GERAL (HORISTA) | C151: H | D151: 17.78
A152: 41086 | B152: AJUDANTE DE OPERACAO EM GERAL (MENSALISTA) | C152: MES | D152: 3198.21
A153: 34466 | B153: AJUDANTE DE PINTOR (HORISTA) | C153: H | D153: 22.29
A154: 41083 | B154: AJUDANTE DE PINTOR (MENSALISTA) | C154: MES | D154: 4011.01
A155: 252 | B155: AJUDANTE DE SERRALHEIRO (HORISTA) | C155: H | D155: 17.96
A156: 40909 | B156: AJUDANTE DE SERRALHEIRO (MENSALISTA) | C156: MES | D156: 3231.66
A157: 242 | B157: AJUDANTE ESPECIALIZADO (HORISTA) | C157: H | D157: 17.78
A158: 41085 | B158: AJUDANTE ESPECIALIZADO (MENSALISTA) | C158: MES | D158: 3198.21
A159: 427 | B159: ALCA PREFORMADA DE CONTRA POSTE, EM ACO GALVANIZADO, PARA CABO 3/16", COMPRIMENTO *860* MM | C159: UN | D159: 11.42
A160: 417 | B160: ALCA PREFORMADA DE DISTRIBUICAO, EM ACO GALVANIZADO, PARA CABO DE ALUMINIO DIAMETRO 16 A 25 MM | C160: UN | D160: 5.38
A161: 11273 | B161: ALCA PREFORMADA DE DISTRIBUICAO, EM ACO GALVANIZADO, PARA CONDUTORES DE ALUMINIO AWG 1/0 (CAA 6/1 OU CA 7 FIOS) | C161: UN | D161: 16.71
A162: 11272 | B162: ALCA PREFORMADA DE DISTRIBUICAO, EM ACO GALVANIZADO, PARA CONDUTORES DE ALUMINIO AWG 2 (CAA 6/1 OU CA 7 FIOS) | C162: UN | D162: 10.08
A163: 11275 | B163: ALCA PREFORMADA DE SERVICO, EM ACO GALVANIZADO, PARA CONDUTORES DE ALUMINIO AWG 4 (CAA 6/1) | C163: UN | D163: 4.04
A164: 11274 | B164: ALCA PREFORMADA DE SERVICO, EM ACO GALVANIZADO, PARA CONDUTORES DE ALUMINIO AWG 6 (CAA 6/1) | C164: UN | D164: 3.08
A165: 45208 | B165: ALICATE AMPERIMETRO, TENSAO AC/DC, CAPACIDADE MAXIMA 1000 A | C165: UN | D165: 271.11
A166: 45250 | B166: ALICATE BICO LONGO (MEIA CANA) 6", COM ISOLAMENTO ATE 1000 V | C166: UN | D166: 41.93
A167: 38470 | B167: ALICATE DE CORTE DIAGONAL 6" COM ISOLAMENTO | C167: UN | D167: 42.92
A168: 38547 | B168: ALICATE DE CRIMPAR RJ11, RJ12 E RJ45, COM CATRACA | C168: UN | D168: 284.94
A169: 38467 | B169: ALICATE DE PRESSAO 11" PARA SOLDA, TIPO C | C169: UN | D169: 205.01
A170: 38468 | B170: ALICATE DE PRESSAO 11" PARA SOLDA, TIPO U | C170: UN | D170: 255.91
A171: 38469 | B171: ALICATE DE PRESSAO PARA SOLDA DE CHAPA 18" | C171: UN | D171: 272.07
A172: 45197 | B172: ALICATE DESENCAPADOR AUTOMATICO 8" | C172: UN | D172: 216.99
A173: 38471 | B173: ALICATE PARA ANEIS DE PISTAO, CAPACIDADE *50* A 100 MM | C173: UN | D173: 290.99
A174: 45206 | B174: ALICATE PROFISSIONAL 8", UNIVERSAL, COM ISOLAMENTO ATE 1000 V | C174: UN | D174: 57.49
A175: 37370 | B175: ALIMENTACAO - HORISTA (COLETADO CAIXA - ENCARGOS COMPLEMENTARES) | C175: H | D175: 2.9
A176: 40862 | B176: ALIMENTACAO - MENSALISTA (COLETADO CAIXA - ENCARGOS COMPLEMENTARES) | C176: MES | D176: 521
A177: 10658 | B177: ALISADORA DE CONCRETO COM MOTOR A GASOLINA DE 5,5 HP, PESO COM MOTOR DE 78 KG, 4 PAS | C177: UN
A178: 253 | B178: ALMOXARIFE (HORISTA) | C178: H | D178: 22.29
A179: 40809 | B179: ALMOXARIFE (MENSALISTA) | C179: MES | D179: 4009.79
A180: 42428 | B180: ALONGADOR COM TRES ALTURAS, EM TUBO DE ACO CARBONO, PINTURA NO PROCESSO ELETROSTATICO - EQUIPAMENTO DE GINASTICA PARA ACADEMIA AO AR LIVRE / ACADEMIA DA TERCEIRA IDADE - ATI | C180: UN
A181: 301 | B181: ANEL BORRACHA PARA TUBO ESGOTO PREDIAL, DN 100 MM (NBR 5688) | C181: UN | D181: 3.16
A182: 296 | B182: ANEL BORRACHA PARA TUBO ESGOTO PREDIAL, DN 50 MM (NBR 5688) | C182: UN | D182: 1.78
A183: 297 | B183: ANEL BORRACHA PARA TUBO ESGOTO PREDIAL, DN 75 MM (NBR 5688) | C183: UN | D183: 2.62
A184: 299 | B184: ANEL BORRACHA, DN 100 MM, PARA TUBO SERIE REFORCADA ESGOTO PREDIAL | C184: UN | D184: 3.71
A185: 300 | B185: ANEL BORRACHA, DN 150 MM, PARA TUBO SERIE REFORCADA ESGOTO PREDIAL | C185: UN | D185: 12.82
A186: 20085 | B186: ANEL BORRACHA, DN 50 MM, PARA TUBO SERIE REFORCADA ESGOTO PREDIAL | C186: UN | D186: 2.34
A187: 298 | B187: ANEL BORRACHA, DN 75 MM, PARA TUBO SERIE REFORCADA ESGOTO PREDIAL | C187: UN | D187: 2.85
A188: 311 | B188: ANEL BORRACHA, PARA TUBO PVC DEFOFO, DN 100 MM (NBR 7665) | C188: UN | D188: 10.58
A189: 318 | B189: ANEL BORRACHA, PARA TUBO PVC DEFOFO, DN 150 MM (NBR 7665) | C189: UN | D189: 21.3
A190: 319 | B190: ANEL BORRACHA, PARA TUBO PVC DEFOFO, DN 200 MM (NBR 7665) | C190: UN | D190: 33.4
A191: 303 | B191: ANEL BORRACHA, PARA TUBO PVC, REDE COLETOR ESGOTO, DN 100 MM (NBR 7362) | C191: UN | D191: 3.5
A192: 305 | B192: ANEL BORRACHA, PARA TUBO PVC, REDE COLETOR ESGOTO, DN 150 MM (NBR 7362) | C192: UN | D192: 11.01
A193: 306 | B193: ANEL BORRACHA, PARA TUBO PVC, REDE COLETOR ESGOTO, DN 200 MM (NBR 7362) | C193: UN | D193: 16.7
A194: 307 | B194: ANEL BORRACHA, PARA TUBO PVC, REDE COLETOR ESGOTO, DN 250 MM (NBR 7362) | C194: UN | D194: 42.19
A195: 309 | B195: ANEL BORRACHA, PARA TUBO PVC, REDE COLETOR ESGOTO, DN 350 MM (NBR 7362) | C195: UN | D195: 69.12
A196: 310 | B196: ANEL BORRACHA, PARA TUBO PVC, REDE COLETOR ESGOTO, DN 400 MM (NBR 7362) | C196: UN | D196: 95.8
A197: 308 | B197: ANEL BORRACHA, PARA TUBO, PVC REDE COLETOR ESGOTO, DN 300 MM (NBR 7362) | C197: UN | D197: 94.17
A198: 328 | B198: ANEL BORRACHA, PARA TUBO/CONEXAO PVC PBA, DN 100 MM, PARA REDE AGUA | C198: UN | D198: 8.37
A199: 325 | B199: ANEL BORRACHA, PARA TUBO/CONEXAO PVC PBA, DN 50 MM, PARA REDE AGUA | C199: UN | D199: 2.47
A200: 20326 | B200: ANEL BORRACHA, PARA TUBO/CONEXAO PVC PBA, DN 60 MM, PARA REDE AGUA | C200: UN | D200: 4.52
... 4785 more rows

Sheet CPU2 (hidden)
A2: Processo | B2: 59500.003753/2025-45
A4: ITEM: | B4: EMISSÃO ART | H4: UNIDADE DE MEDIDA: | I4: UM | J4: QUANTIDADE: | K4: 1
A5: LICITAÇÕES ANTERIORES
A6: Empresa | I6: Data | J6: Preço Unitário | K6: Utilizar? (Sim/Não)
A7: EMISSÃO DE ART | I7: 2025-03-02 | J7: 285.59 | K7: SIM
A8: =IF(ISBLANK(D8),"",IF(ISNUMBER(G8),(H8-G8)/G8,0)) -> 

Sheet COT01 (hidden)
B2: Processo | C2: 59500.003753/2025-45
B3: Responsável | C3: Kaio Gabriel, Alessandra Brant, Alberto Nascimento
B4: Área de Origem | C4: AI/GAP/UGI
B5: Data da pesquisa | C5: 2025-10-22
B7: ITEM: | C7: TUBO PEBD DI 16MM PN30 | I7: UNIDADE DE MEDIDA: | J7: m | K7: QUANTIDADE: | L7: 6100 | O7: Tabela auxiliar de metodologias para exclusão de preços
B8: LICITAÇÕES ANTERIORES | O8: Licitações Anteriores
B9: Órgão | C9: Edital/Ano - Nº do Lote / Item | D9: Quantidade | E9: Valor Unitário | F9: Data | G9: índice de atualização (nome) | H9: I0 | I9: If | J9: Variação acumulada do índice (%) | K9: Preço unitário atualizado | L9: Utilizar? (Sim/Não) | O9: Outliers | P9: Por critério do(a) analista
J10: =IF(ISBLANK(E10),"",IF(ISNUMBER(H10),(I10-H10)/H10,0)) ->  | K10: =IF(ISBLANK(E10),"",E10*(1+J10)) ->  | L10: =IF(ISNUMBER(K10),IF($L$32<>$P$9,O10,P10),"") ->  | O10: =IF(ISNUMBER(K10),IF(OR(K10<_xlfn.QUARTILE.INC($K$10:$K$29,1)-1.5*(_xlfn.QUARTILE.INC($K$10:K29,3)-_xlfn.QUARTILE.INC($K$10:$K$29,1)),K10>_xlfn.QUARTILE.INC($K$10:$K$29,3)+1.5*(_xlfn.QUARTILE.INC($K$10:$K$29,3)-_xlfn.QUARTILE.INC($K$10:$K$29,1))),"Não","Sim"),"") -> 
J11: =IF(ISBLANK(E11),"",IF(ISNUMBER(H11),(I11-H11)/H11,0)) ->  | K11: =IF(ISBLANK(E11),"",E11*(1+J11)) ->  | O11: =IF(ISNUMBER(K11),IF(OR(K11<_xlfn.QUARTILE.INC($K$10:$K$29,1)-1.5*(_xlfn.QUARTILE.INC($K$10:K29,3)-_xlfn.QUARTILE.INC($K$10:$K$29,1)),K11>_xlfn.QUARTILE.INC($K$10:$K$29,3)+1.5*(_xlfn.QUARTILE.INC($K$10:$K$29,3)-_xlfn.QUARTILE.INC($K$10:$K$29,1))),"Não","Sim"),"") -> 
O12: =IF(ISNUMBER(K12),IF(OR(K12<_xlfn.QUARTILE.INC($K$10:$K$29,1)-1.5*(_xlfn.QUARTILE.INC($K$10:K30,3)-_xlfn.QUARTILE.INC($K$10:$K$29,1)),K12>_xlfn.QUARTILE.INC($K$10:$K$29,3)+1.5*(_xlfn.QUARTILE.INC($K$10:$K$29,3)-_xlfn.QUARTILE.INC($K$10:$K$29,1))),"Não","Sim"),"") -> 
O13: =IF(ISNUMBER(K13),IF(OR(K13<_xlfn.QUARTILE.INC($K$10:$K$29,1)-1.5*(_xlfn.QUARTILE.INC($K$10:K31,3)-_xlfn.QUARTILE.INC($K$10:$K$29,1)),K13>_xlfn.QUARTILE.INC($K$10:$K$29,3)+1.5*(_xlfn.QUARTILE.INC($K$10:$K$29,3)-_xlfn.QUARTILE.INC($K$10:$K$29,1))),"Não","Sim"),"") -> 
O14: =IF(ISNUMBER(K14),IF(OR(K14<_xlfn.QUARTILE.INC($K$10:$K$29,1)-1.5*(_xlfn.QUARTILE.INC($K$10:K32,3)-_xlfn.QUARTILE.INC($K$10:$K$29,1)),K14>_xlfn.QUARTILE.INC($K$10:$K$29,3)+1.5*(_xlfn.QUARTILE.INC($K$10:$K$29,3)-_xlfn.QUARTILE.INC($K$10:$K$29,1))),"Não","Sim"),"") -> 
O15: =IF(ISNUMBER(K15),IF(OR(K15<_xlfn.QUARTILE.INC($K$10:$K$29,1)-1.5*(_xlfn.QUARTILE.INC($K$10:K35,3)-_xlfn.QUARTILE.INC($K$10:$K$29,1)),K15>_xlfn.QUARTILE.INC($K$10:$K$29,3)+1.5*(_xlfn.QUARTILE.INC($K$10:$K$29,3)-_xlfn.QUARTILE.INC($K$10:$K$29,1))),"Não","Sim"),"") -> 
O16: =IF(ISNUMBER(K16),IF(OR(K16<_xlfn.QUARTILE.INC($K$10:$K$29,1)-1.5*(_xlfn.QUARTILE.INC($I$10:I37,3)-_xlfn.QUARTILE.INC($K$10:$K$29,1)),K16>_xlfn.QUARTILE.INC($K$10:$K$29,3)+1.5*(_xlfn.QUARTILE.INC($K$10:$K$29,3)-_xlfn.QUARTILE.INC($K$10:$K$29,1))),"Não","Sim"),"") -> 
B17: COTAÇÕES DE MERCADO | O17: Cotações
B18: Empresa | J18: Data | K18: Preço Unitário | L18: Utilizar? (Sim/Não) | O18: Outliers | P18: Por critério do(a) analista
B19: Tradição Agrícola - https://www.tradicaoagricola.com.br/tubo-cego-microtubo/tubo-cego-para-irrigacao-16mm-di-13-8mm-500m-rivulis?parceiro=2545&srsltid=AfmBOooqvlteK_-6oJihK2XyKj3djvlOFcib3uIZevryOnkdlx6cAz2qneo | J19: 2025-11-10 | K19: =(680.75+245.56)/500 -> 1.85 | L19: =IF(ISNUMBER(K19),IF($L$32=$O$18,O19,IF($L$32=$P$18,P19,"")),"") -> Sim | O19: =IF(ISNUMBER(K19),IF(OR(K19<_xlfn.QUARTILE.INC($K$10:$K$29,1)-1.5*(_xlfn.QUARTILE.INC($K$10:$K$29,3)-_xlfn.QUARTILE.INC($K$10:$K$29,1)),K19>_xlfn.QUARTILE.INC($K$10:$K$29,3)+1.5*(_xlfn.QUARTILE.INC($K$10:$K$29,3)-_xlfn.QUARTILE.INC($K$10:$K$29,1))),"Não","Sim"),"") -> Sim
B20: Safra Irrigação - https://www.safrairrigacao.com.br/mangueira-pelbd-16mm-pn30--irritec-18984-1?region_id=000001&srsltid=AfmBOoqTWXlDWS1kAwqO66ycgpsCNDxaNhh9L-iSazeE1THK-89ZtCM5pKg | J20: 2025-11-10 | K20: =((515*2)+583.7/2)/1000 -> 1.32 | L20: Sim | O20: Sim
B21: FERPAM - https://www.ferpam.com.br/500mt-tubo-irrig-pelbd-16009-dn16-pn30-netafim.html?srsltid=AfmBOorg1g2iUNloqM2zUuDaNC9zQ7kBwUSLYhmNGz2MheBlHoQDosRyjGU | J21: 2025-11-10 | K21: =((12*556.61)+410.55)/6000 -> 1.18 | L21: Sim | O21: Sim
B30: Observações: | K30: Média: | L30: =IF($L$32="","Selecione metodologia para exclusão de preços",AVERAGE(IF($L$10:$L$29="Sim",$K$10:$K$29))) -> 1.45 | N30: Média (Cotações) | O30: =IF(COUNTIF(O19:O29,"Sim")<3,"N/D (são necessários pelo menos 3 preços)",AVERAGE(IF(O19:O29="Sim",$K19:$K29))) -> 1.45 | P30: =IF(COUNTIF(P19:P29,"Sim")<3,"N/D (são necessários pelo menos 3 preços)",AVERAGE(IF(P19:P29="Sim",$K19:$K29))) -> N/D (são necessários pelo menos 3 preços)
K31: Mediana: | L31: =IF($L$32="","Selecione metodologia para exclusão de preços",MEDIAN(IF($L$10:$L$29="Sim",$K$10:$K$29))) -> 1.32 | N31: Mediana (Cotações) | O31: =IF(COUNTIF(O19:O29,"Sim")<3,"N/D (são necessários pelo menos 3 preços)",MEDIAN(IF(O19:O29="Sim",$K19:$K29))) -> 1.32 | P31: =IF(COUNTIF(P19:P29,"Sim")<3,"N/D (são necessários pelo menos 3 preços)",MEDIAN(IF(P19:P29="Sim",$K19:$K29))) -> N/D (são necessários pelo menos 3 preços)
B32: Metodologia de exclusão de preços adotada: | L32: =IF(O35="",INDEX(O18:P18,MATCH(MIN(#REF!),#REF!,0)),O35) -> Outliers | N32: CV (Cotações) | O32: =IF(COUNTIF(O19:O29,"Sim")<3,"N/D (são necessários pelo menos 3 preços)",_xlfn.STDEV.S(IF(O19:O29="Sim",$K19:$K29))/AVERAGE(IF(O19:O29="Sim",$K19:$K29))) -> 0.2437 | P32: =IF(COUNTIF(P19:P29,"Sim")<3,"N/D (são necessários pelo menos 3 preços)",_xlfn.STDEV.S(IF(P19:P29="Sim",$K19:$K29))/AVERAGE(IF(P19:P29="Sim",$K19:$K29))) -> N/D (são necessários pelo menos 3 preços)
N33: Média | O33: =IF(SUM(COUNTIF($O$10:$O$16,"Sim")) + SUM(COUNTIF(O19:O29,"Sim")) < 3, "N/D (são necessários pelo menos 3 preços)", IFERROR(AVERAGE(_xlfn._xlws.FILTER($K$10:$K$16,$O$10:$O$16="Sim"), _xlfn._xlws.FILTER($K$19:$K$29,O19:O29="Sim")),O30)) -> 1.45 | P33: =IF(SUM(COUNTIF($P$10:$P$16,"Sim")) + SUM(COUNTIF(P19:P29,"Sim")) < 3, "N/D (são necessários pelo menos 3 preços)", IFERROR(AVERAGE(_xlfn._xlws.FILTER($K$10:$K$16,$P$10:$P$16="Sim"), _xlfn._xlws.FILTER($K$19:$K$29,P19:P29="Sim")),P30)) -> N/D (são necessários pelo menos 3 preços)
N34: Mediana | O34: =IF(SUM(COUNTIF($O$10:$O$16,"Sim")) + SUM(COUNTIF(O19:O29,"Sim")) < 3, "N/D (são necessários pelo menos 3 preços)", IFERROR(MEDIAN(_xlfn._xlws.FILTER($K$10:$K$16,$O$10:$O$16="Sim"), _xlfn._xlws.FILTER($K$19:$K$29,O19:O29="Sim")),O31)) -> 1.32 | P34: =IF(SUM(COUNTIF($P10:$P$16,"Sim")) + SUM(COUNTIF(P19:P29,"Sim")) < 3, "N/D (são necessários pelo menos 3 preços)", IFERROR(MEDIAN(_xlfn._xlws.FILTER($K$10:$K$16,$P$10:$P$16="Sim"), _xlfn._xlws.FILTER($K$19:$K$29,P19:P29="Sim")),P31)) -> N/D (são necessários pelo menos 3 preços)
B35: COSOLIDAÇÃO DOS PREÇOS | N35: Metodologia a adotar: | O35: =IF(INDEX(O18:P18,P35)=0,"",INDEX(O18:P18,P35)) -> Outliers | P35: 1
B37: PREÇO UNITÁRIO ESTIMADO ADOTADO: | L37: =IF($B$39="Mediana:",L31,L30) -> 1.32
A39: =O18 -> Outliers | B39: Mediana:
A40: =P18 -> Por critério do(a) analista

Sheet COT02 (hidden)
B2: Processo | C2: 59500.003753/2025-45
B3: Responsável | C3: Kaio Gabriel, Alessandra Brant, Alberto Nascimento
B4: Área de Origem | C4: AI/GAP/UGI
B5: Data da pesquisa | C5: 2025-10-22
B7: ITEM: | C7: TUBO GOTEJADOR DI16MM PAREDE 15MIL 1,85LPH X 0,20M | I7: UNIDADE DE MEDIDA: | J7: m | K7: QUANTIDADE: | L7: 4000 | O7: Tabela auxiliar de metodologias para exclusão de preços
B8: LICITAÇÕES ANTERIORES | O8: Licitações Anteriores
B9: Órgão | C9: Edital/Ano - Nº do Lote / Item | D9: Quantidade | E9: Valor Unitário | F9: Data | G9: índice de atualização (nome) | H9: I0 | I9: If | J9: Variação acumulada do índice (%) | K9: Preço unitário atualizado | L9: Utilizar? (Sim/Não) | O9: Outliers | P9: Por critério do(a) analista
J10: =IF(ISBLANK(E10),"",IF(ISNUMBER(H10),(I10-H10)/H10,0)) ->  | K10: =IF(ISBLANK(E10),"",E10*(1+J10)) ->  | L10: =IF(ISNUMBER(K10),IF($L$32<>$P$9,O10,P10),"") ->  | O10: =IF(ISNUMBER(K10),IF(OR(K10<_xlfn.QUARTILE.INC($K$10:$K$29,1)-1.5*(_xlfn.QUARTILE.INC($K$10:K29,3)-_xlfn.QUARTILE.INC($K$10:$K$29,1)),K10>_xlfn.QUARTILE.INC($K$10:$K$29,3)+1.5*(_xlfn.QUARTILE.INC($K$10:$K$29,3)-_xlfn.QUARTILE.INC($K$10:$K$29,1))),"Não","Sim"),"") -> 
J11: =IF(ISBLANK(E11),"",IF(ISNUMBER(H11),(I11-H11)/H11,0)) ->  | K11: =IF(ISBLANK(E11),"",E11*(1+J11)) ->  | O11: =IF(ISNUMBER(K11),IF(OR(K11<_xlfn.QUARTILE.INC($K$10:$K$29,1)-1.5*(_xlfn.QUARTILE.INC($K$10:K29,3)-_xlfn.QUARTILE.INC($K$10:$K$29,1)),K11>_xlfn.QUARTILE.INC($K$10:$K$29,3)+1.5*(_xlfn.QUARTILE.INC($K$10:$K$29,3)-_xlfn.QUARTILE.INC($K$10:$K$29,1))),"Não","Sim"),"") -> 
O12: =IF(ISNUMBER(K12),IF(OR(K12<_xlfn.QUARTILE.INC($K$10:$K$29,1)-1.5*(_xlfn.QUARTILE.INC($K$10:K30,3)-_xlfn.QUARTILE.INC($K$10:$K$29,1)),K12>_xlfn.QUARTILE.INC($K$10:$K$29,3)+1.5*(_xlfn.QUARTILE.INC($K$10:$K$29,3)-_xlfn.QUARTILE.INC($K$10:$K$29,1))),"Não","Sim"),"") -> 
O13: =IF(ISNUMBER(K13),IF(OR(K13<_xlfn.QUARTILE.INC($K$10:$K$29,1)-1.5*(_xlfn.QUARTILE.INC($K$10:K31,3)-_xlfn.QUARTILE.INC($K$10:$K$29,1)),K13>_xlfn.QUARTILE.INC($K$10:$K$29,3)+1.5*(_xlfn.QUARTILE.INC($K$10:$K$29,3)-_xlfn.QUARTILE.INC($K$10:$K$29,1))),"Não","Sim"),"") -> 
O14: =IF(ISNUMBER(K14),IF(OR(K14<_xlfn.QUARTILE.INC($K$10:$K$29,1)-1.5*(_xlfn.QUARTILE.INC($K$10:K32,3)-_xlfn.QUARTILE.INC($K$10:$K$29,1)),K14>_xlfn.QUARTILE.INC($K$10:$K$29,3)+1.5*(_xlfn.QUARTILE.INC($K$10:$K$29,3)-_xlfn.QUARTILE.INC($K$10:$K$29,1))),"Não","Sim"),"") -> 
O15: =IF(ISNUMBER(K15),IF(OR(K15<_xlfn.QUARTILE.INC($K$10:$K$29,1)-1.5*(_xlfn.QUARTILE.INC($K$10:K35,3)-_xlfn.QUARTILE.INC($K$10:$K$29,1)),K15>_xlfn.QUARTILE.INC($K$10:$K$29,3)+1.5*(_xlfn.QUARTILE.INC($K$10:$K$29,3)-_xlfn.QUARTILE.INC($K$10:$K$29,1))),"Não","Sim"),"") -> 
O16: =IF(ISNUMBER(K16),IF(OR(K16<_xlfn.QUARTILE.INC($K$10:$K$29,1)-1.5*(_xlfn.QUARTILE.INC($I$10:I37,3)-_xlfn.QUARTILE.INC($K$10:$K$29,1)),K16>_xlfn.QUARTILE.INC($K$10:$K$29,3)+1.5*(_xlfn.QUARTILE.INC($K$10:$K$29,3)-_xlfn.QUARTILE.INC($K$10:$K$29,1))),"Não","Sim"),"") -> 
B17: COTAÇÕES DE MERCADO | O17: Cotações
B18: Empresa | J18: Data | K18: Preço Unitário | L18: Utilizar? (Sim/Não) | O18: Outliers | P18: Por critério do(a) analista
B19: Casa Irriga (Sua cada da Irrigação) - Belo Horizonte - Minas Gerais - CNPJ: 23.794.485/0001-38 .https://casairriga.com.br/produto/mangueira-gotejamento-pelbd-16mm-20-metros/ | J19: 2025-11-10 | K19: =((45*30)+586.64)/(30*20) -> 3.23 | L19: Não | O19: =IF(ISNUMBER(K19),IF(OR(K19<_xlfn.QUARTILE.INC($K$10:$K$29,1)-1.5*(_xlfn.QUARTILE.INC($K$10:$K$29,3)-_xlfn.QUARTILE.INC($K$10:$K$29,1)),K19>_xlfn.QUARTILE.INC($K$10:$K$29,3)+1.5*(_xlfn.QUARTILE.INC($K$10:$K$29,3)-_xlfn.QUARTILE.INC($K$10:$K$29,1))),"Não","Sim"),"") -> Sim
B20: InstaAgro - https://www.instaagro.com/tubo-gotejador-amnondrip-nd-17mm-25-mil-2-2-l-h-40cm-500m-naandan?gad_source=4&gad_campaignid=22678466632&gbraid=0AAAAAC0h8RIvQhPzXdNKld4Pt7BPg80K-&gclid=CjwKCAiAt8bIBhBpEiwAzH1w6c8jacwwb_yG9rK5jpdfp74l-n9nP60aynkf0OdfvZLTP806Lf2rjRoC6LAQAvD_BwE | J20: 2025-11-10 | K20: =1057.42/500 -> 2.11 | L20: =IF(ISNUMBER(K20),IF($L$32=$O$18,O20,IF($L$32=$P$18,P20,"")),"") -> Sim | O20: Sim
B21: Dr.IRRIGAÇÃO - https://doutorirrigacao.com.br/rain-bird/tubo-gotejador-ag-flex-pc-15mm-rain-bird-p?produto=4097&srsltid=AfmBOopCNvVV7Bt5L6awDPnCwgi4tVueei2RzEmSlp81WlG8rxavpxWKaoY | J21: 2025-11-10 | K21: =(2437.22+962.66)/1200 -> 2.83 | L21: Sim | O21: Sim
B22: Agroclique - https://agroclique.com.br/produto/tubo-gotejador-irritec-p5-16mm-15l-h-15mil-20cm-bobina-c-1300m/?srsltid=AfmBOoo1HSWGC9FQpGYG9aaTlEWebaYeGds78RWugrU4WDCkyLTr4Ez- | J22: 2025-11-10 | K22: =((1479*6)+4697.48)/(6*1300) -> 1.74 | L22: Sim | O22: Sim
B30: Observações: | K30: Média: | L30: =IF($L$32="","Selecione metodologia para exclusão de preços",AVERAGE(IF($L$10:$L$29="Sim",$K$10:$K$29))) -> 2.23 | N30: Média (Cotações) | O30: =IF(COUNTIF(O19:O29,"Sim")<3,"N/D (são necessários pelo menos 3 preços)",AVERAGE(IF(O19:O29="Sim",$K19:$K29))) -> 2.48 | P30: =IF(COUNTIF(P19:P29,"Sim")<3,"N/D (são necessários pelo menos 3 preços)",AVERAGE(IF(P19:P29="Sim",$K19:$K29))) -> N/D (são necessários pelo menos 3 preços)
K31: Mediana: | L31: =IF($L$32="","Selecione metodologia para exclusão de preços",MEDIAN(IF($L$10:$L$29="Sim",$K$10:$K$29))) -> 2.11 | N31: Mediana (Cotações) | O31: =IF(COUNTIF(O19:O29,"Sim")<3,"N/D (são necessários pelo menos 3 preços)",MEDIAN(IF(O19:O29="Sim",$K19:$K29))) -> 2.47 | P31: =IF(COUNTIF(P19:P29,"Sim")<3,"N/D (são necessários pelo menos 3 preços)",MEDIAN(IF(P19:P29="Sim",$K19:$K29))) -> N/D (são necessários pelo menos 3 preços)
B32: Metodologia de exclusão de preços adotada: | L32: =IF(O35="",INDEX(O18:P18,MATCH(MIN(#REF!),#REF!,0)),O35) -> Outliers | N32: CV (Cotações) | O32: =IF(COUNTIF(O19:O29,"Sim")<3,"N/D (são necessários pelo menos 3 preços)",_xlfn.STDEV.S(IF(O19:O29="Sim",$K19:$K29))/AVERAGE(IF(O19:O29="Sim",$K19:$K29))) -> 0.2727 | P32: =IF(COUNTIF(P19:P29,"Sim")<3,"N/D (são necessários pelo menos 3 preços)",_xlfn.STDEV.S(IF(P19:P29="Sim",$K19:$K29))/AVERAGE(IF(P19:P29="Sim",$K19:$K29))) -> N/D (são necessários pelo menos 3 preços)
N33: Média | O33: =IF(SUM(COUNTIF($O$10:$O$16,"Sim")) + SUM(COUNTIF(O19:O29,"Sim")) < 3, "N/D (são necessários pelo menos 3 preços)", IFERROR(AVERAGE(_xlfn._xlws.FILTER($K$10:$K$16,$O$10:$O$16="Sim"), _xlfn._xlws.FILTER($K$19:$K$29,O19:O29="Sim")),O30)) -> 2.48 | P33: =IF(SUM(COUNTIF($P$10:$P$16,"Sim")) + SUM(COUNTIF(P19:P29,"Sim")) < 3, "N/D (são necessários pelo menos 3 preços)", IFERROR(AVERAGE(_xlfn._xlws.FILTER($K$10:$K$16,$P$10:$P$16="Sim"), _xlfn._xlws.FILTER($K$19:$K$29,P19:P29="Sim")),P30)) -> N/D (são necessários pelo menos 3 preços)
N34: Mediana | O34: =IF(SUM(COUNTIF($O$10:$O$16,"Sim")) + SUM(COUNTIF(O19:O29,"Sim")) < 3, "N/D (são necessários pelo menos 3 preços)", IFERROR(MEDIAN(_xlfn._xlws.FILTER($K$10:$K$16,$O$10:$O$16="Sim"), _xlfn._xlws.FILTER($K$19:$K$29,O19:O29="Sim")),O31)) -> 2.47 | P34: =IF(SUM(COUNTIF($P10:$P$16,"Sim")) + SUM(COUNTIF(P19:P29,"Sim")) < 3, "N/D (são necessários pelo menos 3 preços)", IFERROR(MEDIAN(_xlfn._xlws.FILTER($K$10:$K$16,$P$10:$P$16="Sim"), _xlfn._xlws.FILTER($K$19:$K$29,P19:P29="Sim")),P31)) -> N/D (são necessários pelo menos 3 preços)
B35: COSOLIDAÇÃO DOS PREÇOS | N35: Metodologia a adotar: | O35: =IF(INDEX(O18:P18,P35)=0,"",INDEX(O18:P18,P35)) -> Outliers | P35: 1
B37: PREÇO UNITÁRIO ESTIMADO ADOTADO: | L37: =IF($B$39="Mediana:",L31,L30) -> 2.11
A39: =O18 -> Outliers | B39: Mediana:
A40: =P18 -> Por critério do(a) analista

Sheet COT03 (hidden)
B2: Processo | C2: 59500.003753/2025-45
B3: Responsável | C3: Kaio Gabriel, Alessandra Brant, Alberto Nascimento
B4: Área de Origem | C4: AI/GAP/UGI
B5: Data da pesquisa | C5: 2025-10-22
B7: ITEM: | C7: VÁLVULA ANTIVÁCUO 1/2" | I7: UNIDADE DE MEDIDA: | J7: unidade | K7: QUANTIDADE: | L7: 12 | O7: Tabela auxiliar de metodologias para exclusão de preços
B8: LICITAÇÕES ANTERIORES | O8: Licitações Anteriores
B9: Órgão | C9: Edital/Ano - Nº do Lote / Item | D9: Quantidade | E9: Valor Unitário | F9: Data | G9: índice de atualização (nome) | H9: I0 | I9: If | J9: Variação acumulada do índice (%) | K9: Preço unitário atualizado | L9: Utilizar? (Sim/Não) | O9: Outliers | P9: Por critério do(a) analista
J10: =IF(ISBLANK(E10),"",IF(ISNUMBER(H10),(I10-H10)/H10,0)) ->  | K10: =IF(ISBLANK(E10),"",E10*(1+J10)) ->  | L10: =IF(ISNUMBER(K10),IF($L$32<>$P$9,O10,P10),"") ->  | O10: =IF(ISNUMBER(K10),IF(OR(K10<_xlfn.QUARTILE.INC($K$10:$K$29,1)-1.5*(_xlfn.QUARTILE.INC($K$10:K29,3)-_xlfn.QUARTILE.INC($K$10:$K$29,1)),K10>_xlfn.QUARTILE.INC($K$10:$K$29,3)+1.5*(_xlfn.QUARTILE.INC($K$10:$K$29,3)-_xlfn.QUARTILE.INC($K$10:$K$29,1))),"Não","Sim"),"") -> 
J11: =IF(ISBLANK(E11),"",IF(ISNUMBER(H11),(I11-H11)/H11,0)) ->  | K11: =IF(ISBLANK(E11),"",E11*(1+J11)) ->  | O11: =IF(ISNUMBER(K11),IF(OR(K11<_xlfn.QUARTILE.INC($K$10:$K$29,1)-1.5*(_xlfn.QUARTILE.INC($K$10:K29,3)-_xlfn.QUARTILE.INC($K$10:$K$29,1)),K11>_xlfn.QUARTILE.INC($K$10:$K$29,3)+1.5*(_xlfn.QUARTILE.INC($K$10:$K$29,3)-_xlfn.QUARTILE.INC($K$10:$K$29,1))),"Não","Sim"),"") -> 
O12: =IF(ISNUMBER(K12),IF(OR(K12<_xlfn.QUARTILE.INC($K$10:$K$29,1)-1.5*(_xlfn.QUARTILE.INC($K$10:K30,3)-_xlfn.QUARTILE.INC($K$10:$K$29,1)),K12>_xlfn.QUARTILE.INC($K$10:$K$29,3)+1.5*(_xlfn.QUARTILE.INC($K$10:$K$29,3)-_xlfn.QUARTILE.INC($K$10:$K$29,1))),"Não","Sim"),"") -> 
O13: =IF(ISNUMBER(K13),IF(OR(K13<_xlfn.QUARTILE.INC($K$10:$K$29,1)-1.5*(_xlfn.QUARTILE.INC($K$10:K31,3)-_xlfn.QUARTILE.INC($K$10:$K$29,1)),K13>_xlfn.QUARTILE.INC($K$10:$K$29,3)+1.5*(_xlfn.QUARTILE.INC($K$10:$K$29,3)-_xlfn.QUARTILE.INC($K$10:$K$29,1))),"Não","Sim"),"") -> 
O14: =IF(ISNUMBER(K14),IF(OR(K14<_xlfn.QUARTILE.INC($K$10:$K$29,1)-1.5*(_xlfn.QUARTILE.INC($K$10:K32,3)-_xlfn.QUARTILE.INC($K$10:$K$29,1)),K14>_xlfn.QUARTILE.INC($K$10:$K$29,3)+1.5*(_xlfn.QUARTILE.INC($K$10:$K$29,3)-_xlfn.QUARTILE.INC($K$10:$K$29,1))),"Não","Sim"),"") -> 
O15: =IF(ISNUMBER(K15),IF(OR(K15<_xlfn.QUARTILE.INC($K$10:$K$29,1)-1.5*(_xlfn.QUARTILE.INC($K$10:K35,3)-_xlfn.QUARTILE.INC($K$10:$K$29,1)),K15>_xlfn.QUARTILE.INC($K$10:$K$29,3)+1.5*(_xlfn.QUARTILE.INC($K$10:$K$29,3)-_xlfn.QUARTILE.INC($K$10:$K$29,1))),"Não","Sim"),"") -> 
O16: =IF(ISNUMBER(K16),IF(OR(K16<_xlfn.QUARTILE.INC($K$10:$K$29,1)-1.5*(_xlfn.QUARTILE.INC($I$10:I37,3)-_xlfn.QUARTILE.INC($K$10:$K$29,1)),K16>_xlfn.QUARTILE.INC($K$10:$K$29,3)+1.5*(_xlfn.QUARTILE.INC($K$10:$K$29,3)-_xlfn.QUARTILE.INC($K$10:$K$29,1))),"Não","Sim"),"") -> 
B17: COTAÇÕES DE MERCADO | O17: Cotações
B18: Empresa | J18: Data | K18: Preço Unitário | L18: Utilizar? (Sim/Não) | O18: Outliers | P18: Por critério do(a) analista
B19: BioSementes Plantando Soluções - https://www.biosementes.com.br/loja/item/Valvula-de-ar-anti%252dvacuo-ventosa-com-rosca-de-1%7B47%7D2.html | J19: 2025-11-10 | K19: =8.33+(32.65/12) -> 11.05 | L19: =IF(ISNUMBER(K19),IF($L$32=$O$18,O19,IF($L$32=$P$18,P19,"")),"") -> Sim | O19: =IF(ISNUMBER(K19),IF(OR(K19<_xlfn.QUARTILE.INC($K$10:$K$29,1)-1.5*(_xlfn.QUARTILE.INC($K$10:$K$29,3)-_xlfn.QUARTILE.INC($K$10:$K$29,1)),K19>_xlfn.QUARTILE.INC($K$10:$K$29,3)+1.5*(_xlfn.QUARTILE.INC($K$10:$K$29,3)-_xlfn.QUARTILE.INC($K$10:$K$29,1))),"Não","Sim"),"") -> Sim
B20: Casa Irriga (Sua casa da Irrigação) - Belo Horizonte - Minas Gerais - CNPJ: 23.794.485/0001-38 . https://casairriga.com.br/produto/valvula-anti-vacuo-ventosa-1-2/?srsltid=AfmBOoqwfSpMrKqEk6JKVuhCDgazF2Y-fS3jc2u6SZ-ApuKdSJu-Gzpp | J20: 2025-11-10 | K20: =7+(49.43/12) -> 11.12 | L20: Sim | O20: Sim
B21: Paiol Verde - https://www.paiolverde.com.br/www-paiolverde-com-br/produto/valvula-anti-vacuo-ventosa-rosca-12-macho-para-irrigacao?parceiro=2777&gad_source=1&gad_campaignid=22399344710&gbraid=0AAAAADmba6FXpKrct2SdELFS5UH7JfK3j&gclid=CjwKCAiA2svIBhB-EiwARWDPjjKJIqwCeo1m-7AaVwa62mkW_oPQf9LZi7c_LuY-jwPWmdH4JJrBOBoCgG0QAvD_BwE | J21: 2025-11-10 | K21: =164.82/12 -> 13.74 | L21: Sim | O21: Sim
B22: Suporte Irrigação - https://suporteirrigacao.com.br/acessorios-para-instalacao/valvula-ventosa/valvula-anti-vacuo-rosca-macho-1-2?srsltid=AfmBOooikxzEb5DxEj6pbOMJXvJQ-j_vkWTaSeOQSnC5ry1C_kqPwNbC | J22: 2025-11-10 | K22: =(114.3+97.14)/10 -> 21.14 | L22: Sim | O22: Sim
B30: Observações: | K30: Média: | L30: =IF($L$32="","Selecione metodologia para exclusão de preços",AVERAGE(IF($L$10:$L$29="Sim",$K$10:$K$29))) -> 14.26 | N30: Média (Cotações) | O30: =IF(COUNTIF(O19:O29,"Sim")<3,"N/D (são necessários pelo menos 3 preços)",AVERAGE(IF(O19:O29="Sim",$K19:$K29))) -> 14.26 | P30: =IF(COUNTIF(P19:P29,"Sim")<3,"N/D (são necessários pelo menos 3 preços)",AVERAGE(IF(P19:P29="Sim",$K19:$K29))) -> N/D (são necessários pelo menos 3 preços)
K31: Mediana: | L31: =IF($L$32="","Selecione metodologia para exclusão de preços",MEDIAN(IF($L$10:$L$29="Sim",$K$10:$K$29))) -> 12.43 | N31: Mediana (Cotações) | O31: =IF(COUNTIF(O19:O29,"Sim")<3,"N/D (são necessários pelo menos 3 preços)",MEDIAN(IF(O19:O29="Sim",$K19:$K29))) -> 12.43 | P31: =IF(COUNTIF(P19:P29,"Sim")<3,"N/D (são necessários pelo menos 3 preços)",MEDIAN(IF(P19:P29="Sim",$K19:$K29))) -> N/D (são necessários pelo menos 3 preços)
B32: Metodologia de exclusão de preços adotada: | L32: =IF(O35="",INDEX(O18:P18,MATCH(MIN(#REF!),#REF!,0)),O35) -> Outliers | N32: CV (Cotações) | O32: =IF(COUNTIF(O19:O29,"Sim")<3,"N/D (são necessários pelo menos 3 preços)",_xlfn.STDEV.S(IF(O19:O29="Sim",$K19:$K29))/AVERAGE(IF(O19:O29="Sim",$K19:$K29))) -> 0.3332 | P32: =IF(COUNTIF(P19:P29,"Sim")<3,"N/D (são necessários pelo menos 3 preços)",_xlfn.STDEV.S(IF(P19:P29="Sim",$K19:$K29))/AVERAGE(IF(P19:P29="Sim",$K19:$K29))) -> N/D (são necessários pelo menos 3 preços)
N33: Média | O33: =IF(SUM(COUNTIF($O$10:$O$16,"Sim")) + SUM(COUNTIF(O19:O29,"Sim")) < 3, "N/D (são necessários pelo menos 3 preços)", IFERROR(AVERAGE(_xlfn._xlws.FILTER($K$10:$K$16,$O$10:$O$16="Sim"), _xlfn._xlws.FILTER($K$19:$K$29,O19:O29="Sim")),O30)) -> 14.26 | P33: =IF(SUM(COUNTIF($P$10:$P$16,"Sim")) + SUM(COUNTIF(P19:P29,"Sim")) < 3, "N/D (são necessários pelo menos 3 preços)", IFERROR(AVERAGE(_xlfn._xlws.FILTER($K$10:$K$16,$P$10:$P$16="Sim"), _xlfn._xlws.FILTER($K$19:$K$29,P19:P29="Sim")),P30)) -> N/D (são necessários pelo menos 3 preços)
N34: Mediana | O34: =IF(SUM(COUNTIF($O$10:$O$16,"Sim")) + SUM(COUNTIF(O19:O29,"Sim")) < 3, "N/D (são necessários pelo menos 3 preços)", IFERROR(MEDIAN(_xlfn._xlws.FILTER($K$10:$K$16,$O$10:$O$16="Sim"), _xlfn._xlws.FILTER($K$19:$K$29,O19:O29="Sim")),O31)) -> 12.43 | P34: =IF(SUM(COUNTIF($P10:$P$16,"Sim")) + SUM(COUNTIF(P19:P29,"Sim")) < 3, "N/D (são necessários pelo menos 3 preços)", IFERROR(MEDIAN(_xlfn._xlws.FILTER($K$10:$K$16,$P$10:$P$16="Sim"), _xlfn._xlws.FILTER($K$19:$K$29,P19:P29="Sim")),P31)) -> N/D (são necessários pelo menos 3 preços)
B35: COSOLIDAÇÃO DOS PREÇOS | N35: Metodologia a adotar: | O35: =IF(INDEX(O18:P18,P35)=0,"",INDEX(O18:P18,P35)) -> Outliers | P35: 1
B37: PREÇO UNITÁRIO ESTIMADO ADOTADO: | L37: =IF($B$39="Mediana:",L31,L30) -> 12.43
A39: =O18 -> Outliers | B39: Mediana:
A40: =P18 -> Por critério do(a) analista

Sheet COT04 (hidden)
B2: Processo | C2: 59500.003753/2025-45
B3: Responsável | C3: Kaio Gabriel, Alessandra Brant, Alberto Nascimento
B4: Área de Origem | C4: AI/GAP/UGI
B5: Data da pesquisa | C5: 2025-10-22
B7: ITEM: | C7: VÁLVULA VENTOSA TRÍPLICE FUNÇÃO 2" | I7: UNIDADE DE MEDIDA: | J7: unidade | K7: QUANTIDADE: | L7: 4 | O7: Tabela auxiliar de metodologias para exclusão de preços
B8: LICITAÇÕES ANTERIORES | O8: Licitações Anteriores
B9: Órgão | C9: Edital/Ano - Nº do Lote / Item | D9: Quantidade | E9: Valor Unitário | F9: Data | G9: índice de atualização (nome) | H9: I0 | I9: If | J9: Variação acumulada do índice (%) | K9: Preço unitário atualizado | L9: Utilizar? (Sim/Não) | O9: Outliers | P9: Por critério do(a) analista
J10: =IF(ISBLANK(E10),"",IF(ISNUMBER(H10),(I10-H10)/H10,0)) ->  | K10: =IF(ISBLANK(E10),"",E10*(1+J10)) ->  | L10: =IF(ISNUMBER(K10),IF($L$32<>$P$9,O10,P10),"") ->  | O10: =IF(ISNUMBER(K10),IF(OR(K10<_xlfn.QUARTILE.INC($K$10:$K$29,1)-1.5*(_xlfn.QUARTILE.INC($K$10:K29,3)-_xlfn.QUARTILE.INC($K$10:$K$29,1)),K10>_xlfn.QUARTILE.INC($K$10:$K$29,3)+1.5*(_xlfn.QUARTILE.INC($K$10:$K$29,3)-_xlfn.QUARTILE.INC($K$10:$K$29,1))),"Não","Sim"),"") -> 
J11: =IF(ISBLANK(E11),"",IF(ISNUMBER(H11),(I11-H11)/H11,0)) ->  | K11: =IF(ISBLANK(E11),"",E11*(1+J11)) ->  | O11: =IF(ISNUMBER(K11),IF(OR(K11<_xlfn.QUARTILE.INC($K$10:$K$29,1)-1.5*(_xlfn.QUARTILE.INC($K$10:K29,3)-_xlfn.QUARTILE.INC($K$10:$K$29,1)),K11>_xlfn.QUARTILE.INC($K$10:$K$29,3)+1.5*(_xlfn.QUARTILE.INC($K$10:$K$29,3)-_xlfn.QUARTILE.INC($K$10:$K$29,1))),"Não","Sim"),"") -> 
O12: =IF(ISNUMBER(K12),IF(OR(K12<_xlfn.QUARTILE.INC($K$10:$K$29,1)-1.5*(_xlfn.QUARTILE.INC($K$10:K30,3)-_xlfn.QUARTILE.INC($K$10:$K$29,1)),K12>_xlfn.QUARTILE.INC($K$10:$K$29,3)+1.5*(_xlfn.QUARTILE.INC($K$10:$K$29,3)-_xlfn.QUARTILE.INC($K$10:$K$29,1))),"Não","Sim"),"") -> 
O13: =IF(ISNUMBER(K13),IF(OR(K13<_xlfn.QUARTILE.INC($K$10:$K$29,1)-1.5*(_xlfn.QUARTILE.INC($K$10:K31,3)-_xlfn.QUARTILE.INC($K$10:$K$29,1)),K13>_xlfn.QUARTILE.INC($K$10:$K$29,3)+1.5*(_xlfn.QUARTILE.INC($K$10:$K$29,3)-_xlfn.QUARTILE.INC($K$10:$K$29,1))),"Não","Sim"),"") -> 
O14: =IF(ISNUMBER(K14),IF(OR(K14<_xlfn.QUARTILE.INC($K$10:$K$29,1)-1.5*(_xlfn.QUARTILE.INC($K$10:K32,3)-_xlfn.QUARTILE.INC($K$10:$K$29,1)),K14>_xlfn.QUARTILE.INC($K$10:$K$29,3)+1.5*(_xlfn.QUARTILE.INC($K$10:$K$29,3)-_xlfn.QUARTILE.INC($K$10:$K$29,1))),"Não","Sim"),"") -> 
O15: =IF(ISNUMBER(K15),IF(OR(K15<_xlfn.QUARTILE.INC($K$10:$K$29,1)-1.5*(_xlfn.QUARTILE.INC($K$10:K35,3)-_xlfn.QUARTILE.INC($K$10:$K$29,1)),K15>_xlfn.QUARTILE.INC($K$10:$K$29,3)+1.5*(_xlfn.QUARTILE.INC($K$10:$K$29,3)-_xlfn.QUARTILE.INC($K$10:$K$29,1))),"Não","Sim"),"") -> 
O16: =IF(ISNUMBER(K16),IF(OR(K16<_xlfn.QUARTILE.INC($K$10:$K$29,1)-1.5*(_xlfn.QUARTILE.INC($I$10:I37,3)-_xlfn.QUARTILE.INC($K$10:$K$29,1)),K16>_xlfn.QUARTILE.INC($K$10:$K$29,3)+1.5*(_xlfn.QUARTILE.INC($K$10:$K$29,3)-_xlfn.QUARTILE.INC($K$10:$K$29,1))),"Não","Sim"),"") -> 
B17: COTAÇÕES DE MERCADO | O17: Cotações
B18: Empresa | J18: Data | K18: Preço Unitário | L18: Utilizar? (Sim/Não) | O18: Outliers | P18: Por critério do(a) analista
B19: Mercado Livre (SOL IRRIGAÇÕES) - https://www.mercadolivre.com.br/valvula-ventosa-triplice-funcao-2-bermad--irrigacao/up/MLBU1967719871?pdp_filters=item_id:MLB2794565501&matt_tool=47245019&matt_internal_campaign_id=&matt_word=&matt_source=google&matt_campaign_id=22090193657&matt_ad_group_id=174661937964&matt_match_type=&matt_network=g&matt_device=c&matt_creative=727914177979&matt_keyword=&matt_ad_position=&matt_ad_type=pla&matt_merchant_id=585583136&matt_product_id=MLB2794565501&matt_product_partition_id=2388289299721&matt_target_id=pla-2388289299721&cq_src=google_ads&cq_cmp=22090193657&cq_net=g&cq_plt=gp&cq_med=pla&gad_source=1&gad_campaignid=22090193657&gbraid=0AAAAAD93qcAzu2W_9atGdVGQQOCkUU-v_&gclid=CjwKCAiAt8bIBhBpEiwAzH1w6RJN1VyNVcy0qbQELfbiwVeBA6n8hpbmK7LYDG-Zlwb6yv3rm9_-2hoC9ocQAvD_BwE | J19: 2025-11-10 | K19: 675.9 | L19: =IF(ISNUMBER(K19),IF($L$32=$O$18,O19,IF($L$32=$P$18,P19,"")),"") -> Sim | O19: =IF(ISNUMBER(K19),IF(OR(K19<_xlfn.QUARTILE.INC($K$10:$K$29,1)-1.5*(_xlfn.QUARTILE.INC($K$10:$K$29,3)-_xlfn.QUARTILE.INC($K$10:$K$29,1)),K19>_xlfn.QUARTILE.INC($K$10:$K$29,3)+1.5*(_xlfn.QUARTILE.INC($K$10:$K$29,3)-_xlfn.QUARTILE.INC($K$10:$K$29,1))),"Não","Sim"),"") -> Sim
B20: SEOAGRO - https://www.seoagro.com.br/valvula-ventosa-triplo-efeito-2?srsltid=AfmBOopTD11BN6VrS0qizA8juFwSqBeqixExdkeOVwaTUCoXRHehHcvm | J20: 2025-11-10 | K20: =(696.9+45.51) -> 742.41 | L20: Sim | O20: Sim
B21: Casa Irriga - https://casairriga.com.br/produto/valvula-ventosa-triplice-funcao-triplo-efeito-2-polegadas-compact/?srsltid=AfmBOoq9ghGdypsZkUSPRwmO3VhaGQ8BrSZBM0jkTEPZDmbWZoGJvmAM | J21: 2025-11-10 | K21: =560+54.59 -> 614.59 | L21: Sim | O21: Sim
B22: INSTAAGRO - https://www.instaagro.com/bermad-ventosa-combinada-triplice-funcao-mod-c30-2-dn-50-rosca-macho-bsp-pn16?gad_source=1&gad_campaignid=23055856462&gbraid=0AAAAAC0h8RIzYz741cAL4D2UxV46bZdvA&gclid=CjwKCAiA2svIBhB-EiwARWDPjsWR05MRfVLG9UFjTIPF6nojKjUmOVD33oOAUmvXLEmiizeBILaZERoCXh0QAvD_BwE | J22: 2025-11-10 | K22: 662.29 | L22: Sim | O22: Sim
B30: Observações: | K30: Média: | L30: =IF($L$32="","Selecione metodologia para exclusão de preços",AVERAGE(IF($L$10:$L$29="Sim",$K$10:$K$29))) -> 673.8 | N30: Média (Cotações) | O30: =IF(COUNTIF(O19:O29,"Sim")<3,"N/D (são necessários pelo menos 3 preços)",AVERAGE(IF(O19:O29="Sim",$K19:$K29))) -> 673.8 | P30: =IF(COUNTIF(P19:P29,"Sim")<3,"N/D (são necessários pelo menos 3 preços)",AVERAGE(IF(P19:P29="Sim",$K19:$K29))) -> N/D (são necessários pelo menos 3 preços)
K31: Mediana: | L31: =IF($L$32="","Selecione metodologia para exclusão de preços",MEDIAN(IF($L$10:$L$29="Sim",$K$10:$K$29))) -> 669.1 | N31: Mediana (Cotações) | O31: =IF(COUNTIF(O19:O29,"Sim")<3,"N/D (são necessários pelo menos 3 preços)",MEDIAN(IF(O19:O29="Sim",$K19:$K29))) -> 669.1 | P31: =IF(COUNTIF(P19:P29,"Sim")<3,"N/D (são necessários pelo menos 3 preços)",MEDIAN(IF(P19:P29="Sim",$K19:$K29))) -> N/D (são necessários pelo menos 3 preços)
B32: Metodologia de exclusão de preços adotada: | L32: =IF(O35="",INDEX(O18:P18,MATCH(MIN(#REF!),#REF!,0)),O35) -> Outliers | N32: CV (Cotações) | O32: =IF(COUNTIF(O19:O29,"Sim")<3,"N/D (são necessários pelo menos 3 preços)",_xlfn.STDEV.S(IF(O19:O29="Sim",$K19:$K29))/AVERAGE(IF(O19:O29="Sim",$K19:$K29))) -> 0.0783 | P32: =IF(COUNTIF(P19:P29,"Sim")<3,"N/D (são necessários pelo menos 3 preços)",_xlfn.STDEV.S(IF(P19:P29="Sim",$K19:$K29))/AVERAGE(IF(P19:P29="Sim",$K19:$K29))) -> N/D (são necessários pelo menos 3 preços)
N33: Média | O33: =IF(SUM(COUNTIF($O$10:$O$16,"Sim")) + SUM(COUNTIF(O19:O29,"Sim")) < 3, "N/D (são necessários pelo menos 3 preços)", IFERROR(AVERAGE(_xlfn._xlws.FILTER($K$10:$K$16,$O$10:$O$16="Sim"), _xlfn._xlws.FILTER($K$19:$K$29,O19:O29="Sim")),O30)) -> 673.8 | P33: =IF(SUM(COUNTIF($P$10:$P$16,"Sim")) + SUM(COUNTIF(P19:P29,"Sim")) < 3, "N/D (são necessários pelo menos 3 preços)", IFERROR(AVERAGE(_xlfn._xlws.FILTER($K$10:$K$16,$P$10:$P$16="Sim"), _xlfn._xlws.FILTER($K$19:$K$29,P19:P29="Sim")),P30)) -> N/D (são necessários pelo menos 3 preços)
N34: Mediana | O34: =IF(SUM(COUNTIF($O$10:$O$16,"Sim")) + SUM(COUNTIF(O19:O29,"Sim")) < 3, "N/D (são necessários pelo menos 3 preços)", IFERROR(MEDIAN(_xlfn._xlws.FILTER($K$10:$K$16,$O$10:$O$16="Sim"), _xlfn._xlws.FILTER($K$19:$K$29,O19:O29="Sim")),O31)) -> 669.1 | P34: =IF(SUM(COUNTIF($P10:$P$16,"Sim")) + SUM(COUNTIF(P19:P29,"Sim")) < 3, "N/D (são necessários pelo menos 3 preços)", IFERROR(MEDIAN(_xlfn._xlws.FILTER($K$10:$K$16,$P$10:$P$16="Sim"), _xlfn._xlws.FILTER($K$19:$K$29,P19:P29="Sim")),P31)) -> N/D (são necessários pelo menos 3 preços)
B35: COSOLIDAÇÃO DOS PREÇOS | N35: Metodologia a adotar: | O35: =IF(INDEX(O18:P18,P35)=0,"",INDEX(O18:P18,P35)) -> Outliers | P35: 1
B37: PREÇO UNITÁRIO ESTIMADO ADOTADO: | L37: =IF($B$39="Mediana:",L31,L30) -> 669.1
A39: =O18 -> Outliers | B39: Mediana:
A40: =P18 -> Por critério do(a) analista

Sheet COT05 (hidden)
B2: Processo | C2: 59500.003753/2025-45
B3: Responsável | C3: Kaio Gabriel, Alessandra Brant, Alberto Nascimento
B4: Área de Origem | C4: AI/GAP/UGI
B5: Data da pesquisa | C5: 2025-10-22
B7: ITEM: | C7: COLAR DE TOMADA 50X1/2" | I7: UNIDADE DE MEDIDA: | J7: unidade | K7: QUANTIDADE: | L7: 12 | O7: Tabela auxiliar de metodologias para exclusão de preços
B8: LICITAÇÕES ANTERIORES | O8: Licitações Anteriores
B9: Órgão | C9: Edital/Ano - Nº do Lote / Item | D9: Quantidade | E9: Valor Unitário | F9: Data | G9: índice de atualização (nome) | H9: I0 | I9: If | J9: Variação acumulada do índice (%) | K9: Preço unitário atualizado | L9: Utilizar? (Sim/Não) | O9: Outliers | P9: Por critério do(a) analista
J10: =IF(ISBLANK(E10),"",IF(ISNUMBER(H10),(I10-H10)/H10,0)) ->  | K10: =IF(ISBLANK(E10),"",E10*(1+J10)) ->  | L10: =IF(ISNUMBER(K10),IF($L$32<>$P$9,O10,P10),"") ->  | O10: =IF(ISNUMBER(K10),IF(OR(K10<_xlfn.QUARTILE.INC($K$10:$K$29,1)-1.5*(_xlfn.QUARTILE.INC($K$10:K29,3)-_xlfn.QUARTILE.INC($K$10:$K$29,1)),K10>_xlfn.QUARTILE.INC($K$10:$K$29,3)+1.5*(_xlfn.QUARTILE.INC($K$10:$K$29,3)-_xlfn.QUARTILE.INC($K$10:$K$29,1))),"Não","Sim"),"") -> 
J11: =IF(ISBLANK(E11),"",IF(ISNUMBER(H11),(I11-H11)/H11,0)) ->  | K11: =IF(ISBLANK(E11),"",E11*(1+J11)) ->  | O11: =IF(ISNUMBER(K11),IF(OR(K11<_xlfn.QUARTILE.INC($K$10:$K$29,1)-1.5*(_xlfn.QUARTILE.INC($K$10:K29,3)-_xlfn.QUARTILE.INC($K$10:$K$29,1)),K11>_xlfn.QUARTILE.INC($K$10:$K$29,3)+1.5*(_xlfn.QUARTILE.INC($K$10:$K$29,3)-_xlfn.QUARTILE.INC($K$10:$K$29,1))),"Não","Sim"),"") -> 
O12: =IF(ISNUMBER(K12),IF(OR(K12<_xlfn.QUARTILE.INC($K$10:$K$29,1)-1.5*(_xlfn.QUARTILE.INC($K$10:K30,3)-_xlfn.QUARTILE.INC($K$10:$K$29,1)),K12>_xlfn.QUARTILE.INC($K$10:$K$29,3)+1.5*(_xlfn.QUARTILE.INC($K$10:$K$29,3)-_xlfn.QUARTILE.INC($K$10:$K$29,1))),"Não","Sim"),"") -> 
O13: =IF(ISNUMBER(K13),IF(OR(K13<_xlfn.QUARTILE.INC($K$10:$K$29,1)-1.5*(_xlfn.QUARTILE.INC($K$10:K31,3)-_xlfn.QUARTILE.INC($K$10:$K$29,1)),K13>_xlfn.QUARTILE.INC($K$10:$K$29,3)+1.5*(_xlfn.QUARTILE.INC($K$10:$K$29,3)-_xlfn.QUARTILE.INC($K$10:$K$29,1))),"Não","Sim"),"") -> 
O14: =IF(ISNUMBER(K14),IF(OR(K14<_xlfn.QUARTILE.INC($K$10:$K$29,1)-1.5*(_xlfn.QUARTILE.INC($K$10:K32,3)-_xlfn.QUARTILE.INC($K$10:$K$29,1)),K14>_xlfn.QUARTILE.INC($K$10:$K$29,3)+1.5*(_xlfn.QUARTILE.INC($K$10:$K$29,3)-_xlfn.QUARTILE.INC($K$10:$K$29,1))),"Não","Sim"),"") -> 
O15: =IF(ISNUMBER(K15),IF(OR(K15<_xlfn.QUARTILE.INC($K$10:$K$29,1)-1.5*(_xlfn.QUARTILE.INC($K$10:K35,3)-_xlfn.QUARTILE.INC($K$10:$K$29,1)),K15>_xlfn.QUARTILE.INC($K$10:$K$29,3)+1.5*(_xlfn.QUARTILE.INC($K$10:$K$29,3)-_xlfn.QUARTILE.INC($K$10:$K$29,1))),"Não","Sim"),"") -> 
O16: =IF(ISNUMBER(K16),IF(OR(K16<_xlfn.QUARTILE.INC($K$10:$K$29,1)-1.5*(_xlfn.QUARTILE.INC($I$10:I37,3)-_xlfn.QUARTILE.INC($K$10:$K$29,1)),K16>_xlfn.QUARTILE.INC($K$10:$K$29,3)+1.5*(_xlfn.QUARTILE.INC($K$10:$K$29,3)-_xlfn.QUARTILE.INC($K$10:$K$29,1))),"Não","Sim"),"") -> 
B17: COTAÇÕES DE MERCADO | O17: Cotações
B18: Empresa | J18: Data | K18: Preço Unitário | L18: Utilizar? (Sim/Não) | O18: Outliers | P18: Por critério do(a) analista
B19: Mercado Livre - HICRAUCONEX HIDRAULICOS: https://www.mercadolivre.com.br/colar-tomada-abracadeira-com-travas-50mm-x-12-polegada/up/MLBU2666634158?pdp_filters=item_id:MLB3895335107&matt_tool=48995110&matt_internal_campaign_id=&matt_word=&matt_source=google&matt_campaign_id=22603531562&matt_ad_group_id=181244933895&matt_match_type=&matt_network=g&matt_device=c&matt_creative=758138322200&matt_keyword=&matt_ad_position=&matt_ad_type=pla&matt_merchant_id=135360746&matt_product_id=MLB3895335107&matt_product_partition_id=2424443211326&matt_target_id=pla-2424443211326&cq_src=google_ads&cq_cmp=22603531562&cq_net=g&cq_plt=gp&cq_med=pla&gad_source=4&gad_campaignid=22603531562&gbraid=0AAAAAD93qcBzv0KGLLmjnLl7ejg3whoyo&gclid=CjwKCAiAt8bIBhBpEiwAzH1w6Uka2vWpdk6s9HbZBLN-pKMeszTSq84I-NHD3JSrZVHnyNPHB7dv3xoCJ2wQAvD_BwE | J19: 2025-11-10 | K19: 33.81 | L19: =IF(ISNUMBER(K19),IF($L$32=$O$18,O19,IF($L$32=$P$18,P19,"")),"") -> Sim | O19: =IF(ISNUMBER(K19),IF(OR(K19<_xlfn.QUARTILE.INC($K$10:$K$29,1)-1.5*(_xlfn.QUARTILE.INC($K$10:$K$29,3)-_xlfn.QUARTILE.INC($K$10:$K$29,1)),K19>_xlfn.QUARTILE.INC($K$10:$K$29,3)+1.5*(_xlfn.QUARTILE.INC($K$10:$K$29,3)-_xlfn.QUARTILE.INC($K$10:$K$29,1))),"Não","Sim"),"") -> Sim
B20: Plastolândia (Hidráulica e Plásticos Industriais) - https://www.plastolandia.com.br/colar-tomada-pvc-trava-50-mm-x-12-tigre | J20: 2025-11-10 | K20: =13.05+(36.43/12) -> 16.09 | L20: Sim | O20: Sim
B21: Ferreira Gonçalves - https://www.cfg.com.br/colar-tomada-pvc-com-travas-50mm-x-1-2--tigre--23045125-1702/p?srsltid=AfmBOooSOzfgCu_FlpNgoMgFLNPjo3zdccFQyYddjB1_mbn_WULnqpOf | J21: 2025-11-10 | K21: =11.47+(80.15/10) -> 19.49 | L21: Sim | O21: Sim
B30: Observações: | K30: Média: | L30: =IF($L$32="","Selecione metodologia para exclusão de preços",AVERAGE(IF($L$10:$L$29="Sim",$K$10:$K$29))) -> 23.13 | N30: Média (Cotações) | O30: =IF(COUNTIF(O19:O29,"Sim")<3,"N/D (são necessários pelo menos 3 preços)",AVERAGE(IF(O19:O29="Sim",$K19:$K29))) -> 23.13 | P30: =IF(COUNTIF(P19:P29,"Sim")<3,"N/D (são necessários pelo menos 3 preços)",AVERAGE(IF(P19:P29="Sim",$K19:$K29))) -> N/D (são necessários pelo menos 3 preços)
K31: Mediana: | L31: =IF($L$32="","Selecione metodologia para exclusão de preços",MEDIAN(IF($L$10:$L$29="Sim",$K$10:$K$29))) -> 19.49 | N31: Mediana (Cotações) | O31: =IF(COUNTIF(O19:O29,"Sim")<3,"N/D (são necessários pelo menos 3 preços)",MEDIAN(IF(O19:O29="Sim",$K19:$K29))) -> 19.49 | P31: =IF(COUNTIF(P19:P29,"Sim")<3,"N/D (são necessários pelo menos 3 preços)",MEDIAN(IF(P19:P29="Sim",$K19:$K29))) -> N/D (são necessários pelo menos 3 preços)
B32: Metodologia de exclusão de preços adotada: | L32: =IF(O35="",INDEX(O18:P18,MATCH(MIN(#REF!),#REF!,0)),O35) -> Outliers | N32: CV (Cotações) | O32: =IF(COUNTIF(O19:O29,"Sim")<3,"N/D (são necessários pelo menos 3 preços)",_xlfn.STDEV.S(IF(O19:O29="Sim",$K19:$K29))/AVERAGE(IF(O19:O29="Sim",$K19:$K29))) -> 0.4066 | P32: =IF(COUNTIF(P19:P29,"Sim")<3,"N/D (são necessários pelo menos 3 preços)",_xlfn.STDEV.S(IF(P19:P29="Sim",$K19:$K29))/AVERAGE(IF(P19:P29="Sim",$K19:$K29))) -> N/D (são necessários pelo menos 3 preços)
N33: Média | O33: =IF(SUM(COUNTIF($O$10:$O$16,"Sim")) + SUM(COUNTIF(O19:O29,"Sim")) < 3, "N/D (são necessários pelo menos 3 preços)", IFERROR(AVERAGE(_xlfn._xlws.FILTER($K$10:$K$16,$O$10:$O$16="Sim"), _xlfn._xlws.FILTER($K$19:$K$29,O19:O29="Sim")),O30)) -> 23.13 | P33: =IF(SUM(COUNTIF($P$10:$P$16,"Sim")) + SUM(COUNTIF(P19:P29,"Sim")) < 3, "N/D (são necessários pelo menos 3 preços)", IFERROR(AVERAGE(_xlfn._xlws.FILTER($K$10:$K$16,$P$10:$P$16="Sim"), _xlfn._xlws.FILTER($K$19:$K$29,P19:P29="Sim")),P30)) -> N/D (são necessários pelo menos 3 preços)
N34: Mediana | O34: =IF(SUM(COUNTIF($O$10:$O$16,"Sim")) + SUM(COUNTIF(O19:O29,"Sim")) < 3, "N/D (são necessários pelo menos 3 preços)", IFERROR(MEDIAN(_xlfn._xlws.FILTER($K$10:$K$16,$O$10:$O$16="Sim"), _xlfn._xlws.FILTER($K$19:$K$29,O19:O29="Sim")),O31)) -> 19.49 | P34: =IF(SUM(COUNTIF($P10:$P$16,"Sim")) + SUM(COUNTIF(P19:P29,"Sim")) < 3, "N/D (são necessários pelo menos 3 preços)", IFERROR(MEDIAN(_xlfn._xlws.FILTER($K$10:$K$16,$P$10:$P$16="Sim"), _xlfn._xlws.FILTER($K$19:$K$29,P19:P29="Sim")),P31)) -> N/D (são necessários pelo menos 3 preços)
B35: COSOLIDAÇÃO DOS PREÇOS | N35: Metodologia a adotar: | O35: =IF(INDEX(O18:P18,P35)=0,"",INDEX(O18:P18,P35)) -> Outliers | P35: 1
B37: PREÇO UNITÁRIO ESTIMADO ADOTADO: | L37: =IF($B$39="Mediana:",L31,L30) -> 19.49
A39: =O18 -> Outliers | B39: Mediana:
A40: =P18 -> Por critério do(a) analista

Sheet COT06 (hidden)
B2: Processo | C2: 59500.003753/2025-45
B3: Responsável | C3: Kaio Gabriel, Alessandra Brant, Alberto Nascimento
B4: Área de Origem | C4: AI/GAP/UGI
B5: Data da pesquisa | C5: 2025-10-22
B7: ITEM: | C7: MOTOBOMBA SUBMERSA 3HP 12m³/h + 43mca | I7: UNIDADE DE MEDIDA: | J7: Unidade | K7: QUANTIDADE: | L7: 3 | O7: Tabela auxiliar de metodologias para exclusão de preços
B8: LICITAÇÕES ANTERIORES | O8: Licitações Anteriores
B9: Órgão | C9: Edital/Ano - Nº do Lote / Item | D9: Quantidade | E9: Valor Unitário | F9: Data | G9: índice de atualização (nome) | H9: I0 | I9: If | J9: Variação acumulada do índice (%) | K9: Preço unitário atualizado | L9: Utilizar? (Sim/Não) | O9: Outliers | P9: Por critério do(a) analista
B10: Prefeitura Municipal de Ibiassucê | C10: ATA 030/2025 / Item 13 | D10: 4 | E10: 1390 | F10: 2025-10-02 | J10: =IF(ISBLANK(E10),"",IF(ISNUMBER(H10),(I10-H10)/H10,0)) -> 0 | K10: =IF(ISBLANK(E10),"",E10*(1+J10)) -> 1390 | L10: =IF(ISNUMBER(K10),IF($L$32<>$P$9,O10,P10),"") -> Sim | O10: =IF(ISNUMBER(K10),IF(OR(K10<_xlfn.QUARTILE.INC($K$10:$K$29,1)-1.5*(_xlfn.QUARTILE.INC($K$10:K29,3)-_xlfn.QUARTILE.INC($K$10:$K$29,1)),K10>_xlfn.QUARTILE.INC($K$10:$K$29,3)+1.5*(_xlfn.QUARTILE.INC($K$10:$K$29,3)-_xlfn.QUARTILE.INC($K$10:$K$29,1))),"Não","Sim"),"") -> Sim
J11: =IF(ISBLANK(E11),"",IF(ISNUMBER(H11),(I11-H11)/H11,0)) ->  | K11: =IF(ISBLANK(E11),"",E11*(1+J11)) ->  | O11: =IF(ISNUMBER(K11),IF(OR(K11<_xlfn.QUARTILE.INC($K$10:$K$29,1)-1.5*(_xlfn.QUARTILE.INC($K$10:K29,3)-_xlfn.QUARTILE.INC($K$10:$K$29,1)),K11>_xlfn.QUARTILE.INC($K$10:$K$29,3)+1.5*(_xlfn.QUARTILE.INC($K$10:$K$29,3)-_xlfn.QUARTILE.INC($K$10:$K$29,1))),"Não","Sim"),"") -> 
O12: =IF(ISNUMBER(K12),IF(OR(K12<_xlfn.QUARTILE.INC($K$10:$K$29,1)-1.5*(_xlfn.QUARTILE.INC($K$10:K30,3)-_xlfn.QUARTILE.INC($K$10:$K$29,1)),K12>_xlfn.QUARTILE.INC($K$10:$K$29,3)+1.5*(_xlfn.QUARTILE.INC($K$10:$K$29,3)-_xlfn.QUARTILE.INC($K$10:$K$29,1))),"Não","Sim"),"") -> 
O13: =IF(ISNUMBER(K13),IF(OR(K13<_xlfn.QUARTILE.INC($K$10:$K$29,1)-1.5*(_xlfn.QUARTILE.INC($K$10:K31,3)-_xlfn.QUARTILE.INC($K$10:$K$29,1)),K13>_xlfn.QUARTILE.INC($K$10:$K$29,3)+1.5*(_xlfn.QUARTILE.INC($K$10:$K$29,3)-_xlfn.QUARTILE.INC($K$10:$K$29,1))),"Não","Sim"),"") -> 
O14: =IF(ISNUMBER(K14),IF(OR(K14<_xlfn.QUARTILE.INC($K$10:$K$29,1)-1.5*(_xlfn.QUARTILE.INC($K$10:K32,3)-_xlfn.QUARTILE.INC($K$10:$K$29,1)),K14>_xlfn.QUARTILE.INC($K$10:$K$29,3)+1.5*(_xlfn.QUARTILE.INC($K$10:$K$29,3)-_xlfn.QUARTILE.INC($K$10:$K$29,1))),"Não","Sim"),"") -> 
O15: =IF(ISNUMBER(K15),IF(OR(K15<_xlfn.QUARTILE.INC($K$10:$K$29,1)-1.5*(_xlfn.QUARTILE.INC($K$10:K35,3)-_xlfn.QUARTILE.INC($K$10:$K$29,1)),K15>_xlfn.QUARTILE.INC($K$10:$K$29,3)+1.5*(_xlfn.QUARTILE.INC($K$10:$K$29,3)-_xlfn.QUARTILE.INC($K$10:$K$29,1))),"Não","Sim"),"") -> 
O16: =IF(ISNUMBER(K16),IF(OR(K16<_xlfn.QUARTILE.INC($K$10:$K$29,1)-1.5*(_xlfn.QUARTILE.INC($I$10:I37,3)-_xlfn.QUARTILE.INC($K$10:$K$29,1)),K16>_xlfn.QUARTILE.INC($K$10:$K$29,3)+1.5*(_xlfn.QUARTILE.INC($K$10:$K$29,3)-_xlfn.QUARTILE.INC($K$10:$K$29,1))),"Não","Sim"),"") -> 
B17: COTAÇÕES DE MERCADO | O17: Cotações
B18: Empresa | J18: Data | K18: Preço Unitário | L18: Utilizar? (Sim/Não) | O18: Outliers | P18: Por critério do(a) analista
B19: Loja das Bombas - Porto Velho - Roraima - CNPJ: 06.196.608/0001-10. https://www.alojadasbombas.com.br/bombas-submersas/4-polegadas/bomba-submersa-3cv-4-polegada-monofasica-claw-w4sdim108 | J19: 2025-11-10 | K19: =1583.64+259.76 -> 1843.4 | L19: =IF(ISNUMBER(K19),IF($L$32=$O$18,O19,IF($L$32=$P$18,P19,"")),"") -> Sim | O19: =IF(ISNUMBER(K19),IF(OR(K19<_xlfn.QUARTILE.INC($K$10:$K$29,1)-1.5*(_xlfn.QUARTILE.INC($K$10:$K$29,3)-_xlfn.QUARTILE.INC($K$10:$K$29,1)),K19>_xlfn.QUARTILE.INC($K$10:$K$29,3)+1.5*(_xlfn.QUARTILE.INC($K$10:$K$29,3)-_xlfn.QUARTILE.INC($K$10:$K$29,1))),"Não","Sim"),"") -> Sim
B20: Mérito Comercial - São José - São Paulo - CNPJ: 01.582.892/0001-49. https://www.meritocomercial.com.br/bomba-submersa-ebara-4bpl8-12-om4a-3cv-monofasica-220v-4001001009761-p1033379?srsltid=AfmBOornBh3ncqqJLTWGxYoV96XpyaLJ-rqwZRiUUMkdy70f8XA0oehE | J20: 2025-11-10 | K20: =1710.94+425.23 -> 2136.17 | L20: Sim | O20: Sim
B21: Minha Casa Solar - https://www.minhacasasolar.com.br/bomba-submersa-ebara-4bpl8-12-3cv-monofasica-220v-83016?srsltid=AfmBOoqKkjKcCR7QMiVpoUUf_iFojto9r9mc978wxzvCxfkgju-GUpJn | J21: 2025-11-10 | K21: 1832.23 | L21: Sim | O21: Sim
B22: Agro Bombas - https://www.agrobombas.com.br/bombas/bombas-para-pocos/bomba-submersa-ebara-4bpl8-12-3-0-cv-380-v-trifasica-2-fios?srsltid=AfmBOooYkAVyeoPMjPmzGe1BIlGK0mfOLlTKgx4qgucsZeogHvB_Ojwq | J22: 2025-11-10 | K22: =1229.93+138.31 -> 1368.24 | L22: Sim | O22: Sim
B30: Observações: | K30: Média: | L30: =IF($L$32="","Selecione metodologia para exclusão de preços",AVERAGE(IF($L$10:$L$29="Sim",$K$10:$K$29))) -> 1714.01 | N30: Média (Cotações) | O30: =IF(COUNTIF(O19:O29,"Sim")<3,"N/D (são necessários pelo menos 3 preços)",AVERAGE(IF(O19:O29="Sim",$K19:$K29))) -> 1795.01 | P30: =IF(COUNTIF(P19:P29,"Sim")<3,"N/D (são necessários pelo menos 3 preços)",AVERAGE(IF(P19:P29="Sim",$K19:$K29))) -> N/D (são necessários pelo menos 3 preços)
K31: Mediana: | L31: =IF($L$32="","Selecione metodologia para exclusão de preços",MEDIAN(IF($L$10:$L$29="Sim",$K$10:$K$29))) -> 1832.23 | N31: Mediana (Cotações) | O31: =IF(COUNTIF(O19:O29,"Sim")<3,"N/D (são necessários pelo menos 3 preços)",MEDIAN(IF(O19:O29="Sim",$K19:$K29))) -> 1837.82 | P31: =IF(COUNTIF(P19:P29,"Sim")<3,"N/D (são necessários pelo menos 3 preços)",MEDIAN(IF(P19:P29="Sim",$K19:$K29))) -> N/D (são necessários pelo menos 3 preços)
B32: Metodologia de exclusão de preços adotada: | L32: =IF(O35="",INDEX(O18:P18,MATCH(MIN(#REF!),#REF!,0)),O35) -> Outliers | N32: CV (Cotações) | O32: =IF(COUNTIF(O19:O29,"Sim")<3,"N/D (são necessários pelo menos 3 preços)",_xlfn.STDEV.S(IF(O19:O29="Sim",$K19:$K29))/AVERAGE(IF(O19:O29="Sim",$K19:$K29))) -> 0.1768 | P32: =IF(COUNTIF(P19:P29,"Sim")<3,"N/D (são necessários pelo menos 3 preços)",_xlfn.STDEV.S(IF(P19:P29="Sim",$K19:$K29))/AVERAGE(IF(P19:P29="Sim",$K19:$K29))) -> N/D (são necessários pelo menos 3 preços)
N33: Média | O33: =IF(SUM(COUNTIF($O$10:$O$16,"Sim")) + SUM(COUNTIF(O19:O29,"Sim")) < 3, "N/D (são necessários pelo menos 3 preços)", IFERROR(AVERAGE(_xlfn._xlws.FILTER($K$10:$K$16,$O$10:$O$16="Sim"), _xlfn._xlws.FILTER($K$19:$K$29,O19:O29="Sim")),O30)) -> 1714.01 | P33: =IF(SUM(COUNTIF($P$10:$P$16,"Sim")) + SUM(COUNTIF(P19:P29,"Sim")) < 3, "N/D (são necessários pelo menos 3 preços)", IFERROR(AVERAGE(_xlfn._xlws.FILTER($K$10:$K$16,$P$10:$P$16="Sim"), _xlfn._xlws.FILTER($K$19:$K$29,P19:P29="Sim")),P30)) -> N/D (são necessários pelo menos 3 preços)
N34: Mediana | O34: =IF(SUM(COUNTIF($O$10:$O$16,"Sim")) + SUM(COUNTIF(O19:O29,"Sim")) < 3, "N/D (são necessários pelo menos 3 preços)", IFERROR(MEDIAN(_xlfn._xlws.FILTER($K$10:$K$16,$O$10:$O$16="Sim"), _xlfn._xlws.FILTER($K$19:$K$29,O19:O29="Sim")),O31)) -> 1832.23 | P34: =IF(SUM(COUNTIF($P10:$P$16,"Sim")) + SUM(COUNTIF(P19:P29,"Sim")) < 3, "N/D (são necessários pelo menos 3 preços)", IFERROR(MEDIAN(_xlfn._xlws.FILTER($K$10:$K$16,$P$10:$P$16="Sim"), _xlfn._xlws.FILTER($K$19:$K$29,P19:P29="Sim")),P31)) -> N/D (são necessários pelo menos 3 preços)
B35: COSOLIDAÇÃO DOS PREÇOS | N35: Metodologia a adotar: | O35: =IF(INDEX(O18:P18,P35)=0,"",INDEX(O18:P18,P35)) -> Outliers | P35: 1
B37: PREÇO UNITÁRIO ESTIMADO ADOTADO: | L37: =IF($B$39="Mediana:",L31,L30) -> 1714.01
A39: =O18 -> Outliers | B39: Média:
A40: =P18 -> Por critério do(a) analista

Sheet COT07 (hidden)
B2: Processo | C2: 59500.003753/2025-45
B3: Responsável | C3: Kaio Gabriel, Alessandra Brant, Alberto Nascimento
B4: Área de Origem | C4: AI/GAP/UGI
B5: Data da pesquisa | C5: 2025-10-22
B7: ITEM: | C7: TUBO PEMD 2" PN 60 | I7: UNIDADE DE MEDIDA: | J7: m | K7: QUANTIDADE: | L7: 45 | O7: Tabela auxiliar de metodologias para exclusão de preços
B8: LICITAÇÕES ANTERIORES | O8: Licitações Anteriores
B9: Órgão | C9: Edital/Ano - Nº do Lote / Item | D9: Quantidade | E9: Valor Unitário | F9: Data | G9: índice de atualização (nome) | H9: I0 | I9: If | J9: Variação acumulada do índice (%) | K9: Preço unitário atualizado | L9: Utilizar? (Sim/Não) | O9: Outliers | P9: Por critério do(a) analista
J10: =IF(ISBLANK(E10),"",IF(ISNUMBER(H10),(I10-H10)/H10,0)) ->  | K10: =IF(ISBLANK(E10),"",E10*(1+J10)) ->  | L10: =IF(ISNUMBER(K10),IF($L$32<>$P$9,O10,P10),"") ->  | O10: =IF(ISNUMBER(K10),IF(OR(K10<_xlfn.QUARTILE.INC($K$10:$K$29,1)-1.5*(_xlfn.QUARTILE.INC($K$10:K29,3)-_xlfn.QUARTILE.INC($K$10:$K$29,1)),K10>_xlfn.QUARTILE.INC($K$10:$K$29,3)+1.5*(_xlfn.QUARTILE.INC($K$10:$K$29,3)-_xlfn.QUARTILE.INC($K$10:$K$29,1))),"Não","Sim"),"") -> 
J11: =IF(ISBLANK(E11),"",IF(ISNUMBER(H11),(I11-H11)/H11,0)) ->  | K11: =IF(ISBLANK(E11),"",E11*(1+J11)) ->  | O11: =IF(ISNUMBER(K11),IF(OR(K11<_xlfn.QUARTILE.INC($K$10:$K$29,1)-1.5*(_xlfn.QUARTILE.INC($K$10:K29,3)-_xlfn.QUARTILE.INC($K$10:$K$29,1)),K11>_xlfn.QUARTILE.INC($K$10:$K$29,3)+1.5*(_xlfn.QUARTILE.INC($K$10:$K$29,3)-_xlfn.QUARTILE.INC($K$10:$K$29,1))),"Não","Sim"),"") -> 
O12: =IF(ISNUMBER(K12),IF(OR(K12<_xlfn.QUARTILE.INC($K$10:$K$29,1)-1.5*(_xlfn.QUARTILE.INC($K$10:K30,3)-_xlfn.QUARTILE.INC($K$10:$K$29,1)),K12>_xlfn.QUARTILE.INC($K$10:$K$29,3)+1.5*(_xlfn.QUARTILE.INC($K$10:$K$29,3)-_xlfn.QUARTILE.INC($K$10:$K$29,1))),"Não","Sim"),"") -> 
O13: =IF(ISNUMBER(K13),IF(OR(K13<_xlfn.QUARTILE.INC($K$10:$K$29,1)-1.5*(_xlfn.QUARTILE.INC($K$10:K31,3)-_xlfn.QUARTILE.INC($K$10:$K$29,1)),K13>_xlfn.QUARTILE.INC($K$10:$K$29,3)+1.5*(_xlfn.QUARTILE.INC($K$10:$K$29,3)-_xlfn.QUARTILE.INC($K$10:$K$29,1))),"Não","Sim"),"") -> 
O14: =IF(ISNUMBER(K14),IF(OR(K14<_xlfn.QUARTILE.INC($K$10:$K$29,1)-1.5*(_xlfn.QUARTILE.INC($K$10:K32,3)-_xlfn.QUARTILE.INC($K$10:$K$29,1)),K14>_xlfn.QUARTILE.INC($K$10:$K$29,3)+1.5*(_xlfn.QUARTILE.INC($K$10:$K$29,3)-_xlfn.QUARTILE.INC($K$10:$K$29,1))),"Não","Sim"),"") -> 
O15: =IF(ISNUMBER(K15),IF(OR(K15<_xlfn.QUARTILE.INC($K$10:$K$29,1)-1.5*(_xlfn.QUARTILE.INC($K$10:K35,3)-_xlfn.QUARTILE.INC($K$10:$K$29,1)),K15>_xlfn.QUARTILE.INC($K$10:$K$29,3)+1.5*(_xlfn.QUARTILE.INC($K$10:$K$29,3)-_xlfn.QUARTILE.INC($K$10:$K$29,1))),"Não","Sim"),"") -> 
O16: =IF(ISNUMBER(K16),IF(OR(K16<_xlfn.QUARTILE.INC($K$10:$K$29,1)-1.5*(_xlfn.QUARTILE.INC($I$10:I37,3)-_xlfn.QUARTILE.INC($K$10:$K$29,1)),K16>_xlfn.QUARTILE.INC($K$10:$K$29,3)+1.5*(_xlfn.QUARTILE.INC($K$10:$K$29,3)-_xlfn.QUARTILE.INC($K$10:$K$29,1))),"Não","Sim"),"") -> 
B17: COTAÇÕES DE MERCADO | O17: Cotações
B18: Empresa | J18: Data | K18: Preço Unitário | L18: Utilizar? (Sim/Não) | O18: Outliers | P18: Por critério do(a) analista
B19: FERPAM COM DE FERRAMENTAS PARAFUSOS E MAQUINAS LTDA - Palmas - Tocantins - CNPJ: 01.040.887/0001-04. https://www.ferpam.com.br/mangueira-irrigac-o-pemd-50mm-pn60-100-metros-naandanjain.html?srsltid=AfmBOoonnKj5UWqG5LQslPJPQ0fEYb4v_sStr747gGjX24p8Np86J1oS | J19: 2025-11-11 | K19: =(1880.69+512.65)/100 -> 23.93 | L19: =IF(ISNUMBER(K19),IF($L$32=$O$18,O19,IF($L$32=$P$18,P19,"")),"") -> Sim | O19: =IF(ISNUMBER(K19),IF(OR(K19<_xlfn.QUARTILE.INC($K$10:$K$29,1)-1.5*(_xlfn.QUARTILE.INC($K$10:$K$29,3)-_xlfn.QUARTILE.INC($K$10:$K$29,1)),K19>_xlfn.QUARTILE.INC($K$10:$K$29,3)+1.5*(_xlfn.QUARTILE.INC($K$10:$K$29,3)-_xlfn.QUARTILE.INC($K$10:$K$29,1))),"Não","Sim"),"") -> Sim
B20: BRASMAQUINAS COMERCIO DE MAQUINAS E IRRIGACAO LTDA (CNPJ : 00145531000334) E-mail: MARCOS.GOMES@BRASMAQUINAS.COM.BR | J20: 2025-08-22 | K20: 21.9 | L20: Não | O20: Sim
B21: VCA IRRIGAÇÃO LTDA (CNPJ: 26.466.226/0001-76) financeiro@minasbombas.com.br | J21: 2025-08-27 | K21: 22.45 | L21: Não | O21: Sim
B22: SISTEMINAS LTDA (CNPJ: 23.481.297/0001-50 ) e-mail sisteminas@outlook.com | J22: 2026-02-24 | K22: 15.9 | L22: Sim | O22: Sim
B23: FACILITA AGROINDÚSTRIA & SERVIÇOS LTDA | J23: 2026-02-25 | K23: 13 | L23: Sim | O23: Sim
B24: NSA SOLUÇÕES LTDA (CNPJ: 19.987.085/0001-71) | J24: 2026-02-24 | K24: 23.9 | L24: Sim | O24: Sim
B30: Observações: | K30: Média: | L30: =IF($L$32="","Selecione metodologia para exclusão de preços",AVERAGE(IF($L$10:$L$29="Sim",$K$10:$K$29))) -> 19.18 | N30: Média (Cotações) | O30: =IF(COUNTIF(O19:O29,"Sim")<3,"N/D (são necessários pelo menos 3 preços)",AVERAGE(IF(O19:O29="Sim",$K19:$K29))) -> 20.18 | P30: =IF(COUNTIF(P19:P29,"Sim")<3,"N/D (são necessários pelo menos 3 preços)",AVERAGE(IF(P19:P29="Sim",$K19:$K29))) -> N/D (são necessários pelo menos 3 preços)
K31: Mediana: | L31: =IF($L$32="","Selecione metodologia para exclusão de preços",MEDIAN(IF($L$10:$L$29="Sim",$K$10:$K$29))) -> 19.9 | N31: Mediana (Cotações) | O31: =IF(COUNTIF(O19:O29,"Sim")<3,"N/D (são necessários pelo menos 3 preços)",MEDIAN(IF(O19:O29="Sim",$K19:$K29))) -> 22.18 | P31: =IF(COUNTIF(P19:P29,"Sim")<3,"N/D (são necessários pelo menos 3 preços)",MEDIAN(IF(P19:P29="Sim",$K19:$K29))) -> N/D (são necessários pelo menos 3 preços)
B32: Metodologia de exclusão de preços adotada: | L32: =IF(O35="",INDEX(O18:P18,MATCH(MIN(#REF!),#REF!,0)),O35) -> Outliers | N32: CV (Cotações) | O32: =IF(COUNTIF(O19:O29,"Sim")<3,"N/D (são necessários pelo menos 3 preços)",_xlfn.STDEV.S(IF(O19:O29="Sim",$K19:$K29))/AVERAGE(IF(O19:O29="Sim",$K19:$K29))) -> 0.228 | P32: =IF(COUNTIF(P19:P29,"Sim")<3,"N/D (são necessários pelo menos 3 preços)",_xlfn.STDEV.S(IF(P19:P29="Sim",$K19:$K29))/AVERAGE(IF(P19:P29="Sim",$K19:$K29))) -> N/D (são necessários pelo menos 3 preços)
N33: Média | O33: =IF(SUM(COUNTIF($O$10:$O$16,"Sim")) + SUM(COUNTIF(O19:O29,"Sim")) < 3, "N/D (são necessários pelo menos 3 preços)", IFERROR(AVERAGE(_xlfn._xlws.FILTER($K$10:$K$16,$O$10:$O$16="Sim"), _xlfn._xlws.FILTER($K$19:$K$29,O19:O29="Sim")),O30)) -> 20.18 | P33: =IF(SUM(COUNTIF($P$10:$P$16,"Sim")) + SUM(COUNTIF(P19:P29,"Sim")) < 3, "N/D (são necessários pelo menos 3 preços)", IFERROR(AVERAGE(_xlfn._xlws.FILTER($K$10:$K$16,$P$10:$P$16="Sim"), _xlfn._xlws.FILTER($K$19:$K$29,P19:P29="Sim")),P30)) -> N/D (são necessários pelo menos 3 preços)
N34: Mediana | O34: =IF(SUM(COUNTIF($O$10:$O$16,"Sim")) + SUM(COUNTIF(O19:O29,"Sim")) < 3, "N/D (são necessários pelo menos 3 preços)", IFERROR(MEDIAN(_xlfn._xlws.FILTER($K$10:$K$16,$O$10:$O$16="Sim"), _xlfn._xlws.FILTER($K$19:$K$29,O19:O29="Sim")),O31)) -> 22.18 | P34: =IF(SUM(COUNTIF($P10:$P$16,"Sim")) + SUM(COUNTIF(P19:P29,"Sim")) < 3, "N/D (são necessários pelo menos 3 preços)", IFERROR(MEDIAN(_xlfn._xlws.FILTER($K$10:$K$16,$P$10:$P$16="Sim"), _xlfn._xlws.FILTER($K$19:$K$29,P19:P29="Sim")),P31)) -> N/D (são necessários pelo menos 3 preços)
B35: COSOLIDAÇÃO DOS PREÇOS | N35: Metodologia a adotar: | O35: =IF(INDEX(O18:P18,P35)=0,"",INDEX(O18:P18,P35)) -> Outliers | P35: 1
B37: PREÇO UNITÁRIO ESTIMADO ADOTADO: | L37: =IF($B$39="Mediana:",L31,L30) -> 19.18
A39: =O18 -> Outliers | B39: Média:
A40: =P18 -> Por critério do(a) analista

Sheet COT08 (hidden)
B2: Processo | C2: 59500.003753/2025-45
B3: Responsável | C3: Kaio Gabriel, Alessandra Brant, Alberto Nascimento
B4: Área de Origem | C4: AI/GAP/UGI
B5: Data da pesquisa | C5: 2025-10-22
B7: ITEM: | C7: FILTRO DE DISCO 3" - 25M³/H | I7: UNIDADE DE MEDIDA: | J7: unidade | K7: QUANTIDADE: | L7: 3 | O7: Tabela auxiliar de metodologias para exclusão de preços
B8: LICITAÇÕES ANTERIORES | O8: Licitações Anteriores
B9: Órgão | C9: Edital/Ano - Nº do Lote / Item | D9: Quantidade | E9: Valor Unitário | F9: Data | G9: índice de atualização (nome) | H9: I0 | I9: If | J9: Variação acumulada do índice (%) | K9: Preço unitário atualizado | L9: Utilizar? (Sim/Não) | O9: Outliers | P9: Por critério do(a) analista
J10: =IF(ISBLANK(E10),"",IF(ISNUMBER(H10),(I10-H10)/H10,0)) ->  | K10: =IF(ISBLANK(E10),"",E10*(1+J10)) ->  | L10: =IF(ISNUMBER(K10),IF($L$32<>$P$9,O10,P10),"") ->  | O10: =IF(ISNUMBER(K10),IF(OR(K10<_xlfn.QUARTILE.INC($K$10:$K$29,1)-1.5*(_xlfn.QUARTILE.INC($K$10:K29,3)-_xlfn.QUARTILE.INC($K$10:$K$29,1)),K10>_xlfn.QUARTILE.INC($K$10:$K$29,3)+1.5*(_xlfn.QUARTILE.INC($K$10:$K$29,3)-_xlfn.QUARTILE.INC($K$10:$K$29,1))),"Não","Sim"),"") -> 
J11: =IF(ISBLANK(E11),"",IF(ISNUMBER(H11),(I11-H11)/H11,0)) ->  | K11: =IF(ISBLANK(E11),"",E11*(1+J11)) ->  | O11: =IF(ISNUMBER(K11),IF(OR(K11<_xlfn.QUARTILE.INC($K$10:$K$29,1)-1.5*(_xlfn.QUARTILE.INC($K$10:K29,3)-_xlfn.QUARTILE.INC($K$10:$K$29,1)),K11>_xlfn.QUARTILE.INC($K$10:$K$29,3)+1.5*(_xlfn.QUARTILE.INC($K$10:$K$29,3)-_xlfn.QUARTILE.INC($K$10:$K$29,1))),"Não","Sim"),"") -> 
O12: =IF(ISNUMBER(K12),IF(OR(K12<_xlfn.QUARTILE.INC($K$10:$K$29,1)-1.5*(_xlfn.QUARTILE.INC($K$10:K30,3)-_xlfn.QUARTILE.INC($K$10:$K$29,1)),K12>_xlfn.QUARTILE.INC($K$10:$K$29,3)+1.5*(_xlfn.QUARTILE.INC($K$10:$K$29,3)-_xlfn.QUARTILE.INC($K$10:$K$29,1))),"Não","Sim"),"") -> 
O13: =IF(ISNUMBER(K13),IF(OR(K13<_xlfn.QUARTILE.INC($K$10:$K$29,1)-1.5*(_xlfn.QUARTILE.INC($K$10:K31,3)-_xlfn.QUARTILE.INC($K$10:$K$29,1)),K13>_xlfn.QUARTILE.INC($K$10:$K$29,3)+1.5*(_xlfn.QUARTILE.INC($K$10:$K$29,3)-_xlfn.QUARTILE.INC($K$10:$K$29,1))),"Não","Sim"),"") -> 
O14: =IF(ISNUMBER(K14),IF(OR(K14<_xlfn.QUARTILE.INC($K$10:$K$29,1)-1.5*(_xlfn.QUARTILE.INC($K$10:K32,3)-_xlfn.QUARTILE.INC($K$10:$K$29,1)),K14>_xlfn.QUARTILE.INC($K$10:$K$29,3)+1.5*(_xlfn.QUARTILE.INC($K$10:$K$29,3)-_xlfn.QUARTILE.INC($K$10:$K$29,1))),"Não","Sim"),"") -> 
O15: =IF(ISNUMBER(K15),IF(OR(K15<_xlfn.QUARTILE.INC($K$10:$K$29,1)-1.5*(_xlfn.QUARTILE.INC($K$10:K35,3)-_xlfn.QUARTILE.INC($K$10:$K$29,1)),K15>_xlfn.QUARTILE.INC($K$10:$K$29,3)+1.5*(_xlfn.QUARTILE.INC($K$10:$K$29,3)-_xlfn.QUARTILE.INC($K$10:$K$29,1))),"Não","Sim"),"") -> 
O16: =IF(ISNUMBER(K16),IF(OR(K16<_xlfn.QUARTILE.INC($K$10:$K$29,1)-1.5*(_xlfn.QUARTILE.INC($I$10:I37,3)-_xlfn.QUARTILE.INC($K$10:$K$29,1)),K16>_xlfn.QUARTILE.INC($K$10:$K$29,3)+1.5*(_xlfn.QUARTILE.INC($K$10:$K$29,3)-_xlfn.QUARTILE.INC($K$10:$K$29,1))),"Não","Sim"),"") -> 
B17: COTAÇÕES DE MERCADO | O17: Cotações
B18: Empresa | J18: Data | K18: Preço Unitário | L18: Utilizar? (Sim/Não) | O18: Outliers | P18: Por critério do(a) analista
B19: BioSementes - https://www.biosementes.com.br/loja/item/Filtro-disco-3-POL-120-mesh-vazao-de-50.000-L%7B47%7Dh.html?gad_source=1&gad_campaignid=19629565098&gbraid=0AAAAADwUPB4I3mQwVqVWndJKiptTFjzMj&gclid=CjwKCAiAt8bIBhBpEiwAzH1w6WFrWugpmmNdLw4ojJtMcROU34DOMPHXf7sKrUPd-1HGe_3vyAMPQBoC_PsQAvD_BwE | J19: 2025-11-10 | K19: =852.49+77.29 -> 929.78 | L19: =IF(ISNUMBER(K19),IF($L$32=$O$18,O19,IF($L$32=$P$18,P19,"")),"") -> Sim | O19: =IF(ISNUMBER(K19),IF(OR(K19<_xlfn.QUARTILE.INC($K$10:$K$29,1)-1.5*(_xlfn.QUARTILE.INC($K$10:$K$29,3)-_xlfn.QUARTILE.INC($K$10:$K$29,1)),K19>_xlfn.QUARTILE.INC($K$10:$K$29,3)+1.5*(_xlfn.QUARTILE.INC($K$10:$K$29,3)-_xlfn.QUARTILE.INC($K$10:$K$29,1))),"Não","Sim"),"") -> Sim
B20: Mercado Livre (IRRIGAÇÃO E CIA) - https://www.mercadolivre.com.br/filtro-de-disco-irrigacao-3-pol-rosca--gotejamento-40m3h/up/MLBU1745226948?pdp_filters=item_id:MLB5073246624&matt_tool=22815917&matt_internal_campaign_id=&matt_word=&matt_source=google&matt_campaign_id=22090354010&matt_ad_group_id=173090509596&matt_match_type=&matt_network=g&matt_device=c&matt_creative=727882725981&matt_keyword=&matt_ad_position=&matt_ad_type=pla&matt_merchant_id=129113724&matt_product_id=MLB5073246624&matt_product_partition_id=2388011230506&matt_target_id=pla-2388011230506&cq_src=google_ads&cq_cmp=22090354010&cq_net=g&cq_plt=gp&cq_med=pla&gad_source=1&gad_campaignid=22090354010&gbraid=0AAAAAD93qcAB449YOezVYzQJSsxn2Eyl4&gclid=CjwKCAiAt8bIBhBpEiwAzH1w6bDvw-ZbmjQWiuzBK61eyWJy-QGqElwGxnbhcZ491thI03lqz1SNhRoCwe8QAvD_BwE | J20: 2025-11-10 | K20: 997 | L20: Sim | O20: Sim
B21: IrrigaFort - https://www.irrigafort.com.br/irrigacao/filtros/filtro-disco-120-mesh-3-50m-h-irritec | J21: 2025-11-10 | K21: =965+1024.62 -> 1989.62 | L21: Sim | O21: Sim
B22: CasaIrriga - https://casairriga.com.br/produto/filtro-de-disco-3-polegadas-irrigacao-gotejamento/?srsltid=AfmBOopS8xSQLqqVmSBTRtHCCO_S0-WymGi7cRLBDJYrzQg8JpRzU_iZAYg | J22: 2025-11-10 | K22: =1130+108.01 -> 1238.01 | L22: Sim | O22: Sim
B30: Observações: | K30: Média: | L30: =IF($L$32="","Selecione metodologia para exclusão de preços",AVERAGE(IF($L$10:$L$29="Sim",$K$10:$K$29))) -> 1288.6 | N30: Média (Cotações) | O30: =IF(COUNTIF(O19:O29,"Sim")<3,"N/D (são necessários pelo menos 3 preços)",AVERAGE(IF(O19:O29="Sim",$K19:$K29))) -> 1288.6 | P30: =IF(COUNTIF(P19:P29,"Sim")<3,"N/D (são necessários pelo menos 3 preços)",AVERAGE(IF(P19:P29="Sim",$K19:$K29))) -> N/D (são necessários pelo menos 3 preços)
K31: Mediana: | L31: =IF($L$32="","Selecione metodologia para exclusão de preços",MEDIAN(IF($L$10:$L$29="Sim",$K$10:$K$29))) -> 1117.51 | N31: Mediana (Cotações) | O31: =IF(COUNTIF(O19:O29,"Sim")<3,"N/D (são necessários pelo menos 3 preços)",MEDIAN(IF(O19:O29="Sim",$K19:$K29))) -> 1117.51 | P31: =IF(COUNTIF(P19:P29,"Sim")<3,"N/D (são necessários pelo menos 3 preços)",MEDIAN(IF(P19:P29="Sim",$K19:$K29))) -> N/D (são necessários pelo menos 3 preços)
B32: Metodologia de exclusão de preços adotada: | L32: =IF(O35="",INDEX(O18:P18,MATCH(MIN(#REF!),#REF!,0)),O35) -> Outliers | N32: CV (Cotações) | O32: =IF(COUNTIF(O19:O29,"Sim")<3,"N/D (são necessários pelo menos 3 preços)",_xlfn.STDEV.S(IF(O19:O29="Sim",$K19:$K29))/AVERAGE(IF(O19:O29="Sim",$K19:$K29))) -> 0.3769 | P32: =IF(COUNTIF(P19:P29,"Sim")<3,"N/D (são necessários pelo menos 3 preços)",_xlfn.STDEV.S(IF(P19:P29="Sim",$K19:$K29))/AVERAGE(IF(P19:P29="Sim",$K19:$K29))) -> N/D (são necessários pelo menos 3 preços)
N33: Média | O33: =IF(SUM(COUNTIF($O$10:$O$16,"Sim")) + SUM(COUNTIF(O19:O29,"Sim")) < 3, "N/D (são necessários pelo menos 3 preços)", IFERROR(AVERAGE(_xlfn._xlws.FILTER($K$10:$K$16,$O$10:$O$16="Sim"), _xlfn._xlws.FILTER($K$19:$K$29,O19:O29="Sim")),O30)) -> 1288.6 | P33: =IF(SUM(COUNTIF($P$10:$P$16,"Sim")) + SUM(COUNTIF(P19:P29,"Sim")) < 3, "N/D (são necessários pelo menos 3 preços)", IFERROR(AVERAGE(_xlfn._xlws.FILTER($K$10:$K$16,$P$10:$P$16="Sim"), _xlfn._xlws.FILTER($K$19:$K$29,P19:P29="Sim")),P30)) -> N/D (são necessários pelo menos 3 preços)
N34: Mediana | O34: =IF(SUM(COUNTIF($O$10:$O$16,"Sim")) + SUM(COUNTIF(O19:O29,"Sim")) < 3, "N/D (são necessários pelo menos 3 preços)", IFERROR(MEDIAN(_xlfn._xlws.FILTER($K$10:$K$16,$O$10:$O$16="Sim"), _xlfn._xlws.FILTER($K$19:$K$29,O19:O29="Sim")),O31)) -> 1117.51 | P34: =IF(SUM(COUNTIF($P10:$P$16,"Sim")) + SUM(COUNTIF(P19:P29,"Sim")) < 3, "N/D (são necessários pelo menos 3 preços)", IFERROR(MEDIAN(_xlfn._xlws.FILTER($K$10:$K$16,$P$10:$P$16="Sim"), _xlfn._xlws.FILTER($K$19:$K$29,P19:P29="Sim")),P31)) -> N/D (são necessários pelo menos 3 preços)
B35: COSOLIDAÇÃO DOS PREÇOS | N35: Metodologia a adotar: | O35: =IF(INDEX(O18:P18,P35)=0,"",INDEX(O18:P18,P35)) -> Outliers | P35: 1
B37: PREÇO UNITÁRIO ESTIMADO ADOTADO: | L37: =IF($B$39="Mediana:",L31,L30) -> 1117.51
A39: =O18 -> Outliers | B39: Mediana:
A40: =P18 -> Por critério do(a) analista

Sheet COT09 (hidden)
B2: Processo | C2: 59500.003753/2025-45
B3: Responsável | C3: Kaio Gabriel, Alessandra Brant, Alberto Nascimento
B4: Área de Origem | C4: AI/GAP/UGI
B5: Data da pesquisa | C5: 2025-10-22
B7: ITEM: | C7: MICROASPERSOR 75 L/H | I7: UNIDADE DE MEDIDA: | J7: unidade | K7: QUANTIDADE: | L7: 1400 | O7: Tabela auxiliar de metodologias para exclusão de preços
